Workbook

Sheet Instructions
B8: Contact Us | C8: Irrigation Spreadsheet Project
B9: Texas Corn Producers | C9: Spreadsheets were developed as part of a project supported by the Texas Corn Producers to create a decision aid that assists irrigated operators in making management decisions on the optimal crop mix for their land. Certain applications utilized were initially created as part of a project funded by the Texas Cotton State Support Committee.
B10: Extension Ag Economics
B11: Master Marketer
B12: Farm Assistance
B13: Market Outlook
B14: Futures Charts and Prices
B15: Introduction
A16: This tool requires Excel or a similar program that will read an Excel file. Budget cost estimates are not meant to represent any specific farm. They are averages, and serve as a starting point in your analysis. Due to differences in soil types and other resources that vary from farm to farm, it is important that you enter individualized crop cost estimates to achieve realistic results. To make long run decisions and determine farm business sustainability in future years, you will need to estimate fixed costs as well.
A22: The FARM Assistance Strategic Planning program is another useful tool for evaluating long term operational viability, and analyzing the financial impact of various business decisions such as acquiring more land or changing crop mixes. Contact DeDe Jones at 677-5600 or for more information.
B27: From Sheet to Sheet
A28: Each crop budget (Irr Alfalfa, Irr Corn, etc) and analysis section (Prices, Break-Even, Comparative, Irrigation) is displayed on a separate tab/sheet. However, summary tables in the analyses portion of this spreadsheet are tied to the budgets by equations, and will immediately update as you make changes to the individual budgets.
A32: The Menu sheet provides direct access to all crop budgets and summary pages from one location. It also allows the user to select the crops and scenarios they wish to see in the analyses tabs. To return to the Menu or navigate to the Prices, Break-even, Comparative, or Irrigation sections, use the colored navigation bar at the top of each sheet.
A36: Click on the crop budget name at the bottom of the screen to move from tab to tab. To scroll left or right and get access to budgets not listed on the screen, use the four small triangles in the bottom left corner of the worksheet. Clicking on one of the triangles with a vertical line will take you to the first sheet or the last sheet. Clicking on one of the triangles in the center will move over one sheet either left or right.
B41: Entering Your Numbers
A42: To enter personalized data in a budget, click on the number in BLUE that you wish to change, type in the new entry and press the Enter key, or just use the mouse to click on the next number that needs changing. GREEN entries can only be altered in the Universal Input Prices sheet. If the meaning of a certain budget number is unclear, many have a red triangle beside the entry. Moving your mouse over the triangle will provide a more detailed explanation.
B47: Printing
A48: If visible, click on the printer icon above the screen. It is usually found on the second row from the top. This should print a copy of the worksheet currently being viewed. For multiple sheets, select the ones you wish to see by holding down the control key while left-clicking on each sheet/tab. Then, selecting the printer icon will print all chosen sheets. If the icon is not visible, choose the File menu and then Print from the upper left corner, then follow the same procedures as above.
B53: Saving Your Work
A54: If you want to keep the numbers entered for future sessions, all files must be saved. To do this, just click on the Save icon (disk) to replace the original information with your new data. If the Save icon is not visible, you can also select the File menu and then Save As and give the file a new name.
B58: Special Thanks
A59: A special thanks goes to the project team of Steve Amosson, Thomas Marek, DeDe Jones, Jay Yates, Bridget Guerrero, and Michelle Jones and the project advisory committee of David Ford, Harold Grall, Tom Moore, and Mark Howard.

Sheet Menu
B3: Budgets | D3: Analysis Selection
B4: ='Irr Alfalfa'!$A$3 -> Irrigated Alfalfa
B5: ='Irr Canola'!$A$3 -> Irrigated Canola
B6: ='Irr Corn'!$A$3 -> Irrigated Corn
B7: ='Irr Corn Silage'!$A$3 -> Irrigated Corn Silage
B8: ='Irr Cotton'!$A$3 -> Irrigated Cotton
B9: ='Irr Peanuts'!$A$3 -> Irrigated Peanuts
B10: ='Irr Sorghum'!$A$3 -> Irrigated Sorghum
B11: ='Irr Sorghum Seed'!$A$3 -> Irrigated Sorghum Seed
B12: ='Irr Sorghum Silage'!$A$3 -> Irrigated Sorghum Silage
B13: ='Irr Sorghum Sudangrass'!$A$3 -> Irrigated Sorghum Sudangrass
B14: ='Irr Soybeans'!$A$3 -> Irrigated Soybeans
B15: ='Irr Sunflowers-Confection'!$A$3 -> Irrigated Sunflowers-Confectionary
B16: ='Irr Sunflowers-Oilseed'!$A$3 -> Irrigated Sunflowers-Oilseed
B17: ='Irr Triticale Silage'!$A$3 -> Irrigated Triticale Silage
B18: ='Irr Wheat'!$A$3 -> Irrigated Wheat
B19: ='Irr Other Crop'!$A$3 -> Irrigated Other Crop
B21: ='Dry Canola'!$A$3 -> Dryland Canola
B22: ='Dry Cotton'!$A$3 -> Dryland Cotton
B23: ='Dry Sorghum'!$A$3 -> Dryland Sorghum
B24: ='Dry Sorghum Sudangrass'!$A$3 -> Dryland Sorghum Sudangrass
B25: ='Dry Sunflowers-Oilseed'!$A$3 -> Dryland Sunflowers-Oilseed
B26: ='Dry Wheat'!$A$3 -> Dryland Wheat
B27: ='Dry Other Crop'!$A$3 -> Dryland Other Crop

Sheet Universal Input Prices
A2: Basic Universal Input Prices
A3: Commodity | B3: Price | C3: Unit
A4: Alfalfa | B4: 354 | C4: ton
A5: Canola | B5: 23.4 | C5: cwt
A6: Corn | B6: 6.46 | C6: bu
A7: Corn Silage | B7: 68.83 | C7: ton
A8: Cotton | B8: 0.8 | C8: lb
A9: Cottonseed | B9: 300 | C9: ton
A10: Peanuts | B10: 492 | C10: ton
A11: Sorghum | B11: 10.38 | C11: cwt
A12: Sorghum Seed | B12: 31.72 | C12: cwt
A13: Sorghum Silage | B13: 61.95 | C13: ton
A14: Soybeans | B14: 13.87 | C14: bu
A15: Sunflower - Conf. (large) | B15: 32.33 | C15: cwt
A16: Sunflower - Oil | B16: 26.75 | C16: cwt
A17: Triticale Silage | B17: 61.95 | C17: ton
A18: Wheat | B18: 8.46 | C18: bu
A19: Irrigated Other Crop | B19: 0 | C19: unit
A20: Dryland Other Crop | B20: 0 | C20: unit
A22: Grazing | B22: 0.6 | C22: lb of gain
A24: Input Item | B24: Price | C24: Unit | E24: Fertilizer Worksheet
A25: Fertilizer | J25: Cost per ton
A26: fert (N) - dry | B26: =J26/I26/2000 -> 1.5 | C26: /lb of N | E26: % N in Primary Nitrogen Fertilizer - dry | I26: 0.46 | J26: 1380
A27: fert (N) - liquid | B27: 2.690625 | C27: /lb of N | E27: % N in Primary Nitrogen Fertilizer - liquid | I27: 0.32 | J27: 1722
A28: fert (N) - NH3 | B28: =J28/I28/2000 -> 0.6201219512 | C28: /lb of N | E28: % N in Primary Nitrogen Fertilizer - NH3 | I28: 0.82 | J28: 1017
A29: fert (P) - dry | B29: =J29/I29/2000 -> 1.290384615 | C29: /lb of P | E29: % P in Primary Phosphate Fertilizer - dry | I29: 0.52 | J29: 1342
A30: fert (P) - liquid | B30: =J30/I30/2000 -> 2.15 | C30: /lb of P | E30: % P in Primary Phosphate Fertilizer - liquid | I30: 0.34 | J30: 1462
A31: Labor | B31: 17.5 | C31: /hour
A32: Diesel Fuel - Tractors | B32: 2.24 | C32: /gallon
A33: Gasoline - Pickup | B33: 2.09 | C33: /gallon
A34: Irrigation Fuel | B34: 4.7 | C34: /acre inch
A35: Interest-operating capital | B35: 0.08 | C35: APR
A36: Cotton
A37: Stripping & module | B37: 16.01 | C37: /cwt cotton lint
A38: Ginning | B38: 3.75 | C38: /cwt seed cotton
A39: Seed Turnout | B39: 750 | C39: lbs/500 lb bale

Sheet Irr Alfalfa
A2: Estimated Costs and Returns per Acre
A3: Irrigated Alfalfa
A4: Projected for 2023
H5: Rental Agreement | I5: Share
A6: Item | B6: Quantity | C6: Unit | D6: Price | E6: Landlord | H6: Cash | I6: Cash
E7: Share | F7: Total | G7: Tenant | H7: Landlord
A8: Income
A9: alfalfa hay | B9: 5.5 | C9: ton | D9: ='Universal Input Prices'!B4 -> 354 | E9: 0.33 | F9: =D9*B9 -> 1947 | G9: =F9*(1-E9) -> 1304.49 | H9: =IF(H6="Cash", D58,F9*E9) -> 45.74
A10: other income | B10: 0 | C10: $/ac. | D10: 1 | E10: 0.33 | F10: =D10*B10 -> 0 | G10: =F10*(1-E10) -> 0 | H10: =IF(H7="Cash", D59,F10*E10) -> 0
A12: Total Income | F12: =SUM(F8:F11) -> 1947 | G12: =SUM(G8:G11) -> 1304.49 | H12: =SUM(H8:H11) -> 45.74
A14: Variable Costs
A15: Seed
A16: alfalfa | B16: 0 | C16: lb | D16: 0 | E16: 0 | F16: =D16*B16 -> 0 | G16: =F16*(1-E16) -> 0 | H16: =F16*E16 -> 0
A17: Fertilizer
A18: fert (P) - liquid | B18: 60.01 | C18: lb | D18: =IF(A18="",0,VLOOKUP(A18,'Universal Input Prices'!$A$26:$B$30, 2)) -> 2.15 | E18: 0.33 | F18: =D18*B18 -> 129.0215 | G18: =F18*(1-E18) -> 86.444405 | H18: =F18*E18 -> 42.577095
B19: 0 | C19: lb | D19: =IF(A19="",0,VLOOKUP(A19,'Universal Input Prices'!$A$26:$B$30, 2)) -> 0 | E19: 0 | F19: =D19*B19 -> 0 | G19: =F19*(1-E19) -> 0 | H19: =F19*E19 -> 0
B20: 0 | C20: lb | D20: =IF(A20="",0,VLOOKUP(A20,'Universal Input Prices'!$A$26:$B$30, 2)) -> 0 | E20: 0 | F20: =D20*B20 -> 0 | G20: =F20*(1-E20) -> 0 | H20: =F20*E20 -> 0
B21: 0 | C21: lb | D21: 0 | E21: 0.33 | F21: =D21*B21 -> 0 | G21: =F21*(1-E21) -> 0 | H21: =F21*E21 -> 0
A22: Field Operations
A23: herbicide & application | B23: 1 | C23: acre | D23: 63.45 | E23: 0.33 | F23: =D23*B23 -> 63.45 | G23: =F23*(1-E23) -> 42.5115 | H23: =F23*E23 -> 20.9385
A24: fertilizer application | B24: 1 | C24: acre | D24: 6.39 | E24: 0.33 | F24: =D24*B24 -> 6.39 | G24: =F24*(1-E24) -> 4.2813 | H24: =F24*E24 -> 2.1087
A25: insecticide & application | B25: 1 | C25: acre | D25: 17.84 | E25: 0.33 | F25: =D25*B25 -> 17.84 | G25: =F25*(1-E25) -> 11.9528 | H25: =F25*E25 -> 5.8872
A26: custom baling | B26: =$B$9 -> 5.5 | C26: ton | D26: 58.47 | E26: 0 | F26: =D26*B26 -> 321.585 | G26: =F26*(1-E26) -> 321.585 | H26: =F26*E26 -> 0
A27: crop consultant | B27: 1 | C27: acre | D27: 0 | E27: 0 | F27: =D27*B27 -> 0 | G27: =F27*(1-E27) -> 0 | H27: =F27*E27 -> 0
A28: scouting | B28: 1 | C28: acre | D28: 0 | E28: 0 | F28: 0 | G28: 0 | H28: 0
A29: other | B29: 1 | C29: acre | D29: 0 | E29: 0 | F29: 0 | G29: 0 | H29: 0
A30: other | B30: 1 | C30: acre | D30: 0 | E30: 0 | F30: 0 | G30: 0 | H30: 0
A31: other | B31: 1 | C31: acre | D31: 0 | E31: 0 | F31: 0 | G31: 0 | H31: 0
A32: Crop Insurance | B32: 1 | C32: acre | D32: 0 | E32: 0 | F32: 0 | G32: 0 | H32: 0
A33: Operator Labor & Hand Labor | B33: 0 | C33: hour | D33: ='Universal Input Prices'!$B$31 -> 17.5 | E33: 0 | F33: 0 | G33: 0 | H33: 0
A34: Irrigation Labor | B34: 1.535 | C34: hours | D34: ='Universal Input Prices'!$B$31 -> 17.5 | E34: 0 | F34: 26.8625 | G34: 26.8625 | H34: 0
A35: Diesel Fuel - Tractors | B35: 0 | C35: gallons | D35: ='Universal Input Prices'!$B$32 -> 2.24 | E35: 0 | F35: 0 | G35: 0 | H35: 0
A36: Gasoline - Pickup | B36: 2.05 | C36: gallons | D36: ='Universal Input Prices'!$B$33 -> 2.09 | E36: 0 | F36: 4.2845 | G36: 4.2845 | H36: 0
A37: Irrigation Fuel | B37: 24 | C37: acin | D37: ='Universal Input Prices'!$B$34 -> 4.7 | E37: 0.33 | F37: =D37*B37 -> 112.8 | G37: =F37*(1-E37) -> 75.576 | H37: =F37*E37 -> 37.224
A38: Pumping Days | B38: 56.57
A39: Calculated GPM capacity per acre needed | B39: =B37*18.85694/B38 -> 8.000115963
A40: Repair & Maintenance
A41: Implements | B41: 1 | C41: acre | D41: 0 | E41: 0 | F41: =D41*B41 -> 0 | G41: =F41*(1-E41) -> 0 | H41: =F41*E41 -> 0
A42: Tractors | B42: 1 | C42: acre | D42: 0 | E42: 0 | F42: =D42*B42 -> 0 | G42: =F42*(1-E42) -> 0 | H42: =F42*E42 -> 0
A43: Irrigation-Above Ground | B43: =B37 -> 24 | C43: acin | D43: 3.75 | E43: 0 | F43: =D43*B43 -> 90 | G43: =F43*(1-E43) -> 90 | H43: =F43*E43 -> 0
A44: Self Propelled Equipment | B44: 1 | C44: acre | D44: 0 | E44: 1 | F44: =D44*B44 -> 0 | G44: =F44*(1-E44) -> 0 | H44: =F44*E44 -> 0
A45: Pickup | B45: 1 | C45: acre | D45: 2.51 | E45: 0 | F45: =D45*B45 -> 2.51 | G45: =F45*(1-E45) -> 2.51 | H45: =F45*E45 -> 0
A46: Interest-operating capital | B46: ='Universal Input Prices'!$B$35 -> 0.08 | F46: =(SUM(F16:F25,F27:F45))*$B46/2 -> 18.12634 | G46: =(SUM(G16:G25,G27:G45))*$B46/2 -> 13.7769202 | H46: =(SUM(H16:H25,H27:H45))*$B46/2 -> 4.3494198
A48: Total Variable Costs | F48: =SUM(F16:F47) -> 792.86984 | G48: =SUM(G16:G46) -> 679.7849252 | H48: =SUM(H16:H46) -> 113.0849148
A49: Returns Above Variable Costs | F49: =F12-F48 -> 1154.13016 | G49: =G12-G48 -> 624.7050748 | H49: =H12-H48 -> -67.3449148
A51: Fixed Costs
A52: Implements | B52: 1 | C52: acre | D52: 0 | E52: 0 | F52: =D52*B52 -> 0 | G52: =F52*(1-E52) -> 0 | H52: =F52*E52 -> 0
A53: Tractors | B53: 1 | C53: acre | D53: 0 | E53: 0 | F53: 0 | G53: 0 | H53: 0
A54: Irrigation Equipment | B54: 1 | C54: acre | D54: 47.34 | E54: 0 | F54: 47.34 | G54: 47.34 | H54: 0
A55: Self Propelled Equipment | B55: 1 | C55: acre | D55: 0 | E55: 1 | F55: 0 | G55: 0 | H55: 0
A56: Pickup | B56: 1 | C56: acre | D56: 4.08 | E56: 0 | F56: 4.08 | G56: 4.08 | H56: 0
A57: Management | B57: 1 | C57: acre | D57: 0 | E57: 0 | F57: 0 | G57: 0 | H57: 0
A58: Irrigation Investment | B58: 1 | C58: acre | D58: 45.74 | E58: 0 | F58: 45.74 | G58: 45.74 | H58: 0
A59: Land | B59: 1 | C59: acre | D59: 117.6 | E59: 1 | F59: 117.6 | G59: =IF($H$6="Cash",D59,F59*(1-E59)) -> 117.6 | H59: =IF($H$6="Cash",0,F59*E59) -> 0
A60: Property Tax | B60: 1 | C60: acre | D60: 0 | E60: 1 | F60: 0 | G60: 0 | H60: 0
A61: Perenial Crop Establishment | B61: 1 | C61: acre | D61: 88.5 | E61: 0 | F61: =B61*D61 -> 88.5 | G61: =F61*(1-E61) -> 88.5 | H61: =F61*E61 -> 0
A62: Total Fixed Costs | F62: =SUM(F52:F61) -> 303.26 | G62: =SUM(G52:G61) -> 303.26 | H62: =SUM(H52:H61) -> 0
A63: Total Specified Costs | F63: =F48+F62 -> 1096.12984 | G63: =G48+G62 -> 983.0449252 | H63: =H48+H62 -> 113.0849148
A64: Returns Above Total Specified Costs | F64: =F12-F63 -> 850.87016 | G64: =G12-G63 -> 321.4450748 | H64: =H12-H63 -> -67.3449148
A66: Return on Investment | F66: =(F64/F63) -> 0.7762494268 | G66: =(G64/G63) -> 0.3269892012 | H66: -0.5955251849

Sheet Irr Canola
A2: Estimated Costs and Returns per Acre
A3: Irrigated Canola
A4: Projected for 2023
H5: Rental Agreement | I5: Share
A6: Item | B6: Quantity | C6: Unit | D6: Price | E6: Landlord | H6: Share | I6: Cash
E7: Share | F7: Total | G7: Tenant | H7: Landlord
A8: Income
A9: canola | B9: 22 | C9: cwt | D9: ='Universal Input Prices'!$B$5 -> 23.4 | E9: 0.33 | F9: =D9*B9 -> 514.8 | G9: =F9*(1-E9) -> 344.916 | H9: =IF(H6="Cash", D60,F9*E9) -> 169.884
A10: other income | B10: 0 | C10: $/ac. | D10: 1 | E10: 0.33 | F10: =D10*B10 -> 0 | G10: =F10*(1-E10) -> 0 | H10: =IF(H7="Cash", D59,F10*E10) -> 0
A12: Total Income | F12: =SUM(F8:F11) -> 514.8 | G12: =SUM(G8:G11) -> 344.916 | H12: =SUM(H8:H11) -> 169.884
A14: Variable Costs
A15: Seed
A16: canola seed | B16: 5 | C16: lb | D16: 6.29 | E16: 0 | F16: =D16*B16 -> 31.45 | G16: =F16*(1-E16) -> 31.45 | H16: =F16*E16 -> 0
A17: seed treatment | B17: 1 | C17: acre | D17: 7.14 | E17: 0 | F17: =D17*B17 -> 7.14 | G17: =F17*(1-E17) -> 7.14 | H17: =F17*E17 -> 0
A18: Fertilizer
A19: fert (N) - dry | B19: 25 | C19: lb | D19: =IF(A19="",0,VLOOKUP(A19,'Universal Input Prices'!$A$26:$B$26, 2)) -> 1.5 | E19: 0.33 | F19: =D19*B19 -> 37.5 | G19: =F19*(1-E19) -> 25.125 | H19: =F19*E19 -> 12.375
A20: fert (N) - liquid | B20: 55 | C20: lb | D20: =IF(A20="",0,VLOOKUP(A20,'Universal Input Prices'!$A$26:$B$27, 2)) -> 2.690625 | E20: 0.33 | F20: =D20*B20 -> 147.984375 | G20: =F20*(1-E20) -> 99.14953125 | H20: =F20*E20 -> 48.83484375
B21: 0 | C21: lb | D21: =IF(A21="",0,VLOOKUP(A21,'Universal Input Prices'!$A$26:$B$30, 2)) -> 0 | E21: 0 | F21: =D21*B21 -> 0 | G21: =F21*(1-E21) -> 0 | H21: =F21*E21 -> 0
A22: Field Operations
A23: herbicide & application | B23: 1 | C23: acre | D23: 39.82 | E23: 0.33 | F23: =D23*B23 -> 39.82 | G23: =F23*(1-E23) -> 26.6794 | H23: =F23*E23 -> 13.1406
A24: fertilizer application | B24: 1 | C24: acre | D24: 6.39 | E24: 0.33 | F24: 6.39 | G24: 4.2813 | H24: 2.1087
A25: insecticide & application | B25: 1 | C25: acre | D25: 40.85 | E25: 0.33 | F25: 40.85 | G25: 27.3695 | H25: 13.4805
A26: custom harvest & haul | B26: 1 | C26: acre | D26: 36.89 | E26: 0 | F26: 36.89 | G26: 36.89 | H26: 0
A27: custom harvest & haul | B27: =B9 -> 22 | C27: cwt | D27: 0.62 | E27: 0 | F27: 13.64 | G27: 13.64 | H27: 0
A28: hoeing | B28: 0 | C28: acre | D28: 0 | E28: 0 | F28: 0 | G28: 0 | H28: 0
A29: scouting | B29: 1 | C29: acre | D29: 0 | E29: 0 | F29: 0 | G29: 0 | H29: 0
A30: other | B30: 1 | C30: acre | D30: 0 | E30: 0 | F30: 0 | G30: 0 | H30: 0
A31: other | B31: 1 | C31: acre | D31: 0 | E31: 0 | F31: 0 | G31: 0 | H31: 0
A32: other | B32: 1 | C32: acre | D32: 0 | E32: 0 | F32: 0 | G32: 0 | H32: 0
A33: Crop Insurance | B33: 1 | C33: acre | D33: 0 | E33: 0.33 | F33: 0 | G33: 0 | H33: 0
A34: Operator Labor & Hand Labor | B34: 0.61 | C34: hours | D34: ='Universal Input Prices'!$B$31 -> 17.5 | E34: 0 | F34: 10.675 | G34: 10.675 | H34: 0
A35: Irrigation Labor | B35: 0.64 | C35: hours | D35: ='Universal Input Prices'!$B$31 -> 17.5 | E35: 0 | F35: 11.2 | G35: 11.2 | H35: 0
A36: Diesel Fuel - Tractors | B36: 1.73 | C36: gallons | D36: ='Universal Input Prices'!$B$32 -> 2.24 | E36: 0 | F36: 3.8752 | G36: 3.8752 | H36: 0
A37: Gasoline - Pickup | B37: 2.04923 | C37: gallons | D37: ='Universal Input Prices'!$B$33 -> 2.09 | E37: 0 | F37: 4.2828907 | G37: 4.2828907 | H37: 0
A38: Irrigation Fuel | B38: 10 | C38: acin | D38: ='Universal Input Prices'!$B$34 -> 4.7 | E38: 0.33 | F38: 47 | G38: 31.49 | H38: 15.51
A39: Pumping Days | B39: 94.28
A40: Calculated GPM capacity per acre needed | B40: =B38*18.85694/B39 -> 2.000099703
A41: Repair & Maintenance
A42: Implements | B42: 1 | C42: acre | D42: 3.91 | E42: 0 | F42: =D42*B42 -> 3.91 | G42: =F42*(1-E42) -> 3.91 | H42: =F42*E42 -> 0
A43: Tractors | B43: 1 | C43: acre | D43: 3.36 | E43: 0 | F43: =D43*B43 -> 3.36 | G43: =F43*(1-E43) -> 3.36 | H43: =F43*E43 -> 0
A44: Irrigation-Above Ground | B44: =B38 -> 10 | C44: acin | D44: 3.75 | E44: 0 | F44: =D44*B44 -> 37.5 | G44: =F44*(1-E44) -> 37.5 | H44: =F44*E44 -> 0
A45: Self Propelled Equipment | B45: 1 | C45: acre | D45: 0 | E45: 1 | F45: =D45*B45 -> 0 | G45: =F45*(1-E45) -> 0 | H45: =F45*E45 -> 0
A46: Pickup | B46: 1 | C46: acre | D46: 2.51 | E46: 0 | F46: =D46*B46 -> 2.51 | G46: =F46*(1-E46) -> 2.51 | H46: =F46*E46 -> 0
A47: Interest-operating capital | B47: ='Universal Input Prices'!$B$35 -> 0.08 | F47: =(SUM(F16:F25,F28:F46))*$B47/2 -> 17.41789863 | G47: =(SUM(G16:G25,G28:G46))*$B47/2 -> 13.19991288 | H47: =(SUM(H16:H25,H28:H46))*$B47/2 -> 4.21798575
A49: Total Variable Costs | F49: =SUM(F15:F47) -> 503.3953643 | G49: =SUM(G15:G47) -> 393.7277348 | H49: =SUM(H15:H47) -> 109.6676295
A50: Returns Above Variable Costs | F50: =F12-F49 -> 11.40463567 | G50: =G12-G49 -> -48.81173483 | H50: =H12-H49 -> 60.2163705
A52: Fixed Costs
A53: Implements | B53: 1 | C53: acre | D53: 6.79 | E53: 0 | F53: =D53*B53 -> 6.79 | G53: =F53*(1-E53) -> 6.79 | H53: =F53*E53 -> 0
A54: Tractors | B54: 1 | C54: acre | D54: 5.55 | E54: 0 | F54: 5.55 | G54: 5.55 | H54: 0
A55: Irrigation Equipment | B55: 1 | C55: acre | D55: 33.5 | E55: 0 | F55: 33.5 | G55: 33.5 | H55: 0
A56: Self Propelled Equipment | B56: 1 | C56: acre | D56: 0 | E56: 1 | F56: 0 | G56: 0 | H56: 0
A57: Pickup | B57: 1 | C57: acre | D57: 4.08 | E57: 0 | F57: 4.08 | G57: 4.08 | H57: 0
A58: Management | B58: 1 | C58: acre | D58: 0 | E58: 0 | F58: 0 | G58: 0 | H58: 0
A59: Irrigation Investment | B59: 1 | C59: acre | D59: 37.62 | E59: 0 | F59: =B59*D59 -> 37.62 | G59: 37.62 | H59: 0
A60: Land | B60: 1 | C60: acre | D60: 88.5 | E60: 1 | F60: =D60*B60 -> 88.5 | G60: =IF($H$6="Cash",D60,F60*(1-E60)) -> 0 | H60: =IF($H$6="Cash",0,F60*E60) -> 88.5
A61: Property Tax | B61: 1 | C61: acre | D61: 0 | E61: 1 | F61: =B61*D61 -> 0 | G61: 0 | H61: 0
A62: Total Fixed Expenses | F62: =SUM(F53:F61) -> 176.04 | G62: =SUM(G53:G61) -> 87.54 | H62: =SUM(H53:H61) -> 88.5
A63: Total Specified Expenses | F63: =F49+F62 -> 679.4353643 | G63: =G49+G62 -> 481.2677348 | H63: =H49+H62 -> 198.1676295
A64: Returns Above Total Specified Expenses | F64: =F12-F63 -> -164.6353643 | G64: =G12-G63 -> -136.3517348 | H64: =H12-H63 -> -28.2836295
A66: Return on Investment | F66: =(F64/F63) -> -0.2423120329 | G66: =(G64/G63) -> -0.2833178394 | H66: -0.14272578

Sheet Irr Corn
A2: Estimated Costs and Returns per Acre
A3: Irrigated Corn
A4: Projected for 2023
H5: Rental Agreement | I5: Share
A6: Item | B6: Quantity | C6: Unit | D6: Price | E6: Landlord | H6: Share | I6: Cash
E7: Share | F7: Total | G7: Tenant | H7: Landlord
A8: Income
A9: corn grain | B9: 225 | C9: bu | D9: ='Universal Input Prices'!$B$6 -> 6.46 | E9: 0.33 | F9: =D9*B9 -> 1453.5 | G9: =F9*(1-E9) -> 973.845 | H9: =IF(H6="Cash", D58,F9*E9) -> 479.655
A10: other income | B10: 0 | C10: $/ac. | D10: 1 | E10: 0.33 | F10: =D10*B10 -> 0 | G10: =F10*(1-E10) -> 0 | H10: =IF(H7="Cash", D59,F10*E10) -> 0
A12: Total Income | F12: =SUM(F8:F11) -> 1453.5 | G12: =SUM(G8:G11) -> 973.845 | H12: 479.655
A14: Variable Costs
A15: Seed
A16: corn seed | B16: 0.38 | C16: bags | D16: 250.46 | E16: 0 | F16: =D16*B16 -> 95.1748 | G16: =F16*(1-E16) -> 95.1748 | H16: =F16*E16 -> 0
A17: Fertilizer
A18: fert (N) - NH3 | B18: 140.2 | C18: lb | D18: =IF(A18="",0,VLOOKUP(A18,'Universal Input Prices'!$A$26:$B$30, 2)) -> 0.6201219512 | E18: 0.33 | F18: =D18*B18 -> 86.94109756 | G18: =F18*(1-E18) -> 58.25053537 | H18: =F18*E18 -> 28.6905622
A19: fert (P) - liquid | B19: 90.02 | C19: lb | D19: =IF(A19="",0,VLOOKUP(A19,'Universal Input Prices'!$A$26:$B$30, 2)) -> 2.15 | E19: 0.33 | F19: =D19*B19 -> 193.543 | G19: =F19*(1-E19) -> 129.67381 | H19: =F19*E19 -> 63.86919
A20: fert (N) - liquid | B20: 84.9 | C20: lb | D20: =IF(A20="",0,VLOOKUP(A20,'Universal Input Prices'!$A$26:$B$27, 2)) -> 2.690625 | E20: 0.33 | F20: =D20*B20 -> 228.4340625 | G20: =F20*(1-E20) -> 153.0508219 | H20: =F20*E20 -> 75.38324063
A21: Field Operations
A22: herbicide preplant | B22: 1 | C22: acre | D22: 49.1 | E22: 0.33 | F22: =D22*B22 -> 49.1 | G22: =F22*(1-E22) -> 32.897 | H22: =F22*E22 -> 16.203
A23: fertilizer application | B23: 1 | C23: acre | D23: 21.99 | E23: 0.33 | F23: 21.99 | G23: 14.7333 | H23: 7.2567
A24: insecticide & application | B24: 1 | C24: acre | D24: 64.51 | E24: 0.33 | F24: 64.51 | G24: 43.2217 | H24: 21.2883
A25: custom harvest & haul | B25: =$B$9 -> 225 | C25: bu | D25: 0.55 | E25: 0.33 | F25: 123.75 | G25: 82.9125 | H25: 40.8375
A26: crop consultant | B26: 1 | C26: acre | D26: 8.99 | E26: 0 | F26: 8.99 | G26: 8.99 | H26: 0
A27: scouting | B27: 1 | C27: acre | D27: 0 | E27: 0 | F27: =D27*B27 -> 0 | G27: =F27*(1-E27) -> 0 | H27: =F27*E27 -> 0
A28: herbicide postplant | B28: 1 | C28: acre | D28: 54.37 | E28: 0 | F28: 54.37 | G28: 54.37 | H28: 0
A29: other | B29: 1 | C29: acre | D29: 0 | E29: 0 | F29: 0 | G29: 0 | H29: 0
A30: other | B30: 1 | C30: acre | D30: 0 | E30: 0 | F30: 0 | G30: 0 | H30: 0
A31: Crop Insurance | B31: 1 | C31: acre | D31: 45 | E31: 0.33 | F31: 45 | G31: 30.15 | H31: 14.85
A32: Operator Labor & Hand Labor | B32: 0.69 | C32: hour | D32: ='Universal Input Prices'!$B$31 -> 17.5 | E32: 0 | F32: 12.075 | G32: 12.075 | H32: 0
A33: Irrigation Labor | B33: 1.34 | C33: hours | D33: ='Universal Input Prices'!$B$31 -> 17.5 | E33: 0 | F33: 23.45 | G33: 23.45 | H33: 0
A34: Diesel Fuel - Tractors | B34: 2.03 | C34: gallons | D34: ='Universal Input Prices'!$B$32 -> 2.24 | E34: 0 | F34: 4.5472 | G34: 4.5472 | H34: 0
A35: Gasoline - Pickup | B35: 3.07 | C35: gallons | D35: ='Universal Input Prices'!$B$33 -> 2.09 | E35: 0 | F35: 6.4163 | G35: 6.4163 | H35: 0
A36: Irrigation Fuel | B36: 22 | C36: acin | D36: ='Universal Input Prices'!$B$34 -> 4.7 | E36: 0.33 | F36: 103.4 | G36: 69.278 | H36: 34.122
A37: Pumping Days | B37: 69.14
A38: Calculated GPM capacity per acre needed | B38: =B36*18.85694/B37 -> 6.000183396
A39: Repair & Maintenance
A40: Implements | B40: 1 | C40: acre | D40: 5.29 | E40: 0 | F40: =D40*B40 -> 5.29 | G40: 5.29 | H40: 0
A41: Tractors | B41: 1 | C41: acre | D41: 4.08 | E41: 0 | F41: =D41*B41 -> 4.08 | G41: 4.08 | H41: 0
A42: Irrigation-Above Ground | B42: =Corn_Inches -> 22 | C42: acin | D42: 3.75 | E42: 0 | F42: =D42*B42 -> 82.5 | G42: 82.5 | H42: 0
A43: Self Propelled Equipment | B43: 1 | C43: acre | D43: 0 | E43: 1 | F43: =D43*B43 -> 0 | G43: 0 | H43: 0
A44: Pickup | B44: 1 | C44: acre | D44: 3.76 | E44: 0 | F44: =D44*B44 -> 3.76 | G44: 3.76 | H44: 0
A45: Interest-operating capital | B45: ='Universal Input Prices'!$B$35 -> 0.08 | F45: =(SUM(F16:F24,F26:F44))*$B45/2.5 -> 34.99428672 | G45: =(SUM(G16:G24,G26:G44))*$B45/2 -> 33.27633869 | H45: =(SUM(H16:H24,H26:H44))*$B45/2 -> 10.46651971
A47: Total Variable Costs | F47: =SUM(F16:F45) -> 1252.315747 | G47: =SUM(G16:G45) -> 948.0973059 | H47: =SUM(H16:H45) -> 312.9670125
A48: Returns Above Variable Costs | F48: =F12-F47 -> 201.1842532 | G48: =G12-G47 -> 25.74769407 | H48: =H12-H47 -> 166.6879875
A50: Fixed Costs
A51: Implements | B51: 1 | C51: acre | D51: 8.87 | E51: 0 | F51: =D51*B51 -> 8.87 | G51: =F51*(1-E51) -> 8.87 | H51: =F51*E51 -> 0
A52: Tractors | B52: 1 | C52: acre | D52: 6.77 | E52: 0 | F52: 6.77 | G52: 6.77 | H52: 0
A53: Irrigation Equipment | B53: 1 | C53: acre | D53: 45.74 | E53: 0 | F53: 45.74 | G53: 45.74 | H53: 0
A54: Self Propelled Equipment | B54: 1 | C54: acre | D54: 0 | E54: 1 | F54: 0 | G54: 0 | H54: 0
A55: Pickup | B55: 1 | C55: acre | D55: 6.13 | E55: 0 | F55: 6.13 | G55: 6.13 | H55: 0
A56: Management | B56: 1 | C56: acre | D56: 0 | E56: 0 | F56: 0 | G56: 0 | H56: 0
A57: Irrigation Investment | B57: 1 | C57: acre | D57: 47.34 | E57: 0 | F57: 47.34 | G57: 47.34 | H57: 0
A58: Land | B58: 1 | C58: acre | D58: 117.6 | E58: 1 | F58: 117.6 | G58: =IF($H$6="Cash",D58,F58*(1-E58)) -> 0 | H58: =IF($H$6="Cash",0,F58*E58) -> 117.6
A59: Property Tax | B59: 1 | C59: acre | D59: 0 | E59: 1 | F59: 0 | G59: 0 | H59: 0
A60: Total Fixed Expenses | F60: =SUM(F51:F59) -> 232.45 | G60: =SUM(G51:G59) -> 114.85 | H60: =SUM(H51:H59) -> 117.6
A61: Total Specified Expenses | F61: =F47+F60 -> 1484.765747 | G61: =G47+G60 -> 1062.947306 | H61: =H47+H60 -> 430.5670125
A62: Returns Above Total Specified Expenses | F62: =F12-F61 -> -31.26574678 | G62: =G12-G61 -> -89.10230593 | H62: =H12-H61 -> 49.08798747
A64: Return on Investment | F64: =(F62/F61) -> -0.02105769671 | G64: =(G62/G61) -> -0.08382570371 | H64: 0.1140077759

Sheet Irr Corn Silage
A2: Estimated Costs and Returns per Acre
A3: Irrigated Corn Silage
A4: Projected for 2023
H5: Rental Agreement | I5: Share
A6: Item | B6: Quantity | C6: Unit | D6: Price | E6: Landlord | H6: Share | I6: Cash
E7: Share | F7: Total | G7: Tenant | H7: Landlord
A8: Income
A9: corn silage | B9: 27 | C9: ton | D9: ='Universal Input Prices'!$B$7 -> 68.83 | E9: 0.33 | F9: =D9*B9 -> 1858.41 | G9: =F9*(1-E9) -> 1245.1347 | H9: =IF(H6="Cash", D58,F9*E9) -> 613.2753
A10: other income | B10: 0 | C10: $/ac. | D10: 1 | E10: 0.33 | F10: =D10*B10 -> 0 | G10: =F10*(1-E10) -> 0 | H10: =IF(H7="Cash", D59,F10*E10) -> 0
A12: Total Income | F12: =SUM(F8:F11) -> 1858.41 | G12: =SUM(G8:G11) -> 1245.1347 | H12: 613.2753
A14: Variable Costs
A15: Seed
A16: corn seed | B16: 0.44 | C16: bags | D16: 250.46 | E16: 0 | F16: =D16*B16 -> 110.2024 | G16: =F16*(1-E16) -> 110.2024 | H16: =F16*E16 -> 0
A17: Fertilizer
A18: fert (N) - NH3 | B18: 159.85 | C18: lb | D18: =IF(A18="",0,VLOOKUP(A18,'Universal Input Prices'!$A$26:$B$30, 2)) -> 0.6201219512 | E18: 0.33 | F18: =D18*B18 -> 99.1264939 | G18: =F18*(1-E18) -> 66.41475091 | H18: =F18*E18 -> 32.71174299
A19: fert (P) - liquid | B19: 90.02 | C19: lb | D19: =IF(A19="",0,VLOOKUP(A19,'Universal Input Prices'!$A$26:$B$30, 2)) -> 2.15 | E19: 0.33 | F19: =D19*B19 -> 193.543 | G19: =F19*(1-E19) -> 129.67381 | H19: =F19*E19 -> 63.86919
A20: fert (N) - liquid | B20: 95.02 | C20: lb | D20: =IF(A20="",0,VLOOKUP(A20,'Universal Input Prices'!$A$26:$B$27, 2)) -> 2.690625 | E20: 0.33 | F20: =D20*B20 -> 255.6631875 | G20: =F20*(1-E20) -> 171.2943356 | H20: =F20*E20 -> 84.36885187
A21: Field Operations
A22: herbicide preplant | B22: 1 | C22: acre | D22: 49.1 | E22: 0.33 | F22: =D22*B22 -> 49.1 | G22: =F22*(1-E22) -> 32.897 | H22: =F22*E22 -> 16.203
A23: fertilizer application | B23: 1 | C23: acre | D23: 21.99 | E23: 0.33 | F23: 21.99 | G23: 14.7333 | H23: 7.2567
A24: insecticide & application | B24: 1 | C24: appl | D24: 45.84 | E24: 0.33 | F24: 45.84 | G24: 30.7128 | H24: 15.1272
A25: custom harvest & haul | B25: =$B$9 -> 27 | C25: ton | D25: 12.16 | E25: 0 | F25: 328.32 | G25: 328.32 | H25: 0
A26: crop consultant | B26: 1 | C26: acre | D26: 0 | E26: 0 | F26: 0 | G26: 0 | H26: 0
A27: scouting | B27: 1 | C27: acre | D27: 0 | E27: 0 | F27: =D27*B27 -> 0 | G27: =F27*(1-E27) -> 0 | H27: =F27*E27 -> 0
A28: herbicide postplant | B28: 1 | C28: acre | D28: 54.37 | E28: 0 | F28: 54.37 | G28: 54.37 | H28: 0
A29: miticide | B29: 1 | C29: acre | D29: 64.51 | E29: 0 | F29: 64.51 | G29: 64.51 | H29: 0
A30: other | B30: 1 | C30: acre | D30: 0 | E30: 0 | F30: 0 | G30: 0 | H30: 0
A31: Crop Insurance | B31: 1 | C31: acre | D31: 41 | E31: 0.33 | F31: 41 | G31: 27.47 | H31: 13.53
A32: Operator Labor & Hand Labor | B32: 0.757 | C32: hour | D32: ='Universal Input Prices'!$B$31 -> 17.5 | E32: 0 | F32: 13.2475 | G32: 13.2475 | H32: 0
A33: Irrigation Labor | B33: 1.28 | C33: hours | D33: ='Universal Input Prices'!$B$31 -> 17.5 | E33: 0 | F33: 22.4 | G33: 22.4 | H33: 0
A34: Diesel Fuel - Tractors | B34: 2.21 | C34: gallons | D34: ='Universal Input Prices'!$B$32 -> 2.24 | E34: 0 | F34: 4.9504 | G34: 4.9504 | H34: 0
A35: Gasoline - Pickup | B35: 3.07 | C35: gallons | D35: ='Universal Input Prices'!$B$33 -> 2.09 | E35: 0 | F35: 6.4163 | G35: 6.4163 | H35: 0
A36: Irrigation Fuel | B36: 20 | C36: acin | D36: ='Universal Input Prices'!$B$34 -> 4.7 | E36: 0.33 | F36: 94 | G36: 62.98 | H36: 31.02
A37: Pumping Days | B37: 62.86
A38: Calculated GPM capacity per acre needed | B38: =B36*18.85694/B37 -> 5.999662743
A39: Repair & Maintenance | G39: 0 | H39: 0
A40: Implements | B40: 1 | C40: acre | D40: 7.28 | E40: 0 | F40: =D40*B40 -> 7.28 | G40: 7.28 | H40: 0
A41: Tractors | B41: 1 | C41: acre | D41: 4.38 | E41: 0 | F41: =D41*B41 -> 4.38 | G41: 4.38 | H41: 0
A42: Irrigation-Above Ground | B42: =B36 -> 20 | C42: acin | D42: 3.75 | E42: 0 | F42: =D42*B42 -> 75 | G42: 75 | H42: 0
A43: Self Propelled Equipment | B43: 1 | C43: acre | D43: 0 | E43: 1 | F43: =D43*B43 -> 0 | G43: 0 | H43: 0
A44: Pickup | B44: 1 | C44: acre | D44: 3.76 | E44: 0 | F44: =D44*B44 -> 3.76 | G44: 3.76 | H44: 0
A45: Interest-operating capital | B45: ='Universal Input Prices'!$B$35 -> 0.08 | F45: =(SUM(F16:F24,F26:F44))*$B45/2 -> 46.67117126 | G45: =(SUM(G16:G24,G26:G44))*$B45/2 -> 36.10770386 | H45: =(SUM(H16:H24,H26:H44))*$B45/2 -> 10.56346739
A47: Total Variable Costs | F47: =SUM(F16:F45) -> 1541.770453 | G47: =SUM(G16:G45) -> 1267.1203 | H47: =SUM(H16:H45) -> 274.6501523
A48: Returns Above Variable Costs | F48: =F12-F47 -> 316.6395473 | G48: =G12-G47 -> -21.9856004 | H48: =H12-H47 -> 338.6251477
A50: Fixed Costs
A51: Implements | B51: 1 | C51: acre | D51: 11.88 | E51: 0 | F51: =D51*B51 -> 11.88 | G51: =F51*(1-E51) -> 11.88 | H51: =F51*E51 -> 0
A52: Tractors | B52: 1 | C52: acre | D52: 7.29 | E52: 0 | F52: 7.29 | G52: 7.29 | H52: 0
A53: Irrigation Equipment | B53: 1 | C53: acre | D53: 45.74 | E53: 0 | F53: 45.74 | G53: 45.74 | H53: 0
A54: Self Propelled Equipment | B54: 1 | C54: acre | D54: 0 | E54: 1 | F54: 0 | G54: 0 | H54: 0
A55: Pickup | B55: 1 | C55: acre | D55: 6.13 | E55: 0 | F55: 6.13 | G55: 6.13 | H55: 0
A56: Management | B56: 1 | C56: acre | D56: 0 | E56: 0 | F56: 0 | G56: 0 | H56: 0
A57: Irrigation Investment | B57: 1 | C57: acre | D57: 47.34 | E57: 0 | F57: 47.34 | G57: 47.34 | H57: 0
A58: Land | B58: 1 | C58: acre | D58: 117.6 | E58: 1 | F58: 117.6 | G58: =IF($H$6="Cash",D58,F58*(1-E58)) -> 0 | H58: =IF($H$6="Cash",0,F58*E58) -> 117.6
A59: Property Tax | B59: 1 | C59: acre | D59: 0 | E59: 1 | F59: 0 | G59: 0 | H59: 0
A60: Total Fixed Expenses | F60: =SUM(F51:F59) -> 235.98 | G60: =SUM(G51:G59) -> 118.38 | H60: =SUM(H51:H59) -> 117.6
A61: Total Specified Expenses | F61: =F47+F60 -> 1777.750453 | G61: =G47+G60 -> 1385.5003 | H61: =H47+H60 -> 392.2501523
A62: Returns Above Total Specified Expenses | F62: =F12-F61 -> 80.65954734 | G62: =G12-G61 -> -140.3656004 | H62: =H12-H61 -> 221.0251477
A64: Return on Investment | F64: =(F62/F61) -> 0.04537169276 | G64: =(G62/G61) -> -0.1013104078 | H64: 0.5634800814

Sheet Irr Cotton
A2: Estimated Costs and Returns per Acre
A3: Irrigated Cotton
A4: Projected for 2023
H5: Rental Agreement | I5: Share
A6: Item | B6: Quantity | C6: Unit | D6: Price | E6: Landlord | H6: Share | I6: Cash
E7: Share | F7: Total | G7: Tenant | H7: Landlord
A8: Income
A9: cotton lint | B9: 1500 | C9: lb | D9: ='Universal Input Prices'!$B$8 -> 0.8 | E9: 0.33 | F9: =D9*B9 -> 1200 | G9: =F9*(1-E9) -> 804 | H9: =IF(H6="Cash", D63,F9*E9) -> 396
A10: cotton seed | B10: =B9/500*'Universal Input Prices'!B39/2000 -> 1.125 | C10: tons | D10: ='Universal Input Prices'!$B$9 -> 300 | E10: 0.33 | F10: =D10*B10 -> 337.5 | G10: =F10*(1-E10) -> 226.125 | H10: =IF(H6="Cash", 0,F10*E10) -> 111.375
A11: Expected Turnout | B11: 0.273
A12: other income | B12: 0 | C12: $/ac. | D12: 1 | E12: 0.33 | F12: =D12*B12 -> 0 | G12: =F12*(1-E12) -> 0 | H12: =IF(H9="Cash", D61,F12*E12) -> 0
A13: Total Income | F13: =SUM(F8:F12) -> 1537.5 | G13: =SUM(G8:G12) -> 1030.125 | H13: 507.375
A15: Variable Costs
A16: Seed
A17: cotton seed | B17: 0.26 | C17: bags | D17: 346.76 | E17: 0 | F17: =D17*B17 -> 90.1576 | G17: =F17*(1-E17) -> 90.1576 | H17: =+F17*E17 -> 0
A18: Boll Weevil Assess.-Irr | B18: 1 | C18: acre | D18: 1.06 | E18: 0.33 | F18: =D18*B18 -> 1.06 | G18: =F18*(1-E18) -> 0.7102 | H18: =+F18*E18 -> 0.3498
A19: Fertilizer
A20: fert (P) - dry | B20: 65.04 | C20: lb | D20: =IF(A20="",0,VLOOKUP(A20,'Universal Input Prices'!$A$26:$B$30, 2)) -> 1.290384615 | E20: 0.33 | F20: =D20*B20 -> 83.92661538 | G20: =F20*(1-E20) -> 56.23083231 | H20: =+F20*E20 -> 27.69578308
A21: fert (N) - dry | B21: 135 | C21: lb | D21: =IF(A21="",0,VLOOKUP(A21,'Universal Input Prices'!$A$26:$B$30, 2)) -> 1.5 | E21: 0.33 | F21: =D21*B21 -> 202.5 | G21: =F21*(1-E21) -> 135.675 | H21: =+F21*E21 -> 66.825
B22: 0 | C22: lb | D22: =IF(A22="",0,VLOOKUP(A22,'Universal Input Prices'!$A$26:$B$30, 2)) -> 0 | E22: 0 | F22: =D22*B22 -> 0 | G22: =F22*(1-E22) -> 0 | H22: =F22*E22 -> 0
A23: Field Operations
A24: preplant herbicide & application | B24: 1 | C24: acre | D24: 65.34 | E24: 0.33 | F24: =D24*B24 -> 65.34 | G24: =F24*(1-E24) -> 43.7778 | H24: =+F24*E24 -> 21.5622
A25: post emergence herbicide & application | B25: 1 | C25: acre | D25: 55.48 | E25: 0.33 | F25: =D25*B25 -> 55.48 | G25: 37.1716 | H25: 18.3084
A26: fertilizer application | B26: 1 | C26: acre | D26: 6.39 | E26: 0.33 | F26: 6.39 | G26: 4.2813 | H26: 2.1087
A27: insecticide & application | B27: 1 | C27: acre | D27: 17.12 | E27: 0.33 | F27: 17.12 | G27: 11.4704 | H27: 5.6496
A28: harvest aids | B28: 1 | C28: acre | D28: 44.8 | E28: 0.33 | F28: 44.8 | G28: 30.016 | H28: 14.784
A29: strip & module | B29: =B9/100 -> 15 | C29: cwt. | D29: ='Universal Input Prices'!$B$37 -> 16.01 | E29: 0 | F29: 240.15 | G29: 240.15 | H29: 0
A30: ginning | B30: =B9/B11/100 -> 54.94505495 | C30: cwt. | D30: ='Universal Input Prices'!$B$38 -> 3.75 | E30: 0.33 | F30: 206.043956 | G30: 138.0494505 | H30: 67.99450549
A31: hoeing | B31: 1 | C31: acre | D31: 0 | E31: 0 | F31: 0 | G31: 0 | H31: 0
A32: scouting | B32: 1 | C32: acre | D32: 0 | E32: 0 | F32: =D32*B32 -> 0 | G32: =F32*(1-E32) -> 0 | H32: =+F32*E32 -> 0
A33: other | B33: 1 | C33: acre | D33: 0 | E33: 0 | F33: 0 | G33: 0 | H33: 0
A34: other | B34: 1 | C34: acre | D34: 0 | E34: 0 | F34: 0 | G34: 0 | H34: 0
A35: other | B35: 1 | C35: acre | D35: 0 | E35: 0 | F35: 0 | G35: 0 | H35: 0
A36: Crop Insurance | B36: 1 | C36: acre | D36: 53 | E36: 0.33 | F36: 53 | G36: 35.51 | H36: 17.49
A37: Operator Labor & Hand Labor | B37: 0.77 | C37: hours | D37: ='Universal Input Prices'!$B$31 -> 17.5 | E37: 0 | F37: 13.475 | G37: 13.475 | H37: 0
A38: Irrigation Labor | B38: 0.76 | C38: hours | D38: ='Universal Input Prices'!$B$31 -> 17.5 | E38: 0 | F38: 13.3 | G38: 13.3 | H38: 0
A39: Diesel Fuel - Tractors | B39: 1.97 | C39: gallons | D39: ='Universal Input Prices'!$B$32 -> 2.24 | E39: 0 | F39: 4.4128 | G39: 4.4128 | H39: 0
A40: Gasoline - Pickup | B40: 3.482 | C40: gallons | D40: ='Universal Input Prices'!$B$33 -> 2.09 | E40: 0 | F40: 7.27738 | G40: 7.27738 | H40: 0
A41: Irrigation Fuel | B41: 12 | C41: acin | D41: ='Universal Input Prices'!$B$34 -> 4.7 | E41: 0.33 | F41: 56.4 | G41: 37.788 | H41: 18.612
A42: Pumping Days | B42: 75.43
A43: Calculated GPM capacity per acre needed | B43: =B41*18.85694/B42 -> 2.999910911
A44: Repair & Maintenance
A45: Implements | B45: 1 | C45: acre | D45: 3.72 | E45: 0 | F45: =D45*B45 -> 3.72 | G45: =F45*(1-E45) -> 3.72 | H45: =+F45*E45 -> 0
A46: Tractors | B46: 1 | C46: acre | D46: 3.64 | E46: 0 | F46: =D46*B46 -> 3.64 | G46: =F46*(1-E46) -> 3.64 | H46: =+F46*E46 -> 0
A47: Irrigation-Above Ground | B47: =Cotton_Inches -> 12 | C47: acin | D47: 3.75 | E47: 0 | F47: =D47*B47 -> 45 | G47: =F47*(1-E47) -> 45 | H47: =+F47*E47 -> 0
A48: Self Propelled Equipment | B48: 1 | C48: acre | D48: 0 | E48: 1 | F48: =D48*B48 -> 0 | G48: =F48*(1-E48) -> 0 | H48: =+F48*E48 -> 0
A49: Pickup | B49: 1 | C49: acre | D49: 4.26 | E49: 0 | F49: =D49*B49 -> 4.26 | G49: =F49*(1-E49) -> 4.26 | H49: =+F49*E49 -> 0
A50: Interest-operating capital | B50: ='Universal Input Prices'!$B$35 -> 0.08 | F50: =(SUM(F17:F27,F31:F49))*$B50/2 -> 29.05837582 | G50: =(SUM(G17:G27,G31:G49))*$B50/2 -> 21.91431649 | H50: =(SUM(H17:H27,H31:H49))*$B50/2 -> 7.144059323
A52: Total Variable Costs | F52: =SUM(F17:F50) -> 1246.511727 | G52: =SUM(G17:G50) -> 977.9876793 | H52: =SUM(H17:H50) -> 268.5240479
A53: Returns Above Variable Costs | F53: =F13-F52 -> 290.9882728 | G53: =G13-G52 -> 52.13732065 | H53: =H13-H52 -> 238.8509521
A55: Fixed Costs
A56: Implements | B56: 1 | C56: acre | D56: 6 | E56: 0 | F56: =D56*B56 -> 6 | G56: =F56*(1-E56) -> 6 | H56: =+F56*E56 -> 0
A57: Tractors | B57: 1 | C57: acre | D57: 5.67 | E57: 0 | F57: 5.67 | G57: 5.67 | H57: 0
A58: Irrigation Equipment | B58: 1 | C58: acre | D58: 33.5 | E58: 0 | F58: 33.5 | G58: 33.5 | H58: 0
A59: Self Propelled Equipment | B59: 1 | C59: acre | D59: 0 | E59: 1 | F59: 0 | G59: 0 | H59: 0
A60: Pickup | B60: 1 | C60: acre | D60: 6.95 | E60: 0 | F60: 6.95 | G60: 6.95 | H60: 0
A61: Management | B61: 1 | C61: acre | D61: 0 | E61: 0 | F61: =D61*B61 -> 0 | G61: 0 | H61: 0
A62: Irrigation Investment | B62: 1 | C62: acre | D62: 37.62 | E62: 0 | F62: =D62*B62 -> 37.62 | G62: 37.62 | H62: 0
A63: Land | B63: 1 | C63: acre | D63: 88.5 | E63: 1 | F63: 88.5 | G63: =IF($H$6="Cash",D63,F63*(1-E63)) -> 0 | H63: =IF($H$6="Cash",0,F63*E63) -> 88.5
A64: Property Tax | B64: 1 | C64: acre | D64: 0 | E64: 1 | F64: =B64*D64 -> 0 | G64: 0 | H64: 0
A65: Total Fixed Expenses | F65: =SUM(F56:F64) -> 178.24 | G65: =SUM(G56:G64) -> 89.74 | H65: =SUM(H56:H64) -> 88.5
A66: Total Specified Expenses | F66: =F52+F65 -> 1424.751727 | G66: =G52+G65 -> 1067.727679 | H66: =H52+H65 -> 357.0240479
A67: Returns Above Total Specified Expenses | F67: =F13-F66 -> 112.7482728 | G67: =G13-G66 -> -37.60267935 | H67: =H13-H66 -> 150.3509521
A69: Return on Investment | F69: =(F67/F66) -> 0.0791353824 | G69: =(G67/G66) -> -0.03521748108 | H69: 0.4211227591

Sheet Irr Peanuts
A2: Estimated Costs and Returns per Acre
A3: Irrigated Peanuts
A4: Projected for 2023
H5: Rental Agreement | I5: Share
A6: Item | B6: Quantity | C6: Unit | D6: Price | E6: Landlord | I6: Cash
E7: Share | F7: Total | G7: Tenant | H7: Landlord
A8: Income
A9: peanuts | B9: 2.25 | C9: ton | D9: ='Universal Input Prices'!$B$10 -> 492 | E9: 0.33 | F9: =D9*B9 -> 1107 | G9: =F9*(1-E9) -> 741.69 | H9: =IF(H6="Cash", D62,F9*E9) -> 365.31
A10: other income | B10: 0 | C10: $/ac. | D10: 1 | E10: 0.33 | F10: =D10*B10 -> 0 | G10: =F10*(1-E10) -> 0 | H10: =IF(H7="Cash", D59,F10*E10) -> 0
A12: Total Income | F12: =SUM(F8:F11) -> 1107 | G12: =SUM(G8:G11) -> 741.69 | H12: 365.31
A14: Variable Costs
A15: Seed
A16: peanut seed | B16: 100 | C16: lb | D16: 0.95 | E16: 0 | F16: =D16*B16 -> 95 | G16: =F16*(1-E16) -> 95 | H16: =F16*E16 -> 0
A17: innoculant | B17: 1 | C17: acre | D17: 7.18 | E17: 0 | F17: =D17*B17 -> 7.18 | G17: =F17*(1-E17) -> 7.18 | H17: =F17*E17 -> 0
A18: Fertilizer
A19: fert (P) - dry | B19: 50 | C19: lb | D19: =IF(A19="",0,VLOOKUP(A19,'Universal Input Prices'!$A$26:$B$30, 2)) -> 1.290384615 | E19: 0.33 | F19: =D19*B19 -> 64.51923077 | G19: =F19*(1-E19) -> 43.22788462 | H19: =F19*E19 -> 21.29134615
A20: fert (N) - dry | B20: 80 | C20: lb | D20: =IF(A20="",0,VLOOKUP(A20,'Universal Input Prices'!$A$26:$B$27, 2)) -> 1.5 | E20: 0.33 | F20: =D20*B20 -> 120 | G20: =F20*(1-E20) -> 80.4 | H20: =F20*E20 -> 39.6
B21: 0 | C21: lb | D21: =IF(A21="",0,VLOOKUP(A21,'Universal Input Prices'!$A$26:$B$30, 2)) -> 0 | E21: 0 | F21: =D21*B21 -> 0 | G21: =F21*(1-E21) -> 0 | H21: =F21*E21 -> 0
A22: Field Operations
A23: herbicide & application | B23: 1 | C23: acre | D23: 54.52 | E23: 0.33 | F23: =D23*B23 -> 54.52 | G23: =F23*(1-E23) -> 36.5284 | H23: =F23*E23 -> 17.9916
A24: fertilizer application | B24: 1 | C24: acre | D24: 6.39 | E24: 0.33 | F24: 6.39 | G24: 4.2813 | H24: 2.1087
A25: fungicide & application | B25: 3 | C25: appl | D25: 27.37 | E25: 0.33 | F25: 82.11 | G25: 55.0137 | H25: 27.0963
A26: digging | B26: 1 | C26: acre | D26: 34.49 | E26: 0.33 | F26: 34.49 | G26: 23.1083 | H26: 11.3817
A27: custom harvest & haul | B27: =$B$9 -> 2.25 | C27: ton | D27: 54.02 | E27: 0 | F27: 121.545 | G27: 121.545 | H27: 0
A28: drying | B28: =$B$9 -> 2.25 | C28: ton | D28: 34.17 | E28: 0 | F28: 76.8825 | G28: 76.8825 | H28: 0
A29: insecticide & application | B29: 1 | C29: appl | D29: 17.12 | E29: 0.33 | F29: 17.12 | G29: 11.4704 | H29: 5.6496
A30: hoeing | B30: 1 | C30: acre | D30: 26.73 | E30: 0 | F30: 26.73 | G30: 26.73 | H30: 0
A31: scouting | B31: 1 | C31: acre | D31: 0 | E31: 0 | F31: 0 | G31: 0 | H31: 0
A32: other | B32: 1 | C32: acre | D32: 0 | E32: 0 | F32: 0 | G32: 0 | H32: =+F32*E32 -> 0
A33: other | B33: 1 | C33: acre | D33: 0 | E33: 0 | F33: 0 | G33: 0 | H33: =+F33*E33 -> 0
A34: other | B34: 1 | C34: acre | D34: 0 | E34: 0 | F34: 0 | G34: 0 | H34: =+F34*E34 -> 0
A35: Crop Insurance | B35: 1 | C35: acre | D35: 65 | E35: 0.33 | F35: 65 | G35: 43.55 | H35: 21.45
A36: Operator Labor & Hand Labor | B36: 1.12 | C36: hour | D36: ='Universal Input Prices'!$B$31 -> 17.5 | E36: 0 | F36: 19.6 | G36: 19.6 | H36: 0
A37: Irrigation Labor | B37: 1.344 | C37: hours | D37: ='Universal Input Prices'!$B$31 -> 17.5 | E37: 0 | F37: 23.52 | G37: 23.52 | H37: 0
A38: Diesel Fuel - Tractors | B38: 2.99 | C38: gallons | D38: ='Universal Input Prices'!$B$32 -> 2.24 | E38: 0 | F38: 6.6976 | G38: 6.6976 | H38: 0
A39: Gasoline - Pickup | B39: 2.049230769 | C39: gallons | D39: ='Universal Input Prices'!$B$33 -> 2.09 | E39: 0 | F39: 4.282892307 | G39: 4.282892307 | H39: 0
A40: Irrigation Fuel | B40: 21 | C40: acin | D40: ='Universal Input Prices'!$B$34 -> 4.7 | E40: 0.33 | F40: 98.7 | G40: 66.129 | H40: 32.571
A41: Pumping Days | B41: 79.2
A42: Calculated GPM capacity per acre needed | B42: =B40*18.85694/B41 -> 4.999946212
A43: Repair & Maintenance | G43: 0 | H43: 0
A44: Implements | B44: 1 | C44: acre | D44: 12.67 | E44: 0 | F44: =D44*B44 -> 12.67 | G44: 12.67 | H44: 0
A45: Tractors | B45: 1 | C45: acre | D45: 5.31 | E45: 0 | F45: =D45*B45 -> 5.31 | G45: 5.31 | H45: 0
A46: Irrigation-Above Ground | B46: =B40 -> 21 | C46: acin | D46: 3.75 | E46: 0 | F46: =D46*B46 -> 78.75 | G46: 78.75 | H46: 0
A47: Self Propelled Equipment | B47: 1 | C47: acre | D47: 0 | E47: 1 | F47: =D47*B47 -> 0 | G47: 0 | H47: 0
A48: Pickup | B48: 1 | C48: acre | D48: 2.51 | E48: 0 | F48: =D48*B48 -> 2.51 | G48: 2.51 | H48: 0
A49: Interest-operating capital | B49: ='Universal Input Prices'!$B$35 -> 0.08 | F49: =(SUM(F16:F25,F29:F48))*$B49/2 -> 31.62438892 | G49: =(SUM(G16:G25,G29:G48))*$B49/2 -> 24.91404708 | H49: =(SUM(H16:H25,H29:H48))*$B49/2 -> 6.710341846
A51: Total Variable Costs | F51: =SUM(F16:F49) -> 1055.151612 | G51: =SUM(G16:G49) -> 869.301024 | H51: =SUM(H16:H49) -> 185.850588
A52: Returns Above Variable Costs | F52: =F12-F51 -> 51.848388 | G52: =G12-G51 -> -127.611024 | H52: =H12-H51 -> 179.459412
A54: Fixed Costs
A55: Implements | B55: 1 | C55: acre | D55: 19.77 | E55: 0 | F55: =D55*B55 -> 19.77 | G55: =F55*(1-E55) -> 19.77 | H55: =F55*E55 -> 0
A56: Tractors | B56: 1 | C56: acre | D56: 8.73 | E56: 0 | F56: 8.73 | G56: 8.73 | H56: 0
A57: Irrigation Equipment | B57: 1 | C57: acre | D57: 47.34 | E57: 0 | F57: 47.34 | G57: 47.34 | H57: 0
A58: Self Propelled Equipment | B58: 1 | C58: acre | D58: 0 | E58: 1 | F58: 0 | G58: 0 | H58: 0
A59: Pickup | B59: 1 | C59: acre | D59: 4.08 | E59: 0 | F59: 4.08 | G59: 4.08 | H59: 0
A60: Management | B60: 1 | C60: acre | D60: 0 | E60: 0 | F60: 0 | G60: 0 | H60: 0
A61: Irrigation Investment | B61: 1 | C61: acre | D61: 45.74 | E61: 0 | F61: =B61*D61 -> 45.74 | G61: 45.74 | H61: 0
A62: Land | B62: 1 | C62: acre | D62: 91.16 | E62: 1 | F62: =D62*B62 -> 91.16 | G62: =IF($H$6="Cash",D62,F62*(1-E62)) -> 0 | H62: =IF($H$6="Cash",0,F62*E62) -> 91.16
A63: Property Tax | B63: 1 | C63: acre | D63: 0 | E63: 1 | F63: =B63*D63 -> 0 | G63: 0 | H63: 0
A64: Total Fixed Expenses | F64: =SUM(F55:F63) -> 216.82 | G64: =SUM(G55:G63) -> 125.66 | H64: =SUM(H55:H63) -> 91.16
A65: Total Specified Expenses | F65: =F51+F64 -> 1271.971612 | G65: =G51+G64 -> 994.961024 | H65: =H51+H64 -> 277.010588
A66: Returns Above Total Specified Expenses | F66: =F12-F65 -> -164.971612 | G66: =G12-G65 -> -253.271024 | H66: =H12-H65 -> 88.299412
A68: Return on Investment | F68: =(F66/F65) -> -0.1296975581 | G68: =(G66/G65) -> -0.2545537141 | H68: 0.3187582563

Sheet Irr Sorghum
A2: Estimated Costs and Returns per Acre
A3: Irrigated Sorghum
A4: Projected for 2023
H5: Rental Agreement | I5: Share
A6: Item | B6: Quantity | C6: Unit | D6: Price | E6: Landlord | H6: Share | I6: Cash
E7: Share | F7: Total | G7: Tenant | H7: Landlord
A8: Income
A9: sorghum grain | B9: 60 | C9: cwt | D9: ='Universal Input Prices'!$B$11 -> 10.38 | E9: 0.33 | F9: =D9*B9 -> 622.8 | G9: =F9*(1-E9) -> 417.276 | H9: =IF(H6="Cash", D57,F9*E9) -> 205.524
A10: other income | B10: 0 | C10: $/ac. | D10: 1 | E10: 0.33 | F10: =D10*B10 -> 0 | G10: =F10*(1-E10) -> 0 | H10: =IF(H7="Cash", D59,F10*E10) -> 0
A12: Total Income | F12: =SUM(F8:F11) -> 622.8 | G12: =SUM(G8:G11) -> 417.276 | H12: =SUM(H8:H11) -> 205.524
A14: Variable Costs
A15: Seed | B15: 4 | C15: lb | D15: 2.12 | E15: 0 | F15: =D15*B15 -> 8.48 | G15: =F15*(1-E15) -> 8.48 | H15: =F15*E15 -> 0
A16: Fertilizer
A17: fert (N) - NH3 | B17: 59.95 | C17: lb | D17: =IF(A17="",0,VLOOKUP(A17,'Universal Input Prices'!$A$26:$B$30, 2)) -> 0.6201219512 | E17: 0.33 | F17: =D17*B17 -> 37.17631098 | G17: =F17*(1-E17) -> 24.90812835 | H17: =F17*E17 -> 12.26818262
A18: fert (P) - liquid | B18: 40.01 | C18: lb | D18: =IF(A18="",0,VLOOKUP(A18,'Universal Input Prices'!$A$26:$B$30, 2)) -> 2.15 | E18: 0.33 | F18: =D18*B18 -> 86.0215 | G18: =F18*(1-E18) -> 57.634405 | H18: =F18*E18 -> 28.387095
A19: fert (N) - liquid | B19: 50.01 | C19: lb | D19: =IF(A19="",0,VLOOKUP(A19,'Universal Input Prices'!$A$26:$B$27, 2)) -> 2.690625 | E19: 0.33 | F19: =D19*B19 -> 134.5581562 | G19: =F19*(1-E19) -> 90.15396469 | H19: =F19*E19 -> 44.40419156
A20: Field Operations
A21: herbicide & application | B21: 1 | C21: acre | D21: 65.79 | E21: 0.33 | F21: =D21*B21 -> 65.79 | G21: =F21*(1-E21) -> 44.0793 | H21: =F21*E21 -> 21.7107
A22: fertilizer application | B22: 1 | C22: acre | D22: 21.99 | E22: 0.33 | F22: 21.99 | G22: 14.7333 | H22: 7.2567
A23: insecticide & application - headwrm | B23: 0.67 | C23: acre | D23: 29.84 | E23: 0.33 | F23: 19.9928 | G23: 13.395176 | H23: 6.597624
A24: custom harvest & haul | B24: =B9 -> 60 | C24: cwt | D24: 1.14 | E24: 0 | F24: 68.4 | G24: 68.4 | H24: 0
A25: hoeing | B25: 1 | C25: acre | D25: 0 | E25: 0 | F25: 0 | G25: 0 | H25: 0
A26: scouting | B26: 1 | C26: acre | D26: 0 | E26: 0 | F26: =D26*B26 -> 0 | G26: =F26*(1-E26) -> 0 | H26: =F26*E26 -> 0
A27: insecticide sugar cane aphid | B27: 1 | C27: acre | D27: 63.96 | E27: 0.33 | F27: 63.96 | G27: 42.8532 | H27: 21.1068
A28: other | B28: 1 | C28: acre | D28: 0 | E28: 0 | F28: 0 | G28: 0 | H28: 0
A29: other | B29: 1 | C29: acre | D29: 0 | E29: 0 | F29: 0 | G29: 0 | H29: 0
A30: Crop Insurance | B30: 1 | C30: acre | D30: 32.4 | E30: 0.33 | F30: 32.4 | G30: 21.708 | H30: 10.692
A31: Operator Labor & Hand Labor | B31: 0.345 | C31: hours | D31: ='Universal Input Prices'!$B$31 -> 17.5 | E31: 0 | F31: 6.0375 | G31: 6.0375 | H31: 0
A32: Irrigation Labor | B32: 0.895 | C32: hours | D32: ='Universal Input Prices'!$B$31 -> 17.5 | E32: 0 | F32: 15.6625 | G32: 15.6625 | H32: 0
A33: Diesel Fuel - Tractors | B33: 1.09 | C33: gallons | D33: ='Universal Input Prices'!$B$32 -> 2.24 | E33: 0 | F33: 2.4416 | G33: 2.4416 | H33: 0
A34: Gasoline - Pickup | B34: 2.0492308 | C34: gallons | D34: ='Universal Input Prices'!$B$33 -> 2.09 | E34: 0 | F34: 4.282892372 | G34: 4.282892372 | H34: 0
A35: Irrigation Fuel | B35: 10 | C35: acin | D35: ='Universal Input Prices'!$B$34 -> 4.7 | E35: 0.33 | F35: 47 | G35: 31.49 | H35: 15.51
A36: Pumping Days | B36: 75.43
A37: Calculated GPM capacity per acre needed | B37: =B35*18.85694/B36 -> 2.499925759
A38: Repair & Maintenance
A39: Implements | B39: 1 | C39: acre | D39: 6.25 | E39: 0 | F39: =D39*B39 -> 6.25 | G39: =F39*(1-E39) -> 6.25 | H39: =F39*E39 -> 0
A40: Tractors | B40: 1 | C40: acre | D40: 2.55 | E40: 0 | F40: =D40*B40 -> 2.55 | G40: =F40*(1-E40) -> 2.55 | H40: =F40*E40 -> 0
A41: Irrigation-Above Ground | B41: =Sorghum_Inches -> 10 | C41: acin | D41: 3.75 | E41: 0 | F41: =D41*B41 -> 37.5 | G41: =F41*(1-E41) -> 37.5 | H41: =F41*E41 -> 0
A42: Self Propelled Equipment | B42: 1 | C42: acre | D42: 0 | E42: 1 | F42: =D42*B42 -> 0 | G42: =F42*(1-E42) -> 0 | H42: =F42*E42 -> 0
A43: Pickup | B43: 1 | C43: acre | D43: 2.51 | E43: 0 | F43: =D43*B43 -> 2.51 | G43: =F43*(1-E43) -> 2.51 | H43: =F43*E43 -> 0
A44: Interest-operating capital | B44: ='Universal Input Prices'!$B$35 -> 0.08 | F44: =(SUM(F15:F23,F25:F43))*$B44/2 -> 23.78413038 | G44: =(SUM(G15:G23,G25:G43))*$B44/2 -> 17.06679866 | H44: =(SUM(H15:H23,H25:H43))*$B44/2 -> 6.717331727
A46: Total Variable Costs | F46: =SUM(F15:F44) -> 686.78739 | G46: =SUM(G15:G44) -> 512.1367651 | H46: =SUM(H15:H44) -> 174.6506249
A47: Returns Above Variable Costs | F47: =F12-F46 -> -63.98738998 | G47: =G12-G46 -> -94.86076507 | H47: =H12-H46 -> 30.87337509
A49: Fixed Costs
A50: Implements | B50: 1 | C50: acre | D50: 10.36 | E50: 0 | F50: =D50*B50 -> 10.36 | G50: =F50*(1-E50) -> 10.36 | H50: =F50*E50 -> 0
A51: Tractors | B51: 1 | C51: acre | D51: 4.22 | E51: 0 | F51: 4.22 | G51: 4.22 | H51: 0
A52: Irrigation Equipment | B52: 1 | C52: acre | D52: 47.34 | E52: 0 | F52: 47.34 | G52: 47.34 | H52: 0
A53: Self Propelled Equipment | B53: 1 | C53: acre | D53: 0 | E53: 1 | F53: 0 | G53: 0 | H53: 0
A54: Pickup | B54: 1 | C54: acre | D54: 4.08 | E54: 0 | F54: 4.08 | G54: 4.08 | H54: 0
A55: Management | B55: 1 | C55: acre | D55: 0 | E55: 0 | F55: 0 | G55: 0 | H55: 0
A56: Irrigation Investment | B56: 1 | C56: acre | D56: 45.74 | E56: 0 | F56: =B56*D56 -> 45.74 | G56: 45.74 | H56: 0
A57: Land | B57: 1 | C57: acre | D57: 88.5 | E57: 1 | F57: =D57*B57 -> 88.5 | G57: =IF($H$6="Cash",D57,F57*(1-E57)) -> 0 | H57: =IF($H$6="Cash",0,F57*E57) -> 88.5
A58: Property Tax | B58: 1 | C58: acre | D58: 0 | E58: 1 | F58: =B58*D58 -> 0 | G58: 0 | H58: 0
A59: Total Fixed Expenses | F59: =SUM(F50:F58) -> 200.24 | G59: =SUM(G50:G58) -> 111.74 | H59: =SUM(H50:H58) -> 88.5
A60: Total Specified Expenses | F60: =F46+F59 -> 887.02739 | G60: =G46+G59 -> 623.8767651 | H60: =H46+H59 -> 263.1506249
A61: Returns Above Total Specified Expenses | F61: =F12-F60 -> -264.22739 | G61: =G12-G60 -> -206.6007651 | H61: =H12-H60 -> -57.62662491
A63: Return on Investment | F63: =(F61/F60) -> -0.2978796292 | G63: =(G61/G60) -> -0.3311563704 | H63: -0.2189872243

Sheet Irr Sorghum Seed
A2: Estimated Costs and Returns per Acre
A3: Irrigated Sorghum Seed
A4: Projected for 2023
H5: Rental Agreement | I5: Share
A6: Item | B6: Quantity | C6: Unit | D6: Price | E6: Landlord | H6: Share | I6: Cash
E7: Share | F7: Total | G7: Tenant | H7: Landlord
A8: Income
A9: seed sorghum | B9: 45 | C9: cwt | D9: ='Universal Input Prices'!B12 -> 31.72 | E9: 0.33 | F9: =D9*B9 -> 1427.4 | G9: =F9*(1-E9) -> 956.358 | H9: =IF(H6="Cash", D57,F9*E9) -> 471.042
A10: other income | B10: 0 | C10: $/ac. | D10: 1 | E10: 0.33 | F10: =D10*B10 -> 0 | G10: =F10*(1-E10) -> 0 | H10: =IF(H7="Cash", D59,F10*E10) -> 0
A12: Total Income | F12: =SUM(F8:F11) -> 1427.4 | G12: =SUM(G8:G11) -> 956.358 | H12: =SUM(H8:H11) -> 471.042
A14: Variable Costs
A15: Seed | B15: 0 | C15: lb | D15: 2.12 | E15: 0 | F15: =D15*B15 -> 0 | G15: =F15*(1-E15) -> 0 | H15: =F15*E15 -> 0
A16: Fertilizer
A17: fert (N) - NH3 | B17: 64.95 | C17: lb | D17: =IF(A17="",0,VLOOKUP(A17,'Universal Input Prices'!$A$26:$B$30, 2)) -> 0.6201219512 | E17: 0.33 | F17: =D17*B17 -> 40.27692073 | G17: =F17*(1-E17) -> 26.98553689 | H17: =F17*E17 -> 13.29138384
A18: fert (P) - liquid | B18: 50.01 | C18: lb | D18: =IF(A18="",0,VLOOKUP(A18,'Universal Input Prices'!$A$26:$B$30, 2)) -> 2.15 | E18: 0.33 | F18: =D18*B18 -> 107.5215 | G18: =F18*(1-E18) -> 72.039405 | H18: =F18*E18 -> 35.482095
A19: fert (N) - liquid | B19: 59.99 | C19: lb | D19: =IF(A19="",0,VLOOKUP(A19,'Universal Input Prices'!$A$26:$B$30, 2)) -> 2.690625 | E19: 0.33 | F19: =D19*B19 -> 161.4105938 | G19: =F19*(1-E19) -> 108.1450978 | H19: =F19*E19 -> 53.26549594
A20: Field Operations
A21: herbicide & application | B21: 1 | C21: acre | D21: 65.79 | E21: 0.33 | F21: =D21*B21 -> 65.79 | G21: =F21*(1-E21) -> 44.0793 | H21: =F21*E21 -> 21.7107
A22: fertilizer application | B22: 1 | C22: acre | D22: 21.99 | E22: 0.33 | F22: 21.99 | G22: 14.7333 | H22: 7.2567
A23: insecticide & application-headwrm | B23: 0.67 | C23: acre | D23: 29.84 | E23: 0.33 | F23: 19.9928 | G23: 13.395176 | H23: 6.597624
A24: custom harvest & haul | B24: =B9 -> 45 | C24: cwt | D24: 1.14 | E24: 0 | F24: 51.3 | G24: 51.3 | H24: 0
A25: hoeing | B25: 1 | C25: acre | D25: 0 | E25: 0 | F25: 0 | G25: 0 | H25: 0
A26: scouting | B26: 1 | C26: acre | D26: 0 | E26: 0 | F26: =D26*B26 -> 0 | G26: =F26*(1-E26) -> 0 | H26: =F26*E26 -> 0
A27: insecticide sugar cane aphid | B27: 1 | C27: acre | D27: 63.96 | E27: 0.33 | F27: 63.96 | G27: 42.8532 | H27: 21.1068
A28: other | B28: 1 | C28: acre | D28: 0 | E28: 0 | F28: 0 | G28: 0 | H28: 0
A29: other | B29: 1 | C29: acre | D29: 0 | E29: 0 | F29: 0 | G29: 0 | H29: 0
A30: Crop Insurance | B30: 1 | C30: acre | D30: 32.4 | E30: 0.33 | F30: 32.4 | G30: 21.708 | H30: 10.692
A31: Operator Labor & Hand Labor | B31: 0.345 | C31: hours | D31: ='Universal Input Prices'!$B$31 -> 17.5 | E31: 0 | F31: 6.0375 | G31: 6.0375 | H31: 0
A32: Irrigation Labor | B32: 1.024 | C32: hours | D32: ='Universal Input Prices'!$B$31 -> 17.5 | E32: 0 | F32: 17.92 | G32: 17.92 | H32: 0
A33: Diesel Fuel - Tractors | B33: 1.09 | C33: gallons | D33: ='Universal Input Prices'!$B$32 -> 2.24 | E33: 0 | F33: 2.4416 | G33: 2.4416 | H33: 0
A34: Gasoline - Pickup | B34: 2.0485 | C34: gallons | D34: ='Universal Input Prices'!$B$33 -> 2.09 | E34: 0 | F34: 4.281365 | G34: 4.281365 | H34: 0
A35: Irrigation Fuel | B35: 16 | C35: acin | D35: ='Universal Input Prices'!$B$34 -> 4.7 | E35: 0.33 | F35: 75.2 | G35: 50.384 | H35: 24.816
A36: Pumping Days | B36: 98.06
A37: Calculated GPM capacity per acre needed | B37: =B35*18.85694/B36 -> 3.076800326
A38: Repair & Maintenance
A39: Implements | B39: 1 | C39: acre | D39: 6.25 | E39: 0 | F39: =D39*B39 -> 6.25 | G39: =F39*(1-E39) -> 6.25 | H39: =F39*E39 -> 0
A40: Tractors | B40: 1 | C40: acre | D40: 2.55 | E40: 0 | F40: =D40*B40 -> 2.55 | G40: =F40*(1-E40) -> 2.55 | H40: =F40*E40 -> 0
A41: Irrigation-Above Ground | B41: =Sorghum_Seed_Inches -> 16 | C41: acin | D41: 3.75 | E41: 0 | F41: =D41*B41 -> 60 | G41: =F41*(1-E41) -> 60 | H41: =F41*E41 -> 0
A42: Self Propelled Equipment | B42: 1 | C42: acre | D42: 0 | E42: 1 | F42: =D42*B42 -> 0 | G42: =F42*(1-E42) -> 0 | H42: =F42*E42 -> 0
A43: Pickup | B43: 1 | C43: acre | D43: 2.51 | E43: 0 | F43: =D43*B43 -> 2.51 | G43: =F43*(1-E43) -> 2.51 | H43: =F43*E43 -> 0
A44: Interest-operating capital | B44: ='Universal Input Prices'!$B$35 -> 0.08 | F44: =(SUM(F15:F23,F25:F43))*$B44/2 -> 27.62129118 | G44: =(SUM(G15:G23,G25:G43))*$B44/2 -> 19.85253923 | H44: =(SUM(H15:H23,H25:H43))*$B44/2 -> 7.768751951
A46: Total Variable Costs | F46: =SUM(F15:F44) -> 769.4535707 | G46: =SUM(G15:G44) -> 567.4660199 | H46: =SUM(H15:H44) -> 201.9875507
A47: Returns Above Variable Costs | F47: =F12-F46 -> 657.9464293 | G47: =G12-G46 -> 388.8919801 | H47: =H12-H46 -> 269.0544493
A49: Fixed Costs
A50: Implements | B50: 1 | C50: acre | D50: 10.36 | E50: 0 | F50: =D50*B50 -> 10.36 | G50: =F50*(1-E50) -> 10.36 | H50: =F50*E50 -> 0
A51: Tractors | B51: 1 | C51: acre | D51: 4.22 | E51: 0 | F51: 4.22 | G51: 4.22 | H51: 0
A52: Irrigation Equipment | B52: 1 | C52: acre | D52: 40.42 | E52: 0 | F52: 40.42 | G52: 40.42 | H52: 0
A53: Self Propelled Equipment | B53: 1 | C53: acre | D53: 0 | E53: 1 | F53: 0 | G53: 0 | H53: 0
A54: Pickup | B54: 1 | C54: acre | D54: 4.08 | E54: 0 | F54: 4.08 | G54: 4.08 | H54: 0
A55: Management | B55: 1 | C55: acre | D55: 0 | E55: 0 | F55: 0 | G55: 0 | H55: 0
A56: Irrigation Investment | B56: 1 | C56: acre | D56: 41.68 | E56: 0 | F56: =B56*D56 -> 41.68 | G56: 41.68 | H56: 0
A57: Land | B57: 1 | C57: acre | D57: 88.5 | E57: 1 | F57: =D57*B57 -> 88.5 | G57: =IF($H$6="Cash",D57,F57*(1-E57)) -> 0 | H57: =IF($H$6="Cash",0,F57*E57) -> 88.5
A58: Property Tax | B58: 1 | C58: acre | D58: 0 | E58: 1 | F58: =B58*D58 -> 0 | G58: 0 | H58: 0
A59: Total Fixed Expenses | F59: =SUM(F50:F58) -> 189.26 | G59: =SUM(G50:G58) -> 100.76 | H59: =SUM(H50:H58) -> 88.5
A60: Total Specified Expenses | F60: =F46+F59 -> 958.7135707 | G60: =G46+G59 -> 668.2260199 | H60: =H46+H59 -> 290.4875507
A61: Returns Above Total Specified Expenses | F61: =F12-F60 -> 468.6864293 | G61: =G12-G60 -> 288.1319801 | H61: =H12-H60 -> 180.5544493
A63: Return on Investment | F63: =(F61/F60) -> 0.4888701315 | G63: =(G61/G60) -> 0.4311894052 | H63: 0.6215565824

Sheet Irr Sorghum Silage
A2: Estimated Costs and Returns per Acre
A3: Irrigated Sorghum Silage
A4: Projected for 2023
H5: Rental Agreement | I5: Share
A6: Item | B6: Quantity | C6: Unit | D6: Price | E6: Landlord | H6: Share | I6: Cash
E7: Share | F7: Total | G7: Tenant | H7: Landlord
A8: Income
A9: sorghum silage | B9: 21 | C9: ton | D9: ='Universal Input Prices'!$B$13 -> 61.95 | E9: 0.33 | F9: =D9*B9 -> 1300.95 | G9: =F9*(1-E9) -> 871.6365 | H9: =IF(H6="Cash", D57,F9*E9) -> 429.3135
A10: other income | B10: 0 | C10: $/ac. | D10: 1 | E10: 0.33 | F10: =D10*B10 -> 0 | G10: =F10*(1-E10) -> 0 | H10: =IF(H7="Cash", D59,F10*E10) -> 0
A12: Total Income | F12: =SUM(F7:F11) -> 1300.95 | G12: =SUM(G7:G11) -> 871.6365 | H12: =SUM(H7:H11) -> 429.3135
A14: Variable Costs
A15: Seed | B15: 5 | C15: lb | D15: 2.12 | E15: 0 | F15: =D15*B15 -> 10.6 | G15: =F15*(1-E15) -> 10.6 | H15: =F15*E15 -> 0
A16: Fertilizer
A17: fert (P) - dry | B17: 49.99 | C17: lb | D17: =IF(A17="",0,VLOOKUP(A17,'Universal Input Prices'!$A$26:$B$30, 2)) -> 1.290384615 | E17: 0.33 | F17: =D17*B17 -> 64.50632692 | G17: =F17*(1-E17) -> 43.21923904 | H17: =F17*E17 -> 21.28708788
A18: fert (N) - NH3 | B18: 100.01 | C18: lb | D18: =IF(A18="",0,VLOOKUP(A18,'Universal Input Prices'!$A$26:$B$30, 2)) -> 0.6201219512 | E18: 0.33 | F18: =D18*B18 -> 62.01839634 | G18: =F18*(1-E18) -> 41.55232555 | H18: =F18*E18 -> 20.46607079
A19: fert (N) - liquid | B19: 45 | C19: lb | D19: =IF(A19="",0,VLOOKUP(A19,'Universal Input Prices'!$A$26:$B$30, 2)) -> 2.690625 | E19: 0 | F19: =D19*B19 -> 121.078125 | G19: =F19*(1-E19) -> 121.078125 | H19: =F19*E19 -> 0
A20: Field Operations
A21: herbicide & application | B21: 1 | C21: acre | D21: 33.08 | E21: 0.33 | F21: =D21*B21 -> 33.08 | G21: =F21*(1-E21) -> 22.1636 | H21: =F21*E21 -> 10.9164
A22: fertilizer application | B22: 1 | C22: acre | D22: 28.38 | E22: 0.33 | F22: 28.38 | G22: 19.0146 | H22: 9.3654
A23: insecticide & application - headwrm | B23: 0.33 | C23: acre | D23: 29.84 | E23: 0.33 | F23: 9.8472 | G23: 6.597624 | H23: 3.249576
A24: custom harvest & haul | B24: =$B$9 -> 21 | C24: ton | D24: 12.16 | E24: 0 | F24: 255.36 | G24: 255.36 | H24: 0
A25: crop consultant | B25: 1 | C25: acre | D25: 0 | E25: 0 | F25: 0 | G25: 0 | H25: 0
A26: insecticide sugar cane aphid | B26: 1 | C26: acre | D26: 63.96 | E26: 0.33 | F26: =D26*B26 -> 63.96 | G26: =F26*(1-E26) -> 42.8532 | H26: =F26*E26 -> 21.1068
A27: other | B27: 1 | C27: acre | D27: 0 | E27: 0 | F27: 0 | G27: 0 | H27: 0
A28: other | B28: 1 | C28: acre | D28: 0 | E28: 0 | F28: 0 | G28: 0 | H28: 0
A29: other | B29: 1 | C29: acre | D29: 0 | E29: 0 | F29: 0 | G29: 0 | H29: 0
A30: Crop Insurance | B30: 1 | C30: acre | D30: 26 | E30: 0.33 | F30: 26 | G30: 17.42 | H30: 8.58
A31: Operator Labor & Hand Labor | B31: 0.49 | C31: hour | D31: ='Universal Input Prices'!$B$31 -> 17.5 | E31: 0 | F31: 8.575 | G31: 8.575 | H31: 0
A32: Irrigation Labor | B32: 0.84 | C32: hours | D32: ='Universal Input Prices'!$B$31 -> 17.5 | E32: 0 | F32: 14.7 | G32: 14.7 | H32: 0
A33: Diesel Fuel - Tractors | B33: 1.41 | C33: gallons | D33: ='Universal Input Prices'!$B$32 -> 2.24 | E33: 0 | F33: 3.1584 | G33: 3.1584 | H33: 0
A34: Gasoline - Pickup | B34: 3.06999 | C34: gallons | D34: ='Universal Input Prices'!$B$33 -> 2.09 | E34: 0 | F34: 6.4162791 | G34: 6.4162791 | H34: 0
A35: Irrigation Fuel | B35: 14 | C35: acin | D35: ='Universal Input Prices'!$B$34 -> 4.7 | E35: 0.33 | F35: 65.8 | G35: 44.086 | H35: 21.714
A36: Pumping Days | B36: 70.04
A37: Calculated GPM capacity per acre needed | B37: =B35*18.85694/B36 -> 3.769234152
A38: Repair & Maintenance | G38: 0 | H38: 0
A39: Implements | B39: 1 | C39: acre | D39: 6.92 | E39: 0 | F39: =D39*B39 -> 6.92 | G39: 6.92 | H39: 0
A40: Tractors | B40: 1 | C40: acre | D40: 2.68 | E40: 0 | F40: =D40*B40 -> 2.68 | G40: 2.68 | H40: 0
A41: Irrigation-Above Ground | B41: =B35 -> 14 | C41: acin | D41: 3.75 | E41: 0 | F41: =D41*B41 -> 52.5 | G41: 52.5 | H41: 0
A42: Self Propelled Equipment | B42: 1 | C42: acre | D42: 0 | E42: 1 | F42: =D42*B42 -> 0 | G42: 0 | H42: 0
A43: Pickup | B43: 1 | C43: acre | D43: 3.76 | E43: 0 | F43: =D43*B43 -> 3.76 | G43: 3.76 | H43: 0
A44: Interest-operating capital | B44: ='Universal Input Prices'!$B$35 -> 0.08 | F44: =(SUM(F15:F23,F25:F43))*$B44/2 -> 23.35918909 | G44: =(SUM(G15:G23,G25:G43))*$B44/2 -> 18.69177571 | H44: 4.667413387
A46: Total Variable Costs | F46: =SUM(F15:F44) -> 862.6989165 | G46: =SUM(G15:G44) -> 741.3461684 | H46: =SUM(H15:H44) -> 121.3527481
A47: Returns Above Variable Costs | F47: =F12-F46 -> 438.2510835 | G47: =G12-G46 -> 130.2903316 | H47: =H12-H46 -> 307.9607519
A49: Fixed Costs
A50: Implements | B50: 1 | C50: acre | D50: 11.07 | E50: 0 | F50: =D50*B50 -> 11.07 | G50: =F50*(1-E50) -> 11.07 | H50: =F50*E50 -> 0
A51: Tractors | B51: 1 | C51: acre | D51: 4.43 | E51: 0 | F51: 4.43 | G51: 4.43 | H51: 0
A52: Irrigation Equipment | B52: 1 | C52: acre | D52: 36.27 | E52: 0 | F52: 36.27 | G52: 36.27 | H52: 0
A53: Self Propelled Equipment | B53: 1 | C53: acre | D53: 0 | E53: 1 | F53: 0 | G53: 0 | H53: 0
A54: Pickup | B54: 1 | C54: acre | D54: 6.13 | E54: 0 | F54: 6.13 | G54: 6.13 | H54: 0
A55: Management | B55: 1 | C55: acre | D55: 0 | E55: 0 | F55: 0 | G55: 0 | H55: 0
A56: Irrigation Investment | B56: 1 | C56: acre | D56: 39.25 | E56: 0 | F56: =B56*D56 -> 39.25 | G56: 39.25 | H56: 0
A57: Land | B57: 1 | C57: acre | D57: 88.5 | E57: 1 | F57: =D57*B57 -> 88.5 | G57: =IF($H$6="Cash",D57,F57*(1-E57)) -> 0 | H57: =IF($H$6="Cash",0,F57*E57) -> 88.5
A58: Property Tax | B58: 1 | C58: acre | D58: 0 | E58: 1 | F58: =B58*D58 -> 0 | G58: 0 | H58: 0
A59: Total Fixed Expenses | F59: =SUM(F50:F58) -> 185.65 | G59: =SUM(G50:G58) -> 97.15 | H59: =SUM(H50:H58) -> 88.5
A60: Total Specified Expenses | F60: =F46+F59 -> 1048.348916 | G60: =G46+G59 -> 838.4961684 | H60: =H46+H59 -> 209.8527481
A61: Returns Above Total Specified Expenses | F61: =F12-F60 -> 252.6010835 | G61: =G12-G60 -> 33.14033161 | H61: =H12-H60 -> 219.4607519
A63: Return on Investment | F63: =(F61/F60) -> 0.240951347 | G63: =(G61/G60) -> 0.03952353374 | H63: 1.045784503

Sheet Irr Sorghum Sudangrass
A2: Estimated Costs and Returns per Acre
A3: Irrigated Sorghum Sudangrass
A4: Projected for 2023
H5: Rental Agreement | I5: Share
A6: Item | B6: Quantity | C6: Unit | D6: Price | E6: Landlord | H6: Share | I6: Cash
E7: Share | F7: Total | G7: Tenant | H7: Landlord
A8: Income
A9: grazing | B9: 800 | C9: lb | D9: =Grazing_Price -> 0.6 | E9: 0.33 | F9: =D9*B9 -> 480 | G9: =F9*(1-E9) -> 321.6 | H9: =IF(H6="Cash", 0,F9*E9) -> 158.4
A10: other income | B10: 0 | C10: $/ac. | D10: 1 | E10: 0.33 | F10: =D10*B10 -> 0 | G10: =F10*(1-E10) -> 0 | H10: =IF(H7="Cash", D59,F10*E10) -> 0
A12: Total Income | F12: =SUM(F9:F11) -> 480 | G12: =SUM(G9:G11) -> 321.6 | H12: =SUM(H9:H11) -> 158.4
A14: Variable Costs
A15: Seed | B15: 22 | C15: bu | D15: 0.9 | E15: 0 | F15: =D15*B15 -> 19.8 | G15: =F15*(1-E15) -> 19.8 | H15: =F15*E15 -> 0
A16: Fertilizer
A17: fert (N) - NH3 | B17: 149.87 | C17: lb | D17: =IF(A17="",0,VLOOKUP(A17,'Universal Input Prices'!$A$26:$B$30, 2)) -> 0.6201219512 | E17: 0.33 | F17: =D17*B17 -> 92.93767683 | G17: =F17*(1-E17) -> 62.26824348 | H17: =F17*E17 -> 30.66943335
A18: fert (P) - liquid | B18: 50.01 | C18: lb | D18: =IF(A18="",0,VLOOKUP(A18,'Universal Input Prices'!$A$26:$B$30, 2)) -> 2.15 | E18: 0.33 | F18: =D18*B18 -> 107.5215 | G18: =F18*(1-E18) -> 72.039405 | H18: =F18*E18 -> 35.482095
B19: 0 | C19: lb | D19: =IF(A19="",0,VLOOKUP(A19,'Universal Input Prices'!$A$26:$B$30, 2)) -> 0 | E19: 0 | F19: =D19*B19 -> 0 | G19: =F19*(1-E19) -> 0 | H19: =F19*E19 -> 0
A20: Field Operations
A21: herbicide & application | B21: 1 | C21: acre | D21: 33.08 | E21: 0.33 | F21: =D21*B21 -> 33.08 | G21: =F21*(1-E21) -> 22.1636 | H21: =F21*E21 -> 10.9164
A22: fertilizer application | B22: 1 | C22: acre | D22: 21.99 | E22: 0.33 | F22: 21.99 | G22: 14.7333 | H22: 7.2567
A23: insecticide & application | B23: 1 | C23: acre | D23: 0 | E23: 0.33 | F23: 0 | G23: 0 | H23: 0
A24: custom harvest & haul | B24: 0 | C24: bu. | D24: 0 | E24: 0.33 | F24: 0 | G24: 0 | H24: 0
A25: hoeing | B25: 0 | C25: acre | D25: 0 | E25: 0 | F25: 0 | G25: 0 | H25: 0
A26: scouting | B26: 1 | C26: acre | D26: 0 | E26: 0 | F26: =D26*B26 -> 0 | G26: =F26*(1-E26) -> 0 | H26: =F26*E26 -> 0
A27: other | B27: 1 | C27: acre | D27: 0 | E27: 0 | F27: 0 | G27: 0 | H27: 0
A28: other | B28: 1 | C28: acre | D28: 0 | E28: 0 | F28: 0 | G28: 0 | H28: 0
A29: other | B29: 1 | C29: acre | D29: 0 | E29: 0 | F29: 0 | G29: 0 | H29: 0
A30: Crop Insurance | B30: 1 | C30: acre | D30: 25 | E30: 0.33 | F30: 25 | G30: 16.75 | H30: 8.25
A31: Operator Labor & Hand Labor | B31: 0.54 | C31: hours | D31: ='Universal Input Prices'!$B$31 -> 17.5 | E31: 0 | F31: 9.45 | G31: 9.45 | H31: 0
A32: Irrigation Labor | B32: 0.535 | C32: hours | D32: ='Universal Input Prices'!$B$31 -> 17.5 | E32: 0 | F32: 9.3625 | G32: 9.3625 | H32: 0
A33: Diesel Fuel - Tractors | B33: 1.53 | C33: gallons | D33: ='Universal Input Prices'!$B$32 -> 2.24 | E33: 0 | F33: 3.4272 | G33: 3.4272 | H33: 0
A34: Gasoline - Pickup | B34: 2.04923 | C34: gallons | D34: ='Universal Input Prices'!$B$33 -> 2.09 | E34: 0 | F34: 4.2828907 | G34: 4.2828907 | H34: 0
A35: Irrigation Fuel | B35: 9 | C35: acin | D35: ='Universal Input Prices'!$B$34 -> 4.7 | E35: 0.33 | F35: 42.3 | G35: 28.341 | H35: 13.959
A36: Pumping Days | B36: 48.49
A37: Calculated GPM capacity per acre needed | B37: =B35*18.85694/B36 -> 3.499947618
A38: Repair & Maintenance
A39: Implements | B39: 1 | C39: acre | D39: 5.57 | E39: 0 | F39: =D39*B39 -> 5.57 | G39: 5.57 | H39: 0
A40: Tractors | B40: 1 | C40: acre | D40: 3.03 | E40: 0 | F40: =D40*B40 -> 3.03 | G40: 3.03 | H40: 0
A41: Irrigation-Above Ground | B41: =B35 -> 9 | C41: acin | D41: 3.75 | E41: 0 | F41: =D41*B41 -> 33.75 | G41: 33.75 | H41: 0
A42: Self Propelled Equipment | B42: 1 | C42: acre | D42: 0 | E42: 1 | F42: =D42*B42 -> 0 | G42: 0 | H42: 0
A43: Pickup | B43: 1 | C43: acre | D43: 2.51 | E43: 0 | F43: =D43*B43 -> 2.51 | G43: 2.51 | H43: 0
A44: Interest-operating capital | B44: ='Universal Input Prices'!$B$35 -> 0.08 | F44: =(SUM(F15:F23,F25:F43))*$B44/2 -> 16.5604707 | G44: =(SUM(G15:G23,G25:G43))*$B44/2 -> 12.29912557 | H44: 4.261345134
A46: Total Variable Costs | F46: =SUM(F15:F44) -> 430.5722382 | G46: =SUM(G15:G44) -> 319.7772647 | H46: =SUM(H15:H44) -> 110.7949735
A47: Returns Above Variable Costs | F47: =F12-F46 -> 49.42776177 | G47: =G12-G46 -> 1.822735257 | H47: =H12-H46 -> 47.60502651
A49: Fixed Costs
A50: Implements | B50: 1 | C50: acre | D50: 9.3 | E50: 0 | F50: =D50*B50 -> 9.3 | G50: =F50*(1-E50) -> 9.3 | H50: =F50*E50 -> 0
A51: Tractors | B51: 1 | C51: acre | D51: 5 | E51: 0 | F51: 5 | G51: 5 | H51: 0
A52: Irrigation Equipment | B52: 1 | C52: acre | D52: 30.74 | E52: 0 | F52: 30.74 | G52: 30.74 | H52: 0
A53: Self Propelled Equipment | B53: 1 | C53: acre | D53: 0 | E53: 1 | F53: 0 | G53: 0 | H53: 0
A54: Pickup | B54: 1 | C54: acre | D54: 4.08 | E54: 0 | F54: 4.08 | G54: 4.08 | H54: 0
A55: Management | B55: 1 | C55: acre | D55: 0 | E55: 0 | F55: 0 | G55: 0 | H55: 0
A56: Irrigation Investment | B56: 1 | C56: acre | D56: 36 | E56: 0 | F56: =B56*D56 -> 36 | G56: 36 | H56: 0
A57: Land | B57: 1 | C57: acre | D57: 88.5 | E57: 1 | F57: =D57*B57 -> 88.5 | G57: =IF($H$6="Cash",D57,F57*(1-E57)) -> 0 | H57: =IF($H$6="Cash",0,F57*E57) -> 88.5
A58: Property Tax | B58: 1 | C58: acre | D58: 0 | E58: 1 | F58: =B58*D58 -> 0 | G58: 0 | H58: 0
A59: Total Fixed Expenses | F59: =SUM(F50:F58) -> 173.62 | G59: =SUM(G50:G58) -> 85.12 | H59: =SUM(H50:H58) -> 88.5
A60: Total Specified Expenses | F60: =F46+F59 -> 604.1922382 | G60: =G46+G59 -> 404.8972647 | H60: =H46+H59 -> 199.2949735
A61: Returns Above Total Specified Expenses | F61: =F12-F60 -> -124.1922382 | G61: =G12-G60 -> -83.29726474 | H61: =H12-H60 -> -40.89497349
A63: Return on Investment | F63: =(F61/F60) -> -0.2055508667 | G63: =(G61/G60) -> -0.2057244442 | H63: -0.2051982184

Sheet Irr Soybeans
A2: Estimated Costs and Returns per Acre
A3: Irrigated Soybeans
A4: Projected for 2023
H5: Rental Agreement | I5: Share
A6: Item | B6: Quantity | C6: Unit | D6: Price | E6: Landlord | H6: Share | I6: Cash
E7: Share | F7: Total | G7: Tenant | H7: Landlord
A8: Income
A9: soybeans | B9: 60 | C9: bu | D9: ='Universal Input Prices'!$B$14 -> 13.87 | E9: 0.33 | F9: =D9*B9 -> 832.2 | G9: =F9*(1-E9) -> 557.574 | H9: =IF(H6="Cash", D60,F9*E9) -> 274.626
A10: other income | B10: 0 | C10: $/ac. | D10: 1 | E10: 0.33 | F10: =D10*B10 -> 0 | G10: =F10*(1-E10) -> 0 | H10: =IF(H7="Cash", D59,F10*E10) -> 0
A12: Total Income | F12: =SUM(F8:F11) -> 832.2 | G12: =SUM(G8:G11) -> 557.574 | H12: =SUM(H8:H11) -> 274.626
A14: Variable Costs
A15: Seed
A16: soybean seed | B16: 1 | C16: bag | D16: 69.62 | E16: 0 | F16: =D16*B16 -> 69.62 | G16: =F16*(1-E16) -> 69.62 | H16: =F16*E16 -> 0
A17: tech fee | B17: =B16 -> 1 | C17: lb | D17: 0 | E17: 0 | F17: =D17*B17 -> 0 | G17: =F17*(1-E17) -> 0 | H17: =+F17*E17 -> 0
A18: innoculant | B18: 1 | C18: acre | D18: 7.72 | E18: 0 | F18: =D18*B18 -> 7.72 | G18: =F18*(1-E18) -> 7.72 | H18: =F18*E18 -> 0
A19: Fertilizer
A20: fert (P) - liquid | B20: 50.01 | C20: lb | D20: =IF(A20="",0,VLOOKUP(A20,'Universal Input Prices'!$A$26:$B$30, 2)) -> 2.15 | E20: 0.33 | F20: =D20*B20 -> 107.5215 | G20: =F20*(1-E20) -> 72.039405 | H20: =F20*E20 -> 35.482095
B21: 0 | C21: lb | D21: =IF(A21="",0,VLOOKUP(A21,'Universal Input Prices'!$A$26:$B$30, 2)) -> 0 | E21: 0 | F21: =D21*B21 -> 0 | G21: =F21*(1-E21) -> 0 | H21: =F21*E21 -> 0
B22: 0 | C22: lb | D22: =IF(A22="",0,VLOOKUP(A22,'Universal Input Prices'!$A$26:$B$30, 2)) -> 0 | E22: 0 | F22: =D22*B22 -> 0 | G22: =F22*(1-E22) -> 0 | H22: =F22*E22 -> 0
A23: Field Operations
A24: herbicide & application | B24: 2 | C24: acre | D24: 32.9 | E24: 0.33 | F24: =D24*B24 -> 65.8 | G24: =F24*(1-E24) -> 44.086 | H24: =F24*E24 -> 21.714
A25: fertilizer application | B25: 1 | C25: acre | D25: 0 | E25: 0.33 | F25: 0 | G25: 0 | H25: 0
A26: insecticide & application | B26: 0.5 | C26: acre | D26: 16.06 | E26: 0.33 | F26: 8.03 | G26: 5.3801 | H26: 2.6499
A27: custom harvest & haul | B27: =$B$9 -> 60 | C27: bu. | D27: 0.89 | E27: 0 | F27: 53.4 | G27: 53.4 | H27: 0
A28: crop consultant | B28: 1 | C28: acre | D28: 0 | E28: 0 | F28: 0 | G28: 0 | H28: 0
A29: scouting | B29: 1 | C29: acre | D29: 0 | E29: 0 | F29: =D29*B29 -> 0 | G29: =F29*(1-E29) -> 0 | H29: =F29*E29 -> 0
A30: other | B30: 1 | C30: acre | D30: 0 | E30: 0 | F30: 0 | G30: 0 | H30: 0
A31: other | B31: 1 | C31: acre | D31: 0 | E31: 0 | F31: 0 | G31: 0 | H31: 0
A32: other | B32: 1 | C32: acre | D32: 0 | E32: 0 | F32: 0 | G32: 0 | H32: 0
A33: Crop Insurance | B33: 1 | C33: acre | D33: 23 | E33: 0.33 | F33: 23 | G33: 15.41 | H33: 7.59
A34: Operator Labor & Hand Labor | B34: 0.255 | C34: hour | D34: ='Universal Input Prices'!$B$31 -> 17.5 | E34: 0 | F34: 4.4625 | G34: 4.4625 | H34: 0
A35: Irrigation Labor | B35: 0.895 | C35: hours | D35: ='Universal Input Prices'!$B$31 -> 17.5 | E35: 0 | F35: 15.6625 | G35: 15.6625 | H35: 0
A36: Diesel Fuel - Tractors | B36: 0.78 | C36: gallons | D36: ='Universal Input Prices'!$B$32 -> 2.24 | E36: 0 | F36: 1.7472 | G36: 1.7472 | H36: 0
A37: Gasoline - Pickup | B37: 2.049 | C37: gallons | D37: ='Universal Input Prices'!$B$33 -> 2.09 | E37: 0 | F37: 4.28241 | G37: 4.28241 | H37: 0
A38: Irrigation Fuel | B38: 14 | C38: acin | D38: ='Universal Input Prices'!$B$34 -> 4.7 | E38: 0.33 | F38: 65.8 | G38: 44.086 | H38: 21.714
A39: Pumping Days | B39: 67.88
A40: Calculated GPM capacity per acre needed | B40: =B38*18.85694/B39 -> 3.889174425
A41: Repair & Maintenance | G41: 0 | H41: 0
A42: Implements | B42: 1 | C42: acre | D42: 5.53 | E42: 0 | F42: =D42*B42 -> 5.53 | G42: 5.53 | H42: 0
A43: Tractors | B43: 1 | C43: acre | D43: 1.74 | E43: 0 | F43: =D43*B43 -> 1.74 | G43: 1.74 | H43: 0
A44: Irrigation-Above Ground | B44: =B38 -> 14 | C44: acin | D44: 3.75 | E44: 0 | F44: =D44*B44 -> 52.5 | G44: 52.5 | H44: 0
A45: Self Propelled Equipment | B45: 1 | C45: acre | D45: 0 | E45: 1 | F45: =D45*B45 -> 0 | G45: 0 | H45: 0
A46: Pickup | B46: 1 | C46: acre | D46: 2.51 | E46: 0 | F46: =D46*B46 -> 2.51 | G46: 2.51 | H46: 0
A47: Interest-operating capital | B47: ='Universal Input Prices'!$B$35 -> 0.08 | F47: =(SUM(F16:F26,F28:F46))*$B47/2 -> 17.4370444 | G47: =(SUM(G16:G26,G28:G46))*$B47/2 -> 13.8710446 | H47: 3.5659998
A49: Total Variable Costs | F49: =SUM(F16:F47) -> 506.7631544 | G49: =SUM(G16:G47) -> 414.0471596 | H49: =SUM(H16:H47) -> 92.7159948
A50: Returns Above Variable Costs | F50: =F12-F49 -> 325.4368456 | G50: =G12-G49 -> 143.5268404 | H50: =H12-H49 -> 181.9100052
A52: Fixed Costs
A53: Implements | B53: 1 | C53: acre | D53: 9.34 | E53: 0 | F53: =D53*B53 -> 9.34 | G53: =F53*(1-E53) -> 9.34 | H53: =F53*E53 -> 0
A54: Tractors | B54: 1 | C54: acre | D54: 2.85 | E54: 0 | F54: 2.85 | G54: 2.85 | H54: 0
A55: Irrigation Equipment | B55: 1 | C55: acre | D55: 40.42 | E55: 0 | F55: 40.42 | G55: 40.42 | H55: 0
A56: Self Propelled Equipment | B56: 1 | C56: acre | D56: 0 | E56: 1 | F56: 0 | G56: 0 | H56: 0
A57: Pickup | B57: 1 | C57: acre | D57: 4.08 | E57: 0 | F57: 4.08 | G57: 4.08 | H57: 0
A58: Management | B58: 1 | C58: acre | D58: 0 | E58: 0 | F58: 0 | G58: 0 | H58: 0
A59: Irrigation Investment | B59: 1 | C59: acre | D59: 41.68 | E59: 0 | F59: 41.68 | G59: 41.68 | H59: 0
A60: Land | B60: 1 | C60: acre | D60: 88.5 | E60: 1 | F60: 88.5 | G60: =IF($H$6="Cash",D60,F60*(1-E60)) -> 0 | H60: =IF($H$6="Cash",0,F60*E60) -> 88.5
A61: Property Tax | B61: 1 | C61: acre | D61: 0 | E61: 1 | F61: 0 | G61: 0 | H61: 0
A62: Total Fixed Expenses | F62: =SUM(F53:F61) -> 186.87 | G62: =SUM(G53:G61) -> 98.37 | H62: =SUM(H53:H61) -> 88.5
A63: Total Specified Expenses | F63: =F49+F62 -> 693.6331544 | G63: =G49+G62 -> 512.4171596 | H63: =H49+H62 -> 181.2159948
A64: Returns Above Total Specified Expenses | F64: =F12-F63 -> 138.5668456 | G64: =G12-G63 -> 45.1568404 | H64: =H12-H63 -> 93.4100052
A66: Return on Investment | F66: =(F64/F63) -> 0.1997696401 | G66: =(G64/G63) -> 0.08812515263 | H66: 0.5154622543

Sheet Irr Sunflowers-Confection
A2: Estimated Costs and Returns per Acre
A3: Irrigated Sunflowers-Confectionary
A4: Projected for 2023
H5: Rental Agreement | I5: Share
A6: Item | B6: Quantity | C6: Unit | D6: Price | E6: Landlord | H6: Share | I6: Cash
E7: Share | F7: Total | G7: Tenant | H7: Landlord
A8: Income
A9: Confectionary sunflower | B9: 18 | C9: cwt | D9: ='Universal Input Prices'!$B$15 -> 32.33 | E9: 0.33 | F9: =D9*B9 -> 581.94 | G9: =F9*(1-E9) -> 389.8998 | H9: =IF(H6="Cash", D60,F9*E9) -> 192.0402
A10: Expected % Large | B10: 0.667
A11: other income | B11: 0 | C11: $/ac. | D11: 1 | E11: 0.33 | F11: =D11*B11 -> 0 | G11: =F11*(1-E11) -> 0 | H11: =IF(H8="Cash", D60,F11*E11) -> 0
A13: Total Income | F13: =SUM(F8:F12) -> 581.94 | G13: =SUM(G8:G12) -> 389.8998 | H13: =SUM(H8:H12) -> 192.0402
A15: Variable Costs
A16: Seed | B16: 1 | C16: acre | D16: 32.42 | E16: 0 | F16: =D16*B16 -> 32.42 | G16: =F16*(1-E16) -> 32.42 | H16: =F16*E16 -> 0
A17: Fertilizer
A18: fert (P) - liquid | B18: 25 | C18: lb | D18: =IF(A18="",0,VLOOKUP(A18,'Universal Input Prices'!$A$26:$B$30, 2)) -> 2.15 | E18: 0.33 | F18: =D18*B18 -> 53.75 | G18: =F18*(1-E18) -> 36.0125 | H18: =F18*E18 -> 17.7375
A19: fert (N) - liquid | B19: 70.01 | C19: lb | D19: =IF(A19="",0,VLOOKUP(A19,'Universal Input Prices'!$A$26:$B$27, 2)) -> 2.690625 | E19: 0.33 | F19: =D19*B19 -> 188.3706562 | G19: =F19*(1-E19) -> 126.2083397 | H19: =F19*E19 -> 62.16231656
B20: 0 | C20: lb | D20: =IF(A20="",0,VLOOKUP(A20,'Universal Input Prices'!$A$26:$B$30, 2)) -> 0 | E20: 0 | F20: =D20*B20 -> 0 | G20: =F20*(1-E20) -> 0 | H20: =F20*E20 -> 0
A21: Field Operations
A22: herbicide (2-4D/Prowl H2O) | B22: 1 | C22: acre | D22: 47.15 | E22: 0.33 | F22: =D22*B22 -> 47.15 | G22: =F22*(1-E22) -> 31.5905 | H22: =F22*E22 -> 15.5595
A23: herbicide (glyphosphate) | B23: 3 | C23: acre | D23: 27.5 | E23: 0.33 | F23: 82.5 | G23: 55.275 | H23: 27.225
A24: seed insecticide | B24: 1 | C24: acre | D24: 14.33 | E24: 0.33 | F24: 14.33 | G24: 9.6011 | H24: 4.7289
A25: custom harvest | B25: 1 | C25: acre | D25: 34.49 | E25: 0 | F25: 34.49 | G25: 34.49 | H25: 0
A26: custom haul | B26: =B9 -> 18 | C26: cwt | D26: 0.62 | E26: 0 | F26: 11.16 | G26: 11.16 | H26: 0
A27: insecticide (ammo) | B27: 1 | C27: acre | D27: 5.12 | E27: 0.33 | F27: 5.12 | G27: 3.4304 | H27: 1.6896
A28: herbicide application | B28: 3 | C28: acre | D28: 6.83 | E28: 0 | F28: 20.49 | G28: 20.49 | H28: 0
A29: pesticide application | B29: 1 | C29: acre | D29: 6.83 | E29: 0 | F29: 6.83 | G29: 6.83 | H29: 0
A30: other | B30: 1 | C30: acre | D30: 0 | E30: 0 | F30: 0 | G30: 0 | H30: 0
A31: other | B31: 1 | C31: acre | D31: 0 | E31: 0 | F31: 0 | G31: 0 | H31: 0
A32: other | B32: 1 | C32: acre | D32: 0 | E32: 0 | F32: 0 | G32: 0 | H32: 0
A33: Crop Insurance | B33: 1 | C33: acre | D33: 21 | E33: 0.33 | F33: 21 | G33: 14.07 | H33: 6.93
A34: Operator Labor & Hand Labor | B34: 0.175 | C34: hours | D34: ='Universal Input Prices'!$B$31 -> 17.5 | E34: 0 | F34: 3.0625 | G34: 3.0625 | H34: 0
A35: Irrigation Labor | B35: 0.448 | C35: hours | D35: ='Universal Input Prices'!$B$31 -> 17.5 | E35: 0 | F35: 7.84 | G35: 7.84 | H35: 0
A36: Diesel Fuel - Tractors | B36: 0.64 | C36: gallons | D36: ='Universal Input Prices'!$B$32 -> 2.24 | E36: 0 | F36: 1.4336 | G36: 1.4336 | H36: 0
A37: Gasoline - Pickup | B37: 4.5 | C37: gallons | D37: ='Universal Input Prices'!$B$33 -> 2.09 | E37: 0 | F37: 9.405 | G37: 9.405 | H37: 0
A38: Irrigation Fuel | B38: 7 | C38: acin | D38: ='Universal Input Prices'!$B$34 -> 4.7 | E38: 0.33 | F38: 32.9 | G38: 22.043 | H38: 10.857
A39: Pumping Days | B39: 66
A40: Calculated GPM capacity per acre needed | B40: =B38*18.85694/B39 -> 1.999978485
A41: Repair & Maintenance
A42: Implements | B42: 1 | C42: acre | D42: 3.06 | E42: 0 | F42: =D42*B42 -> 3.06 | G42: =F42*(1-E42) -> 3.06 | H42: =F42*E42 -> 0
A43: Tractors | B43: 1 | C43: acre | D43: 1.64 | E43: 0 | F43: =D43*B43 -> 1.64 | G43: =F43*(1-E43) -> 1.64 | H43: =F43*E43 -> 0
A44: Irrigation-Above Ground | B44: =B38 -> 7 | C44: acin | D44: 3.75 | E44: 0 | F44: =D44*B44 -> 26.25 | G44: =F44*(1-E44) -> 26.25 | H44: =F44*E44 -> 0
A45: Self Propelled Equipment | B45: 1 | C45: acre | D45: 0 | E45: 1 | F45: =D45*B45 -> 0 | G45: =F45*(1-E45) -> 0 | H45: =F45*E45 -> 0
A46: Pickup | B46: 1 | C46: acre | D46: 5.52 | E46: 0 | F46: =D46*B46 -> 5.52 | G46: =F46*(1-E46) -> 5.52 | H46: =F46*E46 -> 0
A47: Interest-operating capital | B47: ='Universal Input Prices'!$B$35 -> 0.08 | F47: =(SUM(F16:F24,F27:F46))*$B47/2 -> 22.52287025 | G47: =(SUM(G16:G24,G27:G46))*$B47/2 -> 16.64727759 | H47: 5.875592663
A49: Total Variable Costs | F49: =SUM(F16:F47) -> 631.2446265 | G49: =SUM(G16:G47) -> 478.4792173 | H49: =SUM(H16:H47) -> 152.7654092
A50: Returns Above Variable Costs | F50: =F13-F49 -> -49.3046265 | G50: =G13-G49 -> -88.57941728 | H50: =H13-H49 -> 39.27479077
A52: Fixed Costs
A53: Implements | B53: 1 | C53: acre | D53: 5.28 | E53: 0 | F53: =D53*B53 -> 5.28 | G53: =F53*(1-E53) -> 5.28 | H53: =F53*E53 -> 0
A54: Tractors | B54: 1 | C54: acre | D54: 2.74 | E54: 0 | F54: 2.74 | G54: 2.74 | H54: 0
A55: Irrigation Equipment | B55: 1 | C55: acre | D55: 28.8 | E55: 0 | F55: 28.8 | G55: 28.8 | H55: 0
A56: Self Propelled Equipment | B56: 1 | C56: acre | D56: 0 | E56: 1 | F56: 0 | G56: 0 | H56: 0
A57: Pickup | B57: 1 | C57: acre | D57: 8.99 | E57: 0 | F57: 8.99 | G57: 8.99 | H57: 0
A58: Management | B58: 1 | C58: acre | D58: 0 | E58: 0 | F58: 0 | G58: 0 | H58: 0
A59: Irrigation Investment | B59: 1 | C59: acre | D59: 34.86 | E59: 0 | F59: =B59*D59 -> 34.86 | G59: 34.86 | H59: 0
A60: Land | B60: 1 | C60: acre | D60: 88.5 | E60: 1 | F60: =D60*B60 -> 88.5 | G60: =IF($H$6="Cash",D60,F60*(1-E60)) -> 0 | H60: =IF($H$6="Cash",0,F60*E60) -> 88.5
A61: Property Tax | B61: 1 | C61: acre | D61: 0 | E61: 1 | F61: =B61*D61 -> 0 | G61: 0 | H61: 0
A62: Total Fixed Expenses | F62: =SUM(F53:F61) -> 169.17 | G62: =SUM(G53:G61) -> 80.67 | H62: =SUM(H53:H61) -> 88.5
A63: Total Specified Expenses | F63: =F49+F62 -> 800.4146265 | G63: =G49+G62 -> 559.1492173 | H63: =H49+H62 -> 241.2654092
A64: Returns Above Total Specified Expenses | F64: =F13-F63 -> -218.4746265 | G64: =G13-G63 -> -169.2494173 | H64: =H13-H63 -> -49.22520923
A66: Return on Investment | F66: =(F64/F63) -> -0.2729518168 | G66: =(G64/G63) -> -0.302690967 | H66: -0.2040292862

Sheet Irr Sunflowers-Oilseed
A2: Estimated Costs and Returns per Acre
A3: Irrigated Sunflowers-Oilseed
A4: Projected for 2023
H5: Rental Agreement | I5: Share
A6: Item | B6: Quantity | C6: Unit | D6: Price | E6: Landlord | H6: Share | I6: Cash
E7: Share | F7: Total | G7: Tenant | H7: Landlord
A8: Income
A9: oilseed sunflower | B9: 20 | C9: cwt | D9: ='Universal Input Prices'!$B$16 -> 26.75 | E9: 0.33 | F9: =D9*B9 -> 535 | G9: =F9*(1-E9) -> 358.45 | H9: =IF(H6="Cash", D59,F9*E9) -> 176.55
A10: other income | B10: 0 | C10: $/ac. | D10: 1 | E10: 0.33 | F10: =D10*B10 -> 0 | G10: =F10*(1-E10) -> 0 | H10: =IF(H7="Cash", D59,F10*E10) -> 0
A12: Total Income | F12: =SUM(F8:F11) -> 535 | G12: =SUM(G8:G11) -> 358.45 | H12: =SUM(H8:H11) -> 176.55
A14: Variable Costs
A15: Seed | B15: 1 | C15: acre | D15: 30.85 | E15: 0 | F15: =D15*B15 -> 30.85 | G15: =F15*(1-E15) -> 30.85 | H15: =F15*E15 -> 0
A16: Fertilizer
A17: fert (P) - liquid | B17: 25 | C17: lb | D17: =IF(A17="",0,VLOOKUP(A17,'Universal Input Prices'!$A$26:$B$30, 2)) -> 2.15 | E17: 0.33 | F17: =D17*B17 -> 53.75 | G17: =F17*(1-E17) -> 36.0125 | H17: =F17*E17 -> 17.7375
A18: fert (N) - liquid | B18: 70.01 | C18: lb | D18: =IF(A18="",0,VLOOKUP(A18,'Universal Input Prices'!$A$26:$B$27, 2)) -> 2.690625 | E18: 0.33 | F18: =D18*B18 -> 188.3706562 | G18: =F18*(1-E18) -> 126.2083397 | H18: =F18*E18 -> 62.16231656
B19: 0 | C19: lb | D19: =IF(A19="",0,VLOOKUP(A19,'Universal Input Prices'!$A$26:$B$30, 2)) -> 0 | E19: 0 | F19: =D19*B19 -> 0 | G19: =F19*(1-E19) -> 0 | H19: =F19*E19 -> 0
A20: Field Operations
A21: herbicide (glyphosphate) | B21: 3 | C21: acre | D21: 27.5 | E21: 0.33 | F21: =D21*B21 -> 82.5 | G21: =F21*(1-E21) -> 55.275 | H21: =F21*E21 -> 27.225
A22: herbicide (2-4D/Prowl H2O) | B22: 1 | D22: 47.15 | E22: 0.33 | F22: 47.15 | G22: 31.5905 | H22: 15.5595
A23: seed insecticide | B23: 1 | C23: acre | D23: 13.73 | E23: 0.33 | F23: 13.73 | G23: 9.1991 | H23: 4.5309
A24: custom harvest | B24: 1 | C24: acre | D24: 34.49 | E24: 0.33 | F24: 34.49 | G24: 23.1083 | H24: 11.3817
A25: custom haul | B25: =B9 -> 20 | C25: cwt | D25: 0.62 | E25: 0.33 | F25: 12.4 | G25: 8.308 | H25: 4.092
A26: insecticide (ammo) | B26: 1 | C26: acre | D26: 5.12 | E26: 0.33 | F26: =D26*B26 -> 5.12 | G26: =F26*(1-E26) -> 3.4304 | H26: =F26*E26 -> 1.6896
A27: herbicide application | B27: 3 | C27: acre | D27: 6.83 | E27: 0 | F27: =D27*B27 -> 20.49 | G27: =F27*(1-E27) -> 20.49 | H27: =F27*E27 -> 0
A28: pesticide application | B28: 1 | C28: acre | D28: 6.83 | E28: 0 | F28: =D28*B28 -> 6.83 | G28: =F28*(1-E28) -> 6.83 | H28: =F28*E28 -> 0
A29: other | B29: 1 | C29: acre | D29: 0 | E29: 0 | F29: 0 | G29: 0 | H29: 0
A30: other | B30: 1 | C30: acre | D30: 0 | E30: 0 | F30: 0 | G30: 0 | H30: 0
A31: other | B31: 1 | C31: acre | D31: 0 | E31: 0 | F31: 0 | G31: 0 | H31: 0
A32: Crop Insurance | B32: 1 | C32: acre | D32: 21 | E32: 0.33 | F32: 21 | G32: 14.07 | H32: 6.93
A33: Operator Labor & Hand Labor | B33: 0.175 | C33: hours | D33: ='Universal Input Prices'!$B$31 -> 17.5 | E33: 0 | F33: 3.0625 | G33: 3.0625 | H33: 0
A34: Irrigation Labor | B34: 0.447 | C34: hours | D34: ='Universal Input Prices'!$B$31 -> 17.5 | E34: 0 | F34: 7.8225 | G34: 7.8225 | H34: 0
A35: Diesel Fuel - Tractors | B35: 0.64 | C35: gallons | D35: ='Universal Input Prices'!$B$32 -> 2.24 | E35: 0 | F35: 1.4336 | G35: 1.4336 | H35: 0
A36: Gasoline - Pickup | B36: 4.51 | C36: gallons | D36: ='Universal Input Prices'!$B$33 -> 2.09 | E36: 0 | F36: 9.4259 | G36: 9.4259 | H36: 0
A37: Irrigation Fuel | B37: 7 | C37: acin | D37: ='Universal Input Prices'!$B$34 -> 4.7 | E37: 0.33 | F37: 32.9 | G37: 22.043 | H37: 10.857
A38: Pumping Days | B38: 66
A39: Calculated GPM capacity per acre needed | B39: =B37*18.85694/B38 -> 1.999978485
A40: Repair & Maintenance
A41: Implements | B41: 1 | C41: acre | D41: 3.06 | E41: 0 | F41: =D41*B41 -> 3.06 | G41: =F41*(1-E41) -> 3.06 | H41: =F41*E41 -> 0
A42: Tractors | B42: 1 | C42: acre | D42: 1.64 | E42: 0 | F42: =D42*B42 -> 1.64 | G42: =F42*(1-E42) -> 1.64 | H42: =F42*E42 -> 0
A43: Irrigation-Above Ground | B43: =B37 -> 7 | C43: acin | D43: 3.75 | E43: 0 | F43: =D43*B43 -> 26.25 | G43: =F43*(1-E43) -> 26.25 | H43: =F43*E43 -> 0
A44: Self Propelled Equipment | B44: 1 | C44: acre | D44: 0 | E44: 1 | F44: =D44*B44 -> 0 | G44: =F44*(1-E44) -> 0 | H44: =F44*E44 -> 0
A45: Pickup | B45: 1 | C45: acre | D45: 5.52 | E45: 0 | F45: =D45*B45 -> 5.52 | G45: =F45*(1-E45) -> 5.52 | H45: =F45*E45 -> 0
A46: Interest-operating capital | B46: ='Universal Input Prices'!$B$35 -> 0.08 | F46: =(SUM(F15:F23,F26:F45))*$B46/2 -> 22.43620625 | G46: =(SUM(G15:G23,G26:G45))*$B46/2 -> 16.56853359 | H46: 5.867672663
A48: Total Variable Costs | F48: =SUM(F15:F46) -> 630.2313625 | G48: =SUM(G15:G46) -> 462.1981733 | H48: =SUM(H15:H46) -> 168.0331892
A49: Returns Above Variable Costs | F49: =F12-F48 -> -95.2313625 | G49: =G12-G48 -> -103.7481733 | H49: =H12-H48 -> 8.516810775
A51: Fixed Costs
A52: Implements | B52: 1 | C52: acre | D52: 5.28 | E52: 0 | F52: =D52*B52 -> 5.28 | G52: =F52*(1-E52) -> 5.28 | H52: =F52*E52 -> 0
A53: Tractors | B53: 1 | C53: acre | D53: 2.74 | E53: 0 | F53: 2.74 | G53: 2.74 | H53: 0
A54: Irrigation Equipment | B54: 1 | C54: acre | D54: 28.8 | E54: 0 | F54: 28.8 | G54: 28.8 | H54: 0
A55: Self Propelled Equipment | B55: 1 | C55: acre | D55: 0 | E55: 1 | F55: 0 | G55: 0 | H55: 0
A56: Pickup | B56: 1 | C56: acre | D56: 8.99 | E56: 0 | F56: 8.99 | G56: 8.99 | H56: 0
A57: Management | B57: 1 | C57: acre | D57: 0 | E57: 0 | F57: 0 | G57: 0 | H57: 0
A58: Irrigation Investment | B58: 1 | C58: acre | D58: 34.86 | E58: 0 | F58: =B58*D58 -> 34.86 | G58: 34.86 | H58: 0
A59: Land | B59: 1 | C59: acre | D59: 88.5 | E59: 1 | F59: =D59*B59 -> 88.5 | G59: =IF($H$6="Cash",D59,F59*(1-E59)) -> 0 | H59: =IF($H$6="Cash",0,F59*E59) -> 88.5
A60: Property Tax | B60: 1 | C60: acre | D60: 0 | E60: 1 | F60: =B60*D60 -> 0 | G60: 0 | H60: 0
A61: Total Fixed Expenses | F61: =SUM(F52:F60) -> 169.17 | G61: =SUM(G52:G60) -> 80.67 | H61: =SUM(H52:H60) -> 88.5
A62: Total Specified Expenses | F62: =F48+F61 -> 799.4013625 | G62: =G48+G61 -> 542.8681733 | H62: =H48+H61 -> 256.5331892
A63: Returns Above Total Specified Expenses | F63: =F12-F62 -> -264.4013625 | G63: =G12-G62 -> -184.4181733 | H63: =H12-H62 -> -79.98318923
A65: Return on Investment | F65: =(F63/F62) -> -0.3307492017 | G65: =(G63/G62) -> -0.339710785 | H65: -0.3117849564

Sheet Irr Triticale Silage
A2: Estimated Costs and Returns per Acre
A3: Irrigated Triticale Silage
A4: Projected for 2023
H5: Rental Agreement | I5: Share
A6: Item | B6: Quantity | C6: Unit | D6: Price | E6: Landlord | H6: Share | I6: Cash
E7: Share | F7: Total | G7: Tenant | H7: Landlord
A8: Income
A9: triticale silage | B9: 10 | C9: ton | D9: ='Universal Input Prices'!$B$17 -> 61.95 | E9: 0.33 | F9: =D9*B9 -> 619.5 | G9: =F9*(1-E9) -> 415.065 | H9: =IF(H6="Cash", D57,F9*E9) -> 204.435
A10: other income | B10: 0 | C10: $/ac. | D10: 1 | E10: 0.33 | F10: =D10*B10 -> 0 | G10: =F10*(1-E10) -> 0 | H10: =IF(H7="Cash", D59,F10*E10) -> 0
A12: Total Income | F12: =SUM(F7:F11) -> 619.5 | G12: =SUM(G7:G11) -> 415.065 | H12: =SUM(H7:H11) -> 204.435
A14: Variable Costs
A15: Seed | B15: 0.6 | C15: cwt | D15: 28.9 | E15: 0 | F15: =D15*B15 -> 17.34 | G15: =F15*(1-E15) -> 17.34 | H15: =F15*E15 -> 0
A16: Fertilizer
A17: fert (N) - NH3 | B17: 54.95 | C17: lb | D17: =IF(A17="",0,VLOOKUP(A17,'Universal Input Prices'!$A$26:$B$30, 2)) -> 0.6201219512 | E17: 0.33 | F17: =D17*B17 -> 34.07570122 | G17: =F17*(1-E17) -> 22.83071982 | H17: =F17*E17 -> 11.2449814
A18: fert (P) - liquid | B18: 35.01 | C18: lb | D18: =IF(A18="",0,VLOOKUP(A18,'Universal Input Prices'!$A$26:$B$30, 2)) -> 2.15 | E18: 0.33 | F18: =D18*B18 -> 75.2715 | G18: =F18*(1-E18) -> 50.431905 | H18: =F18*E18 -> 24.839595
A19: fert (N) - liquid | B19: 25 | C19: lb | D19: =IF(A19="",0,VLOOKUP(A19,'Universal Input Prices'!$A$26:$B$30, 2)) -> 2.690625 | E19: 0 | F19: =D19*B19 -> 67.265625 | G19: =F19*(1-E19) -> 67.265625 | H19: =F19*E19 -> 0
A20: Field Operations
A21: herbicide & application | B21: 1 | C21: acre | D21: 0 | E21: 0.33 | F21: =D21*B21 -> 0 | G21: =F21*(1-E21) -> 0 | H21: =F21*E21 -> 0
A22: fertilizer application | B22: 1 | C22: acre | D22: 21.99 | E22: 0.33 | F22: 21.99 | G22: 14.7333 | H22: 7.2567
A23: insecticide & application | B23: 1 | C23: acre | D23: 15.89 | E23: 0.33 | F23: 15.89 | G23: 10.6463 | H23: 5.2437
A24: custom harvest & haul | B24: =$B$9 -> 10 | C24: ton | D24: 10.5 | E24: 0 | F24: 105 | G24: 105 | H24: 0
A25: crop consultant | B25: 1 | C25: acre | D25: 0 | E25: 0 | F25: 0 | G25: 0 | H25: 0
A26: scouting | B26: 1 | C26: acre | D26: 0 | E26: 0 | F26: =D26*B26 -> 0 | G26: =F26*(1-E26) -> 0 | H26: =F26*E26 -> 0
A27: other | B27: 1 | C27: acre | D27: 0 | E27: 0 | F27: 0 | G27: 0 | H27: 0
A28: other | B28: 1 | C28: acre | D28: 0 | E28: 0 | F28: 0 | G28: 0 | H28: 0
A29: other | B29: 1 | C29: acre | D29: 0 | E29: 0 | F29: 0 | G29: 0 | H29: 0
A30: Crop Insurance | B30: 1 | C30: acre | D30: 0 | E30: 0.33 | F30: 0 | G30: 0 | H30: 0
A31: Operator Labor & Hand Labor | B31: 0.53 | C31: hour | D31: ='Universal Input Prices'!$B$31 -> 17.5 | E31: 0 | F31: 9.275 | G31: 9.275 | H31: 0
A32: Irrigation Labor | B32: 0.96 | C32: hours | D32: ='Universal Input Prices'!$B$31 -> 17.5 | E32: 0 | F32: 16.8 | G32: 16.8 | H32: 0
A33: Diesel Fuel - Tractors | B33: 1.53 | C33: gallons | D33: ='Universal Input Prices'!$B$32 -> 2.24 | E33: 0 | F33: 3.4272 | G33: 3.4272 | H33: 0
A34: Gasoline - Pickup | B34: 2.0485 | C34: gallons | D34: ='Universal Input Prices'!$B$33 -> 2.09 | E34: 0 | F34: 4.281365 | G34: 4.281365 | H34: 0
A35: Irrigation Fuel | B35: 10 | C35: acin | D35: ='Universal Input Prices'!$B$34 -> 4.7 | E35: 0.33 | F35: 47 | G35: 31.49 | H35: 15.51
A36: Pumping Days | B36: 70.04
A37: Calculated GPM capacity per acre needed | B37: =B35*18.85694/B36 -> 2.692310109
A38: Repair & Maintenance | G38: 0 | H38: 0
A39: Implements | B39: 1 | C39: acre | D39: 5.57 | E39: 0 | F39: =D39*B39 -> 5.57 | G39: 5.57 | H39: 0
A40: Tractors | B40: 1 | C40: acre | D40: 3.03 | E40: 0 | F40: =D40*B40 -> 3.03 | G40: 3.03 | H40: 0
A41: Irrigation-Above Ground | B41: =B35 -> 10 | C41: acin | D41: 3.75 | E41: 0 | F41: =D41*B41 -> 37.5 | G41: 37.5 | H41: 0
A42: Self Propelled Equipment | B42: 1 | C42: acre | D42: 0 | E42: 1 | F42: =D42*B42 -> 0 | G42: 0 | H42: 0
A43: Pickup | B43: 1 | C43: acre | D43: 2.51 | E43: 0 | F43: =D43*B43 -> 2.51 | G43: 2.51 | H43: 0
A44: Interest-operating capital | B44: ='Universal Input Prices'!$B$35 -> 0.08 | F44: =(SUM(F15:F23,F25:F43))*$B44/2 -> 14.44905565 | G44: =(SUM(G15:G23,G25:G43))*$B44/2 -> 11.88525659 | H44: 2.563799056
A46: Total Variable Costs | F46: =SUM(F15:F44) -> 480.6754469 | G46: =SUM(G15:G44) -> 414.0166714 | H46: =SUM(H15:H44) -> 66.65877546
A47: Returns Above Variable Costs | F47: =F12-F46 -> 138.8245531 | G47: =G12-G46 -> 1.04832859 | H47: =H12-H46 -> 137.7762245
A49: Fixed Costs
A50: Implements | B50: 1 | C50: acre | D50: 9.3 | E50: 0 | F50: =D50*B50 -> 9.3 | G50: =F50*(1-E50) -> 9.3 | H50: =F50*E50 -> 0
A51: Tractors | B51: 1 | C51: acre | D51: 5 | E51: 0 | F51: 5 | G51: 5 | H51: 0
A52: Irrigation Equipment | B52: 1 | C52: acre | D52: 33.5 | E52: 0 | F52: 33.5 | G52: 33.5 | H52: 0
A53: Self Propelled Equipment | B53: 1 | C53: acre | D53: 0 | E53: 1 | F53: 0 | G53: 0 | H53: 0
A54: Pickup | B54: 1 | C54: acre | D54: 4.08 | E54: 0 | F54: 4.08 | G54: 4.08 | H54: 0
A55: Management | B55: 1 | C55: acre | D55: 0 | E55: 0 | F55: 0 | G55: 0 | H55: 0
A56: Irrigation Investment | B56: 1 | C56: acre | D56: 37.62 | E56: 0 | F56: =B56*D56 -> 37.62 | G56: 37.62 | H56: 0
A57: Land | B57: 1 | C57: acre | D57: 88.5 | E57: 1 | F57: =D57*B57 -> 88.5 | G57: =IF($H$6="Cash",D57,F57*(1-E57)) -> 0 | H57: =IF($H$6="Cash",0,F57*E57) -> 88.5
A58: Property Tax | B58: 1 | C58: acre | D58: 0 | E58: 1 | F58: =B58*D58 -> 0 | G58: 0 | H58: 0
A59: Total Fixed Expenses | F59: =SUM(F50:F58) -> 178 | G59: =SUM(G50:G58) -> 89.5 | H59: =SUM(H50:H58) -> 88.5
A60: Total Specified Expenses | F60: =F46+F59 -> 658.6754469 | G60: =G46+G59 -> 503.5166714 | H60: =H46+H59 -> 155.1587755
A61: Returns Above Total Specified Expenses | F61: =F12-F60 -> -39.17544687 | G61: =G12-G60 -> -88.45167141 | H61: =H12-H60 -> 49.27622454
A63: Return on Investment | F63: =(F61/F60) -> -0.05947610019 | G63: =(G61/G60) -> -0.1756678109 | H63: 0.3175858046

Sheet Irr Wheat
A2: Estimated Costs and Returns per Acre
A3: Irrigated Wheat
A4: Projected for 2023
H5: Rental Agreement | I5: Share
A6: Item | B6: Quantity | C6: Unit | D6: Price | E6: Landlord | H6: Share | I6: Cash
E7: Share | F7: Total | G7: Tenant | H7: Landlord
A8: Income
A9: wheat | B9: 50 | C9: bu | D9: ='Universal Input Prices'!$B$18 -> 8.46 | E9: 0.33 | F9: =D9*B9 -> 423 | G9: =F9*(1-E9) -> 283.41 | H9: =IF(H6="Cash", D58,F9*E9) -> 139.59
A10: grazing | B10: 136 | C10: lb | D10: =Grazing_Price -> 0.6 | E10: 0.33 | F10: =D10*B10 -> 81.6 | G10: =F10*(1-E10) -> 54.672 | H10: =IF(H6="Cash", 0,F10*E10) -> 26.928
A11: other income | B11: 0 | C11: $/ac. | D11: 1 | E11: 0.33 | F11: =D11*B11 -> 0 | G11: =F11*(1-E11) -> 0 | H11: =IF(H8="Cash", D60,F11*E11) -> 0
A13: Total Income | F13: =SUM(F8:F12) -> 504.6 | G13: =SUM(G8:G12) -> 338.082 | H13: =SUM(H8:H12) -> 166.518
A15: Variable Costs
A16: Seed | B16: 1.2 | C16: bu | D16: 11.56 | E16: 0 | F16: =D16*B16 -> 13.872 | G16: =F16*(1-E16) -> 13.872 | H16: =F16*E16 -> 0
A17: Fertilizer
A18: fert (N) - NH3 | B18: 44.97 | C18: lb | D18: =IF(A18="",0,VLOOKUP(A18,'Universal Input Prices'!$A$26:$B$30, 2)) -> 0.6201219512 | E18: 0.33 | F18: =D18*B18 -> 27.88688415 | G18: =F18*(1-E18) -> 18.68421238 | H18: =F18*E18 -> 9.202671768
A19: fert (P) - liquid | B19: 25 | C19: lb | D19: =IF(A19="",0,VLOOKUP(A19,'Universal Input Prices'!$A$26:$B$30, 2)) -> 2.15 | E19: 0.33 | F19: =D19*B19 -> 53.75 | G19: =F19*(1-E19) -> 36.0125 | H19: =F19*E19 -> 17.7375
A20: fert (N) - liquid | B20: 20 | C20: lb | D20: =IF(A20="",0,VLOOKUP(A20,'Universal Input Prices'!$A$26:$B$27, 2)) -> 2.690625 | E20: 0.33 | F20: =D20*B20 -> 53.8125 | G20: =F20*(1-E20) -> 36.054375 | H20: =F20*E20 -> 17.758125
A21: Field Operations
A22: herbicide & application | B22: 1 | C22: acre | D22: 0 | E22: 0.33 | F22: =D22*B22 -> 0 | G22: =F22*(1-E22) -> 0 | H22: =F22*E22 -> 0
A23: fertilizer application | B23: 1 | C23: acre | D23: 21.99 | E23: 0.33 | F23: 21.99 | G23: 14.7333 | H23: 7.2567
A24: insecticide & application | B24: 1 | C24: acre | D24: 15.89 | E24: 0.33 | F24: 15.89 | G24: 10.6463 | H24: 5.2437
A25: custom harvest & haul | B25: =B9 -> 50 | C25: bu. | D25: 0.81 | E25: 0 | F25: 40.5 | G25: 40.5 | H25: 0
A26: hoeing | B26: 0 | C26: acre | D26: 0 | E26: 0 | F26: 0 | G26: 0 | H26: 0
A27: scouting | B27: 1 | C27: acre | D27: 0 | E27: 0 | F27: =D27*B27 -> 0 | G27: =F27*(1-E27) -> 0 | H27: =F27*E27 -> 0
A28: other | B28: 1 | C28: acre | D28: 0 | E28: 0 | F28: 0 | G28: 0 | H28: 0
A29: other | B29: 1 | C29: acre | D29: 0 | E29: 0 | F29: 0 | G29: 0 | H29: 0
A30: other | B30: 1 | C30: acre | D30: 0 | E30: 0 | F30: 0 | G30: 0 | H30: 0
A31: Crop Insurance | B31: 1 | C31: acre | D31: 36.3 | E31: 0.33 | F31: 36.3 | G31: 24.321 | H31: 11.979
A32: Operator Labor & Hand Labor | B32: 0.535 | C32: hours | D32: ='Universal Input Prices'!$B$31 -> 17.5 | E32: 0 | F32: 9.3625 | G32: 9.3625 | H32: 0
A33: Irrigation Labor | B33: 0.96 | C33: hours | D33: ='Universal Input Prices'!$B$31 -> 17.5 | E33: 0 | F33: 16.8 | G33: 16.8 | H33: 0
A34: Diesel Fuel - Tractors | B34: 1.53 | C34: gallons | D34: ='Universal Input Prices'!$B$32 -> 2.24 | E34: 0 | F34: 3.4272 | G34: 3.4272 | H34: 0
A35: Gasoline - Pickup | B35: 2.04923 | C35: gallons | D35: ='Universal Input Prices'!$B$33 -> 2.09 | E35: 0 | F35: 4.2828907 | G35: 4.2828907 | H35: 0
A36: Irrigation Fuel | B36: 10 | C36: acin | D36: ='Universal Input Prices'!$B$34 -> 4.7 | E36: 0.33 | F36: 47 | G36: 31.49 | H36: 15.51
A37: Pumping Days | B37: 70.71
A38: Calculated GPM capacity per acre needed | B38: =B36*18.85694/B37 -> 2.666799604
A39: Repair & Maintenance
A40: Implements | B40: 1 | C40: acre | D40: 5.57 | E40: 0 | F40: =D40*B40 -> 5.57 | G40: 5.57 | H40: 0
A41: Tractors | B41: 1 | C41: acre | D41: 3.03 | E41: 0 | F41: =D41*B41 -> 3.03 | G41: 3.03 | H41: 0
A42: Irrigation-Above Ground | B42: =B36 -> 10 | C42: acin | D42: 3.75 | E42: 0 | F42: =D42*B42 -> 37.5 | G42: 37.5 | H42: 0
A43: Self Propelled Equipment | B43: 1 | C43: acre | D43: 0 | E43: 1 | F43: =D43*B43 -> 0 | G43: 0 | H43: 0
A44: Pickup | B44: 1 | C44: acre | D44: 2.51 | E44: 0 | F44: =D44*B44 -> 2.51 | G44: 2.51 | H44: 0
A45: Interest-operating capital | B45: ='Universal Input Prices'!$B$35 -> 0.08 | F45: =(SUM(F16:F24,F26:F44))*$B45/2 -> 14.11935899 | G45: =(SUM(G16:G24,G26:G44))*$B45/2 -> 10.73185112 | H45: 3.387507871
A47: Total Variable Costs | F47: =SUM(F16:F45) -> 407.6033338 | G47: =SUM(G16:G45) -> 319.5281292 | H47: =SUM(H16:H45) -> 88.07520464
A48: Returns Above Variable Costs | F48: =F13-F47 -> 96.99666616 | G48: =G13-G47 -> 18.5538708 | H48: =H13-H47 -> 78.44279536
A50: Fixed Costs
A51: Implements | B51: 1 | C51: acre | D51: 9.3 | E51: 0 | F51: =D51*B51 -> 9.3 | G51: =F51*(1-E51) -> 9.3 | H51: =F51*E51 -> 0
A52: Tractors | B52: 1 | C52: acre | D52: 5 | E52: 0 | F52: 5 | G52: 5 | H52: 0
A53: Irrigation Equipment | B53: 1 | C53: acre | D53: 33.5 | E53: 0 | F53: 33.5 | G53: 33.5 | H53: 0
A54: Self Propelled Equipment | B54: 1 | C54: acre | D54: 0 | E54: 1 | F54: 0 | G54: 0 | H54: 0
A55: Pickup | B55: 1 | C55: acre | D55: 4.08 | E55: 0 | F55: 4.08 | G55: 4.08 | H55: 0
A56: Management | B56: 1 | C56: acre | D56: 0 | E56: 0 | F56: 0 | G56: 0 | H56: 0
A57: Irrigation Investment | B57: 1 | C57: acre | D57: 37.62 | E57: 0 | F57: =B57*D57 -> 37.62 | G57: 37.62 | H57: 0
A58: Land | B58: 1 | C58: acre | D58: 88.5 | E58: 1 | F58: =D58*B58 -> 88.5 | G58: =IF($H$6="Cash",D58,F58*(1-E58)) -> 0 | H58: =IF($H$6="Cash",0,F58*E58) -> 88.5
A59: Property Tax | B59: 1 | C59: acre | D59: 0 | E59: 1 | F59: =B59*D59 -> 0 | G59: 0 | H59: 0
A60: Total Fixed Expenses | F60: =SUM(F51:F59) -> 178 | G60: =SUM(G51:G59) -> 89.5 | H60: =SUM(H51:H59) -> 88.5
A61: Total Specified Expenses | F61: =F47+F60 -> 585.6033338 | G61: =G47+G60 -> 409.0281292 | H61: =H47+H60 -> 176.5752046
A62: Returns Above Total Specified Expenses | F62: =F13-F61 -> -81.00333384 | G62: =G13-G61 -> -70.9461292 | H62: =H13-H61 -> -10.05720464
A64: Return on Investment | F64: =(F62/F61) -> -0.1383245777 | G64: =(G62/G61) -> -0.1734504894 | H64: -0.05695706064

Sheet Irr Other Crop
A2: Estimated Costs and Returns per Acre
A3: ='Universal Input Prices'!A19 -> Irrigated Other Crop
A4: Projected for 2023
H5: Rental Agreement | I5: Share
A6: Item | B6: Quantity | C6: Unit | D6: Price | E6: Landlord | H6: Share | I6: Cash
E7: Share | F7: Total | G7: Tenant | H7: Landlord
A8: Income
A9: other irrigated crop | B9: 0 | C9: ='Universal Input Prices'!C19 -> unit | D9: ='Universal Input Prices'!B19 -> 0 | E9: 0.33 | F9: =D9*B9 -> 0 | G9: =F9*(1-E9) -> 0 | H9: =IF(H6="Cash", D59,F9*E9) -> 0
A10: secondary income | B10: 0 | C10: ='Universal Input Prices'!C20 -> unit | D10: 0 | E10: 0.33 | F10: =D10*B10 -> 0 | G10: =F10*(1-E10) -> 0 | H10: =IF(H6="Cash", 0,F10*E10) -> 0
A12: Total Income | F12: =F9+F10 -> 0 | G12: =G9+G10 -> 0 | H12: =H9+H10 -> 0
A14: Variable Costs
A15: Seed | B15: 0 | C15: unit | D15: 0 | E15: 0 | F15: =D15*B15 -> 0 | G15: =F15*(1-E15) -> 0 | H15: =F15*E15 -> 0
A16: Fertilizer
A17: fert (N) - NH3 | B17: 0 | C17: lb | D17: =IF(A17="",0,VLOOKUP(A17,'Universal Input Prices'!$A$26:$B$30, 2)) -> 0.6201219512 | E17: 0.33 | F17: =D17*B17 -> 0 | G17: =F17*(1-E17) -> 0 | H17: =F17*E17 -> 0
A18: fert (N) - dry | B18: 0 | C18: lb | D18: =IF(A18="",0,VLOOKUP(A18,'Universal Input Prices'!$A$26:$B$30, 2)) -> 1.5 | E18: 0.33 | F18: 0 | G18: 0 | H18: 0
A19: fert (N) - liquid | B19: 0 | C19: lb | D19: =IF(A19="",0,VLOOKUP(A19,'Universal Input Prices'!$A$26:$B$30, 2)) -> 2.690625 | E19: 0.33 | F19: =D19*B19 -> 0 | G19: =F19*(1-E19) -> 0 | H19: =F19*E19 -> 0
A20: fert (P) - dry | B20: 0 | C20: lb | D20: =IF(A20="",0,VLOOKUP(A20,'Universal Input Prices'!$A$26:$B$30, 2)) -> 1.290384615 | E20: 0.33 | F20: =D20*B20 -> 0 | G20: =F20*(1-E20) -> 0 | H20: =F20*E20 -> 0
A21: fert (P) - liquid | B21: 0 | C21: lb | D21: =IF(A21="",0,VLOOKUP(A21,'Universal Input Prices'!$A$26:$B$30, 2)) -> 2.15 | E21: 0.33 | F21: =D21*B21 -> 0 | G21: =F21*(1-E21) -> 0 | H21: =F21*E21 -> 0
A22: Field Operations
A23: herbicide & application | B23: 1 | C23: acre | D23: 0 | E23: 0.33 | F23: =D23*B23 -> 0 | G23: =F23*(1-E23) -> 0 | H23: =F23*E23 -> 0
A24: fertilizer application | B24: 0 | C24: acre | D24: 11.75 | E24: 0.33 | F24: 0 | G24: 0 | H24: 0
A25: insecticide & application | B25: 0 | C25: acre | D25: 0 | E25: 0.33 | F25: 0 | G25: 0 | H25: 0
A26: custom harvest & haul | B26: =B9 -> 0 | C26: =C9 -> unit | D26: 0 | E26: 0 | F26: 0 | G26: 0 | H26: 0
A27: crop consulting | B27: 1 | C27: acre | D27: 0 | E27: 0 | F27: 0 | G27: 0 | H27: 0
A28: scouting | B28: 1 | C28: acre | D28: 0 | E28: 0 | F28: =D28*B28 -> 0 | G28: =F28*(1-E28) -> 0 | H28: =F28*E28 -> 0
A29: other | B29: 1 | C29: acre | D29: 0 | E29: 0 | F29: 0 | G29: 0 | H29: 0
A30: other | B30: 1 | C30: acre | D30: 0 | E30: 0 | F30: 0 | G30: 0 | H30: 0
A31: other | B31: 1 | C31: acre | D31: 0 | E31: 0 | F31: 0 | G31: 0 | H31: 0
A32: Crop Insurance | B32: 1 | C32: acre | D32: 0 | E32: 0.33 | F32: 0 | G32: 0 | H32: 0
A33: Operator Labor & Hand Labor | B33: 0 | C33: hours | D33: ='Universal Input Prices'!$B$31 -> 17.5 | E33: 0 | F33: 0 | G33: 0 | H33: 0
A34: Irrigation Labor | B34: 0 | C34: hours | D34: ='Universal Input Prices'!$B$31 -> 17.5 | E34: 0 | F34: 0 | G34: 0 | H34: 0
A35: Diesel Fuel - Tractors | B35: 0 | C35: gallons | D35: ='Universal Input Prices'!$B$32 -> 2.24 | E35: 0 | F35: 0 | G35: 0 | H35: 0
A36: Gasoline - Pickup | B36: 0 | C36: gallons | D36: ='Universal Input Prices'!$B$33 -> 2.09 | E36: 0 | F36: 0 | G36: 0 | H36: 0
A37: Irrigation Fuel | B37: 0 | C37: acin | D37: ='Universal Input Prices'!$B$34 -> 4.7 | E37: 0.33 | F37: 0 | G37: 0 | H37: 0
A38: Pumping Days | B38: 70.71
A39: Calculated GPM capacity per acre needed | B39: =B37*18.85694/B38 -> 0
A40: Repair & Maintenance
A41: Implements | B41: 0 | C41: acre | D41: 4.47 | E41: 0 | F41: =D41*B41 -> 0 | G41: 0 | H41: 0
A42: Tractors | B42: 0 | C42: acre | D42: 5.55 | E42: 0 | F42: =D42*B42 -> 0 | G42: 0 | H42: 0
A43: Irrigation-Above Ground | B43: =Other_Inches -> 0 | C43: acin | D43: 3.75 | E43: 0 | F43: =D43*B43 -> 0 | G43: 0 | H43: 0
A44: Self Propelled Equipment | B44: 0 | C44: acre | D44: 0.16 | E44: 1 | F44: =D44*B44 -> 0 | G44: 0 | H44: 0
A45: Pickup | B45: 1 | C45: acre | D45: 0 | E45: 0 | F45: =D45*B45 -> 0 | G45: 0 | H45: 0
A46: Interest-operating capital | B46: ='Universal Input Prices'!$B$35 -> 0.08 | F46: =(SUM(F15:F25,F27:F45))*$B46/2 -> 0 | G46: =(SUM(G15:G25,G27:G45))*$B46/2 -> 0 | H46: 0
A48: Total Variable Costs | F48: =SUM(F15:F46) -> 0 | G48: =SUM(G15:G46) -> 0 | H48: =SUM(H15:H46) -> 0
A49: Returns Above Variable Costs | F49: =F12-F48 -> 0 | G49: =G12-G48 -> 0 | H49: =H12-H48 -> 0
A51: Fixed Costs
A52: Implements | B52: 0 | C52: acre | D52: 7.04 | E52: 0 | F52: =D52*B52 -> 0 | G52: =F52*(1-E52) -> 0 | H52: =F52*E52 -> 0
A53: Tractors | B53: 0 | C53: acre | D53: 7.89 | E53: 0 | F53: 0 | G53: 0 | H53: 0
A54: Irrigation-Above Ground | B54: 0 | C54: acre | D54: 35.56 | E54: 0 | F54: 0 | G54: 0 | H54: 0
A55: Self Propelled Equipment | B55: 0 | C55: acre | D55: 0.24 | E55: 1 | F55: 0 | G55: 0 | H55: 0
A56: Pickup | B56: 1 | C56: acre | D56: 0 | E56: 0 | F56: 0 | G56: 0 | H56: 0
A57: Management | B57: 1 | C57: acre | D57: 0 | E57: 0 | F57: 0 | G57: 0 | H57: 0
A58: Whole Farm Insurance | B58: 1 | C58: acre | D58: 0 | E58: 0 | F58: =B58*D58 -> 0 | G58: 0 | H58: 0
A59: Land | B59: 0 | C59: acre | D59: 85 | E59: 1 | F59: =D59*B59 -> 0 | G59: =IF($H$6="Cash",D59,F59*(1-E59)) -> 0 | H59: =IF($H$6="Cash",0,F59*E59) -> 0
A60: Property Tax | B60: 1 | C60: acre | D60: 0 | E60: 1 | F60: =B60*D60 -> 0 | G60: 0 | H60: 0
A61: Total Fixed Expenses | F61: =SUM(F52:F60) -> 0 | G61: =SUM(G52:G60) -> 0 | H61: =SUM(H52:H60) -> 0
A62: Total Specified Expenses | F62: =F48+F61 -> 0 | G62: =G48+G61 -> 0 | H62: =H48+H61 -> 0
A63: Returns Above Total Specified Expenses | F63: =F12-F62 -> 0 | G63: =G12-G62 -> 0 | H63: =H12-H62 -> 0
A65: Return on Investment | F65: =IF(F62=0,"-",(F63/F62)) -> - | G65: =IF(G62=0,"-",(G63/G62)) -> - | H65: -

Sheet Dry Canola
A2: Estimated Costs and Returns per Acre
A3: Dryland Canola
A4: Projected for 2023
H5: Rental Agreement | I5: Share
A6: Item | B6: Quantity | C6: Unit | D6: Price | E6: Landlord | H6: Share | I6: Cash
E7: Share | F7: Total | G7: Tenant | H7: Landlord
A8: Income
A9: canola | B9: 11 | C9: cwt | D9: ='Universal Input Prices'!$B$5 -> 23.4 | E9: 0.33 | F9: =D9*B9 -> 257.4 | G9: =F9*(1-E9) -> 172.458 | H9: =IF(H6="Cash", D56,F9*E9) -> 84.942
A10: other income | B10: 0 | C10: $/ac. | D10: 1 | E10: 0.33 | F10: =D10*B10 -> 0 | G10: =F10*(1-E10) -> 0 | H10: =IF(H7="Cash", D59,F10*E10) -> 0
A12: Total Income | F12: =SUM(F8:F11) -> 257.4 | G12: =SUM(G8:G11) -> 172.458 | H12: =SUM(H8:H11) -> 84.942
A14: Variable Costs
A15: Seed
A16: canola seed | B16: 5 | C16: lb | D16: 6.29 | E16: 0 | F16: =D16*B16 -> 31.45 | G16: =F16*(1-E16) -> 31.45 | H16: =F16*E16 -> 0
A17: seed treatment | B17: 1 | C17: acre | D17: 7.14 | E17: 0 | F17: =D17*B17 -> 7.14 | G17: =F17*(1-E17) -> 7.14 | H17: =F17*E17 -> 0
A18: Fertilizer
A19: fert (N) - dry | B19: 35.009 | C19: lb | D19: =IF(A19="",0,VLOOKUP(A19,'Universal Input Prices'!$A$26:$B$26, 2)) -> 1.5 | E19: 0.33 | F19: =D19*B19 -> 52.5135 | G19: =F19*(1-E19) -> 35.184045 | H19: =F19*E19 -> 17.329455
B20: 0 | C20: lb | D20: =IF(A20="",0,VLOOKUP(A20,'Universal Input Prices'!$A$26:$B$30, 2)) -> 0 | E20: 0 | F20: =D20*B20 -> 0 | G20: =F20*(1-E20) -> 0 | H20: =F20*E20 -> 0
B21: 0 | C21: lb | D21: =IF(A21="",0,VLOOKUP(A21,'Universal Input Prices'!$A$26:$B$30, 2)) -> 0 | E21: 0 | F21: =D21*B21 -> 0 | G21: =F21*(1-E21) -> 0 | H21: =F21*E21 -> 0
A22: Field Operations
A23: herbicide & application | B23: 1 | C23: acre | D23: 39.82 | E23: 0.33 | F23: =D23*B23 -> 39.82 | G23: =F23*(1-E23) -> 26.6794 | H23: =F23*E23 -> 13.1406
A24: fertilizer application | B24: 1 | C24: acre | D24: 6.39 | E24: 0.33 | F24: 6.39 | G24: 4.2813 | H24: 2.1087
A25: insecticide & application | B25: 1 | C25: acre | D25: 17.03 | E25: 0.33 | F25: 17.03 | G25: 11.4101 | H25: 5.6199
A26: custom harvest & haul | B26: 1 | C26: acre | D26: 34.49 | E26: 0 | F26: 34.49 | G26: 34.49 | H26: 0
A27: custom harvest & haul | B27: =B9 -> 11 | C27: cwt | D27: 0.62 | E27: 0 | F27: 6.82 | G27: 6.82 | H27: 0
A28: hoeing | B28: 0 | C28: acre | D28: 0 | E28: 0 | F28: 0 | G28: 0 | H28: 0
A29: scouting | B29: 1 | C29: acre | D29: 0 | E29: 0 | F29: 0 | G29: 0 | H29: 0
A30: other | B30: 1 | C30: acre | D30: 0 | E30: 0 | F30: 0 | G30: 0 | H30: 0
A31: other | B31: 1 | C31: acre | D31: 0 | E31: 0 | F31: 0 | G31: 0 | H31: 0
A32: other | B32: 1 | C32: acre | D32: 0 | E32: 0 | F32: 0 | G32: 0 | H32: 0
A33: Crop Insurance | B33: 1 | C33: acre | D33: 0 | E33: 0.33 | F33: 0 | G33: 0 | H33: 0
A34: Operator Labor & Hand Labor | B34: 0.57 | C34: hours | D34: ='Universal Input Prices'!$B$31 -> 17.5 | E34: 0 | F34: 9.975 | G34: 9.975 | H34: 0
A35: Diesel Fuel - Tractors | B35: 1.73 | C35: gallons | D35: ='Universal Input Prices'!$B$32 -> 2.24 | E35: 0 | F35: 3.8752 | G35: 3.8752 | H35: 0
A36: Gasoline - Pickup | B36: 2.034 | C36: gallons | D36: ='Universal Input Prices'!$B$33 -> 2.09 | E36: 0 | F36: 4.25106 | G36: 4.25106 | H36: 0
A37: Repair & Maintenance
A38: Implements | B38: 1 | C38: acre | D38: 4.79 | E38: 0 | F38: =D38*B38 -> 4.79 | G38: =F38*(1-E38) -> 4.79 | H38: =F38*E38 -> 0
A39: Tractors | B39: 1 | C39: acre | D39: 3.75 | E39: 0 | F39: =D39*B39 -> 3.75 | G39: =F39*(1-E39) -> 3.75 | H39: =F39*E39 -> 0
A40: Other Fixed Expenses | B40: 1 | C40: acre | D40: 0 | E40: 0 | F40: 0 | G40: =F40*(1-E40) -> 0 | H40: =F40*E40 -> 0
A41: Self Propelled Equipment | B41: 1 | C41: acre | D41: 0 | E41: 1 | F41: =D41*B41 -> 0 | G41: =F41*(1-E41) -> 0 | H41: =F41*E41 -> 0
A42: Pickup | B42: 1 | C42: acre | D42: 2.49 | E42: 0 | F42: =D42*B42 -> 2.49 | G42: =F42*(1-E42) -> 2.49 | H42: =F42*E42 -> 0
A43: Interest-operating capital | B43: ='Universal Input Prices'!$B$35 -> 0.08 | F43: =(SUM(F16:F25,F28:F42))*$B43/2 -> 7.3389904 | G43: =(SUM(G16:G25,G28:G42))*$B43/2 -> 5.8110442 | H43: =(SUM(H16:H25,H28:H42))*$B43/2 -> 1.5279462
A45: Total Variable Costs | F45: =SUM(F15:F43) -> 232.1237504 | G45: =SUM(G15:G43) -> 192.3971492 | H45: =SUM(H15:H43) -> 39.7266012
A46: Returns Above Variable Costs | F46: =F12-F45 -> 25.2762496 | G46: =G12-G45 -> -19.9391492 | H46: =H12-H45 -> 45.2153988
A48: Fixed Costs
A49: Implements | B49: 1 | C49: acre | D49: 8.38 | E49: 0 | F49: =D49*B49 -> 8.38 | G49: =F49*(1-E49) -> 8.38 | H49: =F49*E49 -> 0
A50: Tractors | B50: 1 | C50: acre | D50: 6.2 | E50: 0 | F50: 6.2 | G50: 6.2 | H50: 0
A51: Other Fixed Expenses | B51: 1 | C51: acre | D51: 0 | E51: 1 | F51: 0 | G51: 0 | H51: 0
A52: Self Propelled Equipment | B52: 1 | C52: acre | D52: 0 | E52: 1 | F52: 0 | G52: 0 | H52: 0
A53: Pickup | B53: 1 | C53: acre | D53: 4.05 | E53: 0 | F53: 4.05 | G53: 4.05 | H53: 0
A54: Management | B54: 1 | C54: acre | D54: 0 | E54: 0 | F54: 0 | G54: 0 | H54: 0
A55: Whole Farm Insurance | B55: 1 | C55: acre | D55: 0 | E55: 0 | F55: =B55*D55 -> 0 | G55: 0 | H55: 0
A56: Land | B56: 1 | C56: acre | D56: 32.45 | E56: 1 | F56: =D56*B56 -> 32.45 | G56: =IF($H$6="Cash",D56,F56*(1-E56)) -> 0 | H56: =IF($H$6="Cash",0,F56*E56) -> 32.45
A57: Property Tax | B57: 1 | C57: acre | D57: 0 | E57: 1 | F57: =B57*D57 -> 0 | G57: 0 | H57: 0
A58: Total Fixed Expenses | F58: =SUM(F49:F57) -> 51.08 | G58: =SUM(G49:G57) -> 18.63 | H58: =SUM(H49:H57) -> 32.45
A59: Total Specified Expenses | F59: =F45+F58 -> 283.2037504 | G59: =G45+G58 -> 211.0271492 | H59: =H45+H58 -> 72.1766012
A60: Returns Above Total Specified Expenses | F60: =F12-F59 -> -25.8037504 | G60: =G12-G59 -> -38.5691492 | H60: =H12-H59 -> 12.7653988
A62: Return on Investment | F62: =(F60/F59) -> -0.09111373124 | G62: =(G60/G59) -> -0.1827686596 | H62: 0.176863396

Sheet Dry Cotton
A2: Estimated Costs and Returns per Acre
A3: Dryland Cotton
A4: Projected for 2023
H5: Rental Agreement | I5: Share
A6: Item | B6: Quantity | C6: Unit | D6: Price | E6: Landlord | H6: Share | I6: Cash
E7: Share | F7: Total | G7: Tenant | H7: Landlord
A8: Income
A9: cotton lint | B9: 400 | C9: lb | D9: ='Universal Input Prices'!$B$8 -> 0.8 | E9: 0.33 | F9: =D9*B9 -> 320 | G9: =F9*(1-E9) -> 214.4 | H9: =IF(H6="Cash", D60,F9*E9) -> 105.6
A10: cotton seed | B10: =B9/500*'Universal Input Prices'!B39/2000 -> 0.3 | C10: tons | D10: ='Universal Input Prices'!$B$9 -> 300 | E10: 0.33 | F10: =D10*B10 -> 90 | G10: =F10*(1-E10) -> 60.3 | H10: =IF(H6="Cash", 0,F10*E10) -> 29.7
A11: Expected Turnout | B11: 0.2222
A12: other income | B12: 0 | C12: $/ac. | D12: 1 | E12: 0 | F12: =D12*B12 -> 0 | G12: =F12*(1-E12) -> 0 | H12: =IF(H9="Cash", D61,F12*E12) -> 0
A13: Total Income | F13: =SUM(F9:F12) -> 410 | G13: =SUM(G9:G12) -> 274.7 | H13: =SUM(H9:H12) -> 135.3
A15: Variable Costs
A16: Seed
A17: cotton seed | B17: 0.18 | C17: bag | D17: 333.94 | E17: 0 | F17: =D17*B17 -> 60.1092 | G17: =F17*(1-E17) -> 60.1092 | H17: =F17*E17 -> 0
A18: Boll Weevil Assess.-Dry | B18: 1 | C18: acre | D18: 1.06 | E18: 0.33 | F18: =D18*B18 -> 1.06 | G18: =F18*(1-E18) -> 0.7102 | H18: =F18*E18 -> 0.3498
A19: Fertilizer
A20: fert (P) - dry | B20: 20.01 | C20: lb | D20: =IF(A20="",0,VLOOKUP(A20,'Universal Input Prices'!$A$26:$B$30, 2)) -> 1.290384615 | E20: 0.33 | F20: =D20*B20 -> 25.82059615 | G20: =F20*(1-E20) -> 17.29979942 | H20: =F20*E20 -> 8.520796731
A21: fert (N) - dry | B21: 30 | C21: lb | D21: =IF(A21="",0,VLOOKUP(A21,'Universal Input Prices'!$A$26:$B$30, 2)) -> 1.5 | E21: 0.33 | F21: =D21*B21 -> 45 | G21: =F21*(1-E21) -> 30.15 | H21: =F21*E21 -> 14.85
B22: 0 | C22: lb | D22: =IF(A22="",0,VLOOKUP(A22,'Universal Input Prices'!$A$26:$B$30, 2)) -> 0 | E22: 0 | F22: =D22*B22 -> 0 | G22: =F22*(1-E22) -> 0 | H22: =F22*E22 -> 0
A23: Field Operations
A24: preplant herbicide & application | B24: 1 | C24: acre | D24: 65.34 | E24: 0.33 | F24: =D24*B24 -> 65.34 | G24: =F24*(1-E24) -> 43.7778 | H24: =F24*E24 -> 21.5622
A25: post emergence herbicide & application | B25: 1 | C25: acre | D25: 39.82 | E25: 0.33 | F25: 39.82 | G25: 26.6794 | H25: 13.1406
A26: clean-up herbicide & application | B26: 1 | C26: acre | D26: 0 | E26: 0.33 | F26: 0 | G26: 0 | H26: 0
A27: fertilizer application | B27: 1 | C27: acre | D27: 6.39 | E27: 0.33 | F27: 6.39 | G27: 4.2813 | H27: 2.1087
A28: insecticide & application | B28: 0.5 | C28: acre | D28: 17.12 | E28: 0.33 | F28: 8.56 | G28: 5.7352 | H28: 2.8248
A29: harvest aids | B29: 0.5 | C29: acre | D29: 44.8 | E29: 0.33 | F29: 22.4 | G29: 15.008 | H29: 7.392
A30: strip (field cleaner) | B30: =B9/100 -> 4 | C30: cwt. | D30: ='Universal Input Prices'!$B$37 -> 16.01 | E30: 0 | F30: 64.04 | G30: 64.04 | H30: 0
A31: ginning | B31: =B9/B11/100 -> 18.00180018 | C31: cwt. | D31: ='Universal Input Prices'!$B$38 -> 3.75 | E31: 0.33 | F31: 67.50675068 | G31: 45.22952295 | H31: 22.27722772
A32: hoeing | B32: 1 | C32: acre | D32: 0 | E32: 0 | F32: 0 | G32: 0 | H32: 0
A33: scouting | B33: 1 | C33: acre | D33: 0 | E33: 0 | F33: =D33*B33 -> 0 | G33: =F33*(1-E33) -> 0 | H33: =F33*E33 -> 0
A34: other | B34: 1 | C34: acre | D34: 0 | E34: 0 | F34: 0 | G34: 0 | H34: 0
A35: other | B35: 1 | C35: acre | D35: 0 | E35: 0 | F35: 0 | G35: 0 | H35: 0
A36: other | B36: 1 | C36: acre | D36: 0 | E36: 0 | F36: 0 | G36: 0 | H36: 0
A37: Crop Insurance | B37: 1 | C37: acre | D37: 25 | E37: 0.33 | F37: 25 | G37: 16.75 | H37: 8.25
A38: Operator Labor & Hand Labor | B38: 0.64 | C38: hours | D38: ='Universal Input Prices'!$B$31 -> 17.5 | E38: 0 | F38: 11.2 | G38: 11.2 | H38: 0
A39: Diesel Fuel - Tractors | B39: 1.74 | C39: gallons | D39: ='Universal Input Prices'!$B$32 -> 2.24 | E39: 0 | F39: 3.8976 | G39: 3.8976 | H39: 0
A40: Gasoline - Pickup | B40: 2.034 | C40: gallons | D40: ='Universal Input Prices'!$B$33 -> 2.09 | E40: 0 | F40: 4.25106 | G40: 4.25106 | H40: 0
A41: Repair & Maintenance
A42: Implements | B42: 1 | C42: acre | D42: 5.62 | E42: 0 | F42: =D42*B42 -> 5.62 | G42: =F42*(1-E42) -> 5.62 | H42: =F42*E42 -> 0
A43: Tractors | B43: 1 | C43: acre | D43: 3.29 | E43: 0 | F43: =D43*B43 -> 3.29 | G43: =F43*(1-E43) -> 3.29 | H43: =F43*E43 -> 0
A44: Other Fixed Expenses | B44: 1 | C44: acre | D44: 0 | E44: 0 | F44: =D44*B44 -> 0 | G44: =F44*(1-E44) -> 0 | H44: =F44*E44 -> 0
A45: Self Propelled Equipment | B45: 1 | C45: acre | D45: 0 | E45: 1 | F45: =D45*B45 -> 0 | G45: =F45*(1-E45) -> 0 | H45: =F45*E45 -> 0
A46: Pickup | B46: 1 | C46: acre | D46: 2.49 | E46: 0 | F46: =D46*B46 -> 2.49 | G46: =F46*(1-E46) -> 2.49 | H46: =F46*E46 -> 0
A47: Interest-operating capital | B47: ='Universal Input Prices'!$B$35 -> 0.08 | F47: =(SUM(F17:F28,F32:F46))*$B47/2 -> 12.31393825 | G47: =(SUM(G17:G28,G32:G46))*$B47/2 -> 9.449662377 | H47: =(SUM(H17:H28,H32:H46))*$B47/2 -> 2.864275869
A49: Total Variable Costs | F49: =SUM(F17:F47) -> 474.1091451 | G49: =SUM(G17:G47) -> 369.9687448 | H49: =SUM(H17:H47) -> 104.1404003
A50: Returns Above Variable Costs | F50: =F13-F49 -> -64.10914508 | G50: =G13-G49 -> -95.26874475 | H50: =H13-H49 -> 31.15959968
A52: Fixed Costs
A53: Implements | B53: 1 | C53: acre | D53: 9.27 | E53: 0 | F53: =D53*B53 -> 9.27 | G53: =F53*(1-E53) -> 9.27 | H53: =F53*E53 -> 0
A54: Tractors | B54: 1 | C54: acre | D54: 5.27 | E54: 0 | F54: 5.27 | G54: 5.27 | H54: 0
A55: Other Fixed Expenses | B55: 1 | C55: acre | D55: 0 | E55: 1 | F55: 0 | G55: 0 | H55: 0
A56: Self Propelled Equipment | B56: 1 | C56: acre | D56: 0 | E56: 1 | F56: 0 | G56: 0 | H56: 0
A57: Pickup | B57: 1 | C57: acre | D57: 4.05 | E57: 0 | F57: 4.05 | G57: 4.05 | H57: 0
A58: Management | B58: 1 | C58: acre | D58: 0 | E58: 0 | F58: 0 | G58: 0 | H58: 0
A59: Whole Farm Insurance | B59: 1 | C59: acre | D59: 0 | E59: 0 | F59: 0 | G59: 0 | H59: 0
A60: Land | B60: 1 | C60: acre | D60: 32.19 | E60: 1 | F60: 32.19 | G60: =IF($H$6="Cash",D60,F60*(1-E60)) -> 0 | H60: =IF($H$6="Cash",0,F60*E60) -> 32.19
A61: Property Tax | B61: 1 | C61: acre | D61: 0 | E61: 1 | F61: 0 | G61: 0 | H61: 0
A62: Total Fixed Expenses | F62: =SUM(F53:F61) -> 50.78 | G62: =SUM(G53:G61) -> 18.59 | H62: =SUM(H53:H61) -> 32.19
A63: Total Specified Expenses | F63: =F49+F62 -> 524.8891451 | G63: =G49+G62 -> 388.5587448 | H63: =H49+H62 -> 136.3304003
A64: Returns Above Total Specified Expenses | F64: =F13-F63 -> -114.8891451 | G64: =G13-G63 -> -113.8587448 | H64: =H13-H63 -> -1.030400323
A66: Return on Investment | F66: =(F64/F63) -> -0.2188826844 | G66: =(G64/G63) -> -0.2930283935 | H66: -0.007558111179

Sheet Dry Sorghum
A2: Estimated Costs and Returns per Acre
A3: Dryland Sorghum
A4: Projected for 2023
H5: Rental Agreement | I5: Share
A6: Item | B6: Quantity | C6: Unit | D6: Price | E6: Landlord | H6: Share | I6: Cash
E7: Share | F7: Total | G7: Tenant | H7: Landlord
A8: Income
A9: sorghum grain | B9: 25 | C9: cwt | D9: ='Universal Input Prices'!$B$11 -> 10.38 | E9: 0.33 | F9: =B9*D9 -> 259.5 | G9: =F9*(1-E9) -> 173.865 | H9: =IF(H6="Cash", D54,F9*E9) -> 85.635
A10: other income | B10: 0 | C10: $/ac. | D10: 1 | E10: 0.33 | F10: =D10*B10 -> 0 | G10: =F10*(1-E10) -> 0 | H10: =IF(H7="Cash", D58,F10*E10) -> 0
A12: Total Income | F12: =SUM(F9:F11) -> 259.5 | G12: =SUM(G9:G11) -> 173.865 | H12: =SUM(H9:H11) -> 85.635
A14: Variable Costs
A15: Seed | B15: 2.25 | C15: lb | D15: 2.12 | E15: 0 | F15: =D15*B15 -> 4.77 | G15: =F15*(1-E15) -> 4.77 | H15: =F15*E15 -> 0
A16: Fertilizer
A17: fert (N) - NH3 | B17: 39.97 | C17: lb | D17: =IF(A17="",0,VLOOKUP(A17,'Universal Input Prices'!$A$26:$B$30, 2)) -> 0.6201219512 | E17: 0.33 | F17: =D17*B17 -> 24.78627439 | G17: =F17*(1-E17) -> 16.60680384 | H17: =F17*E17 -> 8.179470549
B18: 0 | C18: lb | D18: =IF(A18="",0,VLOOKUP(A18,'Universal Input Prices'!$A$26:$B$30, 2)) -> 0 | E18: 0 | F18: =D18*B18 -> 0 | G18: =F18*(1-E18) -> 0 | H18: =F18*E18 -> 0
B19: 0 | C19: lb | D19: =IF(A19="",0,VLOOKUP(A19,'Universal Input Prices'!$A$26:$B$30, 2)) -> 0 | E19: 0 | F19: =D19*B19 -> 0 | G19: =F19*(1-E19) -> 0 | H19: =F19*E19 -> 0
A20: Field Operations
A21: herbicide & application | B21: 1 | C21: acre | D21: 54.89 | E21: 0.33 | F21: =D21*B21 -> 54.89 | G21: =F21*(1-E21) -> 36.7763 | H21: =F21*E21 -> 18.1137
A22: fertilizer application | B22: 1 | C22: acre | D22: 21.99 | E22: 0.33 | F22: 21.99 | G22: 14.7333 | H22: 7.2567
A23: insecticide headworm | B23: 0.67 | C23: acre | D23: 29.84 | E23: 0.33 | F23: 19.9928 | G23: 13.395176 | H23: 6.597624
A24: custom harvest & haul | B24: 1 | C24: acre | D24: 34.49 | E24: 0 | F24: 34.49 | G24: 34.49 | H24: 0
A25: custom harvest & haul | B25: =B9 -> 25 | C25: cwt | D25: 0.35 | E25: 0 | F25: =D25*B25 -> 8.75 | G25: 8.75 | H25: 0
A26: hoeing | B26: 1 | C26: acre | D26: 0 | E26: 0 | F26: 0 | G26: 0 | H26: 0
A27: scouting | B27: 1 | C27: acre | D27: 0 | E27: 0 | F27: =D27*B27 -> 0 | G27: =F27*(1-E27) -> 0 | H27: =F27*E27 -> 0
A28: insecticide sugar cane aphid | B28: 1 | C28: acre | D28: 63.96 | E28: 0.33 | F28: 63.96 | G28: 42.8532 | H28: 21.1068
A29: other | B29: 1 | C29: acre | D29: 0 | E29: 0 | F29: 0 | G29: 0 | H29: 0
A30: other | B30: 1 | C30: acre | D30: 0 | E30: 0 | F30: 0 | G30: 0 | H30: 0
A31: Crop Insurance | B31: 1 | C31: acre | D31: 17 | E31: 0.33 | F31: 17 | G31: 11.39 | H31: 5.61
A32: Operator Labor & Hand Labor | B32: 0.275 | C32: hours | D32: ='Universal Input Prices'!$B$31 -> 17.5 | E32: 0 | F32: 4.8125 | G32: 4.8125 | H32: 0
A33: Diesel Fuel - Tractors | B33: 0.88 | C33: gallons | D33: ='Universal Input Prices'!$B$32 -> 2.24 | E33: 0 | F33: 1.9712 | G33: 1.9712 | H33: 0
A34: Gasoline - Pickup | B34: 2.032 | C34: gallons | D34: ='Universal Input Prices'!$B$33 -> 2.09 | E34: 0 | F34: 4.24688 | G34: 4.24688 | H34: 0
A35: Repair & Maintenance
A36: Implements | B36: 1 | C36: acre | D36: 3.94 | E36: 0 | F36: =D36*B36 -> 3.94 | G36: =F36*(1-E36) -> 3.94 | H36: =F36*E36 -> 0
A37: Tractors | B37: 1 | C37: acre | D37: 2.06 | E37: 0 | F37: =D37*B37 -> 2.06 | G37: =F37*(1-E37) -> 2.06 | H37: =F37*E37 -> 0
A38: Other Fixed Expenses | B38: 1 | C38: acre | D38: 0 | E38: 0 | F38: =D38*B38 -> 0 | G38: =F38*(1-E38) -> 0 | H38: =F38*E38 -> 0
A39: Self Propelled Equipment | B39: 1 | C39: acre | D39: 0 | E39: 1 | F39: =D39*B39 -> 0 | G39: =F39*(1-E39) -> 0 | H39: =F39*E39 -> 0
A40: Pickup | B40: 1 | C40: acre | D40: 2.49 | E40: 0 | F40: =D40*B40 -> 2.49 | G40: =F40*(1-E40) -> 2.49 | H40: =F40*E40 -> 0
A41: Interest-operating capital | B41: ='Universal Input Prices'!$B$35 -> 0.08 | F41: =(SUM(F15:F23,F26:F40))*$B41/2 -> 9.076386176 | G41: =(SUM(G15:G23,G26:G40))*$B41/2 -> 6.401814394 | H41: =(SUM(H15:H23,H26:H40))*$B41/2 -> 2.674571782
A43: Total Variable Costs | F43: =SUM(F15:F41) -> 279.2260406 | G43: =SUM(G15:G41) -> 209.6871742 | H43: =SUM(H15:H41) -> 69.53886633
A44: Returns Above Variable Costs | F44: =F12-F43 -> -19.72604057 | G44: =G12-G43 -> -35.82217424 | H44: =H12-H43 -> 16.09613367
A46: Fixed Costs
A47: Implements | B47: 1 | C47: acre | D47: 6.9 | E47: 0 | F47: =D47*B47 -> 6.9 | G47: =F47*(1-E47) -> 6.9 | H47: =F47*E47 -> 0
A48: Tractors | B48: 1 | C48: acre | D48: 3.39 | E48: 0 | F48: 3.39 | G48: 3.39 | H48: 0
A49: Other Fixed Expenses | B49: 1 | C49: acre | D49: 0 | E49: 1 | F49: 0 | G49: 0 | H49: 0
A50: Self Propelled Equipment | B50: 1 | C50: acre | D50: 0 | E50: 1 | F50: 0 | G50: 0 | H50: 0
A51: Pickup | B51: 1 | C51: acre | D51: 4.05 | E51: 0 | F51: 4.05 | G51: 4.05 | H51: 0
A52: Management | B52: 1 | C52: acre | D52: 0 | E52: 0 | F52: 0 | G52: 0 | H52: 0
A53: Whole Farm Insurance | B53: 1 | C53: acre | D53: 0 | E53: 0 | F53: =B53*D53 -> 0 | G53: 0 | H53: 0
A54: Land | B54: 1 | C54: acre | D54: 32.45 | E54: 1 | F54: =D54*B54 -> 32.45 | G54: =IF($H$6="Cash",D54,F54*(1-E54)) -> 0 | H54: =IF($H$6="Cash",0,F54*E54) -> 32.45
A55: Property Tax | B55: 1 | C55: acre | D55: 0 | E55: 1 | F55: =B55*D55 -> 0 | G55: 0 | H55: 0
A56: Total Fixed Expenses | F56: =SUM(F47:F55) -> 46.79 | G56: =SUM(G47:G55) -> 14.34 | H56: =SUM(H47:H55) -> 32.45
A57: Total Specified Expenses | F57: =F43+F56 -> 326.0160406 | G57: =G43+G56 -> 224.0271742 | H57: =H43+H56 -> 101.9888663
A58: Returns Above Total Specified Expenses | F58: =F12-F57 -> -66.51604057 | G58: =G12-G57 -> -50.16217424 | H58: =H12-H57 -> -16.35386633
A60: Return on Investment | F60: =(F58/F57) -> -0.2040268953 | G60: =(G58/G57) -> -0.2239111144 | H60: -0.1603495256

Sheet Dry Sorghum Sudangrass
A2: Estimated Costs and Returns per Acre
A3: Dryland Sorghum Sudangrass
A4: Projected for 2023
H5: Rental Agreement | I5: Share
A6: Item | B6: Quantity | C6: Unit | D6: Price | E6: Landlord | H6: Share | I6: Cash
E7: Share | F7: Total | G7: Tenant | H7: Landlord
A8: Income
A9: grazing | B9: 336 | C9: lb | D9: =Grazing_Price -> 0.6 | E9: 0.33 | F9: =D9*B9 -> 201.6 | G9: =F9*(1-E9) -> 135.072 | H9: =IF(H6="Cash", 0,F9*E9) -> 66.528
A10: other income | B10: 0 | C10: $/ac. | D10: 1 | E10: 0.33 | F10: =D10*B10 -> 0 | G10: =F10*(1-E10) -> 0 | H10: =IF(H7="Cash", D58,F10*E10) -> 0
A12: Total Income | F12: =SUM(F9:F11) -> 201.6 | G12: =SUM(G9:G11) -> 135.072 | H12: =SUM(H9:H11) -> 66.528
A14: Variable Costs
A15: Seed | B15: 15 | C15: bu | D15: 0.9 | E15: 0 | F15: =D15*B15 -> 13.5 | G15: =F15*(1-E15) -> 13.5 | H15: =F15*E15 -> 0
A16: Fertilizer
A17: fert (N) - NH3 | B17: 49.95 | C17: lb | D17: =IF(A17="",0,VLOOKUP(A17,'Universal Input Prices'!$A$26:$B$30, 2)) -> 0.6201219512 | E17: 0.33 | F17: =D17*B17 -> 30.97509146 | G17: =F17*(1-E17) -> 20.75331128 | H17: =F17*E17 -> 10.22178018
B18: 0 | C18: lb | D18: =IF(A18="",0,VLOOKUP(A18,'Universal Input Prices'!$A$26:$B$30, 2)) -> 0 | E18: 0 | F18: =D18*B18 -> 0 | G18: =F18*(1-E18) -> 0 | H18: =F18*E18 -> 0
B19: 0 | C19: lb | D19: =IF(A19="",0,VLOOKUP(A19,'Universal Input Prices'!$A$26:$B$30, 2)) -> 0 | E19: 0 | F19: =D19*B19 -> 0 | G19: =F19*(1-E19) -> 0 | H19: =F19*E19 -> 0
A20: Field Operations
A21: herbicide & application | B21: 1 | C21: lb | D21: 33.08 | E21: 0.33 | F21: =D21*B21 -> 33.08 | G21: =F21*(1-E21) -> 22.1636 | H21: =F21*E21 -> 10.9164
A22: fertilizer application | B22: 1 | C22: acre | D22: 21.99 | E22: 0.33 | F22: 21.99 | G22: 14.7333 | H22: 7.2567
A23: insecticide & application | B23: 1 | C23: acre | D23: 0 | E23: 0.33 | F23: 0 | G23: 0 | H23: 0
A24: custom harvest and haul | B24: 0 | C24: bu | D24: 0 | E24: 0 | F24: 0 | G24: 0 | H24: 0
A25: hoeing | B25: 0 | C25: acre | D25: 0 | E25: 0 | F25: 0 | G25: 0 | H25: 0
A26: scouting | B26: 1 | C26: acre | D26: 0 | E26: 0 | F26: =D26*B26 -> 0 | G26: =F26*(1-E26) -> 0 | H26: =F26*E26 -> 0
A27: other | B27: 1 | C27: acre | D27: 0 | E27: 0 | F27: 0 | G27: 0 | H27: 0
A28: other | B28: 1 | C28: acre | D28: 0 | E28: 0 | F28: 0 | G28: 0 | H28: 0
A29: other | B29: 1 | C29: acre | D29: 0 | E29: 0 | F29: 0 | G29: 0 | H29: 0
A30: Crop Insurance | B30: 1 | C30: acre | D30: 19 | E30: 0.33 | F30: 19 | G30: 12.73 | H30: 6.27
A31: Operator Labor & Hand Labor | B31: 0.55 | C31: hours | D31: ='Universal Input Prices'!$B$31 -> 17.5 | E31: 0 | F31: 9.625 | G31: 9.625 | H31: 0
A32: Diesel Fuel - Tractors | B32: 1.5 | C32: gallons | D32: ='Universal Input Prices'!$B$32 -> 2.24 | E32: 0 | F32: 3.36 | G32: 3.36 | H32: 0
A33: Gasoline - Pickup | B33: 2.034 | C33: gallons | D33: ='Universal Input Prices'!$B$33 -> 2.09 | E33: 0 | F33: 4.25106 | G33: 4.25106 | H33: 0
A34: Repair & Maintenance
A35: Implements | B35: 1 | C35: acre | D35: 3.07 | E35: 0 | F35: =D35*B35 -> 3.07 | G35: 3.07 | H35: 0
A36: Tractors | B36: 1 | C36: acre | D36: 2.74 | E36: 0 | F36: =D36*B36 -> 2.74 | G36: 2.74 | H36: 0
A37: Other Fixed Expenses | B37: 15 | C37: acre | D37: 0 | E37: 0 | F37: =D37*B37 -> 0 | G37: 0 | H37: 0
A38: Self Propelled Equipment | B38: 1 | C38: acre | D38: 0 | E38: 1 | F38: =D38*B38 -> 0 | G38: 0 | H38: 0
A39: Pickup | B39: 1 | C39: acre | D39: 2.49 | E39: 0 | F39: =D39*B39 -> 2.49 | G39: 2.49 | H39: 0
A40: Interest-operating capital | B40: ='Universal Input Prices'!$B$35 -> 0.08 | F40: =(SUM(F15:F23,F25:F39))*$B40/2 -> 5.763246059 | G40: =(SUM(G15:G23,G25:G39))*$B40/2 -> 4.376650851 | H40: =(SUM(H15:H23,H25:H39))*$B40/2 -> 1.386595207
A42: Total Variable Costs | F42: =SUM(F15:F40) -> 149.8443975 | G42: =SUM(G15:G40) -> 113.7929221 | H42: =SUM(H15:H40) -> 36.05147539
A43: Returns Above Variable Costs | F43: =F12-F42 -> 51.75560248 | G43: =G12-G42 -> 21.27907787 | H43: =H12-H42 -> 30.47652461
A45: Fixed Costs
A46: Implements | B46: 1 | C46: acre | D46: 5.22 | E46: 0 | F46: =D46*B46 -> 5.22 | G46: =F46*(1-E46) -> 5.22 | H46: =F46*E46 -> 0
A47: Tractors | B47: 1 | C47: acre | D47: 4.51 | E47: 0 | F47: 4.51 | G47: 4.51 | H47: 0
A48: Other Fixed Expenses | B48: 1 | C48: acre | D48: 0 | E48: 1 | F48: 0 | G48: 0 | H48: 0
A49: Self Propelled Equipment | B49: 1 | C49: acre | D49: 0 | E49: 1 | F49: 0 | G49: 0 | H49: 0
A50: Pickup | B50: 1 | C50: acre | D50: 4.05 | E50: 0 | F50: 4.05 | G50: 4.05 | H50: 0
A51: Management | B51: 1 | C51: acre | D51: 0 | E51: 0 | F51: 0 | G51: 0 | H51: 0
A52: Whole Farm Insurance | B52: 1 | C52: acre | D52: 0 | E52: 0 | F52: =B52*D52 -> 0 | G52: 0 | H52: 0
A53: Land | B53: 1 | C53: acre | D53: 32.45 | E53: 1 | F53: =D53*B53 -> 32.45 | G53: =IF($H$6="Cash",D53,F53*(1-E53)) -> 0 | H53: =IF($H$6="Cash",0,F53*E53) -> 32.45
A54: Property Tax | B54: 1 | C54: acre | D54: 0 | E54: 1 | F54: =B54*D54 -> 0 | G54: 0 | H54: 0
A55: Total Fixed Expenses | F55: =SUM(F46:F54) -> 46.23 | G55: =SUM(G46:G54) -> 13.78 | H55: =SUM(H46:H54) -> 32.45
A56: Total Specified Expenses | F56: =F42+F55 -> 196.0743975 | G56: =G42+G55 -> 127.5729221 | H56: =H42+H55 -> 68.50147539
A57: Returns Above Total Specified Expenses | F57: =F12-F56 -> 5.525602478 | G57: =G12-G56 -> 7.499077868 | H57: =H12-H56 -> -1.97347539
A59: Return on Investment | F59: =(F57/F56) -> 0.0281811524 | G59: =(G57/G56) -> 0.05878267694 | H59: -0.0288092392

Sheet Dry Sunflowers-Oilseed
A2: Estimated Costs and Returns per Acre
A3: Dryland Sunflowers-Oilseed
A4: Projected for 2023
H5: Rental Agreement | I5: Share
A6: Item | B6: Quantity | C6: Unit | D6: Price | E6: Landlord | H6: Share | I6: Cash
E7: Share | F7: Total | G7: Tenant | H7: Landlord
A8: Income
A9: oilseed sunflowers | B9: 10 | C9: cwt | D9: ='Universal Input Prices'!$B$16 -> 26.75 | E9: 0.33 | F9: =D9*B9 -> 267.5 | G9: =F9*(1-E9) -> 179.225 | H9: =IF(H6="Cash", D55,F9*E9) -> 88.275
A10: other income | B10: 0 | C10: $/ac. | D10: 1 | E10: 0.33 | F10: =D10*B10 -> 0 | G10: =F10*(1-E10) -> 0 | H10: =IF(H7="Cash", D58,F10*E10) -> 0
A12: Total Income | F12: =SUM(F8:F11) -> 267.5 | G12: =SUM(G8:G11) -> 179.225 | H12: =SUM(H8:H11) -> 88.275
A14: Variable Costs
A15: Seed | B15: 1 | C15: acre | D15: 10.49 | E15: 0 | F15: =D15*B15 -> 10.49 | G15: =F15*(1-E15) -> 10.49 | H15: =F15*E15 -> 0
A16: Fertilizer
A17: fert (N) - liquid | B17: 40.01 | C17: lb | D17: =IF(A17="",0,VLOOKUP(A17,'Universal Input Prices'!$A$26:$B$27, 2)) -> 2.690625 | E17: 0.33 | F17: =D17*B17 -> 107.6519062 | G17: =F17*(1-E17) -> 72.12677719 | H17: =F17*E17 -> 35.52512906
B18: 0 | C18: lb | D18: =IF(A18="",0,VLOOKUP(A18,'Universal Input Prices'!$A$26:$B$30, 2)) -> 0 | E18: 0 | F18: =D18*B18 -> 0 | G18: =F18*(1-E18) -> 0 | H18: =F18*E18 -> 0
B19: 0 | C19: lb | D19: =IF(A19="",0,VLOOKUP(A19,'Universal Input Prices'!$A$26:$B$30, 2)) -> 0 | E19: 0 | F19: =D19*B19 -> 0 | G19: =F19*(1-E19) -> 0 | H19: =F19*E19 -> 0
A20: Field Operations
A21: herbicide (glyphosphate) | B21: 3 | C21: acre | D21: 27.5 | E21: 0.33 | F21: =D21*B21 -> 82.5 | G21: =F21*(1-E21) -> 55.275 | H21: =F21*E21 -> 27.225
A22: herbicide (2-4D/Prowl H2O) | B22: 1 | C22: acre | D22: 47.15 | E22: 0.33 | F22: =D22 -> 47.15 | G22: =F22*(1-E22) -> 31.5905 | H22: =F22*E22 -> 15.5595
A23: seed insecticide | B23: 1 | C23: acre | D23: 11.2 | E23: 0.33 | F23: =D23*B23 -> 11.2 | G23: 7.504 | H23: 3.696
A24: custom harvest | B24: 1 | C24: acre | D24: 34.49 | E24: 0 | F24: 34.49 | G24: 34.49 | H24: 0
A25: custom haul | B25: =B9 -> 10 | C25: cwt | D25: 0.62 | E25: 0 | F25: 6.2 | G25: 6.2 | H25: 0
A26: insecticide (ammo) | B26: 1 | C26: acre | D26: 5.12 | E26: 0 | F26: =D26*B26 -> 5.12 | G26: =F26*(1-E26) -> 5.12 | H26: =F26*E26 -> 0
A27: pesticide application | B27: 1 | C27: acre | D27: 6.83 | E27: 0 | F27: =D27*B27 -> 6.83 | G27: =F27*(1-E27) -> 6.83 | H27: =F27*E27 -> 0
A28: herbicide application | B28: 3 | C28: acre | D28: 6.83 | E28: 0 | F28: =D28*B28 -> 20.49 | G28: =F28*(1-E28) -> 20.49 | H28: =F28*E28 -> 0
A29: other | B29: 1 | C29: acre | D29: 0 | E29: 0 | F29: 0 | G29: 0 | H29: 0
A30: other | B30: 1 | C30: acre | D30: 0 | E30: 0 | F30: 0 | G30: 0 | H30: 0
A31: other | B31: 1 | C31: acre | D31: 0 | E31: 0 | F31: 0 | G31: 0 | H31: 0
A32: Crop Insurance | B32: 1 | C32: acre | D32: 10 | E32: 0.33 | F32: 10 | G32: 6.7 | H32: 3.3
A33: Operator Labor & Hand Labor | B33: 0.177 | C33: hours | D33: ='Universal Input Prices'!$B$31 -> 17.5 | E33: 0 | F33: 3.0975 | G33: 3.0975 | H33: 0
A34: Diesel Fuel - Tractors | B34: 0.64 | C34: gallons | D34: ='Universal Input Prices'!$B$32 -> 2.24 | E34: 0 | F34: 1.4336 | G34: 1.4336 | H34: 0
A35: Gasoline - Pickup | B35: 2.034 | C35: gallons | D35: ='Universal Input Prices'!$B$33 -> 2.09 | E35: 0 | F35: 4.25106 | G35: 4.25106 | H35: 0
A36: Repair & Maintenance
A37: Implements | B37: 1 | C37: acre | D37: 3.06 | E37: 0 | F37: =D37*B37 -> 3.06 | G37: =F37*(1-E37) -> 3.06 | H37: =F37*E37 -> 0
A38: Tractors | B38: 1 | C38: acre | D38: 1.64 | E38: 0 | F38: =D38*B38 -> 1.64 | G38: =F38*(1-E38) -> 1.64 | H38: =F38*E38 -> 0
A39: Other Fixed Expenses | B39: 1 | C39: acre | D39: 0 | E39: 0 | F39: 0 | G39: =F39*(1-E39) -> 0 | H39: =F39*E39 -> 0
A40: Self Propelled Equipment | B40: 1 | C40: acre | D40: 0 | E40: 1 | F40: =D40*B40 -> 0 | G40: =F40*(1-E40) -> 0 | H40: =F40*E40 -> 0
A41: Pickup | B41: 1 | C41: acre | D41: 2.49 | E41: 0 | F41: =D41*B41 -> 2.49 | G41: =F41*(1-E41) -> 2.49 | H41: =F41*E41 -> 0
A42: Interest-operating capital | B42: ='Universal Input Prices'!$B$35 -> 0.08 | F42: =(SUM(F15:F23,F26:F41))*$B42/2 -> 12.69616265 | G42: =(SUM(G15:G23,G26:G41))*$B42/2 -> 9.283937487 | H42: =(SUM(H15:H23,H26:H41))*$B42/2 -> 3.412225162
A44: Total Variable Costs | F44: =SUM(F15:F42) -> 370.7902289 | G44: =SUM(G15:G42) -> 282.0723747 | H44: =SUM(H15:H42) -> 88.71785422
A45: Returns Above Variable Costs | F45: =F12-F44 -> -103.2902289 | G45: =G12-G44 -> -102.8473747 | H45: =H12-H44 -> -0.442854225
A47: Fixed Costs
A48: Implements | B48: 1 | C48: acre | D48: 5.28 | E48: 0 | F48: =D48*B48 -> 5.28 | G48: =F48*(1-E48) -> 5.28 | H48: =F48*E48 -> 0
A49: Tractors | B49: 1 | C49: acre | D49: 2.74 | E49: 0 | F49: 2.74 | G49: 2.74 | H49: 0
A50: Other Fixed Expenses | B50: 1 | C50: acre | D50: 0 | E50: 1 | F50: 0 | G50: 0 | H50: 0
A51: Self Propelled Equipment | B51: 1 | C51: acre | D51: 0 | E51: 1 | F51: 0 | G51: 0 | H51: 0
A52: Pickup | B52: 1 | C52: acre | D52: 4.05 | E52: 0 | F52: 4.05 | G52: 4.05 | H52: 0
A53: Management | B53: 1 | C53: acre | D53: 0 | E53: 0 | F53: 0 | G53: 0 | H53: 0
A54: Whole Farm Insurance | B54: 1 | C54: acre | D54: 0 | E54: 0 | F54: =B54*D54 -> 0 | G54: 0 | H54: 0
A55: Land | B55: 1 | C55: acre | D55: 32.45 | E55: 1 | F55: =D55*B55 -> 32.45 | G55: =IF($H$6="Cash",D55,F55*(1-E55)) -> 0 | H55: =IF($H$6="Cash",0,F55*E55) -> 32.45
A56: Property Tax | B56: 1 | C56: acre | D56: 0 | E56: 1 | F56: =B56*D56 -> 0 | G56: 0 | H56: 0
A57: Total Fixed Expenses | F57: =SUM(F48:F56) -> 44.52 | G57: =SUM(G48:G56) -> 12.07 | H57: =SUM(H48:H56) -> 32.45
A58: Total Specified Expenses | F58: =F44+F57 -> 415.3102289 | G58: =G44+G57 -> 294.1423747 | H58: =H44+H57 -> 121.1678542
A59: Returns Above Total Specified Expenses | F59: =F12-F58 -> -147.8102289 | G59: =G12-G58 -> -114.9173747 | H59: =H12-H58 -> -32.89285422
A61: Return on Investment | F61: =(F59/F58) -> -0.3559031746 | G61: =(G59/G58) -> -0.3906862274 | H61: -0.2714651872

Sheet Dry Wheat
A2: Estimated Costs and Returns per Acre
A3: Dryland Wheat
A4: Projected for 2023
H5: Rental Agreement | I5: Share
A6: Item | B6: Quantity | C6: Unit | D6: Price | E6: Landlord | H6: Share | I6: Cash
E7: Share | F7: Total | G7: Tenant | H7: Landlord
A8: Income
A9: wheat | B9: 20 | C9: bu | D9: ='Universal Input Prices'!$B$18 -> 8.46 | E9: 0.33 | F9: =D9*B9 -> 169.2 | G9: =F9*(1-E9) -> 113.364 | H9: =IF(H6="Cash", D55,F9*E9) -> 55.836
A10: grazing | B10: 73 | C10: lb | D10: =Grazing_Price -> 0.6 | E10: 0.33 | F10: =D10*B10 -> 43.8 | G10: =F10*(1-E10) -> 29.346 | H10: =IF(H6="Cash", 0,F10*E10) -> 14.454
A11: other income | B11: 0 | C11: $/ac. | D11: 1 | E11: 0 | F11: =D11*B11 -> 0 | G11: =F11*(1-E11) -> 0 | H11: =IF(H8="Cash", D59,F11*E11) -> 0
A13: Total Income | F13: =SUM(F8:F12) -> 213 | G13: =SUM(G8:G12) -> 142.71 | H13: 70.29
A15: Variable Costs
A16: Seed | B16: 1 | C16: bu | D16: 11.56 | E16: 0 | F16: =D16*B16 -> 11.56 | G16: =F16*(1-E16) -> 11.56 | H16: =F16*E16 -> 0
A17: Fertilizer
A18: fert (N) - NH3 | B18: 29.97 | C18: lb | D18: =IF(A18="",0,VLOOKUP(A18,'Universal Input Prices'!$A$26:$B$30, 2)) -> 0.6201219512 | E18: 0.33 | F18: =D18*B18 -> 18.58505488 | G18: =F18*(1-E18) -> 12.45198677 | H18: =F18*E18 -> 6.13306811
B19: 0 | C19: lb | D19: =IF(A19="",0,VLOOKUP(A19,'Universal Input Prices'!$A$26:$B$30, 2)) -> 0 | E19: 0 | F19: =D19*B19 -> 0 | G19: =F19*(1-E19) -> 0 | H19: =F19*E19 -> 0
B20: 0 | C20: lb | D20: =IF(A20="",0,VLOOKUP(A20,'Universal Input Prices'!$A$26:$B$30, 2)) -> 0 | E20: 0 | F20: =D20*B20 -> 0 | G20: =F20*(1-E20) -> 0 | H20: =F20*E20 -> 0
A21: Field Operations
A22: herbicide & application | B22: 1 | C22: acre | D22: 0 | E22: 0.33 | F22: =D22*B22 -> 0 | G22: =F22*(1-E22) -> 0 | H22: =F22*E22 -> 0
A23: fertilizer application | B23: 1 | C23: acre | D23: 21.99 | E23: 0.33 | F23: 21.99 | G23: 14.7333 | H23: 7.2567
A24: insecticide & application | B24: 1 | C24: acre | D24: 0 | E24: 0.33 | F24: 0 | G24: 0 | H24: 0
A25: custom harvest & haul | B25: 1 | C25: acre | D25: 34.49 | E25: 0 | F25: 34.49 | G25: 34.49 | H25: 0
A26: custom harvest & haul | B26: =B9 -> 20 | C26: bu | D26: 0.35 | E26: 0 | F26: =D26*B26 -> 7 | G26: 7 | H26: 0
A27: hoeing | B27: 0 | C27: acre | D27: 0 | E27: 0 | F27: 0 | G27: 0 | H27: 0
A28: scouting | B28: 1 | C28: acre | D28: 0 | E28: 0 | F28: =D28*B28 -> 0 | G28: =F28*(1-E28) -> 0 | H28: =F28*E28 -> 0
A29: other | B29: 1 | C29: acre | D29: 0 | E29: 0 | F29: 0 | G29: 0 | H29: 0
A30: other | B30: 1 | C30: acre | D30: 0 | E30: 0 | F30: 0 | G30: 0 | H30: 0
A31: other | B31: 1 | C31: acre | D31: 0 | E31: 0 | F31: 0 | G31: 0 | H31: 0
A32: Crop Insurance | B32: 1 | C32: acre | D32: 30 | E32: 0.33 | F32: 30 | G32: 20.1 | H32: 9.9
A33: Operator Labor & Hand Labor | B33: 0.57 | C33: hours | D33: ='Universal Input Prices'!$B$31 -> 17.5 | E33: 0 | F33: 9.975 | G33: 9.975 | H33: 0
A34: Diesel Fuel - Tractors | B34: 1.73 | C34: gallons | D34: ='Universal Input Prices'!$B$32 -> 2.24 | E34: 0 | F34: 3.8752 | G34: 3.8752 | H34: 0
A35: Gasoline - Pickup | B35: 2.03 | C35: gallons | D35: ='Universal Input Prices'!$B$33 -> 2.09 | E35: 0 | F35: 4.2427 | G35: 4.2427 | H35: 0
A36: Repair & Maintenance
A37: Implements | B37: 1 | C37: acre | D37: 4.79 | E37: 0 | F37: =D37*B37 -> 4.79 | G37: =F37*(1-E37) -> 4.79 | H37: =F37*E37 -> 0
A38: Tractors | B38: 1 | C38: acre | D38: 3.75 | E38: 0 | F38: =D38*B38 -> 3.75 | G38: =F38*(1-E38) -> 3.75 | H38: =F38*E38 -> 0
A39: Other Fixed Expenses | B39: 1 | C39: acre | D39: 0 | E39: 0 | F39: 0 | G39: =F39*(1-E39) -> 0 | H39: =F39*E39 -> 0
A40: Self Propelled Equipment | B40: 1 | C40: acre | D40: 0 | E40: 1 | F40: =D40*B40 -> 0 | G40: =F40*(1-E40) -> 0 | H40: =F40*E40 -> 0
A41: Pickup | B41: 1 | C41: acre | D41: 2.49 | E41: 0 | F41: =D41*B41 -> 2.49 | G41: =F41*(1-E41) -> 2.49 | H41: =F41*E41 -> 0
A42: Interest-operating capital | B42: ='Universal Input Prices'!$B$35 -> 0.08 | F42: =(SUM(F16:F24,F27:F41))*$B42/2 -> 4.450318195 | G42: =(SUM(G16:G24,G27:G41))*$B42/2 -> 3.518727471 | H42: =(SUM(H16:H24,H27:H41))*$B42/2 -> 0.9315907244
A44: Total Variable Costs | F44: =SUM(F16:F42) -> 157.1982731 | G44: =SUM(G16:G42) -> 132.9769142 | H44: =SUM(H16:H42) -> 24.22135883
A45: Returns Above Variable Costs | F45: =F13-F44 -> 55.80172693 | G45: =G13-G44 -> 9.733085761 | H45: =H13-H44 -> 46.06864117
A47: Fixed Costs
A48: Implements | B48: 1 | C48: acre | D48: 8.38 | E48: 0 | F48: =D48*B48 -> 8.38 | G48: =F48*(1-E48) -> 8.38 | H48: =F48*E48 -> 0
A49: Tractors | B49: 1 | C49: acre | D49: 6.2 | E49: 0 | F49: 6.2 | G49: 6.2 | H49: 0
A50: Other Fixed Expenses | B50: 1 | C50: acre | D50: 0 | E50: 1 | F50: 0 | G50: 0 | H50: 0
A51: Self Propelled Equipment | B51: 1 | C51: acre | D51: 0 | E51: 1 | F51: 0 | G51: 0 | H51: 0
A52: Pickup | B52: 1 | C52: acre | D52: 4.05 | E52: 0 | F52: 4.05 | G52: 4.05 | H52: 0
A53: Management | B53: 1 | C53: acre | D53: 0 | E53: 0 | F53: 0 | G53: 0 | H53: 0
A54: Whole Farm Insurance | B54: 1 | C54: acre | D54: 0 | E54: 0 | F54: =B54*D54 -> 0 | G54: 0 | H54: 0
A55: Land | B55: 1 | C55: acre | D55: 32.45 | E55: 1 | F55: =D55*B55 -> 32.45 | G55: =IF($H$6="Cash",D55,F55*(1-E55)) -> 0 | H55: =IF($H$6="Cash",0,F55*E55) -> 32.45
A56: Property Tax | B56: 1 | C56: acre | D56: 0 | E56: 1 | F56: =B56*D56 -> 0 | G56: 0 | H56: 0
A57: Total Fixed Expenses | F57: =SUM(F48:F56) -> 51.08 | G57: =SUM(G48:G56) -> 18.63 | H57: =SUM(H48:H56) -> 32.45
A58: Total Specified Expenses | F58: =F44+F57 -> 208.2782731 | G58: =G44+G57 -> 151.6069142 | H58: =H44+H57 -> 56.67135883
A59: Returns Above Total Specified Expenses | F59: =F13-F58 -> 4.721726927 | G59: =G13-G58 -> -8.896914239 | H59: =H13-H58 -> 13.61864117
A61: Return on Investment | F61: =(F59/F58) -> 0.02267028076 | G61: =(G59/G58) -> -0.0586840929 | H61: 0.2403090634

Sheet Dry Other Crop
A2: Estimated Costs and Returns per Acre
A3: ='Universal Input Prices'!A20 -> Dryland Other Crop
A4: Projected for 2023
H5: Rental Agreement | I5: Share
A6: Item | B6: Quantity | C6: Unit | D6: Price | E6: Landlord | H6: Share | I6: Cash
E7: Share | F7: Total | G7: Tenant | H7: Landlord
A8: Income
A9: other dryland crop | B9: 0 | C9: ='Universal Input Prices'!C20 -> unit | D9: ='Universal Input Prices'!B20 -> 0 | E9: 0.33 | F9: =D9*B9 -> 0 | G9: =F9*(1-E9) -> 0 | H9: =IF(H6="Cash", D55,F9*E9) -> 0
A10: secondary income | B10: 0 | C10: ='Universal Input Prices'!C20 -> unit | D10: 0 | E10: 0.33 | F10: =D10*B10 -> 0 | G10: =F10*(1-E10) -> 0 | H10: =IF(H6="Cash", 0,F10*E10) -> 0
A12: Total Income | F12: =F9+F10 -> 0 | G12: =G9+G10 -> 0 | H12: =H9+H10 -> 0
A14: Variable Costs
A15: Seed | B15: 0 | C15: unit | D15: 0 | E15: 0 | F15: =D15*B15 -> 0 | G15: =F15*(1-E15) -> 0 | H15: =F15*E15 -> 0
A16: Fertilizer
A17: fert (N) - NH3 | B17: 0 | C17: lb | D17: =IF(A17="",0,VLOOKUP(A17,'Universal Input Prices'!$A$26:$B$30, 2)) -> 0.6201219512 | E17: 0.33 | F17: =D17*B17 -> 0 | G17: =F17*(1-E17) -> 0 | H17: =F17*E17 -> 0
A18: fert (N) - dry | B18: 0 | C18: lb | D18: =IF(A18="",0,VLOOKUP(A18,'Universal Input Prices'!$A$26:$B$30, 2)) -> 1.5 | E18: 0.33 | F18: 0 | G18: 0 | H18: 0
A19: fert (N) - liquid | B19: 0 | C19: lb | D19: =IF(A19="",0,VLOOKUP(A19,'Universal Input Prices'!$A$26:$B$30, 2)) -> 2.690625 | E19: 0.33 | F19: =D19*B19 -> 0 | G19: =F19*(1-E19) -> 0 | H19: =F19*E19 -> 0
A20: fert (P) - dry | B20: 0 | C20: lb | D20: =IF(A20="",0,VLOOKUP(A20,'Universal Input Prices'!$A$26:$B$30, 2)) -> 1.290384615 | E20: 0.33 | F20: =D20*B20 -> 0 | G20: =F20*(1-E20) -> 0 | H20: =F20*E20 -> 0
A21: fert (P) - liquid | B21: 0 | C21: lb | D21: =IF(A21="",0,VLOOKUP(A21,'Universal Input Prices'!$A$26:$B$30, 2)) -> 2.15 | E21: 0.33 | F21: =D21*B21 -> 0 | G21: =F21*(1-E21) -> 0 | H21: =F21*E21 -> 0
A22: Field Operations
A23: herbicide & application | B23: 1 | C23: acre | D23: 0 | E23: 0.33 | F23: =D23*B23 -> 0 | G23: =F23*(1-E23) -> 0 | H23: =F23*E23 -> 0
A24: fertilizer application | B24: 0 | C24: acre | D24: 11.75 | E24: 0.33 | F24: 0 | G24: 0 | H24: 0
A25: insecticide & application | B25: 0 | C25: acre | D25: 0 | E25: 0.33 | F25: 0 | G25: 0 | H25: 0
A26: custom harvest & haul | B26: =B9 -> 0 | C26: =C9 -> unit | D26: 0 | E26: 0 | F26: 0 | G26: 0 | H26: 0
A27: crop consulting | B27: 1 | C27: acre | D27: 0 | E27: 0 | F27: 0 | G27: 0 | H27: 0
A28: scouting | B28: 1 | C28: acre | D28: 0 | E28: 0 | F28: =D28*B28 -> 0 | G28: =F28*(1-E28) -> 0 | H28: =F28*E28 -> 0
A29: other | B29: 1 | C29: acre | D29: 0 | E29: 0 | F29: 0 | G29: 0 | H29: 0
A30: other | B30: 1 | C30: acre | D30: 0 | E30: 0 | F30: 0 | G30: 0 | H30: 0
A31: other | B31: 1 | C31: acre | D31: 0 | E31: 0 | F31: 0 | G31: 0 | H31: 0
A32: Crop Insurance | B32: 1 | C32: acre | D32: 0 | E32: 0.33 | F32: 0 | G32: 0 | H32: 0
A33: Operator Labor & Hand Labor | B33: 0 | C33: hours | D33: ='Universal Input Prices'!$B$31 -> 17.5 | E33: 0 | F33: 0 | G33: 0 | H33: 0
A34: Diesel Fuel - Tractors | B34: 0 | C34: gallons | D34: ='Universal Input Prices'!$B$32 -> 2.24 | E34: 0 | F34: 0 | G34: 0 | H34: 0
A35: Gasoline - Pickup | B35: 0 | C35: gallons | D35: ='Universal Input Prices'!$B$33 -> 2.09 | E35: 0 | F35: 0 | G35: 0 | H35: 0
A36: Repair & Maintenance
A37: Implements | B37: 0 | C37: acre | D37: 4.47 | E37: 0 | F37: =D37*B37 -> 0 | G37: 0 | H37: 0
A38: Tractors | B38: 0 | C38: acre | D38: 5.55 | E38: 0 | F38: =D38*B38 -> 0 | G38: 0 | H38: 0
A39: Other Fixed Expenses | B39: =0 -> 0 | C39: acre | D39: 4.04 | E39: 0 | F39: =D39*B39 -> 0 | G39: 0 | H39: 0
A40: Self Propelled Equipment | B40: 0 | C40: acre | D40: 0.16 | E40: 1 | F40: =D40*B40 -> 0 | G40: 0 | H40: 0
A41: Pickup | B41: 1 | C41: acre | D41: 0 | E41: 0 | F41: =D41*B41 -> 0 | G41: 0 | H41: 0
A42: Interest-operating capital | B42: ='Universal Input Prices'!$B$35 -> 0.08 | F42: =(SUM(F15:F25,F27:F41))*$B42/2 -> 0 | G42: =(SUM(G15:G25,G27:G41))*$B42/2 -> 0 | H42: =(SUM(H15:H25,H27:H41))*$B42/2 -> 0
A44: Total Variable Costs | F44: =SUM(F15:F42) -> 0 | G44: =SUM(G15:G42) -> 0 | H44: =SUM(H15:H42) -> 0
A45: Returns Above Variable Costs | F45: =F12-F44 -> 0 | G45: =G12-G44 -> 0 | H45: =H12-H44 -> 0
A47: Fixed Costs
A48: Implements | B48: 0 | C48: acre | D48: 7.04 | E48: 0 | F48: =D48*B48 -> 0 | G48: =F48*(1-E48) -> 0 | H48: =F48*E48 -> 0
A49: Tractors | B49: 0 | C49: acre | D49: 7.89 | E49: 0 | F49: 0 | G49: 0 | H49: 0
A50: Other Fixed Expenses | B50: 1 | C50: acre | D50: 0 | E50: 0 | F50: 0 | G50: 0 | H50: 0
A51: Self Propelled Equipment | B51: 1 | C51: acre | D51: 0 | E51: 1 | F51: 0 | G51: 0 | H51: 0
A52: Pickup | B52: 1 | C52: acre | D52: 0 | E52: 0 | F52: 0 | G52: 0 | H52: 0
A53: Management | B53: 1 | C53: acre | D53: 0 | E53: 0 | F53: 0 | G53: 0 | H53: 0
A54: Whole Farm Insurance | B54: 1 | C54: acre | D54: 0 | E54: 0 | F54: =B54*D54 -> 0 | G54: 0 | H54: 0
A55: Land | B55: 0 | C55: acre | D55: 30 | E55: 1 | F55: =D55*B55 -> 0 | G55: =IF($H$6="Cash",D55,F55*(1-E55)) -> 0 | H55: =IF($H$6="Cash",0,F55*E55) -> 0
A56: Property Tax | B56: 1 | C56: acre | D56: 0 | E56: 1 | F56: =B56*D56 -> 0 | G56: 0 | H56: 0
A57: Total Fixed Expenses | F57: =SUM(F48:F56) -> 0 | G57: =SUM(G48:G56) -> 0 | H57: =SUM(H48:H56) -> 0
A58: Total Specified Expenses | F58: =F44+F57 -> 0 | G58: =G44+G57 -> 0 | H58: =H44+H57 -> 0
A59: Returns Above Total Specified Expenses | F59: =F12-F58 -> 0 | G59: =G12-G58 -> 0 | H59: =H12-H58 -> 0
A61: Return on Investment | F61: =IF(F58=0,"-",(F59/F58)) -> - | G61: =IF(G58=0,"-",(G59/G58)) -> - | H61: -

Sheet Break-Even Comparison
A5: ='Irr Alfalfa'!A3:H3 -> Irrigated Alfalfa
E6: BE Price to Cover Variable Costs | G6: BE Price to Cover Total Costs
A7: Yield | B7: TON | E7: Total | F7: Tenant | G7: Total | H7: Tenant | I7: Landlord
A8: .o | B8: ='Irr Alfalfa'!$B$9*$A8 ->  | C8: ='Irr Alfalfa'!$B$9*(1-'Irr Alfalfa'!$E$9)*$A8 ->  | D8: ='Irr Alfalfa'!$B$9*'Irr Alfalfa'!$E$9*$A8 ->  | E8: =('Irr Alfalfa'!F$48+(B8-B$10)*('Irr Alfalfa'!$D$26))/B8 ->  | F8: =('Irr Alfalfa'!G$48+(C8-C$10)*('Irr Alfalfa'!$D$26))/C8 ->  | G8: =('Irr Alfalfa'!F$63+(B8-B$10)*('Irr Alfalfa'!$D$26))/B8 ->  | H8: =('Irr Alfalfa'!G$63+(C8-C$10)*('Irr Alfalfa'!$D$26))/C8 ->  | I8: =IF($D8=0,"N/A",('Irr Alfalfa'!H$63+(D8-D$10)*('Irr Alfalfa'!$D$26))/D8) -> 
A9: 0.9 | B9: ='Irr Alfalfa'!$B$9*$A9 -> 4.95 | C9: ='Irr Alfalfa'!$B$9*(1-'Irr Alfalfa'!$E$9)*$A9 -> 3.3165 | D9: ='Irr Alfalfa'!$B$9*'Irr Alfalfa'!$E$9*$A9 -> 1.6335 | E9: =('Irr Alfalfa'!F$48+(B9-B$10)*('Irr Alfalfa'!$D$26))/B9 -> 153.6790586 | F9: =('Irr Alfalfa'!G$48+(C9-C$10)*('Irr Alfalfa'!$D$26))/C9 -> 198.4739123 | G9: =('Irr Alfalfa'!F$63+(B9-B$10)*('Irr Alfalfa'!$D$26))/B9 -> 214.9437051 | H9: =('Irr Alfalfa'!G$63+(C9-C$10)*('Irr Alfalfa'!$D$26))/C9 -> 289.9136832 | I9: =IF($D9=0,"N/A",('Irr Alfalfa'!H$63+(D9-D$10)*('Irr Alfalfa'!$D$26))/D9) -> 62.73193131
A10: 1 | B10: ='Irr Alfalfa'!$B$9*$A10 -> 5.5 | C10: ='Irr Alfalfa'!$B$9*(1-'Irr Alfalfa'!$E$9)*$A10 -> 3.685 | D10: ='Irr Alfalfa'!$B$9*'Irr Alfalfa'!$E$9*$A10 -> 1.815 | E10: =('Irr Alfalfa'!F$48+(B10-B$10)*('Irr Alfalfa'!$D$26))/B10 -> 144.1581527 | F10: =('Irr Alfalfa'!G$48+(C10-C$10)*('Irr Alfalfa'!$D$26))/C10 -> 184.4735211 | G10: =('Irr Alfalfa'!F$63+(B10-B$10)*('Irr Alfalfa'!$D$26))/B10 -> 199.2963345 | H10: =('Irr Alfalfa'!G$63+(C10-C$10)*('Irr Alfalfa'!$D$26))/C10 -> 266.7693148 | I10: =IF($D10=0,"N/A",('Irr Alfalfa'!H$63+(D10-D$10)*('Irr Alfalfa'!$D$26))/D10) -> 62.30573818
A11: 1.1 | B11: ='Irr Alfalfa'!$B$9*$A11 -> 6.05 | C11: ='Irr Alfalfa'!$B$9*(1-'Irr Alfalfa'!$E$9)*$A11 -> 4.0535 | D11: ='Irr Alfalfa'!$B$9*'Irr Alfalfa'!$E$9*$A11 -> 1.9965 | E11: =('Irr Alfalfa'!F$48+(B11-B$10)*('Irr Alfalfa'!$D$26))/B11 -> 136.3683207 | F11: =('Irr Alfalfa'!G$48+(C11-C$10)*('Irr Alfalfa'!$D$26))/C11 -> 173.0186555 | G11: =('Irr Alfalfa'!F$63+(B11-B$10)*('Irr Alfalfa'!$D$26))/B11 -> 186.4939405 | H11: =('Irr Alfalfa'!G$63+(C11-C$10)*('Irr Alfalfa'!$D$26))/C11 -> 247.8330135 | I11: =IF($D11=0,"N/A",('Irr Alfalfa'!H$63+(D11-D$10)*('Irr Alfalfa'!$D$26))/D11) -> 61.95703471
A12: 1.25 | B12: ='Irr Alfalfa'!$B$9*$A12 -> 6.875 | C12: ='Irr Alfalfa'!$B$9*(1-'Irr Alfalfa'!$E$9)*$A12 -> 4.60625 | D12: ='Irr Alfalfa'!$B$9*'Irr Alfalfa'!$E$9*$A12 -> 2.26875 | E12: =('Irr Alfalfa'!F$48+(B12-B$10)*('Irr Alfalfa'!$D$26))/B12 -> 127.0205222 | F12: =('Irr Alfalfa'!G$48+(C12-C$10)*('Irr Alfalfa'!$D$26))/C12 -> 159.2728169 | G12: =('Irr Alfalfa'!F$63+(B12-B$10)*('Irr Alfalfa'!$D$26))/B12 -> 171.1310676 | H12: =('Irr Alfalfa'!G$63+(C12-C$10)*('Irr Alfalfa'!$D$26))/C12 -> 225.1094519 | I12: =IF($D12=0,"N/A",('Irr Alfalfa'!H$63+(D12-D$10)*('Irr Alfalfa'!$D$26))/D12) -> 61.53859055
A14: ='Irr Canola'!A3:H3 -> Irrigated Canola
E15: BE Price to Cover Variable Costs | G15: BE Price to Cover Total Costs
A16: Yield | B16: CWT | E16: Total | F16: Tenant | G16: Total | H16: Tenant | I16: Landlord
A17: 0.75 | B17: ='Irr Canola'!$B$9*$A17 -> 16.5 | C17: ='Irr Canola'!$B$9*(1-'Irr Canola'!$E$9)*$A17 -> 11.055 | D17: ='Irr Canola'!$B$9*'Irr Canola'!$E$9*$A17 -> 5.445 | E17: =('Irr Canola'!F$49+(B17-B$19)*('Irr Canola'!$D$27))/B17 -> 30.30214329 | F17: =('Irr Canola'!G$49+(C17-C$19)*('Irr Canola'!$D$27))/C17 -> 35.408687 | G17: =('Irr Canola'!F$63+(B17-B$19)*('Irr Canola'!$D$27))/B17 -> 40.9712342 | H17: =('Irr Canola'!G$63+(C17-C$19)*('Irr Canola'!$D$27))/C17 -> 43.32727588 | I17: =IF($D17=0,"N/A",('Irr Canola'!H$63+(D17-D$19)*('Irr Canola'!$D$27))/D17) -> 36.18775565
A18: 0.9 | B18: ='Irr Canola'!$B$9*$A18 -> 19.8 | C18: ='Irr Canola'!$B$9*(1-'Irr Canola'!$E$9)*$A18 -> 13.266 | D18: ='Irr Canola'!$B$9*'Irr Canola'!$E$9*$A18 -> 6.534 | E18: =('Irr Canola'!F$49+(B18-B$19)*('Irr Canola'!$D$27))/B18 -> 25.35511941 | F18: =('Irr Canola'!G$49+(C18-C$19)*('Irr Canola'!$D$27))/C18 -> 29.6105725 | G18: =('Irr Canola'!F$63+(B18-B$19)*('Irr Canola'!$D$27))/B18 -> 34.2460285 | H18: =('Irr Canola'!G$63+(C18-C$19)*('Irr Canola'!$D$27))/C18 -> 36.20939656 | I18: =IF($D18=0,"N/A",('Irr Canola'!H$63+(D18-D$19)*('Irr Canola'!$D$27))/D18) -> 30.25979637
A19: 1 | B19: ='Irr Canola'!$B$9*$A19 -> 22 | C19: ='Irr Canola'!$B$9*(1-'Irr Canola'!$E$9)*$A19 -> 14.74 | D19: ='Irr Canola'!$B$9*'Irr Canola'!$E$9*$A19 -> 7.26 | E19: =('Irr Canola'!F$49+(B19-B$19)*('Irr Canola'!$D$27))/B19 -> 22.88160747 | F19: =('Irr Canola'!G$49+(C19-C$19)*('Irr Canola'!$D$27))/C19 -> 26.71151525 | G19: =('Irr Canola'!F$63+(B19-B$19)*('Irr Canola'!$D$27))/B19 -> 30.88342565 | H19: =('Irr Canola'!G$63+(C19-C$19)*('Irr Canola'!$D$27))/C19 -> 32.65045691 | I19: =IF($D19=0,"N/A",('Irr Canola'!H$63+(D19-D$19)*('Irr Canola'!$D$27))/D19) -> 27.29581674
A20: 1.1 | B20: ='Irr Canola'!$B$9*$A20 -> 24.2 | C20: ='Irr Canola'!$B$9*(1-'Irr Canola'!$E$9)*$A20 -> 16.214 | D20: ='Irr Canola'!$B$9*'Irr Canola'!$E$9*$A20 -> 7.986 | E20: =('Irr Canola'!F$49+(B20-B$19)*('Irr Canola'!$D$27))/B20 -> 20.85782497 | F20: =('Irr Canola'!G$49+(C20-C$19)*('Irr Canola'!$D$27))/C20 -> 24.33955932 | G20: =('Irr Canola'!F$63+(B20-B$19)*('Irr Canola'!$D$27))/B20 -> 28.13220514 | H20: =('Irr Canola'!G$63+(C20-C$19)*('Irr Canola'!$D$27))/C20 -> 29.73859719 | I20: =IF($D20=0,"N/A",('Irr Canola'!H$63+(D20-D$19)*('Irr Canola'!$D$27))/D20) -> 24.87074249
A21: 1.25 | B21: ='Irr Canola'!$B$9*$A21 -> 27.5 | C21: ='Irr Canola'!$B$9*(1-'Irr Canola'!$E$9)*$A21 -> 18.425 | D21: ='Irr Canola'!$B$9*'Irr Canola'!$E$9*$A21 -> 9.075 | E21: =('Irr Canola'!F$49+(B21-B$19)*('Irr Canola'!$D$27))/B21 -> 18.42928598 | F21: =('Irr Canola'!G$49+(C21-C$19)*('Irr Canola'!$D$27))/C21 -> 21.4932122 | G21: =('Irr Canola'!F$63+(B21-B$19)*('Irr Canola'!$D$27))/B21 -> 24.83074052 | H21: =('Irr Canola'!G$63+(C21-C$19)*('Irr Canola'!$D$27))/C21 -> 26.24436553 | I21: =IF($D21=0,"N/A",('Irr Canola'!H$63+(D21-D$19)*('Irr Canola'!$D$27))/D21) -> 21.96065339
A23: ='Irr Corn'!A3:H3 -> Irrigated Corn
E24: BE Price to Cover Variable Costs | G24: BE Price to Cover Total Costs
A25: Yield | B25: BU | E25: Total | F25: Tenant | G25: Total | H25: Tenant | I25: Landlord
A26: 0.75 | B26: ='Irr Corn'!$B$9*$A26 -> 168.75 | C26: ='Irr Corn'!$B$9*(1-'Irr Corn'!$E$9)*$A26 -> 113.0625 | D26: ='Irr Corn'!$B$9*'Irr Corn'!$E$9*$A26 -> 55.6875 | E26: =('Irr Corn'!F$47+(B26-B$28)*('Irr Corn'!$D$25))/B26 -> 7.237797018 | F26: =('Irr Corn'!G$47+(C26-C$28)*('Irr Corn'!$D$25))/C26 -> 8.202270257 | G26: =('Irr Corn'!F$61+(B26-B$28)*('Irr Corn'!$D$25))/B26 -> 8.615278499 | H26: =('Irr Corn'!G$61+(C26-C$28)*('Irr Corn'!$D$25))/C26 -> 9.218080097 | I26: =IF($D26=0,"N/A",('Irr Corn'!H$61+(D26-D$28)*('Irr Corn'!$D$25))/D26) -> 7.548509765
A27: 0.9 | B27: ='Irr Corn'!$B$9*$A27 -> 202.5 | C27: ='Irr Corn'!$B$9*(1-'Irr Corn'!$E$9)*$A27 -> 135.675 | D27: ='Irr Corn'!$B$9*'Irr Corn'!$E$9*$A27 -> 66.825 | E27: =('Irr Corn'!F$47+(B27-B$28)*('Irr Corn'!$D$25))/B27 -> 6.123164182 | F27: =('Irr Corn'!G$47+(C27-C$28)*('Irr Corn'!$D$25))/C27 -> 6.926891881 | G27: =('Irr Corn'!F$61+(B27-B$28)*('Irr Corn'!$D$25))/B27 -> 7.271065416 | H27: =('Irr Corn'!G$61+(C27-C$28)*('Irr Corn'!$D$25))/C27 -> 7.773400081 | I27: =IF($D27=0,"N/A",('Irr Corn'!H$61+(D27-D$28)*('Irr Corn'!$D$25))/D27) -> 6.382091471
A28: 1 | B28: ='Irr Corn'!$B$9*$A28 -> 225 | C28: ='Irr Corn'!$B$9*(1-'Irr Corn'!$E$9)*$A28 -> 150.75 | D28: ='Irr Corn'!$B$9*'Irr Corn'!$E$9*$A28 -> 74.25 | E28: =('Irr Corn'!F$47+(B28-B$28)*('Irr Corn'!$D$25))/B28 -> 5.565847763 | F28: =('Irr Corn'!G$47+(C28-C$28)*('Irr Corn'!$D$25))/C28 -> 6.289202693 | G28: =('Irr Corn'!F$61+(B28-B$28)*('Irr Corn'!$D$25))/B28 -> 6.598958875 | H28: =('Irr Corn'!G$61+(C28-C$28)*('Irr Corn'!$D$25))/C28 -> 7.051060073 | I28: =IF($D28=0,"N/A",('Irr Corn'!H$61+(D28-D$28)*('Irr Corn'!$D$25))/D28) -> 5.798882324
A29: 1.1 | B29: ='Irr Corn'!$B$9*$A29 -> 247.5 | C29: ='Irr Corn'!$B$9*(1-'Irr Corn'!$E$9)*$A29 -> 165.825 | D29: ='Irr Corn'!$B$9*'Irr Corn'!$E$9*$A29 -> 81.675 | E29: =('Irr Corn'!F$47+(B29-B$28)*('Irr Corn'!$D$25))/B29 -> 5.109861603 | F29: =('Irr Corn'!G$47+(C29-C$28)*('Irr Corn'!$D$25))/C29 -> 5.767456993 | G29: =('Irr Corn'!F$61+(B29-B$28)*('Irr Corn'!$D$25))/B29 -> 6.049053522 | H29: =('Irr Corn'!G$61+(C29-C$28)*('Irr Corn'!$D$25))/C29 -> 6.460054611 | I29: =IF($D29=0,"N/A",('Irr Corn'!H$61+(D29-D$28)*('Irr Corn'!$D$25))/D29) -> 5.321711203
A30: 1.25 | B30: ='Irr Corn'!$B$9*$A30 -> 281.25 | C30: ='Irr Corn'!$B$9*(1-'Irr Corn'!$E$9)*$A30 -> 188.4375 | D30: ='Irr Corn'!$B$9*'Irr Corn'!$E$9*$A30 -> 92.8125 | E30: =('Irr Corn'!F$47+(B30-B$28)*('Irr Corn'!$D$25))/B30 -> 4.562678211 | F30: =('Irr Corn'!G$47+(C30-C$28)*('Irr Corn'!$D$25))/C30 -> 5.141362154 | G30: =('Irr Corn'!F$61+(B30-B$28)*('Irr Corn'!$D$25))/B30 -> 5.3891671 | H30: =('Irr Corn'!G$61+(C30-C$28)*('Irr Corn'!$D$25))/C30 -> 5.750848058 | I30: =IF($D30=0,"N/A",('Irr Corn'!H$61+(D30-D$28)*('Irr Corn'!$D$25))/D30) -> 4.749105859
A32: ='Irr Corn Silage'!A3:H3 -> Irrigated Corn Silage
E33: BE Price to Cover Variable Costs | G33: BE Price to Cover Total Costs
A34: Yield | B34: TON | E34: Total | F34: Tenant | G34: Total | H34: Tenant | I34: Landlord
A35: 0.75 | B35: ='Irr Corn Silage'!$B$9*$A35 -> 20.25 | C35: ='Irr Corn Silage'!$B$9*(1-'Irr Corn Silage'!$E$9)*$A35 -> 13.5675 | D35: ='Irr Corn Silage'!$B$9*'Irr Corn Silage'!$E$9*$A35 -> 6.6825 | E35: =('Irr Corn Silage'!F$47+(B35-B$37)*('Irr Corn Silage'!$D$25))/B35 -> 72.08347914 | F35: =('Irr Corn Silage'!G$47+(C35-C$37)*('Irr Corn Silage'!$D$25))/C35 -> 89.34046069 | G35: =('Irr Corn Silage'!F$61+(B35-B$37)*('Irr Corn Silage'!$D$25))/B35 -> 83.73681248 | H35: =('Irr Corn Silage'!G$61+(C35-C$37)*('Irr Corn Silage'!$D$25))/C35 -> 98.06572327 | I35: =IF($D35=0,"N/A",('Irr Corn Silage'!H$61+(D35-D$37)*('Irr Corn Silage'!$D$25))/D35) -> 54.64478148
A36: 0.9 | B36: ='Irr Corn Silage'!$B$9*$A36 -> 24.3 | C36: ='Irr Corn Silage'!$B$9*(1-'Irr Corn Silage'!$E$9)*$A36 -> 16.281 | D36: ='Irr Corn Silage'!$B$9*'Irr Corn Silage'!$E$9*$A36 -> 8.019 | E36: =('Irr Corn Silage'!F$47+(B36-B$37)*('Irr Corn Silage'!$D$25))/B36 -> 62.09623262 | F36: =('Irr Corn Silage'!G$47+(C36-C$37)*('Irr Corn Silage'!$D$25))/C36 -> 76.47705057 | G36: =('Irr Corn Silage'!F$61+(B36-B$37)*('Irr Corn Silage'!$D$25))/B36 -> 71.80734373 | H36: =('Irr Corn Silage'!G$61+(C36-C$37)*('Irr Corn Silage'!$D$25))/C36 -> 83.74810272 | I36: =IF($D36=0,"N/A",('Irr Corn Silage'!H$61+(D36-D$37)*('Irr Corn Silage'!$D$25))/D36) -> 47.56398457
A37: 1 | B37: ='Irr Corn Silage'!$B$9*$A37 -> 27 | C37: ='Irr Corn Silage'!$B$9*(1-'Irr Corn Silage'!$E$9)*$A37 -> 18.09 | D37: ='Irr Corn Silage'!$B$9*'Irr Corn Silage'!$E$9*$A37 -> 8.91 | E37: =('Irr Corn Silage'!F$47+(B37-B$37)*('Irr Corn Silage'!$D$25))/B37 -> 57.10260936 | F37: =('Irr Corn Silage'!G$47+(C37-C$37)*('Irr Corn Silage'!$D$25))/C37 -> 70.04534552 | G37: =('Irr Corn Silage'!F$61+(B37-B$37)*('Irr Corn Silage'!$D$25))/B37 -> 65.84260936 | H37: =('Irr Corn Silage'!G$61+(C37-C$37)*('Irr Corn Silage'!$D$25))/C37 -> 76.58929245 | I37: =IF($D37=0,"N/A",('Irr Corn Silage'!H$61+(D37-D$37)*('Irr Corn Silage'!$D$25))/D37) -> 44.02358611
A38: 1.1 | B38: ='Irr Corn Silage'!$B$9*$A38 -> 29.7 | C38: ='Irr Corn Silage'!$B$9*(1-'Irr Corn Silage'!$E$9)*$A38 -> 19.899 | D38: ='Irr Corn Silage'!$B$9*'Irr Corn Silage'!$E$9*$A38 -> 9.801 | E38: =('Irr Corn Silage'!F$47+(B38-B$37)*('Irr Corn Silage'!$D$25))/B38 -> 53.0169176 | F38: =('Irr Corn Silage'!G$47+(C38-C$37)*('Irr Corn Silage'!$D$25))/C38 -> 64.78304138 | G38: =('Irr Corn Silage'!F$61+(B38-B$37)*('Irr Corn Silage'!$D$25))/B38 -> 60.96237214 | H38: =('Irr Corn Silage'!G$61+(C38-C$37)*('Irr Corn Silage'!$D$25))/C38 -> 70.73208404 | I38: =IF($D38=0,"N/A",('Irr Corn Silage'!H$61+(D38-D$37)*('Irr Corn Silage'!$D$25))/D38) -> 41.12689647
A39: 1.25 | B39: ='Irr Corn Silage'!$B$9*$A39 -> 33.75 | C39: ='Irr Corn Silage'!$B$9*(1-'Irr Corn Silage'!$E$9)*$A39 -> 22.6125 | D39: ='Irr Corn Silage'!$B$9*'Irr Corn Silage'!$E$9*$A39 -> 11.1375 | E39: =('Irr Corn Silage'!F$47+(B39-B$37)*('Irr Corn Silage'!$D$25))/B39 -> 48.11408749 | F39: =('Irr Corn Silage'!G$47+(C39-C$37)*('Irr Corn Silage'!$D$25))/C39 -> 58.46827641 | G39: =('Irr Corn Silage'!F$61+(B39-B$37)*('Irr Corn Silage'!$D$25))/B39 -> 55.10608749 | H39: =('Irr Corn Silage'!G$61+(C39-C$37)*('Irr Corn Silage'!$D$25))/C39 -> 63.70343396 | I39: =IF($D39=0,"N/A",('Irr Corn Silage'!H$61+(D39-D$37)*('Irr Corn Silage'!$D$25))/D39) -> 37.65086889
A41: ='Irr Cotton'!A3:H3 -> Irrigated Cotton
E42: BE Price to Cover Variable Costs | G42: BE Price to Cover Total Costs
A43: Yield | B43: LB | E43: Total | F43: Tenant | G43: Total | H43: Tenant | I43: Landlord
A44: 0.75 | B44: ='Irr Cotton'!$B$9*$A44 -> 1125 | C44: ='Irr Cotton'!$B$9*(1-'Irr Cotton'!$E$9)*$A44 -> 753.75 | D44: ='Irr Cotton'!$B$9*'Irr Cotton'!$E$9*$A44 -> 371.25 | E44: =('Irr Cotton'!F$52-B44/500*'Universal Input Prices'!$B$39/2000*Cottonseed_Price+(B44-B$46)/100*'Irr Cotton'!$D$29+(B44-B$46)/'Irr Cotton'!$B$11/100*'Irr Cotton'!D$30)/B44 -> 0.7838562118 | F44: =('Irr Cotton'!G$52-C44/500*'Universal Input Prices'!$B$39/2000*Cottonseed_Price+(C44-C$46)/100*'Irr Cotton'!$D$29+(C44-C$46)/'Irr Cotton'!$B$11/100*'Irr Cotton'!$D$30)/C44 -> 0.9733418796 | G44: =('Irr Cotton'!F$66-B44/500*'Universal Input Prices'!$B$39/2000*Cottonseed_Price+(B44-B$46)/100*'Irr Cotton'!$D$29+(B44-B$46)/'Irr Cotton'!$B$11/100*'Irr Cotton'!$D$30)/B44 -> 0.9422917673 | H44: =('Irr Cotton'!G$66-C44/500*'Universal Input Prices'!$B$39/2000*Cottonseed_Price+(C44-C$46)/100*'Irr Cotton'!$D$29+(C44-C$46)/100*'Irr Cotton'!$B$11*'Irr Cotton'!$D$30)/C44 -> 1.134774968 | I44: =IF($D44=0,"N/A",('Irr Cotton'!H$66-D44/500*'Universal Input Prices'!$B$39/2000*Cottonseed_Price+(D44-D$46)/100*'Irr Cotton'!$D$29+(D44-D$46)/100*'Irr Cotton'!$B$11*'Irr Cotton'!$D$30)/D44) -> 0.6799017704
A45: 0.9 | B45: ='Irr Cotton'!$B$9*$A45 -> 1350 | C45: ='Irr Cotton'!$B$9*(1-'Irr Cotton'!$E$9)*$A45 -> 904.5 | D45: ='Irr Cotton'!$B$9*'Irr Cotton'!$E$9*$A45 -> 445.5 | E45: =('Irr Cotton'!F$52-B45/500*'Universal Input Prices'!$B$39/2000*Cottonseed_Price+(B45-B$46)/100*'Irr Cotton'!$D$29+(B45-B$46)/'Irr Cotton'!$B$11/100*'Irr Cotton'!D$30)/B45 -> 0.665290616 | F45: =('Irr Cotton'!G$52-C45/500*'Universal Input Prices'!$B$39/2000*Cottonseed_Price+(C45-C$46)/100*'Irr Cotton'!$D$29+(C45-C$46)/'Irr Cotton'!$B$11/100*'Irr Cotton'!$D$30)/C45 -> 0.8231953392 | G45: =('Irr Cotton'!F$66-B45/500*'Universal Input Prices'!$B$39/2000*Cottonseed_Price+(B45-B$46)/100*'Irr Cotton'!$D$29+(B45-B$46)/'Irr Cotton'!$B$11/100*'Irr Cotton'!$D$30)/B45 -> 0.7973202457 | H45: =('Irr Cotton'!G$66-C45/500*'Universal Input Prices'!$B$39/2000*Cottonseed_Price+(C45-C$46)/100*'Irr Cotton'!$D$29+(C45-C$46)/100*'Irr Cotton'!$B$11*'Irr Cotton'!$D$30)/C45 -> 0.9365353904 | I45: =IF($D45=0,"N/A",('Irr Cotton'!H$66-D45/500*'Universal Input Prices'!$B$39/2000*Cottonseed_Price+(D45-D$46)/100*'Irr Cotton'!$D$29+(D45-D$46)/100*'Irr Cotton'!$B$11*'Irr Cotton'!$D$30)/D45) -> 0.557474392
A46: 1 | B46: ='Irr Cotton'!$B$9*$A46 -> 1500 | C46: ='Irr Cotton'!$B$9*(1-'Irr Cotton'!$E$9)*$A46 -> 1005 | D46: ='Irr Cotton'!$B$9*'Irr Cotton'!$E$9*$A46 -> 495 | E46: =('Irr Cotton'!F$52-B46/500*'Universal Input Prices'!$B$39/2000*Cottonseed_Price+(B46-B$46)/100*'Irr Cotton'!$D$29+(B46-B$46)/'Irr Cotton'!$B$11/100*'Irr Cotton'!D$30)/B46 -> 0.6060078182 | F46: =('Irr Cotton'!G$52-C46/500*'Universal Input Prices'!$B$39/2000*Cottonseed_Price+(C46-C$46)/100*'Irr Cotton'!$D$29+(C46-C$46)/'Irr Cotton'!$B$11/100*'Irr Cotton'!$D$30)/C46 -> 0.748122069 | G46: =('Irr Cotton'!F$66-B46/500*'Universal Input Prices'!$B$39/2000*Cottonseed_Price+(B46-B$46)/100*'Irr Cotton'!$D$29+(B46-B$46)/'Irr Cotton'!$B$11/100*'Irr Cotton'!$D$30)/B46 -> 0.7248344848 | H46: =('Irr Cotton'!G$66-C46/500*'Universal Input Prices'!$B$39/2000*Cottonseed_Price+(C46-C$46)/100*'Irr Cotton'!$D$29+(C46-C$46)/100*'Irr Cotton'!$B$11*'Irr Cotton'!$D$30)/C46 -> 0.8374156013 | I46: =IF($D46=0,"N/A",('Irr Cotton'!H$66-D46/500*'Universal Input Prices'!$B$39/2000*Cottonseed_Price+(D46-D$46)/100*'Irr Cotton'!$D$29+(D46-D$46)/100*'Irr Cotton'!$B$11*'Irr Cotton'!$D$30)/D46) -> 0.4962607028
A47: 1.1 | B47: ='Irr Cotton'!$B$9*$A47 -> 1650 | C47: ='Irr Cotton'!$B$9*(1-'Irr Cotton'!$E$9)*$A47 -> 1105.5 | D47: ='Irr Cotton'!$B$9*'Irr Cotton'!$E$9*$A47 -> 544.5 | E47: =('Irr Cotton'!F$52-B47/500*'Universal Input Prices'!$B$39/2000*Cottonseed_Price+(B47-B$46)/100*'Irr Cotton'!$D$29+(B47-B$46)/'Irr Cotton'!$B$11/100*'Irr Cotton'!D$30)/B47 -> 0.5575037108 | F47: =('Irr Cotton'!G$52-C47/500*'Universal Input Prices'!$B$39/2000*Cottonseed_Price+(C47-C$46)/100*'Irr Cotton'!$D$29+(C47-C$46)/'Irr Cotton'!$B$11/100*'Irr Cotton'!$D$30)/C47 -> 0.6866984843 | G47: =('Irr Cotton'!F$66-B47/500*'Universal Input Prices'!$B$39/2000*Cottonseed_Price+(B47-B$46)/100*'Irr Cotton'!$D$29+(B47-B$46)/'Irr Cotton'!$B$11/100*'Irr Cotton'!$D$30)/B47 -> 0.6655279532 | H47: =('Irr Cotton'!G$66-C47/500*'Universal Input Prices'!$B$39/2000*Cottonseed_Price+(C47-C$46)/100*'Irr Cotton'!$D$29+(C47-C$46)/100*'Irr Cotton'!$B$11*'Irr Cotton'!$D$30)/C47 -> 0.7563175921 | I47: =IF($D47=0,"N/A",('Irr Cotton'!H$66-D47/500*'Universal Input Prices'!$B$39/2000*Cottonseed_Price+(D47-D$46)/100*'Irr Cotton'!$D$29+(D47-D$46)/100*'Irr Cotton'!$B$11*'Irr Cotton'!$D$30)/D47) -> 0.4461767753
A48: 1.25 | B48: ='Irr Cotton'!$B$9*$A48 -> 1875 | C48: ='Irr Cotton'!$B$9*(1-'Irr Cotton'!$E$9)*$A48 -> 1256.25 | D48: ='Irr Cotton'!$B$9*'Irr Cotton'!$E$9*$A48 -> 618.75 | E48: =('Irr Cotton'!F$52-B48/500*'Universal Input Prices'!$B$39/2000*Cottonseed_Price+(B48-B$46)/100*'Irr Cotton'!$D$29+(B48-B$46)/'Irr Cotton'!$B$11/100*'Irr Cotton'!D$30)/B48 -> 0.499298782 | F48: =('Irr Cotton'!G$52-C48/500*'Universal Input Prices'!$B$39/2000*Cottonseed_Price+(C48-C$46)/100*'Irr Cotton'!$D$29+(C48-C$46)/'Irr Cotton'!$B$11/100*'Irr Cotton'!$D$30)/C48 -> 0.6129901827 | G48: =('Irr Cotton'!F$66-B48/500*'Universal Input Prices'!$B$39/2000*Cottonseed_Price+(B48-B$46)/100*'Irr Cotton'!$D$29+(B48-B$46)/'Irr Cotton'!$B$11/100*'Irr Cotton'!$D$30)/B48 -> 0.5943601153 | H48: =('Irr Cotton'!G$66-C48/500*'Universal Input Prices'!$B$39/2000*Cottonseed_Price+(C48-C$46)/100*'Irr Cotton'!$D$29+(C48-C$46)/100*'Irr Cotton'!$B$11*'Irr Cotton'!$D$30)/C48 -> 0.6589999811 | I48: =IF($D48=0,"N/A",('Irr Cotton'!H$66-D48/500*'Universal Input Prices'!$B$39/2000*Cottonseed_Price+(D48-D$46)/100*'Irr Cotton'!$D$29+(D48-D$46)/100*'Irr Cotton'!$B$11*'Irr Cotton'!$D$30)/D48) -> 0.3860760623
A50: ='Irr Peanuts'!A3:H3 -> Irrigated Peanuts
E51: BE Price to Cover Variable Costs | G51: BE Price to Cover Total Costs
A52: Yield | B52: TON | E52: Total | F52: Tenant | G52: Total | H52: Tenant | I52: Landlord
A53: 0.75 | B53: ='Irr Peanuts'!$B$9*$A53 -> 1.6875 | C53: ='Irr Peanuts'!$B$9*(1-'Irr Peanuts'!$E$9)*$A53 -> 1.130625 | D53: ='Irr Peanuts'!$B$9*'Irr Peanuts'!$E$9*$A53 -> 0.556875 | E53: =('Irr Peanuts'!$F$51+($B53-$B$55)*(SUM('Irr Peanuts'!$D$27:$D$28)))/$B53 -> 595.8783627 | F53: =('Irr Peanuts'!$G$51+($C53-$C$55)*(SUM('Irr Peanuts'!$D$27:$D$28)))/$C53 -> 739.4710163 | G53: =('Irr Peanuts'!$F$65+($B53-$B$55)*(SUM('Irr Peanuts'!$D$27:$D$28)))/$B53 -> 724.3642886 | H53: =('Irr Peanuts'!$G$65+($C53-$C$55)*(SUM('Irr Peanuts'!$D$27:$D$28)))/$C53 -> 850.6130837 | I53: =IF($D53=0, "N/A", ('Irr Peanuts'!$H$65+($D53-$D$55)*(SUM('Irr Peanuts'!$D$27:$D$28)))/$D53) -> 468.0409773
A54: 0.9 | B54: ='Irr Peanuts'!$B$9*$A54 -> 2.025 | C54: ='Irr Peanuts'!$B$9*(1-'Irr Peanuts'!$E$9)*$A54 -> 1.35675 | D54: ='Irr Peanuts'!$B$9*'Irr Peanuts'!$E$9*$A54 -> 0.66825 | E54: =('Irr Peanuts'!$F$51+($B54-$B$55)*(SUM('Irr Peanuts'!$D$27:$D$28)))/$B54 -> 511.2636356 | F54: =('Irr Peanuts'!$G$51+($C54-$C$55)*(SUM('Irr Peanuts'!$D$27:$D$28)))/$C54 -> 630.9241802 | G54: =('Irr Peanuts'!$F$65+($B54-$B$55)*(SUM('Irr Peanuts'!$D$27:$D$28)))/$B54 -> 618.3352405 | H54: =('Irr Peanuts'!$G$65+($C54-$C$55)*(SUM('Irr Peanuts'!$D$27:$D$28)))/$C54 -> 723.5425697 | I54: =IF($D54=0, "N/A", ('Irr Peanuts'!$H$65+($D54-$D$55)*(SUM('Irr Peanuts'!$D$27:$D$28)))/$D54) -> 404.7324811
A55: 1 | B55: ='Irr Peanuts'!$B$9*$A55 -> 2.25 | C55: ='Irr Peanuts'!$B$9*(1-'Irr Peanuts'!$E$9)*$A55 -> 1.5075 | D55: ='Irr Peanuts'!$B$9*'Irr Peanuts'!$E$9*$A55 -> 0.7425 | E55: =('Irr Peanuts'!$F$51+($B55-$B$55)*(SUM('Irr Peanuts'!$D$27:$D$28)))/$B55 -> 468.956272 | F55: =('Irr Peanuts'!$G$51+($C55-$C$55)*(SUM('Irr Peanuts'!$D$27:$D$28)))/$C55 -> 576.6507622 | G55: =('Irr Peanuts'!$F$65+($B55-$B$55)*(SUM('Irr Peanuts'!$D$27:$D$28)))/$B55 -> 565.3207164 | H55: =('Irr Peanuts'!$G$65+($C55-$C$55)*(SUM('Irr Peanuts'!$D$27:$D$28)))/$C55 -> 660.0073128 | I55: =IF($D55=0, "N/A", ('Irr Peanuts'!$H$65+($D55-$D$55)*(SUM('Irr Peanuts'!$D$27:$D$28)))/$D55) -> 373.078233
A56: 1.1 | B56: ='Irr Peanuts'!$B$9*$A56 -> 2.475 | C56: ='Irr Peanuts'!$B$9*(1-'Irr Peanuts'!$E$9)*$A56 -> 1.65825 | D56: ='Irr Peanuts'!$B$9*'Irr Peanuts'!$E$9*$A56 -> 0.81675 | E56: =('Irr Peanuts'!$F$51+($B56-$B$55)*(SUM('Irr Peanuts'!$D$27:$D$28)))/$B56 -> 434.3411564 | F56: =('Irr Peanuts'!$G$51+($C56-$C$55)*(SUM('Irr Peanuts'!$D$27:$D$28)))/$C56 -> 532.2452384 | G56: =('Irr Peanuts'!$F$65+($B56-$B$55)*(SUM('Irr Peanuts'!$D$27:$D$28)))/$B56 -> 521.9451968 | H56: =('Irr Peanuts'!$G$65+($C56-$C$55)*(SUM('Irr Peanuts'!$D$27:$D$28)))/$C56 -> 608.0239207 | I56: =IF($D56=0, "N/A", ('Irr Peanuts'!$H$65+($D56-$D$55)*(SUM('Irr Peanuts'!$D$27:$D$28)))/$D56) -> 347.1793027
A57: 1.25 | B57: ='Irr Peanuts'!$B$9*$A57 -> 2.8125 | C57: ='Irr Peanuts'!$B$9*(1-'Irr Peanuts'!$E$9)*$A57 -> 1.884375 | D57: ='Irr Peanuts'!$B$9*'Irr Peanuts'!$E$9*$A57 -> 0.928125 | E57: =('Irr Peanuts'!$F$51+($B57-$B$55)*(SUM('Irr Peanuts'!$D$27:$D$28)))/$B57 -> 392.8030176 | F57: =('Irr Peanuts'!$G$51+($C57-$C$55)*(SUM('Irr Peanuts'!$D$27:$D$28)))/$C57 -> 478.9586098 | G57: =('Irr Peanuts'!$F$65+($B57-$B$55)*(SUM('Irr Peanuts'!$D$27:$D$28)))/$B57 -> 469.8945732 | H57: =('Irr Peanuts'!$G$65+($C57-$C$55)*(SUM('Irr Peanuts'!$D$27:$D$28)))/$C57 -> 545.6438502 | I57: =IF($D57=0, "N/A", ('Irr Peanuts'!$H$65+($D57-$D$55)*(SUM('Irr Peanuts'!$D$27:$D$28)))/$D57) -> 316.1005864
A59: ='Irr Sorghum'!A3:H3 -> Irrigated Sorghum
E60: BE Price to Cover Variable Costs | G60: BE Price to Cover Total Costs
A61: Yield | B61: CWT | E61: Total | F61: Tenant | G61: Total | H61: Tenant | I61: Landlord
A62: 0.75 | B62: ='Irr Sorghum'!$B$9*$A62 -> 45 | C62: ='Irr Sorghum'!$B$9*(1-'Irr Sorghum'!$E$9)*$A62 -> 30.15 | D62: ='Irr Sorghum'!$B$9*'Irr Sorghum'!$E$9*$A62 -> 14.85 | E62: =('Irr Sorghum'!$F$46-'Irr Sorghum'!$F$10+($B62-$B$64)*'Irr Sorghum'!$D$24)/$B62 -> 14.881942 | F62: =('Irr Sorghum'!$G$46-'Irr Sorghum'!$F$10+($C62-$C$64)*'Irr Sorghum'!$D$24)/$C62 -> 16.60629403 | G62: =('Irr Sorghum'!$F$60-'Irr Sorghum'!$F$10+($B62-$B$64)*'Irr Sorghum'!$D$24)/$B62 -> 19.33171978 | H62: =('Irr Sorghum'!$G$60-'Irr Sorghum'!$F$10+($C62-$C$64)*'Irr Sorghum'!$D$24)/$C62 -> 20.31243002 | I62: =IF($D62=0, "N/A", ('Irr Sorghum'!$H$60-'Irr Sorghum'!$F$10+($D62-$D$64)*'Irr Sorghum'!$D$24)/$D62) -> 17.3405808
A63: 0.9 | B63: ='Irr Sorghum'!$B$9*$A63 -> 54 | C63: ='Irr Sorghum'!$B$9*(1-'Irr Sorghum'!$E$9)*$A63 -> 36.18 | D63: ='Irr Sorghum'!$B$9*'Irr Sorghum'!$E$9*$A63 -> 17.82 | E63: =('Irr Sorghum'!$F$46-'Irr Sorghum'!$F$10+($B63-$B$64)*'Irr Sorghum'!$D$24)/$B63 -> 12.59161833 | F63: =('Irr Sorghum'!$G$46-'Irr Sorghum'!$F$10+($C63-$C$64)*'Irr Sorghum'!$D$24)/$C63 -> 14.02857836 | G63: =('Irr Sorghum'!$F$60-'Irr Sorghum'!$F$10+($B63-$B$64)*'Irr Sorghum'!$D$24)/$B63 -> 16.29976648 | H63: =('Irr Sorghum'!$G$60-'Irr Sorghum'!$F$10+($C63-$C$64)*'Irr Sorghum'!$D$24)/$C63 -> 17.11702502 | I63: =IF($D63=0, "N/A", ('Irr Sorghum'!$H$60-'Irr Sorghum'!$F$10+($D63-$D$64)*'Irr Sorghum'!$D$24)/$D63) -> 14.640484
A64: 1 | B64: ='Irr Sorghum'!$B$9*$A64 -> 60 | C64: ='Irr Sorghum'!$B$9*(1-'Irr Sorghum'!$E$9)*$A64 -> 40.2 | D64: ='Irr Sorghum'!$B$9*'Irr Sorghum'!$E$9*$A64 -> 19.8 | E64: =('Irr Sorghum'!$F$46-'Irr Sorghum'!$F$10+($B64-$B$64)*'Irr Sorghum'!$D$24)/$B64 -> 11.4464565 | F64: =('Irr Sorghum'!$G$46-'Irr Sorghum'!$F$10+($C64-$C$64)*'Irr Sorghum'!$D$24)/$C64 -> 12.73972052 | G64: =('Irr Sorghum'!$F$60-'Irr Sorghum'!$F$10+($B64-$B$64)*'Irr Sorghum'!$D$24)/$B64 -> 14.78378983 | H64: =('Irr Sorghum'!$G$60-'Irr Sorghum'!$F$10+($C64-$C$64)*'Irr Sorghum'!$D$24)/$C64 -> 15.51932251 | I64: =IF($D64=0, "N/A", ('Irr Sorghum'!$H$60-'Irr Sorghum'!$F$10+($D64-$D$64)*'Irr Sorghum'!$D$24)/$D64) -> 13.2904356
A65: 1.1 | B65: ='Irr Sorghum'!$B$9*$A65 -> 66 | C65: ='Irr Sorghum'!$B$9*(1-'Irr Sorghum'!$E$9)*$A65 -> 44.22 | D65: ='Irr Sorghum'!$B$9*'Irr Sorghum'!$E$9*$A65 -> 21.78 | E65: =('Irr Sorghum'!$F$46-'Irr Sorghum'!$F$10+($B65-$B$64)*'Irr Sorghum'!$D$24)/$B65 -> 10.50950591 | F65: =('Irr Sorghum'!$G$46-'Irr Sorghum'!$F$10+($C65-$C$64)*'Irr Sorghum'!$D$24)/$C65 -> 11.68520048 | G65: =('Irr Sorghum'!$F$60-'Irr Sorghum'!$F$10+($B65-$B$64)*'Irr Sorghum'!$D$24)/$B65 -> 13.5434453 | H65: =('Irr Sorghum'!$G$60-'Irr Sorghum'!$F$10+($C65-$C$64)*'Irr Sorghum'!$D$24)/$C65 -> 14.21211138 | I65: =IF($D65=0, "N/A", ('Irr Sorghum'!$H$60-'Irr Sorghum'!$F$10+($D65-$D$64)*'Irr Sorghum'!$D$24)/$D65) -> 12.18585055
A66: 1.25 | B66: ='Irr Sorghum'!$B$9*$A66 -> 75 | C66: ='Irr Sorghum'!$B$9*(1-'Irr Sorghum'!$E$9)*$A66 -> 50.25 | D66: ='Irr Sorghum'!$B$9*'Irr Sorghum'!$E$9*$A66 -> 24.75 | E66: =('Irr Sorghum'!$F$46-'Irr Sorghum'!$F$10+($B66-$B$64)*'Irr Sorghum'!$D$24)/$B66 -> 9.3851652 | F66: =('Irr Sorghum'!$G$46-'Irr Sorghum'!$F$10+($C66-$C$64)*'Irr Sorghum'!$D$24)/$C66 -> 10.41977642 | G66: =('Irr Sorghum'!$F$60-'Irr Sorghum'!$F$10+($B66-$B$64)*'Irr Sorghum'!$D$24)/$B66 -> 12.05503187 | H66: =('Irr Sorghum'!$G$60-'Irr Sorghum'!$F$10+($C66-$C$64)*'Irr Sorghum'!$D$24)/$C66 -> 12.64345801 | I66: =IF($D66=0, "N/A", ('Irr Sorghum'!$H$60-'Irr Sorghum'!$F$10+($D66-$D$64)*'Irr Sorghum'!$D$24)/$D66) -> 10.86034848
A68: ='Irr Sorghum Seed'!A3:H3 -> Irrigated Sorghum Seed
E69: BE Price to Cover Variable Costs | G69: BE Price to Cover Total Costs
A70: Yield | B70: CWT | E70: Total | F70: Tenant | G70: Total | H70: Tenant | I70: Landlord
A71: 0.75 | B71: ='Irr Sorghum Seed'!$B$9*$A71 -> 33.75 | C71: ='Irr Sorghum Seed'!$B$9*(1-'Irr Sorghum Seed'!$E$9)*$A71 -> 22.6125 | D71: ='Irr Sorghum Seed'!$B$9*'Irr Sorghum Seed'!$E$9*$A71 -> 11.1375 | E71: =('Irr Sorghum Seed'!$F$46-'Irr Sorghum'!$F$10+($B71-$B$73)*'Irr Sorghum Seed'!$D$24)/$B71 -> 22.41862432 | F71: =('Irr Sorghum Seed'!$G$46-'Irr Sorghum'!$F$10+($C71-$C$73)*'Irr Sorghum Seed'!$D$24)/$C71 -> 24.71523582 | G71: =('Irr Sorghum Seed'!$F$60-'Irr Sorghum'!$F$10+($B71-$B$73)*'Irr Sorghum Seed'!$D$24)/$B71 -> 28.02632802 | H71: =('Irr Sorghum Seed'!$G$60-'Irr Sorghum'!$F$10+($C71-$C$73)*'Irr Sorghum Seed'!$D$24)/$C71 -> 29.17117833 | I71: =IF($D71=0, "N/A", ('Irr Sorghum Seed'!$H$60-'Irr Sorghum'!$F$10+($D71-$D$73)*'Irr Sorghum Seed'!$D$24)/$D71) -> 25.70193497
A72: 0.9 | B72: ='Irr Sorghum Seed'!$B$9*$A72 -> 40.5 | C72: ='Irr Sorghum Seed'!$B$9*(1-'Irr Sorghum Seed'!$E$9)*$A72 -> 27.135 | D72: ='Irr Sorghum Seed'!$B$9*'Irr Sorghum Seed'!$E$9*$A72 -> 13.365 | E72: =('Irr Sorghum Seed'!$F$46-'Irr Sorghum'!$F$10+($B72-$B$73)*'Irr Sorghum Seed'!$D$24)/$B72 -> 18.87218693 | F72: =('Irr Sorghum Seed'!$G$46-'Irr Sorghum'!$F$10+($C72-$C$73)*'Irr Sorghum Seed'!$D$24)/$C72 -> 20.78602985 | G72: =('Irr Sorghum Seed'!$F$60-'Irr Sorghum'!$F$10+($B72-$B$73)*'Irr Sorghum Seed'!$D$24)/$B72 -> 23.54527335 | H72: =('Irr Sorghum Seed'!$G$60-'Irr Sorghum'!$F$10+($C72-$C$73)*'Irr Sorghum Seed'!$D$24)/$C72 -> 24.49931527 | I72: =IF($D72=0, "N/A", ('Irr Sorghum Seed'!$H$60-'Irr Sorghum'!$F$10+($D72-$D$73)*'Irr Sorghum Seed'!$D$24)/$D72) -> 21.60827914
A73: 1 | B73: ='Irr Sorghum Seed'!$B$9*$A73 -> 45 | C73: ='Irr Sorghum Seed'!$B$9*(1-'Irr Sorghum Seed'!$E$9)*$A73 -> 30.15 | D73: ='Irr Sorghum Seed'!$B$9*'Irr Sorghum Seed'!$E$9*$A73 -> 14.85 | E73: =('Irr Sorghum Seed'!$F$46-'Irr Sorghum'!$F$10+($B73-$B$73)*'Irr Sorghum Seed'!$D$24)/$B73 -> 17.09896824 | F73: =('Irr Sorghum Seed'!$G$46-'Irr Sorghum'!$F$10+($C73-$C$73)*'Irr Sorghum Seed'!$D$24)/$C73 -> 18.82142686 | G73: =('Irr Sorghum Seed'!$F$60-'Irr Sorghum'!$F$10+($B73-$B$73)*'Irr Sorghum Seed'!$D$24)/$B73 -> 21.30474601 | H73: =('Irr Sorghum Seed'!$G$60-'Irr Sorghum'!$F$10+($C73-$C$73)*'Irr Sorghum Seed'!$D$24)/$C73 -> 22.16338375 | I73: =IF($D73=0, "N/A", ('Irr Sorghum Seed'!$H$60-'Irr Sorghum'!$F$10+($D73-$D$73)*'Irr Sorghum Seed'!$D$24)/$D73) -> 19.56145123
A74: 1.1 | B74: ='Irr Sorghum Seed'!$B$9*$A74 -> 49.5 | C74: ='Irr Sorghum Seed'!$B$9*(1-'Irr Sorghum Seed'!$E$9)*$A74 -> 33.165 | D74: ='Irr Sorghum Seed'!$B$9*'Irr Sorghum Seed'!$E$9*$A74 -> 16.335 | E74: =('Irr Sorghum Seed'!$F$46-'Irr Sorghum'!$F$10+($B74-$B$73)*'Irr Sorghum Seed'!$D$24)/$B74 -> 15.64815294 | F74: =('Irr Sorghum Seed'!$G$46-'Irr Sorghum'!$F$10+($C74-$C$73)*'Irr Sorghum Seed'!$D$24)/$C74 -> 17.21402442 | G74: =('Irr Sorghum Seed'!$F$60-'Irr Sorghum'!$F$10+($B74-$B$73)*'Irr Sorghum Seed'!$D$24)/$B74 -> 19.47158729 | H74: =('Irr Sorghum Seed'!$G$60-'Irr Sorghum'!$F$10+($C74-$C$73)*'Irr Sorghum Seed'!$D$24)/$C74 -> 20.25216704 | I74: =IF($D74=0, "N/A", ('Irr Sorghum Seed'!$H$60-'Irr Sorghum'!$F$10+($D74-$D$73)*'Irr Sorghum Seed'!$D$24)/$D74) -> 17.88677384
A75: 1.25 | B75: ='Irr Sorghum Seed'!$B$9*$A75 -> 56.25 | C75: ='Irr Sorghum Seed'!$B$9*(1-'Irr Sorghum Seed'!$E$9)*$A75 -> 37.6875 | D75: ='Irr Sorghum Seed'!$B$9*'Irr Sorghum Seed'!$E$9*$A75 -> 18.5625 | E75: =('Irr Sorghum Seed'!$F$46-'Irr Sorghum'!$F$10+($B75-$B$73)*'Irr Sorghum Seed'!$D$24)/$B75 -> 13.90717459 | F75: =('Irr Sorghum Seed'!$G$46-'Irr Sorghum'!$F$10+($C75-$C$73)*'Irr Sorghum Seed'!$D$24)/$C75 -> 15.28514149 | G75: =('Irr Sorghum Seed'!$F$60-'Irr Sorghum'!$F$10+($B75-$B$73)*'Irr Sorghum Seed'!$D$24)/$B75 -> 17.27179681 | H75: =('Irr Sorghum Seed'!$G$60-'Irr Sorghum'!$F$10+($C75-$C$73)*'Irr Sorghum Seed'!$D$24)/$C75 -> 17.958707 | I75: =IF($D75=0, "N/A", ('Irr Sorghum Seed'!$H$60-'Irr Sorghum'!$F$10+($D75-$D$73)*'Irr Sorghum Seed'!$D$24)/$D75) -> 15.87716098
A77: ='Irr Sorghum Silage'!A3:H3 -> Irrigated Sorghum Silage
E78: BE Price to Cover Variable Costs | G78: BE Price to Cover Total Costs
A79: Yield | B79: TON | E79: Total | F79: Tenant | G79: Total | H79: Tenant | I79: Landlord
A80: 0.75 | B80: ='Irr Sorghum Silage'!$B$9*$A80 -> 15.75 | C80: ='Irr Sorghum Silage'!$B$9*(1-'Irr Sorghum Silage'!$E$9)*$A80 -> 10.5525 | D80: ='Irr Sorghum Silage'!$B$9*'Irr Sorghum Silage'!$E$9*$A80 -> 5.1975 | E80: =('Irr Sorghum Silage'!F$46+(B80-B$82)*('Irr Sorghum Silage'!$D$24))/B80 -> 50.72120105 | F80: =('Irr Sorghum Silage'!G$46+(C80-C$82)*('Irr Sorghum Silage'!$D$24))/C80 -> 66.199798 | G80: =('Irr Sorghum Silage'!F$60+(B80-B$82)*('Irr Sorghum Silage'!$D$24))/B80 -> 62.50850263 | H80: =('Irr Sorghum Silage'!G$60+(C80-C$82)*('Irr Sorghum Silage'!$D$24))/C80 -> 75.40614721 | I80: =IF($D80=0,"N/A",('Irr Sorghum Silage'!H$60+(D80-D$82)*('Irr Sorghum Silage'!$D$24))/D80) -> 36.32237577
A81: 0.9 | B81: ='Irr Sorghum Silage'!$B$9*$A81 -> 18.9 | C81: ='Irr Sorghum Silage'!$B$9*(1-'Irr Sorghum Silage'!$E$9)*$A81 -> 12.663 | D81: ='Irr Sorghum Silage'!$B$9*'Irr Sorghum Silage'!$E$9*$A81 -> 6.237 | E81: =('Irr Sorghum Silage'!F$46+(B81-B$82)*('Irr Sorghum Silage'!$D$24))/B81 -> 44.2943342 | F81: =('Irr Sorghum Silage'!G$46+(C81-C$82)*('Irr Sorghum Silage'!$D$24))/C81 -> 57.193165 | G81: =('Irr Sorghum Silage'!F$60+(B81-B$82)*('Irr Sorghum Silage'!$D$24))/B81 -> 54.11708553 | H81: =('Irr Sorghum Silage'!G$60+(C81-C$82)*('Irr Sorghum Silage'!$D$24))/C81 -> 64.86512267 | I81: =IF($D81=0,"N/A",('Irr Sorghum Silage'!H$60+(D81-D$82)*('Irr Sorghum Silage'!$D$24))/D81) -> 32.29531314
A82: 1 | B82: ='Irr Sorghum Silage'!$B$9*$A82 -> 21 | C82: ='Irr Sorghum Silage'!$B$9*(1-'Irr Sorghum Silage'!$E$9)*$A82 -> 14.07 | D82: ='Irr Sorghum Silage'!$B$9*'Irr Sorghum Silage'!$E$9*$A82 -> 6.93 | E82: =('Irr Sorghum Silage'!F$46+(B82-B$82)*('Irr Sorghum Silage'!$D$24))/B82 -> 41.08090078 | F82: =('Irr Sorghum Silage'!G$46+(C82-C$82)*('Irr Sorghum Silage'!$D$24))/C82 -> 52.6898485 | G82: =('Irr Sorghum Silage'!F$60+(B82-B$82)*('Irr Sorghum Silage'!$D$24))/B82 -> 49.92137697 | H82: =('Irr Sorghum Silage'!G$60+(C82-C$82)*('Irr Sorghum Silage'!$D$24))/C82 -> 59.5946104 | I82: =IF($D82=0,"N/A",('Irr Sorghum Silage'!H$60+(D82-D$82)*('Irr Sorghum Silage'!$D$24))/D82) -> 30.28178183
A83: 1.1 | B83: ='Irr Sorghum Silage'!$B$9*$A83 -> 23.1 | C83: ='Irr Sorghum Silage'!$B$9*(1-'Irr Sorghum Silage'!$E$9)*$A83 -> 15.477 | D83: ='Irr Sorghum Silage'!$B$9*'Irr Sorghum Silage'!$E$9*$A83 -> 7.623 | E83: =('Irr Sorghum Silage'!F$46+(B83-B$82)*('Irr Sorghum Silage'!$D$24))/B83 -> 38.45172799 | F83: =('Irr Sorghum Silage'!G$46+(C83-C$82)*('Irr Sorghum Silage'!$D$24))/C83 -> 49.00531682 | G83: =('Irr Sorghum Silage'!F$60+(B83-B$82)*('Irr Sorghum Silage'!$D$24))/B83 -> 46.48852452 | H83: =('Irr Sorghum Silage'!G$60+(C83-C$82)*('Irr Sorghum Silage'!$D$24))/C83 -> 55.2823731 | I83: =IF($D83=0,"N/A",('Irr Sorghum Silage'!H$60+(D83-D$82)*('Irr Sorghum Silage'!$D$24))/D83) -> 28.63434712
A84: 1.25 | B84: ='Irr Sorghum Silage'!$B$9*$A84 -> 26.25 | C84: ='Irr Sorghum Silage'!$B$9*(1-'Irr Sorghum Silage'!$E$9)*$A84 -> 17.5875 | D84: ='Irr Sorghum Silage'!$B$9*'Irr Sorghum Silage'!$E$9*$A84 -> 8.6625 | E84: =('Irr Sorghum Silage'!F$46+(B84-B$82)*('Irr Sorghum Silage'!$D$24))/B84 -> 35.29672063 | F84: =('Irr Sorghum Silage'!G$46+(C84-C$82)*('Irr Sorghum Silage'!$D$24))/C84 -> 44.5838788 | G84: =('Irr Sorghum Silage'!F$60+(B84-B$82)*('Irr Sorghum Silage'!$D$24))/B84 -> 42.36910158 | H84: =('Irr Sorghum Silage'!G$60+(C84-C$82)*('Irr Sorghum Silage'!$D$24))/C84 -> 50.10768832 | I84: =IF($D84=0,"N/A",('Irr Sorghum Silage'!H$60+(D84-D$82)*('Irr Sorghum Silage'!$D$24))/D84) -> 26.65742546
A86: ='Irr Sorghum Sudangrass'!A3:H3 -> Irrigated Sorghum Sudangrass
E87: BE Price to Cover Variable Costs | G87: BE Price to Cover Total Costs
A88: Yield | B88: LB | E88: Total | F88: Tenant | G88: Total | H88: Tenant | I88: Landlord
A89: 0.75 | B89: ='Irr Sorghum Sudangrass'!$B$9*$A89 -> 600 | C89: ='Irr Sorghum Sudangrass'!$B$9*(1-'Irr Sorghum Sudangrass'!$E$9)*$A89 -> 402 | D89: ='Irr Sorghum Sudangrass'!$B$9*'Irr Sorghum Sudangrass'!$E$9*$A89 -> 198 | E89: =('Irr Sorghum Sudangrass'!F$46+(B89-B$91)*('Irr Sorghum Sudangrass'!$D$24))/B89 -> 0.7176203971 | F89: =('Irr Sorghum Sudangrass'!G$46+(C89-C$91)*('Irr Sorghum Sudangrass'!$D$24))/C89 -> 0.7954658327 | G89: =('Irr Sorghum Sudangrass'!F$60+(B89-B$91)*('Irr Sorghum Sudangrass'!$D$24))/B89 -> 1.006987064 | H89: =('Irr Sorghum Sudangrass'!G$60+(C89-C$91)*('Irr Sorghum Sudangrass'!$D$24))/C89 -> 1.007207126 | I89: =IF($D89=0,"N/A",('Irr Sorghum Sudangrass'!H$60+(D89-D$91)*('Irr Sorghum Sudangrass'!$D$24))/D89) -> 1.00654027
A90: 0.9 | B90: ='Irr Sorghum Sudangrass'!$B$9*$A90 -> 720 | C90: ='Irr Sorghum Sudangrass'!$B$9*(1-'Irr Sorghum Sudangrass'!$E$9)*$A90 -> 482.4 | D90: ='Irr Sorghum Sudangrass'!$B$9*'Irr Sorghum Sudangrass'!$E$9*$A90 -> 237.6 | E90: =('Irr Sorghum Sudangrass'!F$46+(B90-B$91)*('Irr Sorghum Sudangrass'!$D$24))/B90 -> 0.5980169975 | F90: =('Irr Sorghum Sudangrass'!G$46+(C90-C$91)*('Irr Sorghum Sudangrass'!$D$24))/C90 -> 0.6628881939 | G90: =('Irr Sorghum Sudangrass'!F$60+(B90-B$91)*('Irr Sorghum Sudangrass'!$D$24))/B90 -> 0.8391558864 | H90: =('Irr Sorghum Sudangrass'!G$60+(C90-C$91)*('Irr Sorghum Sudangrass'!$D$24))/C90 -> 0.8393392719 | I90: =IF($D90=0,"N/A",('Irr Sorghum Sudangrass'!H$60+(D90-D$91)*('Irr Sorghum Sudangrass'!$D$24))/D90) -> 0.8387835585
A91: 1 | B91: ='Irr Sorghum Sudangrass'!$B$9*$A91 -> 800 | C91: ='Irr Sorghum Sudangrass'!$B$9*(1-'Irr Sorghum Sudangrass'!$E$9)*$A91 -> 536 | D91: ='Irr Sorghum Sudangrass'!$B$9*'Irr Sorghum Sudangrass'!$E$9*$A91 -> 264 | E91: =('Irr Sorghum Sudangrass'!F$46+(B91-B$91)*('Irr Sorghum Sudangrass'!$D$24))/B91 -> 0.5382152978 | F91: =('Irr Sorghum Sudangrass'!G$46+(C91-C$91)*('Irr Sorghum Sudangrass'!$D$24))/C91 -> 0.5965993745 | G91: =('Irr Sorghum Sudangrass'!F$60+(B91-B$91)*('Irr Sorghum Sudangrass'!$D$24))/B91 -> 0.7552402978 | H91: =('Irr Sorghum Sudangrass'!G$60+(C91-C$91)*('Irr Sorghum Sudangrass'!$D$24))/C91 -> 0.7554053447 | I91: =IF($D91=0,"N/A",('Irr Sorghum Sudangrass'!H$60+(D91-D$91)*('Irr Sorghum Sudangrass'!$D$24))/D91) -> 0.7549052026
A92: 1.1 | B92: ='Irr Sorghum Sudangrass'!$B$9*$A92 -> 880 | C92: ='Irr Sorghum Sudangrass'!$B$9*(1-'Irr Sorghum Sudangrass'!$E$9)*$A92 -> 589.6 | D92: ='Irr Sorghum Sudangrass'!$B$9*'Irr Sorghum Sudangrass'!$E$9*$A92 -> 290.4 | E92: =('Irr Sorghum Sudangrass'!F$46+(B92-B$91)*('Irr Sorghum Sudangrass'!$D$24))/B92 -> 0.4892866344 | F92: =('Irr Sorghum Sudangrass'!G$46+(C92-C$91)*('Irr Sorghum Sudangrass'!$D$24))/C92 -> 0.5423630677 | G92: =('Irr Sorghum Sudangrass'!F$60+(B92-B$91)*('Irr Sorghum Sudangrass'!$D$24))/B92 -> 0.6865820889 | H92: =('Irr Sorghum Sudangrass'!G$60+(C92-C$91)*('Irr Sorghum Sudangrass'!$D$24))/C92 -> 0.6867321315 | I92: =IF($D92=0,"N/A",('Irr Sorghum Sudangrass'!H$60+(D92-D$91)*('Irr Sorghum Sudangrass'!$D$24))/D92) -> 0.6862774569
A93: 1.25 | B93: ='Irr Sorghum Sudangrass'!$B$9*$A93 -> 1000 | C93: ='Irr Sorghum Sudangrass'!$B$9*(1-'Irr Sorghum Sudangrass'!$E$9)*$A93 -> 670 | D93: ='Irr Sorghum Sudangrass'!$B$9*'Irr Sorghum Sudangrass'!$E$9*$A93 -> 330 | E93: =('Irr Sorghum Sudangrass'!F$46+(B93-B$91)*('Irr Sorghum Sudangrass'!$D$24))/B93 -> 0.4305722382 | F93: =('Irr Sorghum Sudangrass'!G$46+(C93-C$91)*('Irr Sorghum Sudangrass'!$D$24))/C93 -> 0.4772794996 | G93: =('Irr Sorghum Sudangrass'!F$60+(B93-B$91)*('Irr Sorghum Sudangrass'!$D$24))/B93 -> 0.6041922382 | H93: =('Irr Sorghum Sudangrass'!G$60+(C93-C$91)*('Irr Sorghum Sudangrass'!$D$24))/C93 -> 0.6043242757 | I93: =IF($D93=0,"N/A",('Irr Sorghum Sudangrass'!H$60+(D93-D$91)*('Irr Sorghum Sudangrass'!$D$24))/D93) -> 0.6039241621
A95: ='Irr Soybeans'!A3:H3 -> Irrigated Soybeans
E96: BE Price to Cover Variable Costs | G96: BE Price to Cover Total Costs
A97: Yield | B97: BU | E97: Total | F97: Tenant | G97: Total | H97: Tenant | I97: Landlord
A98: 0.75 | B98: ='Irr Soybeans'!$B$9*$A98 -> 45 | C98: ='Irr Soybeans'!$B$9*(1-'Irr Soybeans'!$E$9)*$A98 -> 30.15 | D98: ='Irr Soybeans'!$B$9*'Irr Soybeans'!$E$9*$A98 -> 14.85 | E98: =('Irr Soybeans'!F$49+(B98-B$100)*('Irr Soybeans'!$D$27))/B98 -> 10.96473676 | F98: =('Irr Soybeans'!G$49+(C98-C$100)*('Irr Soybeans'!$D$27))/C98 -> 13.43624078 | G98: =('Irr Soybeans'!F$63+(B98-B$100)*('Irr Soybeans'!$D$27))/B98 -> 15.11740343 | H98: =('Irr Soybeans'!G$63+(C98-C$100)*('Irr Soybeans'!$D$27))/C98 -> 16.69892735 | I98: =IF($D98=0,"N/A",('Irr Soybeans'!H$63+(D98-D$100)*('Irr Soybeans'!$D$27))/D98) -> 11.90643063
A99: 0.9 | B99: ='Irr Soybeans'!$B$9*$A99 -> 54 | C99: ='Irr Soybeans'!$B$9*(1-'Irr Soybeans'!$E$9)*$A99 -> 36.18 | D99: ='Irr Soybeans'!$B$9*'Irr Soybeans'!$E$9*$A99 -> 17.82 | E99: =('Irr Soybeans'!F$49+(B99-B$100)*('Irr Soybeans'!$D$27))/B99 -> 9.28561397 | F99: =('Irr Soybeans'!G$49+(C99-C$100)*('Irr Soybeans'!$D$27))/C99 -> 11.34520065 | G99: =('Irr Soybeans'!F$63+(B99-B$100)*('Irr Soybeans'!$D$27))/B99 -> 12.74616953 | H99: =('Irr Soybeans'!G$63+(C99-C$100)*('Irr Soybeans'!$D$27))/C99 -> 14.06410612 | I99: =IF($D99=0,"N/A",('Irr Soybeans'!H$63+(D99-D$100)*('Irr Soybeans'!$D$27))/D99) -> 10.07035886
A100: 1 | B100: ='Irr Soybeans'!$B$9*$A100 -> 60 | C100: ='Irr Soybeans'!$B$9*(1-'Irr Soybeans'!$E$9)*$A100 -> 40.2 | D100: ='Irr Soybeans'!$B$9*'Irr Soybeans'!$E$9*$A100 -> 19.8 | E100: =('Irr Soybeans'!F$49+(B100-B$100)*('Irr Soybeans'!$D$27))/B100 -> 8.446052573 | F100: =('Irr Soybeans'!G$49+(C100-C$100)*('Irr Soybeans'!$D$27))/C100 -> 10.29968059 | G100: =('Irr Soybeans'!F$63+(B100-B$100)*('Irr Soybeans'!$D$27))/B100 -> 11.56055257 | H100: =('Irr Soybeans'!G$63+(C100-C$100)*('Irr Soybeans'!$D$27))/C100 -> 12.74669551 | I100: =IF($D100=0,"N/A",('Irr Soybeans'!H$63+(D100-D$100)*('Irr Soybeans'!$D$27))/D100) -> 9.15232297
A101: 1.1 | B101: ='Irr Soybeans'!$B$9*$A101 -> 66 | C101: ='Irr Soybeans'!$B$9*(1-'Irr Soybeans'!$E$9)*$A101 -> 44.22 | D101: ='Irr Soybeans'!$B$9*'Irr Soybeans'!$E$9*$A101 -> 21.78 | E101: =('Irr Soybeans'!F$49+(B101-B$100)*('Irr Soybeans'!$D$27))/B101 -> 7.759138703 | F101: =('Irr Soybeans'!G$49+(C101-C$100)*('Irr Soybeans'!$D$27))/C101 -> 9.444255079 | G101: =('Irr Soybeans'!F$63+(B101-B$100)*('Irr Soybeans'!$D$27))/B101 -> 10.59050234 | H101: =('Irr Soybeans'!G$63+(C101-C$100)*('Irr Soybeans'!$D$27))/C101 -> 11.6688141 | I101: =IF($D101=0,"N/A",('Irr Soybeans'!H$63+(D101-D$100)*('Irr Soybeans'!$D$27))/D101) -> 8.4012027
A102: 1.25 | B102: ='Irr Soybeans'!$B$9*$A102 -> 75 | C102: ='Irr Soybeans'!$B$9*(1-'Irr Soybeans'!$E$9)*$A102 -> 50.25 | D102: ='Irr Soybeans'!$B$9*'Irr Soybeans'!$E$9*$A102 -> 24.75 | E102: =('Irr Soybeans'!F$49+(B102-B$100)*('Irr Soybeans'!$D$27))/B102 -> 6.934842059 | F102: =('Irr Soybeans'!G$49+(C102-C$100)*('Irr Soybeans'!$D$27))/C102 -> 8.41774447 | G102: =('Irr Soybeans'!F$63+(B102-B$100)*('Irr Soybeans'!$D$27))/B102 -> 9.426442059 | H102: =('Irr Soybeans'!G$63+(C102-C$100)*('Irr Soybeans'!$D$27))/C102 -> 10.37535641 | I102: =IF($D102=0,"N/A",('Irr Soybeans'!H$63+(D102-D$100)*('Irr Soybeans'!$D$27))/D102) -> 7.499858376
A104: ='Irr Sunflowers-Confection'!A3:H3 -> Irrigated Sunflowers-Confectionary
E105: BE Price to Cover Variable Costs | G105: BE Price to Cover Total Costs
A106: Yield | B106: CWT | E106: Total | F106: Tenant | G106: Total | H106: Tenant | I106: Landlord
A107: 0.75 | B107: ='Irr Sunflowers-Confection'!$B$9*$A107 -> 13.5 | C107: ='Irr Sunflowers-Confection'!$B$9*(1-'Irr Sunflowers-Confection'!$E$9)*$A107 -> 9.045 | D107: ='Irr Sunflowers-Confection'!$B$9*'Irr Sunflowers-Confection'!$E$9*$A107 -> 4.455 | E107: =('Irr Sunflowers-Confection'!F$49+(B107-B$109)*('Irr Sunflowers-Confection'!$D$26))/B107 -> 46.55219456 | F107: =('Irr Sunflowers-Confection'!G$49+(C107-C$109)*('Irr Sunflowers-Confection'!$D$26))/C107 -> 52.69319152 | G107: =('Irr Sunflowers-Confection'!F$63+(B107-B$109)*('Irr Sunflowers-Confection'!$D$26))/B107 -> 59.08330567 | H107: =('Irr Sunflowers-Confection'!G$63+(C107-C$109)*('Irr Sunflowers-Confection'!$D$26))/C107 -> 61.61193115 | I107: =IF($D107=0, "N/A", ('Irr Sunflowers-Confection'!H$63+(D107-D$109)*('Irr Sunflowers-Confection'!$D$26))/D107) -> 53.94942968
A108: 0.9 | B108: ='Irr Sunflowers-Confection'!$B$9*$A108 -> 16.2 | C108: ='Irr Sunflowers-Confection'!$B$9*(1-'Irr Sunflowers-Confection'!$E$9)*$A108 -> 10.854 | D108: ='Irr Sunflowers-Confection'!$B$9*'Irr Sunflowers-Confection'!$E$9*$A108 -> 5.346 | E108: =('Irr Sunflowers-Confection'!F$49+(B108-B$109)*('Irr Sunflowers-Confection'!$D$26))/B108 -> 38.8968288 | F108: =('Irr Sunflowers-Confection'!G$49+(C108-C$109)*('Irr Sunflowers-Confection'!$D$26))/C108 -> 44.01432626 | G108: =('Irr Sunflowers-Confection'!F$63+(B108-B$109)*('Irr Sunflowers-Confection'!$D$26))/B108 -> 49.33942139 | H108: =('Irr Sunflowers-Confection'!G$63+(C108-C$109)*('Irr Sunflowers-Confection'!$D$26))/C108 -> 51.44660929 | I108: =IF($D108=0, "N/A", ('Irr Sunflowers-Confection'!H$63+(D108-D$109)*('Irr Sunflowers-Confection'!$D$26))/D108) -> 45.0611914
A109: 1 | B109: ='Irr Sunflowers-Confection'!$B$9*$A109 -> 18 | C109: ='Irr Sunflowers-Confection'!$B$9*(1-'Irr Sunflowers-Confection'!$E$9)*$A109 -> 12.06 | D109: ='Irr Sunflowers-Confection'!$B$9*'Irr Sunflowers-Confection'!$E$9*$A109 -> 5.94 | E109: =('Irr Sunflowers-Confection'!F$49+(B109-B$109)*('Irr Sunflowers-Confection'!$D$26))/B109 -> 35.06914592 | F109: =('Irr Sunflowers-Confection'!G$49+(C109-C$109)*('Irr Sunflowers-Confection'!$D$26))/C109 -> 39.67489364 | G109: =('Irr Sunflowers-Confection'!F$63+(B109-B$109)*('Irr Sunflowers-Confection'!$D$26))/B109 -> 44.46747925 | H109: =('Irr Sunflowers-Confection'!G$63+(C109-C$109)*('Irr Sunflowers-Confection'!$D$26))/C109 -> 46.36394836 | I109: =IF($D109=0, "N/A", ('Irr Sunflowers-Confection'!H$63+(D109-D$109)*('Irr Sunflowers-Confection'!$D$26))/D109) -> 40.61707226
A110: 1.1 | B110: ='Irr Sunflowers-Confection'!$B$9*$A110 -> 19.8 | C110: ='Irr Sunflowers-Confection'!$B$9*(1-'Irr Sunflowers-Confection'!$E$9)*$A110 -> 13.266 | D110: ='Irr Sunflowers-Confection'!$B$9*'Irr Sunflowers-Confection'!$E$9*$A110 -> 6.534 | E110: =('Irr Sunflowers-Confection'!F$49+(B110-B$109)*('Irr Sunflowers-Confection'!$D$26))/B110 -> 31.93740538 | F110: =('Irr Sunflowers-Confection'!G$49+(C110-C$109)*('Irr Sunflowers-Confection'!$D$26))/C110 -> 36.12444876 | G110: =('Irr Sunflowers-Confection'!F$63+(B110-B$109)*('Irr Sunflowers-Confection'!$D$26))/B110 -> 40.48134477 | H110: =('Irr Sunflowers-Confection'!G$63+(C110-C$109)*('Irr Sunflowers-Confection'!$D$26))/C110 -> 42.2054076 | I110: =IF($D110=0, "N/A", ('Irr Sunflowers-Confection'!H$63+(D110-D$109)*('Irr Sunflowers-Confection'!$D$26))/D110) -> 36.98097478
A111: 1.25 | B111: ='Irr Sunflowers-Confection'!$B$9*$A111 -> 22.5 | C111: ='Irr Sunflowers-Confection'!$B$9*(1-'Irr Sunflowers-Confection'!$E$9)*$A111 -> 15.075 | D111: ='Irr Sunflowers-Confection'!$B$9*'Irr Sunflowers-Confection'!$E$9*$A111 -> 7.425 | E111: =('Irr Sunflowers-Confection'!F$49+(B111-B$109)*('Irr Sunflowers-Confection'!$D$26))/B111 -> 28.17931673 | F111: =('Irr Sunflowers-Confection'!G$49+(C111-C$109)*('Irr Sunflowers-Confection'!$D$26))/C111 -> 31.86391491 | G111: =('Irr Sunflowers-Confection'!F$63+(B111-B$109)*('Irr Sunflowers-Confection'!$D$26))/B111 -> 35.6979834 | H111: =('Irr Sunflowers-Confection'!G$63+(C111-C$109)*('Irr Sunflowers-Confection'!$D$26))/C111 -> 37.21515869 | I111: =IF($D111=0, "N/A", ('Irr Sunflowers-Confection'!H$63+(D111-D$109)*('Irr Sunflowers-Confection'!$D$26))/D111) -> 32.61765781
A113: ='Irr Sunflowers-Oilseed'!A3:H3 -> Irrigated Sunflowers-Oilseed
E114: BE Price to Cover Variable Costs | G114: BE Price to Cover Total Costs
A115: Yield | B115: CWT | E115: Total | F115: Tenant | G115: Total | H115: Tenant | I115: Landlord
A116: 0.75 | B116: ='Irr Sunflowers-Oilseed'!$B$9*$A116 -> 15 | C116: ='Irr Sunflowers-Oilseed'!$B$9*(1-'Irr Sunflowers-Oilseed'!$E$9)*$A116 -> 10.05 | D116: ='Irr Sunflowers-Oilseed'!$B$9*'Irr Sunflowers-Oilseed'!$E$9*$A116 -> 4.95 | E116: =('Irr Sunflowers-Oilseed'!F$48+(B116-B$118)*('Irr Sunflowers-Oilseed'!$D$25))/B116 -> 41.8087575 | F116: =('Irr Sunflowers-Oilseed'!G$48+(C116-C$118)*('Irr Sunflowers-Oilseed'!$D$25))/C116 -> 45.78320132 | G116: =('Irr Sunflowers-Oilseed'!F$62+(B116-B$118)*('Irr Sunflowers-Oilseed'!$D$25))/B116 -> 53.0867575 | H116: =('Irr Sunflowers-Oilseed'!G$62+(C116-C$118)*('Irr Sunflowers-Oilseed'!$D$25))/C116 -> 53.81006699 | I116: =IF($D116=0, "N/A", ('Irr Sunflowers-Oilseed'!H$62+(D116-D$118)*('Irr Sunflowers-Oilseed'!$D$25))/D116) -> 51.61822005
A117: 0.9 | B117: ='Irr Sunflowers-Oilseed'!$B$9*$A117 -> 18 | C117: ='Irr Sunflowers-Oilseed'!$B$9*(1-'Irr Sunflowers-Oilseed'!$E$9)*$A117 -> 12.06 | D117: ='Irr Sunflowers-Oilseed'!$B$9*'Irr Sunflowers-Oilseed'!$E$9*$A117 -> 5.94 | E117: =('Irr Sunflowers-Oilseed'!F$48+(B117-B$118)*('Irr Sunflowers-Oilseed'!$D$25))/B117 -> 34.94396458 | F117: =('Irr Sunflowers-Oilseed'!G$48+(C117-C$118)*('Irr Sunflowers-Oilseed'!$D$25))/C117 -> 38.2560011 | G117: =('Irr Sunflowers-Oilseed'!F$62+(B117-B$118)*('Irr Sunflowers-Oilseed'!$D$25))/B117 -> 44.34229792 | H117: =('Irr Sunflowers-Oilseed'!G$62+(C117-C$118)*('Irr Sunflowers-Oilseed'!$D$25))/C117 -> 44.94505583 | I117: =IF($D117=0, "N/A", ('Irr Sunflowers-Oilseed'!H$62+(D117-D$118)*('Irr Sunflowers-Oilseed'!$D$25))/D117) -> 43.1185167
A118: 1 | B118: ='Irr Sunflowers-Oilseed'!$B$9*$A118 -> 20 | C118: ='Irr Sunflowers-Oilseed'!$B$9*(1-'Irr Sunflowers-Oilseed'!$E$9)*$A118 -> 13.4 | D118: ='Irr Sunflowers-Oilseed'!$B$9*'Irr Sunflowers-Oilseed'!$E$9*$A118 -> 6.6 | E118: =('Irr Sunflowers-Oilseed'!F$48+(B118-B$118)*('Irr Sunflowers-Oilseed'!$D$25))/B118 -> 31.51156812 | F118: =('Irr Sunflowers-Oilseed'!G$48+(C118-C$118)*('Irr Sunflowers-Oilseed'!$D$25))/C118 -> 34.49240099 | G118: =('Irr Sunflowers-Oilseed'!F$62+(B118-B$118)*('Irr Sunflowers-Oilseed'!$D$25))/B118 -> 39.97006812 | H118: =('Irr Sunflowers-Oilseed'!G$62+(C118-C$118)*('Irr Sunflowers-Oilseed'!$D$25))/C118 -> 40.51255024 | I118: =IF($D118=0, "N/A", ('Irr Sunflowers-Oilseed'!H$62+(D118-D$118)*('Irr Sunflowers-Oilseed'!$D$25))/D118) -> 38.86866503
A119: 1.1 | B119: ='Irr Sunflowers-Oilseed'!$B$9*$A119 -> 22 | C119: ='Irr Sunflowers-Oilseed'!$B$9*(1-'Irr Sunflowers-Oilseed'!$E$9)*$A119 -> 14.74 | D119: ='Irr Sunflowers-Oilseed'!$B$9*'Irr Sunflowers-Oilseed'!$E$9*$A119 -> 7.26 | E119: =('Irr Sunflowers-Oilseed'!F$48+(B119-B$118)*('Irr Sunflowers-Oilseed'!$D$25))/B119 -> 28.70324375 | F119: =('Irr Sunflowers-Oilseed'!G$48+(C119-C$118)*('Irr Sunflowers-Oilseed'!$D$25))/C119 -> 31.41309181 | G119: =('Irr Sunflowers-Oilseed'!F$62+(B119-B$118)*('Irr Sunflowers-Oilseed'!$D$25))/B119 -> 36.3927892 | H119: =('Irr Sunflowers-Oilseed'!G$62+(C119-C$118)*('Irr Sunflowers-Oilseed'!$D$25))/C119 -> 36.88595477 | I119: =IF($D119=0, "N/A", ('Irr Sunflowers-Oilseed'!H$62+(D119-D$118)*('Irr Sunflowers-Oilseed'!$D$25))/D119) -> 35.39151367
A120: 1.25 | B120: ='Irr Sunflowers-Oilseed'!$B$9*$A120 -> 25 | C120: ='Irr Sunflowers-Oilseed'!$B$9*(1-'Irr Sunflowers-Oilseed'!$E$9)*$A120 -> 16.75 | D120: ='Irr Sunflowers-Oilseed'!$B$9*'Irr Sunflowers-Oilseed'!$E$9*$A120 -> 8.25 | E120: =('Irr Sunflowers-Oilseed'!F$48+(B120-B$118)*('Irr Sunflowers-Oilseed'!$D$25))/B120 -> 25.3332545 | F120: =('Irr Sunflowers-Oilseed'!G$48+(C120-C$118)*('Irr Sunflowers-Oilseed'!$D$25))/C120 -> 27.71792079 | G120: =('Irr Sunflowers-Oilseed'!F$62+(B120-B$118)*('Irr Sunflowers-Oilseed'!$D$25))/B120 -> 32.1000545 | H120: =('Irr Sunflowers-Oilseed'!G$62+(C120-C$118)*('Irr Sunflowers-Oilseed'!$D$25))/C120 -> 32.5340402 | I120: =IF($D120=0, "N/A", ('Irr Sunflowers-Oilseed'!H$62+(D120-D$118)*('Irr Sunflowers-Oilseed'!$D$25))/D120) -> 31.21893203
A122: ='Irr Triticale Silage'!A3:H3 -> Irrigated Triticale Silage
E123: BE Price to Cover Variable Costs | G123: BE Price to Cover Total Costs
A124: Yield | B124: LB | E124: Total | F124: Tenant | G124: Total | H124: Tenant | I124: Landlord
A125: 0.75 | B125: ='Irr Triticale Silage'!$B$9*$A125 -> 7.5 | C125: ='Irr Triticale Silage'!$B$9*(1-'Irr Triticale Silage'!$E$9)*$A125 -> 5.025 | D125: ='Irr Triticale Silage'!$B$9*'Irr Triticale Silage'!$E$9*$A125 -> 2.475 | E125: =('Irr Triticale Silage'!F$46+(B125-B$127)*('Irr Triticale Silage'!$D$24))/B125 -> 60.59005958 | F125: =('Irr Triticale Silage'!G$46+(C125-C$127)*('Irr Triticale Silage'!$D$24))/C125 -> 78.89137739 | G125: =('Irr Triticale Silage'!F$60+(B125-B$127)*('Irr Triticale Silage'!$D$24))/B125 -> 84.32339292 | H125: =('Irr Triticale Silage'!G$60+(C125-C$127)*('Irr Triticale Silage'!$D$24))/C125 -> 96.70232267 | I125: =IF($D125=0,"N/A",('Irr Triticale Silage'!H$60+(D125-D$127)*('Irr Triticale Silage'!$D$24))/D125) -> 59.19041433
A126: 0.9 | B126: ='Irr Triticale Silage'!$B$9*$A126 -> 9 | C126: ='Irr Triticale Silage'!$B$9*(1-'Irr Triticale Silage'!$E$9)*$A126 -> 6.03 | D126: ='Irr Triticale Silage'!$B$9*'Irr Triticale Silage'!$E$9*$A126 -> 2.97 | E126: =('Irr Triticale Silage'!F$46+(B126-B$127)*('Irr Triticale Silage'!$D$24))/B126 -> 52.24171632 | F126: =('Irr Triticale Silage'!G$46+(C126-C$127)*('Irr Triticale Silage'!$D$24))/C126 -> 67.4928145 | G126: =('Irr Triticale Silage'!F$60+(B126-B$127)*('Irr Triticale Silage'!$D$24))/B126 -> 72.0194941 | H126: =('Irr Triticale Silage'!G$60+(C126-C$127)*('Irr Triticale Silage'!$D$24))/C126 -> 82.33526889 | I126: =IF($D126=0,"N/A",('Irr Triticale Silage'!H$60+(D126-D$127)*('Irr Triticale Silage'!$D$24))/D126) -> 51.07534527
A127: 1 | B127: ='Irr Triticale Silage'!$B$9*$A127 -> 10 | C127: ='Irr Triticale Silage'!$B$9*(1-'Irr Triticale Silage'!$E$9)*$A127 -> 6.7 | D127: ='Irr Triticale Silage'!$B$9*'Irr Triticale Silage'!$E$9*$A127 -> 3.3 | E127: =('Irr Triticale Silage'!F$46+(B127-B$127)*('Irr Triticale Silage'!$D$24))/B127 -> 48.06754469 | F127: =('Irr Triticale Silage'!G$46+(C127-C$127)*('Irr Triticale Silage'!$D$24))/C127 -> 61.79353305 | G127: =('Irr Triticale Silage'!F$60+(B127-B$127)*('Irr Triticale Silage'!$D$24))/B127 -> 65.86754469 | H127: =('Irr Triticale Silage'!G$60+(C127-C$127)*('Irr Triticale Silage'!$D$24))/C127 -> 75.151742 | I127: =IF($D127=0,"N/A",('Irr Triticale Silage'!H$60+(D127-D$127)*('Irr Triticale Silage'!$D$24))/D127) -> 47.01781075
A128: 1.1 | B128: ='Irr Triticale Silage'!$B$9*$A128 -> 11 | C128: ='Irr Triticale Silage'!$B$9*(1-'Irr Triticale Silage'!$E$9)*$A128 -> 7.37 | D128: ='Irr Triticale Silage'!$B$9*'Irr Triticale Silage'!$E$9*$A128 -> 3.63 | E128: =('Irr Triticale Silage'!F$46+(B128-B$127)*('Irr Triticale Silage'!$D$24))/B128 -> 44.65231335 | F128: =('Irr Triticale Silage'!G$46+(C128-C$127)*('Irr Triticale Silage'!$D$24))/C128 -> 57.13048459 | G128: =('Irr Triticale Silage'!F$60+(B128-B$127)*('Irr Triticale Silage'!$D$24))/B128 -> 60.83413153 | H128: =('Irr Triticale Silage'!G$60+(C128-C$127)*('Irr Triticale Silage'!$D$24))/C128 -> 69.27431091 | I128: =IF($D128=0,"N/A",('Irr Triticale Silage'!H$60+(D128-D$127)*('Irr Triticale Silage'!$D$24))/D128) -> 43.69800977
A129: 1.25 | B129: ='Irr Triticale Silage'!$B$9*$A129 -> 12.5 | C129: ='Irr Triticale Silage'!$B$9*(1-'Irr Triticale Silage'!$E$9)*$A129 -> 8.375 | D129: ='Irr Triticale Silage'!$B$9*'Irr Triticale Silage'!$E$9*$A129 -> 4.125 | E129: =('Irr Triticale Silage'!F$46+(B129-B$127)*('Irr Triticale Silage'!$D$24))/B129 -> 40.55403575 | F129: =('Irr Triticale Silage'!G$46+(C129-C$127)*('Irr Triticale Silage'!$D$24))/C129 -> 51.53482644 | G129: =('Irr Triticale Silage'!F$60+(B129-B$127)*('Irr Triticale Silage'!$D$24))/B129 -> 54.79403575 | H129: =('Irr Triticale Silage'!G$60+(C129-C$127)*('Irr Triticale Silage'!$D$24))/C129 -> 62.2213936 | I129: =IF($D129=0,"N/A",('Irr Triticale Silage'!H$60+(D129-D$127)*('Irr Triticale Silage'!$D$24))/D129) -> 39.7142486
A131: ='Irr Wheat'!A3:H3 -> Irrigated Wheat
E132: BE Price to Cover Variable Costs | G132: BE Price to Cover Total Costs
A133: Yield | B133: BU | E133: Total | F133: Tenant | G133: Total | H133: Tenant | I133: Landlord
A134: 0.75 | B134: ='Irr Wheat'!$B$9*$A134 -> 37.5 | C134: ='Irr Wheat'!$B$9*(1-'Irr Wheat'!$E$9)*$A134 -> 25.125 | D134: ='Irr Wheat'!$B$9*'Irr Wheat'!$E$9*$A134 -> 12.375 | E134: =('Irr Wheat'!$F$47-'Irr Wheat'!$F$10+($B134-$B$136)*'Irr Wheat'!$D$25)/$B134 -> 8.423422236 | F134: =('Irr Wheat'!$G$47-'Irr Wheat'!$G$10+($C134-$C$136)*'Irr Wheat'!$D$25)/$C134 -> 10.27153748 | G134: =('Irr Wheat'!$F$61-'Irr Wheat'!$F$10+($B134-$B$136)*'Irr Wheat'!$D$25)/$B134 -> 13.1700889 | H134: =('Irr Wheat'!$G$61-'Irr Wheat'!$G$10+($C134-$C$136)*'Irr Wheat'!$D$25)/$C134 -> 13.83372654 | I134: =IF($D134=0, "N/A", ('Irr Wheat'!$H$61-'Irr Wheat'!$H$10+($D134-$D$136)*'Irr Wheat'!$D$25)/$D134) -> 11.82270341
A135: 0.9 | B135: ='Irr Wheat'!$B$9*$A135 -> 45 | C135: ='Irr Wheat'!$B$9*(1-'Irr Wheat'!$E$9)*$A135 -> 30.15 | D135: ='Irr Wheat'!$B$9*'Irr Wheat'!$E$9*$A135 -> 14.85 | E135: =('Irr Wheat'!$F$47-'Irr Wheat'!$F$10+($B135-$B$136)*'Irr Wheat'!$D$25)/$B135 -> 7.15451853 | F135: =('Irr Wheat'!$G$47-'Irr Wheat'!$G$10+($C135-$C$136)*'Irr Wheat'!$D$25)/$C135 -> 8.694614567 | G135: =('Irr Wheat'!$F$61-'Irr Wheat'!$F$10+($B135-$B$136)*'Irr Wheat'!$D$25)/$B135 -> 11.11007409 | H135: =('Irr Wheat'!$G$61-'Irr Wheat'!$G$10+($C135-$C$136)*'Irr Wheat'!$D$25)/$C135 -> 11.66310545 | I135: =IF($D135=0, "N/A", ('Irr Wheat'!$H$61-'Irr Wheat'!$H$10+($D135-$D$136)*'Irr Wheat'!$D$25)/$D135) -> 9.987252838
A136: 1 | B136: ='Irr Wheat'!$B$9*$A136 -> 50 | C136: ='Irr Wheat'!$B$9*(1-'Irr Wheat'!$E$9)*$A136 -> 33.5 | D136: ='Irr Wheat'!$B$9*'Irr Wheat'!$E$9*$A136 -> 16.5 | E136: =('Irr Wheat'!$F$47-'Irr Wheat'!$F$10+($B136-$B$136)*'Irr Wheat'!$D$25)/$B136 -> 6.520066677 | F136: =('Irr Wheat'!$G$47-'Irr Wheat'!$G$10+($C136-$C$136)*'Irr Wheat'!$D$25)/$C136 -> 7.90615311 | G136: =('Irr Wheat'!$F$61-'Irr Wheat'!$F$10+($B136-$B$136)*'Irr Wheat'!$D$25)/$B136 -> 10.08006668 | H136: =('Irr Wheat'!$G$61-'Irr Wheat'!$G$10+($C136-$C$136)*'Irr Wheat'!$D$25)/$C136 -> 10.5777949 | I136: =IF($D136=0, "N/A", ('Irr Wheat'!$H$61-'Irr Wheat'!$H$10+($D136-$D$136)*'Irr Wheat'!$D$25)/$D136) -> 9.069527554
A137: 1.1 | B137: ='Irr Wheat'!$B$9*$A137 -> 55 | C137: ='Irr Wheat'!$B$9*(1-'Irr Wheat'!$E$9)*$A137 -> 36.85 | D137: ='Irr Wheat'!$B$9*'Irr Wheat'!$E$9*$A137 -> 18.15 | E137: =('Irr Wheat'!$F$47-'Irr Wheat'!$F$10+($B137-$B$136)*'Irr Wheat'!$D$25)/$B137 -> 6.000969706 | F137: =('Irr Wheat'!$G$47-'Irr Wheat'!$G$10+($C137-$C$136)*'Irr Wheat'!$D$25)/$C137 -> 7.261048282 | G137: =('Irr Wheat'!$F$61-'Irr Wheat'!$F$10+($B137-$B$136)*'Irr Wheat'!$D$25)/$B137 -> 9.237333343 | H137: =('Irr Wheat'!$G$61-'Irr Wheat'!$G$10+($C137-$C$136)*'Irr Wheat'!$D$25)/$C137 -> 9.689813547 | I137: =IF($D137=0, "N/A", ('Irr Wheat'!$H$61-'Irr Wheat'!$H$10+($D137-$D$136)*'Irr Wheat'!$D$25)/$D137) -> 8.318661413
A138: 1.25 | B138: ='Irr Wheat'!$B$9*$A138 -> 62.5 | C138: ='Irr Wheat'!$B$9*(1-'Irr Wheat'!$E$9)*$A138 -> 41.875 | D138: ='Irr Wheat'!$B$9*'Irr Wheat'!$E$9*$A138 -> 20.625 | E138: =('Irr Wheat'!$F$47-'Irr Wheat'!$F$10+($B138-$B$136)*'Irr Wheat'!$D$25)/$B138 -> 5.378053341 | F138: =('Irr Wheat'!$G$47-'Irr Wheat'!$G$10+($C138-$C$136)*'Irr Wheat'!$D$25)/$C138 -> 6.486922488 | G138: =('Irr Wheat'!$F$61-'Irr Wheat'!$F$10+($B138-$B$136)*'Irr Wheat'!$D$25)/$B138 -> 8.226053341 | H138: =('Irr Wheat'!$G$61-'Irr Wheat'!$G$10+($C138-$C$136)*'Irr Wheat'!$D$25)/$C138 -> 8.624235921 | I138: =IF($D138=0, "N/A", ('Irr Wheat'!$H$61-'Irr Wheat'!$H$10+($D138-$D$136)*'Irr Wheat'!$D$25)/$D138) -> 7.417622043
A140: ='Irr Other Crop'!A3:H3 -> Irrigated Other Crop
E141: BE Price to Cover Variable Costs | G141: BE Price to Cover Total Costs
A142: Yield | B142: LB | E142: Total | F142: Tenant | G142: Total | H142: Tenant | I142: Landlord
A143: 0.75 | B143: ='Irr Other Crop'!$B$9*$A143 -> 0 | C143: ='Irr Other Crop'!$B$9*(1-'Irr Other Crop'!$E$9)*$A143 -> 0 | D143: ='Irr Other Crop'!$B$9*'Irr Other Crop'!$E$9*$A143 -> 0 | E143: =IF($B143=0, "N/A", ('Irr Other Crop'!$F$48-'Irr Other Crop'!$F$10+($B143-$B$145)*'Irr Other Crop'!$D$26)/$B143) -> N/A | F143: =IF($B143=0, "N/A",('Irr Other Crop'!$G$48-'Irr Other Crop'!$G$10+($C143-$C$145)*'Irr Other Crop'!$D$26)/$C143) -> N/A | G143: =IF($B143=0, "N/A",('Irr Other Crop'!$F$62-'Irr Other Crop'!$F$10+($B143-$B$145)*'Irr Other Crop'!$D$26)/$B143) -> N/A | H143: =IF($B143=0, "N/A",('Irr Other Crop'!$G$62-'Irr Other Crop'!$G$10+($C143-$C$145)*'Irr Other Crop'!$D$26)/$C143) -> N/A | I143: =IF($D143=0, "N/A", ('Irr Other Crop'!$H$62-'Irr Other Crop'!$H$10+($D143-$D$145)*'Irr Other Crop'!$D$26)/$D143) -> N/A
A144: 0.9 | B144: ='Irr Other Crop'!$B$9*$A144 -> 0 | C144: ='Irr Other Crop'!$B$9*(1-'Irr Other Crop'!$E$9)*$A144 -> 0 | D144: ='Irr Other Crop'!$B$9*'Irr Other Crop'!$E$9*$A144 -> 0 | E144: =IF($B144=0, "N/A", ('Irr Other Crop'!$F$48-'Irr Other Crop'!$F$10+($B144-$B$145)*'Irr Other Crop'!$D$26)/$B144) -> N/A | F144: =IF($B144=0, "N/A",('Irr Other Crop'!$G$48-'Irr Other Crop'!$G$10+($C144-$C$145)*'Irr Other Crop'!$D$26)/$C144) -> N/A | G144: =IF($B144=0, "N/A",('Irr Other Crop'!$F$62-'Irr Other Crop'!$F$10+($B144-$B$145)*'Irr Other Crop'!$D$26)/$B144) -> N/A | H144: =IF($B144=0, "N/A",('Irr Other Crop'!$G$62-'Irr Other Crop'!$G$10+($C144-$C$145)*'Irr Other Crop'!$D$26)/$C144) -> N/A | I144: =IF($D144=0, "N/A", ('Irr Other Crop'!$H$62-'Irr Other Crop'!$H$10+($D144-$D$145)*'Irr Other Crop'!$D$26)/$D144) -> N/A
A145: 1 | B145: ='Irr Other Crop'!$B$9*$A145 -> 0 | C145: ='Irr Other Crop'!$B$9*(1-'Irr Other Crop'!$E$9)*$A145 -> 0 | D145: ='Irr Other Crop'!$B$9*'Irr Other Crop'!$E$9*$A145 -> 0 | E145: =IF($B145=0, "N/A", ('Irr Other Crop'!$F$48-'Irr Other Crop'!$F$10+($B145-$B$145)*'Irr Other Crop'!$D$26)/$B145) -> N/A | F145: =IF($B145=0, "N/A",('Irr Other Crop'!$G$48-'Irr Other Crop'!$G$10+($C145-$C$145)*'Irr Other Crop'!$D$26)/$C145) -> N/A | G145: =IF($B145=0, "N/A",('Irr Other Crop'!$F$62-'Irr Other Crop'!$F$10+($B145-$B$145)*'Irr Other Crop'!$D$26)/$B145) -> N/A | H145: =IF($B145=0, "N/A",('Irr Other Crop'!$G$62-'Irr Other Crop'!$G$10+($C145-$C$145)*'Irr Other Crop'!$D$26)/$C145) -> N/A | I145: =IF($D145=0, "N/A", ('Irr Other Crop'!$H$62-'Irr Other Crop'!$H$10+($D145-$D$145)*'Irr Other Crop'!$D$26)/$D145) -> N/A
A146: 1.1 | B146: ='Irr Other Crop'!$B$9*$A146 -> 0 | C146: ='Irr Other Crop'!$B$9*(1-'Irr Other Crop'!$E$9)*$A146 -> 0 | D146: ='Irr Other Crop'!$B$9*'Irr Other Crop'!$E$9*$A146 -> 0 | E146: =IF($B146=0, "N/A", ('Irr Other Crop'!$F$48-'Irr Other Crop'!$F$10+($B146-$B$145)*'Irr Other Crop'!$D$26)/$B146) -> N/A | F146: =IF($B146=0, "N/A",('Irr Other Crop'!$G$48-'Irr Other Crop'!$G$10+($C146-$C$145)*'Irr Other Crop'!$D$26)/$C146) -> N/A | G146: =IF($B146=0, "N/A",('Irr Other Crop'!$F$62-'Irr Other Crop'!$F$10+($B146-$B$145)*'Irr Other Crop'!$D$26)/$B146) -> N/A | H146: =IF($B146=0, "N/A",('Irr Other Crop'!$G$62-'Irr Other Crop'!$G$10+($C146-$C$145)*'Irr Other Crop'!$D$26)/$C146) -> N/A | I146: =IF($D146=0, "N/A", ('Irr Other Crop'!$H$62-'Irr Other Crop'!$H$10+($D146-$D$145)*'Irr Other Crop'!$D$26)/$D146) -> N/A
A147: 1.25 | B147: ='Irr Other Crop'!$B$9*$A147 -> 0 | C147: ='Irr Other Crop'!$B$9*(1-'Irr Other Crop'!$E$9)*$A147 -> 0 | D147: ='Irr Other Crop'!$B$9*'Irr Other Crop'!$E$9*$A147 -> 0 | E147: =IF($B147=0, "N/A", ('Irr Other Crop'!$F$48-'Irr Other Crop'!$F$10+($B147-$B$145)*'Irr Other Crop'!$D$26)/$B147) -> N/A | F147: =IF($B147=0, "N/A",('Irr Other Crop'!$G$48-'Irr Other Crop'!$G$10+($C147-$C$145)*'Irr Other Crop'!$D$26)/$C147) -> N/A | G147: =IF($B147=0, "N/A",('Irr Other Crop'!$F$62-'Irr Other Crop'!$F$10+($B147-$B$145)*'Irr Other Crop'!$D$26)/$B147) -> N/A | H147: =IF($B147=0, "N/A",('Irr Other Crop'!$G$62-'Irr Other Crop'!$G$10+($C147-$C$145)*'Irr Other Crop'!$D$26)/$C147) -> N/A | I147: =IF($D147=0, "N/A", ('Irr Other Crop'!$H$62-'Irr Other Crop'!$H$10+($D147-$D$145)*'Irr Other Crop'!$D$26)/$D147) -> N/A
A149: ='Dry Canola'!$A$3:$H$3 -> Dryland Canola
E150: BE Price to Cover Variable Costs | G150: BE Price to Cover Total Costs
A151: Yield | B151: CWT | E151: Total | F151: Tenant | G151: Total | H151: Tenant | I151: Landlord
A152: 0.75 | B152: ='Dry Canola'!$B$9*$A152 -> 8.25 | C152: ='Dry Canola'!$B$9*(1-'Dry Canola'!$E$9)*$A152 -> 5.5275 | D152: ='Dry Canola'!$B$9*'Dry Canola'!$E$9*$A152 -> 2.7225 | E152: =('Dry Canola'!$F$45+($B152-B$154)*'Dry Canola'!$D$27)/$B152 -> 27.9295455 | F152: =('Dry Canola'!$G$45+($C152-C$154)*'Dry Canola'!$D$27)/$C152 -> 34.60059687 | G152: =('Dry Canola'!$F$59+($B152-B$154)*'Dry Canola'!$D$27)/$B152 -> 34.12106065 | H152: =('Dry Canola'!$G$59+($C152-C$154)*'Dry Canola'!$D$27)/$C152 -> 37.97101749 | I152: =IF($D152=0, "N/A", ('Dry Canola'!$H$59+($D152-D$154)*'Dry Canola'!$D$27)/$D152) -> 26.30448162
A153: 0.9 | B153: ='Dry Canola'!$B$9*$A153 -> 9.9 | C153: ='Dry Canola'!$B$9*(1-'Dry Canola'!$E$9)*$A153 -> 6.633 | D153: ='Dry Canola'!$B$9*'Dry Canola'!$E$9*$A153 -> 3.267 | E153: =('Dry Canola'!$F$45+($B153-B$154)*'Dry Canola'!$D$27)/$B153 -> 23.37795459 | F153: =('Dry Canola'!$G$45+($C153-C$154)*'Dry Canola'!$D$27)/$C153 -> 28.93716406 | G153: =('Dry Canola'!$F$59+($B153-B$154)*'Dry Canola'!$D$27)/$B153 -> 28.53755055 | H153: =('Dry Canola'!$G$59+($C153-C$154)*'Dry Canola'!$D$27)/$C153 -> 31.74584791 | I153: =IF($D153=0, "N/A", ('Dry Canola'!$H$59+($D153-D$154)*'Dry Canola'!$D$27)/$D153) -> 22.02373468
A154: 1 | B154: ='Dry Canola'!$B$9*$A154 -> 11 | C154: ='Dry Canola'!$B$9*(1-'Dry Canola'!$E$9)*$A154 -> 7.37 | D154: ='Dry Canola'!$B$9*'Dry Canola'!$E$9*$A154 -> 3.63 | E154: =('Dry Canola'!$F$45+($B154-B$154)*'Dry Canola'!$D$27)/$B154 -> 21.10215913 | F154: =('Dry Canola'!$G$45+($C154-C$154)*'Dry Canola'!$D$27)/$C154 -> 26.10544765 | G154: =('Dry Canola'!$F$59+($B154-B$154)*'Dry Canola'!$D$27)/$B154 -> 25.74579549 | H154: =('Dry Canola'!$G$59+($C154-C$154)*'Dry Canola'!$D$27)/$C154 -> 28.63326312 | I154: =IF($D154=0, "N/A", ('Dry Canola'!$H$59+($D154-D$154)*'Dry Canola'!$D$27)/$D154) -> 19.88336121
A155: 1.1 | B155: ='Dry Canola'!$B$9*$A155 -> 12.1 | C155: ='Dry Canola'!$B$9*(1-'Dry Canola'!$E$9)*$A155 -> 8.107 | D155: ='Dry Canola'!$B$9*'Dry Canola'!$E$9*$A155 -> 3.993 | E155: =('Dry Canola'!$F$45+($B155-B$154)*'Dry Canola'!$D$27)/$B155 -> 19.24014466 | F155: =('Dry Canola'!$G$45+($C155-C$154)*'Dry Canola'!$D$27)/$C155 -> 23.78858878 | G155: =('Dry Canola'!$F$59+($B155-B$154)*'Dry Canola'!$D$27)/$B155 -> 23.46163226 | H155: =('Dry Canola'!$G$59+($C155-C$154)*'Dry Canola'!$D$27)/$C155 -> 26.08660284 | I155: =IF($D155=0, "N/A", ('Dry Canola'!$H$59+($D155-D$154)*'Dry Canola'!$D$27)/$D155) -> 18.13214656
A156: 1.25 | B156: ='Dry Canola'!$B$9*$A156 -> 13.75 | C156: ='Dry Canola'!$B$9*(1-'Dry Canola'!$E$9)*$A156 -> 9.2125 | D156: ='Dry Canola'!$B$9*'Dry Canola'!$E$9*$A156 -> 4.5375 | E156: =('Dry Canola'!$F$45+($B156-B$154)*'Dry Canola'!$D$27)/$B156 -> 17.0057273 | F156: =('Dry Canola'!$G$45+($C156-C$154)*'Dry Canola'!$D$27)/$C156 -> 21.00835812 | G156: =('Dry Canola'!$F$59+($B156-B$154)*'Dry Canola'!$D$27)/$B156 -> 20.72063639 | H156: =('Dry Canola'!$G$59+($C156-C$154)*'Dry Canola'!$D$27)/$C156 -> 23.0306105 | I156: =IF($D156=0, "N/A", ('Dry Canola'!$H$59+($D156-D$154)*'Dry Canola'!$D$27)/$D156) -> 16.03068897
A158: ='Dry Cotton'!$A$3:$H$3 -> Dryland Cotton
E159: BE Price to Cover Variable Costs | G159: BE Price to Cover Total Costs
A160: Yield | B160: LB | E160: Total | F160: Tenant | G160: Total | H160: Tenant | I160: Landlord
A161: 0.75 | B161: ='Dry Cotton'!$B$9*$A161 -> 300 | C161: ='Dry Cotton'!$B$9*(1-'Dry Cotton'!$E$9)*$A161 -> 201 | D161: ='Dry Cotton'!$B$9*'Dry Cotton'!$E$9*$A161 -> 99 | E161: =('Dry Cotton'!F$49-B161/500*'Universal Input Prices'!$B$39/2000*Cottonseed_Price+(B161-B$163)/100*'Dry Cotton'!$D$30+(B161-B$163)/'Dry Cotton'!$B$11/100*'Dry Cotton'!$D$31)/B161 -> 1.245741525 | F161: =('Dry Cotton'!G$49-C161/500*'Universal Input Prices'!$B$39/2000*Cottonseed_Price+(C161-C$163)/100*'Dry Cotton'!$D$30+(C161-C$163)/'Dry Cotton'!$B$11/100*'Dry Cotton'!$D$31)/C161 -> 1.506018229 | G161: =('Dry Cotton'!F$63-B161/500*'Universal Input Prices'!$B$39/2000*Cottonseed_Price+(B161-B$163)/100*'Dry Cotton'!$D$30+(B161-B$163)/'Dry Cotton'!$B$11/100*'Dry Cotton'!$D$31)/B161 -> 1.415008191 | H161: =('Dry Cotton'!G$63-C161/500*'Universal Input Prices'!$B$39/2000*Cottonseed_Price+(C161-C$163)/100*'Dry Cotton'!$D$30+(C161-C$163)/'Dry Cotton'!$B$11/100*'Dry Cotton'!$D$31)/C161 -> 1.598505791 | I161: =IF($D161=0,"N/A",('Dry Cotton'!H$63-D161/500*'Universal Input Prices'!$B$39/2000*Cottonseed_Price+(D161-D$163)/100*'Dry Cotton'!$D$30+(D161-D$163)/'Dry Cotton'!$B$11/100*'Dry Cotton'!$D$31)/D161) -> 1.042452459
A162: 0.9 | B162: ='Dry Cotton'!$B$9*$A162 -> 360 | C162: ='Dry Cotton'!$B$9*(1-'Dry Cotton'!$E$9)*$A162 -> 241.2 | D162: ='Dry Cotton'!$B$9*'Dry Cotton'!$E$9*$A162 -> 118.8 | E162: =('Dry Cotton'!F$49-B162/500*'Universal Input Prices'!$B$39/2000*Cottonseed_Price+(B162-B$163)/100*'Dry Cotton'!$D$30+(B162-B$163)/'Dry Cotton'!$B$11/100*'Dry Cotton'!$D$31)/B162 -> 1.055429083 | F162: =('Dry Cotton'!G$49-C162/500*'Universal Input Prices'!$B$39/2000*Cottonseed_Price+(C162-C$163)/100*'Dry Cotton'!$D$30+(C162-C$163)/'Dry Cotton'!$B$11/100*'Dry Cotton'!$D$31)/C162 -> 1.272326337 | G162: =('Dry Cotton'!F$63-B162/500*'Universal Input Prices'!$B$39/2000*Cottonseed_Price+(B162-B$163)/100*'Dry Cotton'!$D$30+(B162-B$163)/'Dry Cotton'!$B$11/100*'Dry Cotton'!$D$31)/B162 -> 1.196484639 | H162: =('Dry Cotton'!G$63-C162/500*'Universal Input Prices'!$B$39/2000*Cottonseed_Price+(C162-C$163)/100*'Dry Cotton'!$D$30+(C162-C$163)/'Dry Cotton'!$B$11/100*'Dry Cotton'!$D$31)/C162 -> 1.349399305 | I162: =IF($D162=0,"N/A",('Dry Cotton'!H$63-D162/500*'Universal Input Prices'!$B$39/2000*Cottonseed_Price+(D162-D$163)/100*'Dry Cotton'!$D$30+(D162-D$163)/'Dry Cotton'!$B$11/100*'Dry Cotton'!$D$31)/D162) -> 0.8860215282
A163: 1 | B163: ='Dry Cotton'!$B$9*$A163 -> 400 | C163: ='Dry Cotton'!$B$9*(1-'Dry Cotton'!$E$9)*$A163 -> 268 | D163: ='Dry Cotton'!$B$9*'Dry Cotton'!$E$9*$A163 -> 132 | E163: =('Dry Cotton'!F$49-B163/500*'Universal Input Prices'!$B$39/2000*Cottonseed_Price+(B163-B$163)/100*'Dry Cotton'!$D$30+(B163-B$163)/'Dry Cotton'!$B$11/100*'Dry Cotton'!$D$31)/B163 -> 0.9602728627 | F163: =('Dry Cotton'!G$49-C163/500*'Universal Input Prices'!$B$39/2000*Cottonseed_Price+(C163-C$163)/100*'Dry Cotton'!$D$30+(C163-C$163)/'Dry Cotton'!$B$11/100*'Dry Cotton'!$D$31)/C163 -> 1.155480391 | G163: =('Dry Cotton'!F$63-B163/500*'Universal Input Prices'!$B$39/2000*Cottonseed_Price+(B163-B$163)/100*'Dry Cotton'!$D$30+(B163-B$163)/'Dry Cotton'!$B$11/100*'Dry Cotton'!$D$31)/B163 -> 1.087222863 | H163: =('Dry Cotton'!G$63-C163/500*'Universal Input Prices'!$B$39/2000*Cottonseed_Price+(C163-C$163)/100*'Dry Cotton'!$D$30+(C163-C$163)/'Dry Cotton'!$B$11/100*'Dry Cotton'!$D$31)/C163 -> 1.224846063 | I163: =IF($D163=0,"N/A",('Dry Cotton'!H$63-D163/500*'Universal Input Prices'!$B$39/2000*Cottonseed_Price+(D163-D$163)/100*'Dry Cotton'!$D$30+(D163-D$163)/'Dry Cotton'!$B$11/100*'Dry Cotton'!$D$31)/D163) -> 0.8078060631
A164: 1.1 | B164: ='Dry Cotton'!$B$9*$A164 -> 440 | C164: ='Dry Cotton'!$B$9*(1-'Dry Cotton'!$E$9)*$A164 -> 294.8 | D164: ='Dry Cotton'!$B$9*'Dry Cotton'!$E$9*$A164 -> 145.2 | E164: =('Dry Cotton'!F$49-B164/500*'Universal Input Prices'!$B$39/2000*Cottonseed_Price+(B164-B$163)/100*'Dry Cotton'!$D$30+(B164-B$163)/'Dry Cotton'!$B$11/100*'Dry Cotton'!$D$31)/B164 -> 0.8824177731 | F164: =('Dry Cotton'!G$49-C164/500*'Universal Input Prices'!$B$39/2000*Cottonseed_Price+(C164-C$163)/100*'Dry Cotton'!$D$30+(C164-C$163)/'Dry Cotton'!$B$11/100*'Dry Cotton'!$D$31)/C164 -> 1.059879162 | G164: =('Dry Cotton'!F$63-B164/500*'Universal Input Prices'!$B$39/2000*Cottonseed_Price+(B164-B$163)/100*'Dry Cotton'!$D$30+(B164-B$163)/'Dry Cotton'!$B$11/100*'Dry Cotton'!$D$31)/B164 -> 0.997826864 | H164: =('Dry Cotton'!G$63-C164/500*'Universal Input Prices'!$B$39/2000*Cottonseed_Price+(C164-C$163)/100*'Dry Cotton'!$D$30+(C164-C$163)/'Dry Cotton'!$B$11/100*'Dry Cotton'!$D$31)/C164 -> 1.122938864 | I164: =IF($D164=0,"N/A",('Dry Cotton'!H$63-D164/500*'Universal Input Prices'!$B$39/2000*Cottonseed_Price+(D164-D$163)/100*'Dry Cotton'!$D$30+(D164-D$163)/'Dry Cotton'!$B$11/100*'Dry Cotton'!$D$31)/D164) -> 0.7438115916
A165: 1.25 | B165: ='Dry Cotton'!$B$9*$A165 -> 500 | C165: ='Dry Cotton'!$B$9*(1-'Dry Cotton'!$E$9)*$A165 -> 335 | D165: ='Dry Cotton'!$B$9*'Dry Cotton'!$E$9*$A165 -> 165 | E165: =('Dry Cotton'!F$49-B165/500*'Universal Input Prices'!$B$39/2000*Cottonseed_Price+(B165-B$163)/100*'Dry Cotton'!$D$30+(B165-B$163)/'Dry Cotton'!$B$11/100*'Dry Cotton'!$D$31)/B165 -> 0.7889916655 | F165: =('Dry Cotton'!G$49-C165/500*'Universal Input Prices'!$B$39/2000*Cottonseed_Price+(C165-C$163)/100*'Dry Cotton'!$D$30+(C165-C$163)/'Dry Cotton'!$B$11/100*'Dry Cotton'!$D$31)/C165 -> 0.945157688 | G165: =('Dry Cotton'!F$63-B165/500*'Universal Input Prices'!$B$39/2000*Cottonseed_Price+(B165-B$163)/100*'Dry Cotton'!$D$30+(B165-B$163)/'Dry Cotton'!$B$11/100*'Dry Cotton'!$D$31)/B165 -> 0.8905516655 | H165: =('Dry Cotton'!G$63-C165/500*'Universal Input Prices'!$B$39/2000*Cottonseed_Price+(C165-C$163)/100*'Dry Cotton'!$D$30+(C165-C$163)/'Dry Cotton'!$B$11/100*'Dry Cotton'!$D$31)/C165 -> 1.000650225 | I165: =IF($D165=0,"N/A",('Dry Cotton'!H$63-D165/500*'Universal Input Prices'!$B$39/2000*Cottonseed_Price+(D165-D$163)/100*'Dry Cotton'!$D$30+(D165-D$163)/'Dry Cotton'!$B$11/100*'Dry Cotton'!$D$31)/D165) -> 0.6670182258
A167: ='Dry Sorghum'!$A$3:$H$3 -> Dryland Sorghum
E168: BE Price to Cover Variable Costs | G168: BE Price to Cover Total Costs
A169: Yield | B169: CWT | E169: Total | F169: Tenant | G169: Total | H169: Tenant | I169: Landlord
A170: 0.75 | B170: ='Dry Sorghum'!$B$9*$A170 -> 18.75 | C170: ='Dry Sorghum'!$B$9*(1-'Dry Sorghum'!$E$9)*$A170 -> 12.5625 | D170: ='Dry Sorghum'!$B$9*'Dry Sorghum'!$E$9*$A170 -> 6.1875 | E170: =('Dry Sorghum'!$F$43-'Irr Sorghum'!$F$10+($B170-B$172)*'Dry Sorghum'!$D$25)/$B170 -> 14.77538883 | F170: =('Dry Sorghum'!$G$43-'Irr Sorghum'!$F$10+($C170-C$172)*'Dry Sorghum'!$D$25)/$C170 -> 16.57484969 | G170: =('Dry Sorghum'!$F$57-'Irr Sorghum'!$F$10+($B170-B$172)*'Dry Sorghum'!$D$25)/$B170 -> 17.2708555 | H170: =('Dry Sorghum'!$G$57-'Irr Sorghum'!$F$10+($C170-C$172)*'Dry Sorghum'!$D$25)/$C170 -> 17.71634223 | I170: =IF($D170=0, "N/A", ('Dry Sorghum'!$H$57-'Irr Sorghum'!$F$10+($D170-D$172)*'Dry Sorghum'!$D$25)/$D170) -> 16.36638244
A171: 0.9 | B171: ='Dry Sorghum'!$B$9*$A171 -> 22.5 | C171: ='Dry Sorghum'!$B$9*(1-'Dry Sorghum'!$E$9)*$A171 -> 15.075 | D171: ='Dry Sorghum'!$B$9*'Dry Sorghum'!$E$9*$A171 -> 7.425 | E171: =('Dry Sorghum'!$F$43-'Irr Sorghum'!$F$10+($B171-B$172)*'Dry Sorghum'!$D$25)/$B171 -> 12.37115736 | F171: =('Dry Sorghum'!$G$43-'Irr Sorghum'!$F$10+($C171-C$172)*'Dry Sorghum'!$D$25)/$C171 -> 13.87070808 | G171: =('Dry Sorghum'!$F$57-'Irr Sorghum'!$F$10+($B171-B$172)*'Dry Sorghum'!$D$25)/$B171 -> 14.45071291 | H171: =('Dry Sorghum'!$G$57-'Irr Sorghum'!$F$10+($C171-C$172)*'Dry Sorghum'!$D$25)/$C171 -> 14.82195186 | I171: =IF($D171=0, "N/A", ('Dry Sorghum'!$H$57-'Irr Sorghum'!$F$10+($D171-D$172)*'Dry Sorghum'!$D$25)/$D171) -> 13.69698536
A172: 1 | B172: ='Dry Sorghum'!$B$9*$A172 -> 25 | C172: ='Dry Sorghum'!$B$9*(1-'Dry Sorghum'!$E$9)*$A172 -> 16.75 | D172: ='Dry Sorghum'!$B$9*'Dry Sorghum'!$E$9*$A172 -> 8.25 | E172: =('Dry Sorghum'!$F$43-'Irr Sorghum'!$F$10+($B172-B$172)*'Dry Sorghum'!$D$25)/$B172 -> 11.16904162 | F172: =('Dry Sorghum'!$G$43-'Irr Sorghum'!$F$10+($C172-C$172)*'Dry Sorghum'!$D$25)/$C172 -> 12.51863727 | G172: =('Dry Sorghum'!$F$57-'Irr Sorghum'!$F$10+($B172-B$172)*'Dry Sorghum'!$D$25)/$B172 -> 13.04064162 | H172: =('Dry Sorghum'!$G$57-'Irr Sorghum'!$F$10+($C172-C$172)*'Dry Sorghum'!$D$25)/$C172 -> 13.37475667 | I172: =IF($D172=0, "N/A", ('Dry Sorghum'!$H$57-'Irr Sorghum'!$F$10+($D172-D$172)*'Dry Sorghum'!$D$25)/$D172) -> 12.36228683
A173: 1.1 | B173: ='Dry Sorghum'!$B$9*$A173 -> 27.5 | C173: ='Dry Sorghum'!$B$9*(1-'Dry Sorghum'!$E$9)*$A173 -> 18.425 | D173: ='Dry Sorghum'!$B$9*'Dry Sorghum'!$E$9*$A173 -> 9.075 | E173: =('Dry Sorghum'!$F$43-'Irr Sorghum'!$F$10+($B173-B$172)*'Dry Sorghum'!$D$25)/$B173 -> 10.18549238 | F173: =('Dry Sorghum'!$G$43-'Irr Sorghum'!$F$10+($C173-C$172)*'Dry Sorghum'!$D$25)/$C173 -> 11.41239752 | G173: =('Dry Sorghum'!$F$57-'Irr Sorghum'!$F$10+($B173-B$172)*'Dry Sorghum'!$D$25)/$B173 -> 11.88694693 | H173: =('Dry Sorghum'!$G$57-'Irr Sorghum'!$F$10+($C173-C$172)*'Dry Sorghum'!$D$25)/$C173 -> 12.19068788 | I173: =IF($D173=0, "N/A", ('Dry Sorghum'!$H$57-'Irr Sorghum'!$F$10+($D173-D$172)*'Dry Sorghum'!$D$25)/$D173) -> 11.27026075
A174: 1.25 | B174: ='Dry Sorghum'!$B$9*$A174 -> 31.25 | C174: ='Dry Sorghum'!$B$9*(1-'Dry Sorghum'!$E$9)*$A174 -> 20.9375 | D174: ='Dry Sorghum'!$B$9*'Dry Sorghum'!$E$9*$A174 -> 10.3125 | E174: =('Dry Sorghum'!$F$43-'Irr Sorghum'!$F$10+($B174-B$172)*'Dry Sorghum'!$D$25)/$B174 -> 9.005233298 | F174: =('Dry Sorghum'!$G$43-'Irr Sorghum'!$F$10+($C174-C$172)*'Dry Sorghum'!$D$25)/$C174 -> 10.08490981 | G174: =('Dry Sorghum'!$F$57-'Irr Sorghum'!$F$10+($B174-B$172)*'Dry Sorghum'!$D$25)/$B174 -> 10.5025133 | H174: =('Dry Sorghum'!$G$57-'Irr Sorghum'!$F$10+($C174-C$172)*'Dry Sorghum'!$D$25)/$C174 -> 10.76980534 | I174: =IF($D174=0, "N/A", ('Dry Sorghum'!$H$57-'Irr Sorghum'!$F$10+($D174-D$172)*'Dry Sorghum'!$D$25)/$D174) -> 9.959829462
A176: ='Dry Sorghum Sudangrass'!$A$3:$H$3 -> Dryland Sorghum Sudangrass
E177: BE Price to Cover Variable Costs | G177: BE Price to Cover Total Costs
A178: Yield | B178: LB | E178: Total | F178: Tenant | G178: Total | H178: Tenant | I178: Landlord
A179: 0.75 | B179: ='Dry Sorghum Sudangrass'!$B$9*$A179 -> 252 | C179: ='Dry Sorghum Sudangrass'!$B$9*(1-'Dry Sorghum Sudangrass'!$E$9)*$A179 -> 168.84 | D179: ='Dry Sorghum Sudangrass'!$B$9*'Dry Sorghum Sudangrass'!$E$9*$A179 -> 83.16 | E179: =('Dry Sorghum Sudangrass'!$F$42+($B179-B$181)*'Dry Sorghum Sudangrass'!$D$24)/$B179 -> 0.5946206251 | F179: =('Dry Sorghum Sudangrass'!$G$42+($C179-C$181)*'Dry Sorghum Sudangrass'!$D$24)/$C179 -> 0.6739689773 | G179: =('Dry Sorghum Sudangrass'!$F$56+($B179-B$181)*'Dry Sorghum Sudangrass'!$D$24)/$B179 -> 0.778073006 | H179: =('Dry Sorghum Sudangrass'!$G$56+($C179-C$181)*'Dry Sorghum Sudangrass'!$D$24)/$C179 -> 0.7555847082 | I179: =IF($D179=0, "N/A", ('Dry Sorghum Sudangrass'!$H$56+($D179-D$181)*'Dry Sorghum Sudangrass'!$D$24)/$D179) -> 0.8237310653
A180: 0.9 | B180: ='Dry Sorghum Sudangrass'!$B$9*$A180 -> 302.4 | C180: ='Dry Sorghum Sudangrass'!$B$9*(1-'Dry Sorghum Sudangrass'!$E$9)*$A180 -> 202.608 | D180: ='Dry Sorghum Sudangrass'!$B$9*'Dry Sorghum Sudangrass'!$E$9*$A180 -> 99.792 | E180: =('Dry Sorghum Sudangrass'!$F$42+($B180-B$181)*'Dry Sorghum Sudangrass'!$D$24)/$B180 -> 0.4955171876 | F180: =('Dry Sorghum Sudangrass'!$G$42+($C180-C$181)*'Dry Sorghum Sudangrass'!$D$24)/$C180 -> 0.5616408144 | G180: =('Dry Sorghum Sudangrass'!$F$56+($B180-B$181)*'Dry Sorghum Sudangrass'!$D$24)/$B180 -> 0.6483941717 | H180: =('Dry Sorghum Sudangrass'!$G$56+($C180-C$181)*'Dry Sorghum Sudangrass'!$D$24)/$C180 -> 0.6296539235 | I180: =IF($D180=0, "N/A", ('Dry Sorghum Sudangrass'!$H$56+($D180-D$181)*'Dry Sorghum Sudangrass'!$D$24)/$D180) -> 0.6864425544
A181: 1 | B181: ='Dry Sorghum Sudangrass'!$B$9*$A181 -> 336 | C181: ='Dry Sorghum Sudangrass'!$B$9*(1-'Dry Sorghum Sudangrass'!$E$9)*$A181 -> 225.12 | D181: ='Dry Sorghum Sudangrass'!$B$9*'Dry Sorghum Sudangrass'!$E$9*$A181 -> 110.88 | E181: =('Dry Sorghum Sudangrass'!$F$42+($B181-B$181)*'Dry Sorghum Sudangrass'!$D$24)/$B181 -> 0.4459654688 | F181: =('Dry Sorghum Sudangrass'!$G$42+($C181-C$181)*'Dry Sorghum Sudangrass'!$D$24)/$C181 -> 0.505476733 | G181: =('Dry Sorghum Sudangrass'!$F$56+($B181-B$181)*'Dry Sorghum Sudangrass'!$D$24)/$B181 -> 0.5835547545 | H181: =('Dry Sorghum Sudangrass'!$G$56+($C181-C$181)*'Dry Sorghum Sudangrass'!$D$24)/$C181 -> 0.5666885311 | I181: =IF($D181=0, "N/A", ('Dry Sorghum Sudangrass'!$H$56+($D181-D$181)*'Dry Sorghum Sudangrass'!$D$24)/$D181) -> 0.617798299
A182: 1.1 | B182: ='Dry Sorghum Sudangrass'!$B$9*$A182 -> 369.6 | C182: ='Dry Sorghum Sudangrass'!$B$9*(1-'Dry Sorghum Sudangrass'!$E$9)*$A182 -> 247.632 | D182: ='Dry Sorghum Sudangrass'!$B$9*'Dry Sorghum Sudangrass'!$E$9*$A182 -> 121.968 | E182: =('Dry Sorghum Sudangrass'!$F$42+($B182-B$181)*'Dry Sorghum Sudangrass'!$D$24)/$B182 -> 0.4054231535 | F182: =('Dry Sorghum Sudangrass'!$G$42+($C182-C$181)*'Dry Sorghum Sudangrass'!$D$24)/$C182 -> 0.4595243027 | G182: =('Dry Sorghum Sudangrass'!$F$56+($B182-B$181)*'Dry Sorghum Sudangrass'!$D$24)/$B182 -> 0.5305043223 | H182: =('Dry Sorghum Sudangrass'!$G$56+($C182-C$181)*'Dry Sorghum Sudangrass'!$D$24)/$C182 -> 0.515171392 | I182: =IF($D182=0, "N/A", ('Dry Sorghum Sudangrass'!$H$56+($D182-D$181)*'Dry Sorghum Sudangrass'!$D$24)/$D182) -> 0.5616348172
A183: 1.25 | B183: ='Dry Sorghum Sudangrass'!$B$9*$A183 -> 420 | C183: ='Dry Sorghum Sudangrass'!$B$9*(1-'Dry Sorghum Sudangrass'!$E$9)*$A183 -> 281.4 | D183: ='Dry Sorghum Sudangrass'!$B$9*'Dry Sorghum Sudangrass'!$E$9*$A183 -> 138.6 | E183: =('Dry Sorghum Sudangrass'!$F$42+($B183-B$181)*'Dry Sorghum Sudangrass'!$D$24)/$B183 -> 0.3567723751 | F183: =('Dry Sorghum Sudangrass'!$G$42+($C183-C$181)*'Dry Sorghum Sudangrass'!$D$24)/$C183 -> 0.4043813864 | G183: =('Dry Sorghum Sudangrass'!$F$56+($B183-B$181)*'Dry Sorghum Sudangrass'!$D$24)/$B183 -> 0.4668438036 | H183: =('Dry Sorghum Sudangrass'!$G$56+($C183-C$181)*'Dry Sorghum Sudangrass'!$D$24)/$C183 -> 0.4533508249 | I183: =IF($D183=0, "N/A", ('Dry Sorghum Sudangrass'!$H$56+($D183-D$181)*'Dry Sorghum Sudangrass'!$D$24)/$D183) -> 0.4942386392
A185: ='Dry Sunflowers-Oilseed'!$A$3:$H$3 -> Dryland Sunflowers-Oilseed
E186: BE Price to Cover Variable Costs | G186: BE Price to Cover Total Costs
A187: Yield | B187: CWT | E187: Total | F187: Tenant | G187: Total | H187: Tenant | I187: Landlord
A188: 0.75 | B188: ='Dry Sunflowers-Oilseed'!$B$9*$A188 -> 7.5 | C188: ='Dry Sunflowers-Oilseed'!$B$9*(1-'Dry Sunflowers-Oilseed'!$E$9)*$A188 -> 5.025 | D188: ='Dry Sunflowers-Oilseed'!$B$9*'Dry Sunflowers-Oilseed'!$E$9*$A188 -> 2.475 | E188: =('Dry Sunflowers-Oilseed'!$F$44+($B188-B$190)*'Dry Sunflowers-Oilseed'!$D$25)/$B188 -> 49.23203052 | F188: =('Dry Sunflowers-Oilseed'!$G$44+($C188-C$190)*'Dry Sunflowers-Oilseed'!$D$25)/$C188 -> 55.92713924 | G188: =('Dry Sunflowers-Oilseed'!$F$58+($B188-B$190)*'Dry Sunflowers-Oilseed'!$D$25)/$B188 -> 55.16803052 | H188: =('Dry Sunflowers-Oilseed'!$G$58+($C188-C$190)*'Dry Sunflowers-Oilseed'!$D$25)/$C188 -> 58.32912929 | I188: =IF($D188=0, "N/A", ('Dry Sunflowers-Oilseed'!$H$58+($D188-D$190)*'Dry Sunflowers-Oilseed'!$D$25)/$D188) -> 48.75004211
A189: 0.9 | B189: ='Dry Sunflowers-Oilseed'!$B$9*$A189 -> 9 | C189: ='Dry Sunflowers-Oilseed'!$B$9*(1-'Dry Sunflowers-Oilseed'!$E$9)*$A189 -> 6.03 | D189: ='Dry Sunflowers-Oilseed'!$B$9*'Dry Sunflowers-Oilseed'!$E$9*$A189 -> 2.97 | E189: =('Dry Sunflowers-Oilseed'!$F$44+($B189-B$190)*'Dry Sunflowers-Oilseed'!$D$25)/$B189 -> 41.13002543 | F189: =('Dry Sunflowers-Oilseed'!$G$44+($C189-C$190)*'Dry Sunflowers-Oilseed'!$D$25)/$C189 -> 46.7092827 | G189: =('Dry Sunflowers-Oilseed'!$F$58+($B189-B$190)*'Dry Sunflowers-Oilseed'!$D$25)/$B189 -> 46.0766921 | H189: =('Dry Sunflowers-Oilseed'!$G$58+($C189-C$190)*'Dry Sunflowers-Oilseed'!$D$25)/$C189 -> 48.71094107 | I189: =IF($D189=0, "N/A", ('Dry Sunflowers-Oilseed'!$H$58+($D189-D$190)*'Dry Sunflowers-Oilseed'!$D$25)/$D189) -> 40.72836843
A190: 1 | B190: ='Dry Sunflowers-Oilseed'!$B$9*$A190 -> 10 | C190: ='Dry Sunflowers-Oilseed'!$B$9*(1-'Dry Sunflowers-Oilseed'!$E$9)*$A190 -> 6.7 | D190: ='Dry Sunflowers-Oilseed'!$B$9*'Dry Sunflowers-Oilseed'!$E$9*$A190 -> 3.3 | E190: =('Dry Sunflowers-Oilseed'!$F$44+($B190-B$190)*'Dry Sunflowers-Oilseed'!$D$25)/$B190 -> 37.07902289 | F190: =('Dry Sunflowers-Oilseed'!$G$44+($C190-C$190)*'Dry Sunflowers-Oilseed'!$D$25)/$C190 -> 42.10035443 | G190: =('Dry Sunflowers-Oilseed'!$F$58+($B190-B$190)*'Dry Sunflowers-Oilseed'!$D$25)/$B190 -> 41.53102289 | H190: =('Dry Sunflowers-Oilseed'!$G$58+($C190-C$190)*'Dry Sunflowers-Oilseed'!$D$25)/$C190 -> 43.90184697 | I190: =IF($D190=0, "N/A", ('Dry Sunflowers-Oilseed'!$H$58+($D190-D$190)*'Dry Sunflowers-Oilseed'!$D$25)/$D190) -> 36.71753158
A191: 1.1 | B191: ='Dry Sunflowers-Oilseed'!$B$9*$A191 -> 11 | C191: ='Dry Sunflowers-Oilseed'!$B$9*(1-'Dry Sunflowers-Oilseed'!$E$9)*$A191 -> 7.37 | D191: ='Dry Sunflowers-Oilseed'!$B$9*'Dry Sunflowers-Oilseed'!$E$9*$A191 -> 3.63 | E191: =('Dry Sunflowers-Oilseed'!$F$44+($B191-B$190)*'Dry Sunflowers-Oilseed'!$D$25)/$B191 -> 33.76456626 | F191: =('Dry Sunflowers-Oilseed'!$G$44+($C191-C$190)*'Dry Sunflowers-Oilseed'!$D$25)/$C191 -> 38.32941312 | G191: =('Dry Sunflowers-Oilseed'!$F$58+($B191-B$190)*'Dry Sunflowers-Oilseed'!$D$25)/$B191 -> 37.81183899 | H191: =('Dry Sunflowers-Oilseed'!$G$58+($C191-C$190)*'Dry Sunflowers-Oilseed'!$D$25)/$C191 -> 39.96713361 | I191: =IF($D191=0, "N/A", ('Dry Sunflowers-Oilseed'!$H$58+($D191-D$190)*'Dry Sunflowers-Oilseed'!$D$25)/$D191) -> 33.4359378
A192: 1.25 | B192: ='Dry Sunflowers-Oilseed'!$B$9*$A192 -> 12.5 | C192: ='Dry Sunflowers-Oilseed'!$B$9*(1-'Dry Sunflowers-Oilseed'!$E$9)*$A192 -> 8.375 | D192: ='Dry Sunflowers-Oilseed'!$B$9*'Dry Sunflowers-Oilseed'!$E$9*$A192 -> 4.125 | E192: =('Dry Sunflowers-Oilseed'!$F$44+($B192-B$190)*'Dry Sunflowers-Oilseed'!$D$25)/$B192 -> 29.78721831 | F192: =('Dry Sunflowers-Oilseed'!$G$44+($C192-C$190)*'Dry Sunflowers-Oilseed'!$D$25)/$C192 -> 33.80428354 | G192: =('Dry Sunflowers-Oilseed'!$F$58+($B192-B$190)*'Dry Sunflowers-Oilseed'!$D$25)/$B192 -> 33.34881831 | H192: =('Dry Sunflowers-Oilseed'!$G$58+($C192-C$190)*'Dry Sunflowers-Oilseed'!$D$25)/$C192 -> 35.24547757 | I192: =IF($D192=0, "N/A", ('Dry Sunflowers-Oilseed'!$H$58+($D192-D$190)*'Dry Sunflowers-Oilseed'!$D$25)/$D192) -> 29.49802527
A194: ='Dry Wheat'!$A$3:$H$3 -> Dryland Wheat
E195: BE Price to Cover Variable Costs | G195: BE Price to Cover Total Costs
A196: Yield | B196: CWT | E196: Total | F196: Tenant | G196: Total | H196: Tenant | I196: Landlord
A197: 0.75 | B197: ='Dry Wheat'!$B$9*$A197 -> 15 | C197: ='Dry Wheat'!$B$9*(1-'Dry Wheat'!$E$9)*$A197 -> 10.05 | D197: ='Dry Wheat'!$B$9*'Dry Wheat'!$E$9*$A197 -> 4.95 | E197: =('Dry Wheat'!$F$44+($B197-B$199)*'Dry Wheat'!$D$26)/$B197 -> 10.3632182 | F197: =('Dry Wheat'!$G$44+($C197-C$199)*'Dry Wheat'!$D$26)/$C197 -> 13.11486709 | G197: =('Dry Wheat'!$F$58+($B197-B$199)*'Dry Wheat'!$D$26)/$B197 -> 13.76855154 | H197: =('Dry Wheat'!$G$58+($C197-C$199)*'Dry Wheat'!$D$26)/$C197 -> 14.96859843 | I197: =IF($D197=0, "N/A", ('Dry Wheat'!$H$58+($D197-D$199)*'Dry Wheat'!$D$26)/$D197) -> 11.33209269
A198: 0.9 | B198: ='Dry Wheat'!$B$9*$A198 -> 18 | C198: ='Dry Wheat'!$B$9*(1-'Dry Wheat'!$E$9)*$A198 -> 12.06 | D198: ='Dry Wheat'!$B$9*'Dry Wheat'!$E$9*$A198 -> 5.94 | E198: =('Dry Wheat'!$F$44+($B198-B$199)*'Dry Wheat'!$D$26)/$B198 -> 8.694348504 | F198: =('Dry Wheat'!$G$44+($C198-C$199)*'Dry Wheat'!$D$26)/$C198 -> 10.98738924 | G198: =('Dry Wheat'!$F$58+($B198-B$199)*'Dry Wheat'!$D$26)/$B198 -> 11.53212628 | H198: =('Dry Wheat'!$G$58+($C198-C$199)*'Dry Wheat'!$D$26)/$C198 -> 12.53216536 | I198: =IF($D198=0, "N/A", ('Dry Wheat'!$H$58+($D198-D$199)*'Dry Wheat'!$D$26)/$D198) -> 9.501743911
A199: 1 | B199: ='Dry Wheat'!$B$9*$A199 -> 20 | C199: ='Dry Wheat'!$B$9*(1-'Dry Wheat'!$E$9)*$A199 -> 13.4 | D199: ='Dry Wheat'!$B$9*'Dry Wheat'!$E$9*$A199 -> 6.6 | E199: =('Dry Wheat'!$F$44+($B199-B$199)*'Dry Wheat'!$D$26)/$B199 -> 7.859913654 | F199: =('Dry Wheat'!$G$44+($C199-C$199)*'Dry Wheat'!$D$26)/$C199 -> 9.923650316 | G199: =('Dry Wheat'!$F$58+($B199-B$199)*'Dry Wheat'!$D$26)/$B199 -> 10.41391365 | H199: =('Dry Wheat'!$G$58+($C199-C$199)*'Dry Wheat'!$D$26)/$C199 -> 11.31394882 | I199: =IF($D199=0, "N/A", ('Dry Wheat'!$H$58+($D199-D$199)*'Dry Wheat'!$D$26)/$D199) -> 8.58656952
A200: 1.1 | B200: ='Dry Wheat'!$B$9*$A200 -> 22 | C200: ='Dry Wheat'!$B$9*(1-'Dry Wheat'!$E$9)*$A200 -> 14.74 | D200: ='Dry Wheat'!$B$9*'Dry Wheat'!$E$9*$A200 -> 7.26 | E200: =('Dry Wheat'!$F$44+($B200-B$199)*'Dry Wheat'!$D$26)/$B200 -> 7.177194231 | F200: =('Dry Wheat'!$G$44+($C200-C$199)*'Dry Wheat'!$D$26)/$C200 -> 9.053318469 | G200: =('Dry Wheat'!$F$58+($B200-B$199)*'Dry Wheat'!$D$26)/$B200 -> 9.499012412 | H200: =('Dry Wheat'!$G$58+($C200-C$199)*'Dry Wheat'!$D$26)/$C200 -> 10.3172262 | I200: =IF($D200=0, "N/A", ('Dry Wheat'!$H$58+($D200-D$199)*'Dry Wheat'!$D$26)/$D200) -> 7.837790473
A201: 1.25 | B201: ='Dry Wheat'!$B$9*$A201 -> 25 | C201: ='Dry Wheat'!$B$9*(1-'Dry Wheat'!$E$9)*$A201 -> 16.75 | D201: ='Dry Wheat'!$B$9*'Dry Wheat'!$E$9*$A201 -> 8.25 | E201: =('Dry Wheat'!$F$44+($B201-B$199)*'Dry Wheat'!$D$26)/$B201 -> 6.357930923 | F201: =('Dry Wheat'!$G$44+($C201-C$199)*'Dry Wheat'!$D$26)/$C201 -> 8.008920253 | G201: =('Dry Wheat'!$F$58+($B201-B$199)*'Dry Wheat'!$D$26)/$B201 -> 8.401130923 | H201: =('Dry Wheat'!$G$58+($C201-C$199)*'Dry Wheat'!$D$26)/$C201 -> 9.121159059 | I201: =IF($D201=0, "N/A", ('Dry Wheat'!$H$58+($D201-D$199)*'Dry Wheat'!$D$26)/$D201) -> 6.939255616
A203: ='Dry Other Crop'!$A$3:$H$3 -> Dryland Other Crop
E204: BE Price to Cover Variable Costs | G204: BE Price to Cover Total Costs
A205: Yield | B205: LB | E205: Total | F205: Tenant | G205: Total | H205: Tenant | I205: Landlord
A206: 0.75 | B206: ='Dry Other Crop'!$B$9*$A206 -> 0 | C206: ='Dry Other Crop'!$B$9*(1-'Dry Other Crop'!$E$9)*$A206 -> 0 | D206: ='Dry Other Crop'!$B$9*'Dry Other Crop'!$E$9*$A206 -> 0 | E206: =IF($B206=0, "N/A", ('Dry Other Crop'!$F$44-'Dry Other Crop'!$F$10+($B206-$B$208)*'Dry Other Crop'!$D$26)/$B206) -> N/A | F206: =IF($B206=0, "N/A",('Dry Other Crop'!$G$44-'Dry Other Crop'!$G$10+($C206-$C$208)*'Dry Other Crop'!$D$26)/$C206) -> N/A | G206: =IF($B206=0, "N/A",('Dry Other Crop'!$F$58-'Dry Other Crop'!$F$10+($B206-$B$208)*'Dry Other Crop'!$D$26)/$B206) -> N/A | H206: =IF($B206=0, "N/A",('Dry Other Crop'!$G$58-'Dry Other Crop'!$G$10+($C206-$C$208)*'Dry Other Crop'!$D$26)/$C206) -> N/A | I206: =IF($D206=0, "N/A", ('Dry Other Crop'!$H$58-'Dry Other Crop'!$H$10+($D206-$D$208)*'Dry Other Crop'!$D$26)/$D206) -> N/A
A207: 0.9 | B207: ='Dry Other Crop'!$B$9*$A207 -> 0 | C207: ='Dry Other Crop'!$B$9*(1-'Dry Other Crop'!$E$9)*$A207 -> 0 | D207: ='Dry Other Crop'!$B$9*'Dry Other Crop'!$E$9*$A207 -> 0 | E207: =IF($B207=0, "N/A", ('Dry Other Crop'!$F$44-'Dry Other Crop'!$F$10+($B207-$B$208)*'Dry Other Crop'!$D$26)/$B207) -> N/A | F207: =IF($B207=0, "N/A",('Dry Other Crop'!$G$44-'Dry Other Crop'!$G$10+($C207-$C$208)*'Dry Other Crop'!$D$26)/$C207) -> N/A | G207: =IF($B207=0, "N/A",('Dry Other Crop'!$F$58-'Dry Other Crop'!$F$10+($B207-$B$208)*'Dry Other Crop'!$D$26)/$B207) -> N/A | H207: =IF($B207=0, "N/A",('Dry Other Crop'!$G$58-'Dry Other Crop'!$G$10+($C207-$C$208)*'Dry Other Crop'!$D$26)/$C207) -> N/A | I207: =IF($D207=0, "N/A", ('Dry Other Crop'!$H$58-'Dry Other Crop'!$H$10+($D207-$D$208)*'Dry Other Crop'!$D$26)/$D207) -> N/A
A208: 1 | B208: ='Dry Other Crop'!$B$9*$A208 -> 0 | C208: ='Dry Other Crop'!$B$9*(1-'Dry Other Crop'!$E$9)*$A208 -> 0 | D208: ='Dry Other Crop'!$B$9*'Dry Other Crop'!$E$9*$A208 -> 0 | E208: =IF($B208=0, "N/A", ('Dry Other Crop'!$F$44-'Dry Other Crop'!$F$10+($B208-$B$208)*'Dry Other Crop'!$D$26)/$B208) -> N/A | F208: =IF($B208=0, "N/A",('Dry Other Crop'!$G$44-'Dry Other Crop'!$G$10+($C208-$C$208)*'Dry Other Crop'!$D$26)/$C208) -> N/A | G208: =IF($B208=0, "N/A",('Dry Other Crop'!$F$58-'Dry Other Crop'!$F$10+($B208-$B$208)*'Dry Other Crop'!$D$26)/$B208) -> N/A | H208: =IF($B208=0, "N/A",('Dry Other Crop'!$G$58-'Dry Other Crop'!$G$10+($C208-$C$208)*'Dry Other Crop'!$D$26)/$C208) -> N/A | I208: =IF($D208=0, "N/A", ('Dry Other Crop'!$H$58-'Dry Other Crop'!$H$10+($D208-$D$208)*'Dry Other Crop'!$D$26)/$D208) -> N/A
A209: 1.1 | B209: ='Dry Other Crop'!$B$9*$A209 -> 0 | C209: ='Dry Other Crop'!$B$9*(1-'Dry Other Crop'!$E$9)*$A209 -> 0 | D209: ='Dry Other Crop'!$B$9*'Dry Other Crop'!$E$9*$A209 -> 0 | E209: =IF($B209=0, "N/A", ('Dry Other Crop'!$F$44-'Dry Other Crop'!$F$10+($B209-$B$208)*'Dry Other Crop'!$D$26)/$B209) -> N/A | F209: =IF($B209=0, "N/A",('Dry Other Crop'!$G$44-'Dry Other Crop'!$G$10+($C209-$C$208)*'Dry Other Crop'!$D$26)/$C209) -> N/A | G209: =IF($B209=0, "N/A",('Dry Other Crop'!$F$58-'Dry Other Crop'!$F$10+($B209-$B$208)*'Dry Other Crop'!$D$26)/$B209) -> N/A | H209: =IF($B209=0, "N/A",('Dry Other Crop'!$G$58-'Dry Other Crop'!$G$10+($C209-$C$208)*'Dry Other Crop'!$D$26)/$C209) -> N/A | I209: =IF($D209=0, "N/A", ('Dry Other Crop'!$H$58-'Dry Other Crop'!$H$10+($D209-$D$208)*'Dry Other Crop'!$D$26)/$D209) -> N/A
A210: 1.25 | B210: ='Dry Other Crop'!$B$9*$A210 -> 0 | C210: ='Dry Other Crop'!$B$9*(1-'Dry Other Crop'!$E$9)*$A210 -> 0 | D210: ='Dry Other Crop'!$B$9*'Dry Other Crop'!$E$9*$A210 -> 0 | E210: =IF($B210=0, "N/A", ('Dry Other Crop'!$F$44-'Dry Other Crop'!$F$10+($B210-$B$208)*'Dry Other Crop'!$D$26)/$B210) -> N/A | F210: =IF($B210=0, "N/A",('Dry Other Crop'!$G$44-'Dry Other Crop'!$G$10+($C210-$C$208)*'Dry Other Crop'!$D$26)/$C210) -> N/A | G210: =IF($B210=0, "N/A",('Dry Other Crop'!$F$58-'Dry Other Crop'!$F$10+($B210-$B$208)*'Dry Other Crop'!$D$26)/$B210) -> N/A | H210: =IF($B210=0, "N/A",('Dry Other Crop'!$G$58-'Dry Other Crop'!$G$10+($C210-$C$208)*'Dry Other Crop'!$D$26)/$C210) -> N/A | I210: =IF($D210=0, "N/A", ('Dry Other Crop'!$H$58-'Dry Other Crop'!$H$10+($D210-$D$208)*'Dry Other Crop'!$D$26)/$D210) -> N/A

Sheet Comparative Returns
A2: Comparative Returns
A3: Projected
B5: Total Revenue | E5: Total Variable Costs | H5: Return Over Variable Costs | K5: Total Costs | O5: Return Over Variable Costs per Acre-Inch Applied | R5: Return Over Total Costs | W5: Break-Even Yield to Cover Variable Costs | Z5: Break-Even Yield to Cover Total Costs
B6: Total | C6: Tenant | D6: Landlord | E6: Total | F6: Tenant | G6: Landlord | H6: Total | I6: Tenant | J6: Landlord | K6: Total | L6: Tenant | M6: Landlord | N6: ac-in | O6: Total | P6: Tenant | Q6: Landlord | R6: Total | S6: Tenant | T6: Landlord | U6: Price | V6: unit | W6: Total | X6: Tenant | Y6: Landlord | Z6: Total | AA6: Tenant | AB6: Landlord
A7: ='Irr Alfalfa'!$A$3:$H$3 -> Irrigated Alfalfa | B7: ='Irr Alfalfa'!F$12 -> 1947 | C7: ='Irr Alfalfa'!G$12 -> 1304.49 | D7: ='Irr Alfalfa'!H$12 -> 45.74 | E7: ='Irr Alfalfa'!F$48 -> 792.86984 | F7: ='Irr Alfalfa'!G$48 -> 679.7849252 | G7: ='Irr Alfalfa'!H$48 -> 113.0849148 | H7: =B7-E7 -> 1154.13016 | I7: =C7-F7 -> 624.7050748 | J7: =D7-G7 -> -67.3449148 | K7: ='Irr Alfalfa'!F$63 -> 1096.12984 | L7: ='Irr Alfalfa'!G$63 -> 983.0449252 | M7: ='Irr Alfalfa'!H$63 -> 113.0849148 | N7: ='Irr Alfalfa'!B37 -> 24 | O7: =IF($N7=0,"-",H7/$N7) -> 48.08875667 | P7: =IF($N7=0,"-",I7/$N7) -> 26.02937812 | Q7: =IF($N7=0,"-",J7/$N7) -> -2.806038117 | R7: =B7-K7 -> 850.87016 | S7: =C7-L7 -> 321.4450748 | T7: =D7-M7 -> -67.3449148 | U7: ='Irr Alfalfa'!$D$9 -> 354 | V7: ='Irr Alfalfa'!$C$9 -> ton | W7: =IF($U7=0, 0, E7/$U7) -> 2.239745311 | X7: =IF($U7=0, 0, IF('Irr Alfalfa'!$E$9=0,0,F7/$U7/(1-'Irr Alfalfa'!$E$9))) -> 2.866114028 | Y7: =IF($U7=0, 0, IF('Irr Alfalfa'!$E$9=0,0,G7/$U7/('Irr Alfalfa'!$E$9))) -> 0.9680270056 | Z7: =IF($U7=0, 0, K7/$U7) -> 3.096411977 | AA7: =IF($U7=0, 0, IF('Irr Alfalfa'!$E$9=0,0,L7/$U7/(1-'Irr Alfalfa'!$E$9))) -> 4.144720993 | AB7: =IF($U7=0, 0, IF('Irr Alfalfa'!$E$9=0,0,M7/$U7/('Irr Alfalfa'!$E$9))) -> 0.9680270056
A8: ='Irr Canola'!$A$3:$H$3 -> Irrigated Canola | B8: ='Irr Canola'!F$12 -> 514.8 | C8: ='Irr Canola'!G$12 -> 344.916 | D8: ='Irr Canola'!H$12 -> 169.884 | E8: ='Irr Canola'!F$49 -> 503.3953643 | F8: ='Irr Canola'!G$49 -> 393.7277348 | G8: ='Irr Canola'!H$49 -> 109.6676295 | H8: 11.40463567 | I8: -48.81173483 | J8: 60.2163705 | K8: ='Irr Canola'!F$63 -> 679.4353643 | L8: ='Irr Canola'!G$63 -> 481.2677348 | M8: ='Irr Canola'!H$63 -> 198.1676295 | N8: ='Irr Canola'!B38 -> 10 | O8: 1.140463567 | P8: -4.881173483 | Q8: 6.02163705 | R8: -164.6353643 | S8: -136.3517348 | T8: -28.2836295 | U8: ='Irr Canola'!$D$9 -> 23.4 | V8: ='Irr Canola'!$C$9 -> cwt | W8: =IF($U8=0, 0, E8/$U8) -> 21.51262241 | X8: =IF($U8=0, 0, IF('Irr Canola'!$E$9=0,0,F8/$U8/(1-'Irr Canola'!$E$9))) -> 25.11339041 | Y8: =IF($U8=0, 0, IF('Irr Canola'!$E$9=0,0,G8/$U8/('Irr Canola'!$E$9))) -> 14.20197222 | Z8: =IF($U8=0, 0, K8/$U8) -> 29.03569933 | AA8: =IF($U8=0, 0, IF('Irr Canola'!$E$9=0,0,L8/$U8/(1-'Irr Canola'!$E$9))) -> 30.69701077 | AB8: =IF($U8=0, 0, IF('Irr Canola'!$E$9=0,0,M8/$U8/('Irr Canola'!$E$9))) -> 25.66273368
A9: ='Irr Corn'!$A$3:$H$3 -> Irrigated Corn | B9: ='Irr Corn'!F$12 -> 1453.5 | C9: ='Irr Corn'!G$12 -> 973.845 | D9: ='Irr Corn'!H$12 -> 479.655 | E9: ='Irr Corn'!F$47 -> 1252.315747 | F9: ='Irr Corn'!G$47 -> 948.0973059 | G9: ='Irr Corn'!H$47 -> 312.9670125 | H9: 201.1842532 | I9: 25.74769407 | J9: 166.6879875 | K9: ='Irr Corn'!F$61 -> 1484.765747 | L9: ='Irr Corn'!G$61 -> 1062.947306 | M9: ='Irr Corn'!H$61 -> 430.5670125 | N9: ='Irr Corn'!B36 -> 22 | O9: 9.144738783 | P9: 1.17034973 | Q9: 7.576726703 | R9: -31.26574678 | S9: -89.10230593 | T9: 49.08798747 | U9: ='Irr Corn'!$D$9 -> 6.46 | V9: ='Irr Corn'!$C$9 -> bu | W9: 193.8569267 | X9: =IF($U9=0, 0, IF('Irr Corn'!$E$9=0,0,F9/$U9/(1-'Irr Corn'!$E$9))) -> 219.0511774 | Y9: =IF($U9=0, 0, IF('Irr Corn'!$E$9=0,0,G9/$U9/('Irr Corn'!$E$9))) -> 146.808806 | Z9: 229.8398989 | AA9: =IF($U9=0, 0, IF('Irr Corn'!$E$9=0,0,L9/$U9/(1-'Irr Corn'!$E$9))) -> 245.5864576 | AB9: =IF($U9=0, 0, IF('Irr Corn'!$E$9=0,0,M9/$U9/('Irr Corn'!$E$9))) -> 201.9734555
A10: ='Irr Corn Silage'!$A$3:$H$3 -> Irrigated Corn Silage | B10: ='Irr Corn Silage'!F$12 -> 1858.41 | C10: ='Irr Corn Silage'!G$12 -> 1245.1347 | D10: ='Irr Corn Silage'!H$12 -> 613.2753 | E10: ='Irr Corn Silage'!F$47 -> 1541.770453 | F10: ='Irr Corn Silage'!G$47 -> 1267.1203 | G10: ='Irr Corn Silage'!H$47 -> 274.6501523 | H10: 316.6395473 | I10: -21.9856004 | J10: 338.6251477 | K10: ='Irr Corn Silage'!F$61 -> 1777.750453 | L10: ='Irr Corn Silage'!G$61 -> 1385.5003 | M10: ='Irr Corn Silage'!H$61 -> 392.2501523 | N10: ='Irr Corn Silage'!B36 -> 20 | O10: 15.83197737 | P10: -1.09928002 | Q10: 16.93125739 | R10: 80.65954734 | S10: -140.3656004 | T10: 221.0251477 | U10: ='Irr Corn Silage'!$D$9 -> 68.83 | V10: ='Irr Corn Silage'!$C$9 -> ton | W10: 22.39968695 | X10: =IF($U10=0, 0, IF('Irr Corn Silage'!$E$9=0,0,F10/$U10/(1-'Irr Corn Silage'!$E$9))) -> 27.47674457 | Y10: =IF($U10=0, 0, IF('Irr Corn Silage'!$E$9=0,0,G10/$U10/('Irr Corn Silage'!$E$9))) -> 12.09172147 | Z10: 25.82813385 | AA10: =IF($U10=0, 0, IF('Irr Corn Silage'!$E$9=0,0,L10/$U10/(1-'Irr Corn Silage'!$E$9))) -> 30.04374395 | AB10: =IF($U10=0, 0, IF('Irr Corn Silage'!$E$9=0,0,M10/$U10/('Irr Corn Silage'!$E$9))) -> 17.26916788
A11: ='Irr Cotton'!$A$3:$H$3 -> Irrigated Cotton | B11: ='Irr Cotton'!F$13 -> 1537.5 | C11: ='Irr Cotton'!G$13 -> 1030.125 | D11: ='Irr Cotton'!H$13 -> 507.375 | E11: ='Irr Cotton'!F$52 -> 1246.511727 | F11: ='Irr Cotton'!G$52 -> 977.9876793 | G11: ='Irr Cotton'!H$52 -> 268.5240479 | H11: 290.9882728 | I11: 52.13732065 | J11: 238.8509521 | K11: ='Irr Cotton'!F$66 -> 1424.751727 | L11: ='Irr Cotton'!G$66 -> 1067.727679 | M11: ='Irr Cotton'!H$66 -> 357.0240479 | N11: ='Irr Cotton'!B41 -> 12 | O11: 24.24902273 | P11: 4.344776721 | Q11: 19.90424601 | R11: 112.7482728 | S11: -37.60267935 | T11: 150.3509521 | U11: ='Irr Cotton'!$D$9 -> 0.8 | V11: ='Irr Cotton'!$C$9 -> lb | W11: =IF($U11=0, 0, E11/($U11+Cottonseed_Price/2000*'Universal Input Prices'!$B$39/500)) -> 1216.109002 | X11: =IF($U11=0, 0, IF('Irr Cotton'!$E$9=0,0,F11/($U11+Cottonseed_Price/2000*'Universal Input Prices'!$B$39/500)/(1-'Irr Cotton'!$E$9))) -> 1424.081077 | Y11: =IF($U11=0, 0, IF('Irr Cotton'!$E$9=0,0,G11/($U11+Cottonseed_Price/2000*'Universal Input Prices'!$B$39/500)/('Irr Cotton'!$E$9))) -> 793.8626693 | Z11: =IF($U11=0, 0, K11/($U11+Cottonseed_Price/2000*'Universal Input Prices'!$B$39/500)) -> 1390.001685 | AA11: =IF($U11=0, 0, IF('Irr Cotton'!$E$9=0,0,L11/($U11+Cottonseed_Price/2000*'Universal Input Prices'!$B$39/500)/(1-'Irr Cotton'!$E$9))) -> 1554.754539 | AB11: =IF($U11=0, 0, IF('Irr Cotton'!$E$9=0,0,M11/($U11+Cottonseed_Price/2000*'Universal Input Prices'!$B$39/500)/('Irr Cotton'!$E$9))) -> 1055.503468
A12: ='Irr Peanuts'!$A$3:$H$3 -> Irrigated Peanuts | B12: ='Irr Peanuts'!F$12 -> 1107 | C12: ='Irr Peanuts'!G$12 -> 741.69 | D12: ='Irr Peanuts'!H$12 -> 365.31 | E12: ='Irr Peanuts'!F$51 -> 1055.151612 | F12: ='Irr Peanuts'!G$51 -> 869.301024 | G12: ='Irr Peanuts'!H$51 -> 185.850588 | H12: 51.848388 | I12: -127.611024 | J12: 179.459412 | K12: ='Irr Peanuts'!F$65 -> 1271.971612 | L12: ='Irr Peanuts'!G$65 -> 994.961024 | M12: ='Irr Peanuts'!H$65 -> 277.010588 | N12: ='Irr Peanuts'!B40 -> 21 | O12: 2.468970857 | P12: -6.076715429 | Q12: 8.545686286 | R12: -164.971612 | S12: -253.271024 | T12: 88.299412 | U12: ='Irr Peanuts'!$D$9 -> 492 | V12: ='Irr Peanuts'!$C$9 -> ton | W12: =IF($U12=0, 0, E12/$U12) -> 2.144617098 | X12: =IF($U12=0, 0, IF('Irr Peanuts'!$E$9=0,0,F12/$U12/(1-'Irr Peanuts'!$E$9))) -> 2.637122388 | Y12: =IF($U12=0, 0, IF('Irr Peanuts'!$E$9=0,0,G12/$U12/('Irr Peanuts'!$E$9))) -> 1.144682114 | Z12: 2.585308154 | AA12: =IF($U12=0, 0, IF('Irr Peanuts'!$E$9=0,0,L12/$U12/(1-'Irr Peanuts'!$E$9))) -> 3.018326125 | AB12: =IF($U12=0, 0, IF('Irr Peanuts'!$E$9=0,0,M12/$U12/('Irr Peanuts'!$E$9))) -> 1.706150456
A13: ='Irr Sorghum'!$A$3:$H$3 -> Irrigated Sorghum | B13: ='Irr Sorghum'!F$12 -> 622.8 | C13: ='Irr Sorghum'!G$12 -> 417.276 | D13: ='Irr Sorghum'!H$12 -> 205.524 | E13: ='Irr Sorghum'!F$46 -> 686.78739 | F13: ='Irr Sorghum'!G$46 -> 512.1367651 | G13: ='Irr Sorghum'!H$46 -> 174.6506249 | H13: -63.98738998 | I13: -94.86076507 | J13: 30.87337509 | K13: ='Irr Sorghum'!F$60 -> 887.02739 | L13: ='Irr Sorghum'!G$60 -> 623.8767651 | M13: ='Irr Sorghum'!H$60 -> 263.1506249 | N13: ='Irr Sorghum'!B35 -> 10 | O13: -6.398738998 | P13: -9.486076507 | Q13: 3.087337509 | R13: -264.22739 | S13: -206.6007651 | T13: -57.62662491 | U13: ='Irr Sorghum'!$D$9 -> 10.38 | V13: ='Irr Sorghum'!$C$9 -> cwt | W13: =IF($U13=0, 0, (E13-'Irr Sorghum'!$F$10)/$U13) -> 66.16448844 | X13: =IF($U13=0, 0, IF('Irr Sorghum'!$E$9=0,0,(F13-'Irr Sorghum'!$F$10)/$U13/(1-'Irr Sorghum'!$E$9))) -> 73.64000303 | Y13: =IF($U13=0, 0, IF('Irr Sorghum'!$E$9=0,0,(G13-'Irr Sorghum'!$F$10)/$U13/('Irr Sorghum'!$E$9))) -> 50.98692851 | Z13: =IF($U13=0, 0, (K13-'Irr Sorghum'!$F$10)/$U13) -> 85.45543256 | AA13: =IF($U13=0, 0, IF('Irr Sorghum'!$E$9=0,0,(L13-'Irr Sorghum'!$F$10)/$U13/(1-'Irr Sorghum'!$E$9))) -> 89.70706656 | AB13: =IF($U13=0, 0, IF('Irr Sorghum'!$E$9=0,0,(M13-'Irr Sorghum'!$F$10)/$U13/('Irr Sorghum'!$E$9))) -> 76.82332718
A14: ='Irr Sorghum Seed'!$A$3:$H$3 -> Irrigated Sorghum Seed | B14: ='Irr Sorghum Seed'!F$12 -> 1427.4 | C14: ='Irr Sorghum Seed'!G$12 -> 956.358 | D14: ='Irr Sorghum Seed'!H$12 -> 471.042 | E14: ='Irr Sorghum Seed'!F$46 -> 769.4535707 | F14: ='Irr Sorghum Seed'!G$46 -> 567.4660199 | G14: ='Irr Sorghum Seed'!H$46 -> 201.9875507 | H14: 657.9464293 | I14: 388.8919801 | J14: 269.0544493 | K14: ='Irr Sorghum Seed'!F$60 -> 958.7135707 | L14: ='Irr Sorghum Seed'!G$60 -> 668.2260199 | M14: ='Irr Sorghum Seed'!H$60 -> 290.4875507 | N14: ='Irr Sorghum Seed'!B35 -> 16 | O14: 41.12165183 | P14: 24.30574875 | Q14: 16.81590308 | R14: 468.6864293 | S14: 288.1319801 | T14: 180.5544493 | U14: ='Irr Sorghum Seed'!$D$9 -> 31.72 | V14: ='Irr Sorghum Seed'!$C$9 -> cwt | W14: =IF($U14=0, 0, (E14-'Irr Sorghum Seed'!$F$10)/$U14) -> 24.25767877 | X14: =IF($U14=0, 0, IF('Irr Sorghum Seed'!$E$9=0,0,(F14-'Irr Sorghum Seed'!$F$10)/$U14/(1-'Irr Sorghum Seed'!$E$9))) -> 26.70126762 | Y14: =IF($U14=0, 0, IF('Irr Sorghum Seed'!$E$9=0,0,(G14-'Irr Sorghum Seed'!$F$10)/$U14/('Irr Sorghum Seed'!$E$9))) -> 19.29645293 | Z14: =IF($U14=0, 0, (K14-'Irr Sorghum Seed'!$F$10)/$U14) -> 30.22426137 | AA14: =IF($U14=0, 0, IF('Irr Sorghum Seed'!$E$9=0,0,(L14-'Irr Sorghum Seed'!$F$10)/$U14/(1-'Irr Sorghum Seed'!$E$9))) -> 31.44237921 | AB14: =IF($U14=0, 0, IF('Irr Sorghum Seed'!$E$9=0,0,(M14-'Irr Sorghum Seed'!$F$10)/$U14/('Irr Sorghum Seed'!$E$9))) -> 27.75111303
A15: ='Irr Sorghum Silage'!$A$3:$H$3 -> Irrigated Sorghum Silage | B15: ='Irr Sorghum Silage'!F$12 -> 1300.95 | C15: ='Irr Sorghum Silage'!G$12 -> 871.6365 | D15: ='Irr Sorghum Silage'!H$12 -> 429.3135 | E15: ='Irr Sorghum Silage'!F$46 -> 862.6989165 | F15: ='Irr Sorghum Silage'!G$46 -> 741.3461684 | G15: ='Irr Sorghum Silage'!H$46 -> 121.3527481 | H15: 438.2510835 | I15: 130.2903316 | J15: 307.9607519 | K15: ='Irr Sorghum Silage'!F$60 -> 1048.348916 | L15: ='Irr Sorghum Silage'!G$60 -> 838.4961684 | M15: ='Irr Sorghum Silage'!H$60 -> 209.8527481 | N15: ='Irr Sorghum Silage'!B35 -> 14 | O15: 31.30364882 | P15: 9.306452258 | Q15: 21.99719657 | R15: 252.6010835 | S15: 33.14033161 | T15: 219.4607519 | U15: ='Irr Sorghum Silage'!$D$9 -> 61.95 | V15: ='Irr Sorghum Silage'!$C$9 -> ton | W15: =IF($U15=0, 0, E15/$U15) -> 13.92572908 | X15: =IF($U15=0, 0, IF('Irr Sorghum Silage'!$E$9=0,0,F15/$U15/(1-'Irr Sorghum Silage'!$E$9))) -> 17.86096559 | Y15: =IF($U15=0, 0, IF('Irr Sorghum Silage'!$E$9=0,0,G15/$U15/('Irr Sorghum Silage'!$E$9))) -> 5.93600646 | Z15: 16.92250067 | AA15: =IF($U15=0, 0, IF('Irr Sorghum Silage'!$E$9=0,0,L15/$U15/(1-'Irr Sorghum Silage'!$E$9))) -> 20.20156285 | AB15: =IF($U15=0, 0, IF('Irr Sorghum Silage'!$E$9=0,0,M15/$U15/('Irr Sorghum Silage'!$E$9))) -> 10.26501079
A16: ='Irr Sorghum Sudangrass'!$A$3:$H$3 -> Irrigated Sorghum Sudangrass | B16: ='Irr Sorghum Sudangrass'!F$12 -> 480 | C16: ='Irr Sorghum Sudangrass'!G$12 -> 321.6 | D16: ='Irr Sorghum Sudangrass'!H$12 -> 158.4 | E16: ='Irr Sorghum Sudangrass'!F$46 -> 430.5722382 | F16: ='Irr Sorghum Sudangrass'!G$46 -> 319.7772647 | G16: ='Irr Sorghum Sudangrass'!H$46 -> 110.7949735 | H16: 49.42776177 | I16: 1.822735257 | J16: 47.60502651 | K16: ='Irr Sorghum Sudangrass'!F$60 -> 604.1922382 | L16: ='Irr Sorghum Sudangrass'!G$60 -> 404.8972647 | M16: ='Irr Sorghum Sudangrass'!H$60 -> 199.2949735 | N16: ='Irr Sorghum Sudangrass'!B35 -> 9 | O16: 5.49197353 | P16: 0.2025261397 | Q16: 5.28944739 | R16: -124.1922382 | S16: -83.29726474 | T16: -40.89497349 | U16: ='Irr Sorghum Sudangrass'!$D$9 -> 0.6 | V16: ='Irr Sorghum Sudangrass'!$C$9 -> lb | W16: 717.6203971 | X16: =IF($U16=0, 0, IF('Irr Sorghum Sudangrass'!$E$9=0,0,F16/$U16/(1-'Irr Sorghum Sudangrass'!$E$9))) -> 795.4658327 | Y16: =IF($U16=0, 0, IF('Irr Sorghum Sudangrass'!$E$9=0,0,G16/$U16/('Irr Sorghum Sudangrass'!$E$9))) -> 559.5705732 | Z16: 1006.987064 | AA16: =IF($U16=0, 0, IF('Irr Sorghum Sudangrass'!$E$9=0,0,L16/$U16/(1-'Irr Sorghum Sudangrass'!$E$9))) -> 1007.207126 | AB16: =IF($U16=0, 0, IF('Irr Sorghum Sudangrass'!$E$9=0,0,M16/$U16/('Irr Sorghum Sudangrass'!$E$9))) -> 1006.54027
A17: ='Irr Soybeans'!$A$3:$H$3 -> Irrigated Soybeans | B17: ='Irr Soybeans'!F$12 -> 832.2 | C17: ='Irr Soybeans'!G$12 -> 557.574 | D17: ='Irr Soybeans'!H$12 -> 274.626 | E17: ='Irr Soybeans'!F$49 -> 506.7631544 | F17: ='Irr Soybeans'!G$49 -> 414.0471596 | G17: ='Irr Soybeans'!H$49 -> 92.7159948 | H17: 325.4368456 | I17: 143.5268404 | J17: 181.9100052 | K17: ='Irr Soybeans'!F$63 -> 693.6331544 | L17: ='Irr Soybeans'!G$63 -> 512.4171596 | M17: ='Irr Soybeans'!H$63 -> 181.2159948 | N17: ='Irr Soybeans'!B38 -> 14 | O17: 23.24548897 | P17: 10.25191717 | Q17: 12.9935718 | R17: 138.5668456 | S17: 45.1568404 | T17: 93.4100052 | U17: ='Irr Soybeans'!$D$9 -> 13.87 | V17: ='Irr Soybeans'!$C$9 -> bu | W17: 36.53663694 | X17: =IF($U17=0, 0, IF('Irr Soybeans'!$E$9=0,0,F17/$U17/(1-'Irr Soybeans'!$E$9))) -> 44.55521523 | Y17: =IF($U17=0, 0, IF('Irr Soybeans'!$E$9=0,0,G17/$U17/('Irr Soybeans'!$E$9))) -> 20.25649315 | Z17: 50.00960017 | AA17: =IF($U17=0, 0, IF('Irr Soybeans'!$E$9=0,0,L17/$U17/(1-'Irr Soybeans'!$E$9))) -> 55.14071599 | AB17: =IF($U17=0, 0, IF('Irr Soybeans'!$E$9=0,0,M17/$U17/('Irr Soybeans'!$E$9))) -> 39.59188019
A18: ='Irr Sunflowers-Confection'!$A$3:$H$3 -> Irrigated Sunflowers-Confectionary | B18: ='Irr Sunflowers-Confection'!F$13 -> 581.94 | C18: ='Irr Sunflowers-Confection'!G$13 -> 389.8998 | D18: ='Irr Sunflowers-Confection'!H$13 -> 192.0402 | E18: ='Irr Sunflowers-Confection'!F$49 -> 631.2446265 | F18: ='Irr Sunflowers-Confection'!G$49 -> 478.4792173 | G18: ='Irr Sunflowers-Confection'!H$49 -> 152.7654092 | H18: -49.3046265 | I18: -88.57941728 | J18: 39.27479077 | K18: ='Irr Sunflowers-Confection'!F$63 -> 800.4146265 | L18: ='Irr Sunflowers-Confection'!G$63 -> 559.1492173 | M18: ='Irr Sunflowers-Confection'!H$63 -> 241.2654092 | N18: ='Irr Sunflowers-Confection'!B38 -> 7 | O18: -7.043518071 | P18: -12.65420247 | Q18: 5.610684396 | R18: -218.4746265 | S18: -169.2494173 | T18: -49.22520923 | U18: ='Irr Sunflowers-Confection'!$D$9 -> 32.33 | V18: ='Irr Sunflowers-Confection'!$C$9 -> cwt | W18: 19.52504258 | X18: =IF($U18=0, 0, IF('Irr Sunflowers-Confection'!$E$9=0,0,F18/$U18/(1-'Irr Sunflowers-Confection'!$E$9))) -> 22.08933144 | Y18: =IF($U18=0, 0, IF('Irr Sunflowers-Confection'!$E$9=0,0,G18/$U18/('Irr Sunflowers-Confection'!$E$9))) -> 14.31875912 | Z18: 24.75764388 | AA18: =IF($U18=0, 0, IF('Irr Sunflowers-Confection'!$E$9=0,0,L18/$U18/(1-'Irr Sunflowers-Confection'!$E$9))) -> 25.81351904 | AB18: =IF($U18=0, 0, IF('Irr Sunflowers-Confection'!$E$9=0,0,M18/$U18/('Irr Sunflowers-Confection'!$E$9))) -> 22.61389733
A19: ='Irr Sunflowers-Oilseed'!$A$3:$H$3 -> Irrigated Sunflowers-Oilseed | B19: ='Irr Sunflowers-Oilseed'!F$12 -> 535 | C19: ='Irr Sunflowers-Oilseed'!G$12 -> 358.45 | D19: ='Irr Sunflowers-Oilseed'!H$12 -> 176.55 | E19: ='Irr Sunflowers-Oilseed'!F$48 -> 630.2313625 | F19: ='Irr Sunflowers-Oilseed'!G$48 -> 462.1981733 | G19: ='Irr Sunflowers-Oilseed'!H$48 -> 168.0331892 | H19: -95.2313625 | I19: -103.7481733 | J19: 8.516810775 | K19: ='Irr Sunflowers-Oilseed'!F$62 -> 799.4013625 | L19: ='Irr Sunflowers-Oilseed'!G$62 -> 542.8681733 | M19: ='Irr Sunflowers-Oilseed'!H$62 -> 256.5331892 | N19: ='Irr Sunflowers-Oilseed'!B37 -> 7 | O19: -13.60448036 | P19: -14.82116761 | Q19: 1.216687254 | R19: -264.4013625 | S19: -184.4181733 | T19: -79.98318923 | U19: ='Irr Sunflowers-Oilseed'!$D$9 -> 26.75 | V19: ='Irr Sunflowers-Oilseed'!$C$9 -> cwt | W19: 23.56005093 | X19: =IF($U19=0, 0, IF('Irr Sunflowers-Oilseed'!$E$9=0,0,F19/$U19/(1-'Irr Sunflowers-Oilseed'!$E$9))) -> 25.78871102 | Y19: =IF($U19=0, 0, IF('Irr Sunflowers-Oilseed'!$E$9=0,0,G19/$U19/('Irr Sunflowers-Oilseed'!$E$9))) -> 19.03519561 | Z19: 29.88416308 | AA19: =IF($U19=0, 0, IF('Irr Sunflowers-Oilseed'!$E$9=0,0,L19/$U19/(1-'Irr Sunflowers-Oilseed'!$E$9))) -> 30.28975719 | AB19: =IF($U19=0, 0, IF('Irr Sunflowers-Oilseed'!$E$9=0,0,M19/$U19/('Irr Sunflowers-Oilseed'!$E$9))) -> 29.06068414
A20: ='Irr Triticale Silage'!$A$3:$H$3 -> Irrigated Triticale Silage | B20: ='Irr Triticale Silage'!F$12 -> 619.5 | C20: ='Irr Triticale Silage'!G$12 -> 415.065 | D20: ='Irr Triticale Silage'!H$12 -> 204.435 | E20: ='Irr Triticale Silage'!F$46 -> 480.6754469 | F20: ='Irr Triticale Silage'!G$46 -> 414.0166714 | G20: ='Irr Triticale Silage'!H$46 -> 66.65877546 | H20: =B20-E20 -> 138.8245531 | I20: =C20-F20 -> 1.04832859 | J20: =D20-G20 -> 137.7762245 | K20: ='Irr Triticale Silage'!F$60 -> 658.6754469 | L20: ='Irr Triticale Silage'!G$60 -> 503.5166714 | M20: ='Irr Triticale Silage'!H$60 -> 155.1587755 | N20: ='Irr Sorghum Sudangrass'!B36 -> 48.49 | O20: =IF($N20=0,"-",H20/$N20) -> 2.86295222 | P20: =IF($N20=0,"-",I20/$N20) -> 0.0216194801 | Q20: =IF($N20=0,"-",J20/$N20) -> 2.84133274 | R20: =B20-K20 -> -39.17544687 | S20: =C20-L20 -> -88.45167141 | T20: =D20-M20 -> 49.27622454 | U20: ='Irr Triticale Silage'!$D$9 -> 61.95 | V20: ='Irr Triticale Silage'!$C$9 -> ton | W20: =IF($U20=0, 0, E20/$U20) -> 7.759087117 | X20: =IF($U20=0, 0, IF('Irr Triticale Silage'!$E$9=0,0,F20/$U20/(1-'Irr Triticale Silage'!$E$9))) -> 9.974743026 | Y20: =IF($U20=0, 0, IF('Irr Triticale Silage'!$E$9=0,0,G20/$U20/('Irr Triticale Silage'!$E$9))) -> 3.260634209 | Z20: =IF($U20=0, 0, K20/$U20) -> 10.63237202 | AA20: =IF($U20=0, 0, IF('Irr Triticale Silage'!$E$9=0,0,L20/$U20/(1-'Irr Triticale Silage'!$E$9))) -> 12.1310318 | AB20: =IF($U20=0, 0, IF('Irr Triticale Silage'!$E$9=0,0,M20/$U20/('Irr Triticale Silage'!$E$9))) -> 7.589638538
A21: ='Irr Wheat'!$A$3:$H$3 -> Irrigated Wheat | B21: ='Irr Wheat'!F$13 -> 504.6 | C21: ='Irr Wheat'!G$13 -> 338.082 | D21: ='Irr Wheat'!H$13 -> 166.518 | E21: ='Irr Wheat'!F$47 -> 407.6033338 | F21: ='Irr Wheat'!G$47 -> 319.5281292 | G21: ='Irr Wheat'!H$47 -> 88.07520464 | H21: 96.99666616 | I21: 18.5538708 | J21: 78.44279536 | K21: ='Irr Wheat'!F$61 -> 585.6033338 | L21: ='Irr Wheat'!G$61 -> 409.0281292 | M21: ='Irr Wheat'!H$61 -> 176.5752046 | N21: ='Irr Wheat'!B36 -> 10 | O21: 9.699666616 | P21: 1.85538708 | Q21: 7.844279536 | R21: -81.00333384 | S21: -70.9461292 | T21: -10.05720464 | U21: ='Irr Wheat'!$D$9 -> 8.46 | V21: ='Irr Wheat'!$C$9 -> bu | W21: =IF($U21=0, 0, (E21-'Irr Wheat'!$F$10)/$U21) -> 38.53467303 | X21: =IF($U21=0, 0, IF('Irr Wheat'!$E$9=0,0,(F21-'Irr Wheat'!$G$10)/$U21/(1-'Irr Wheat'!$E$9))) -> 46.72667323 | Y21: =IF($U21=0, 0, IF('Irr Wheat'!$E$9=0,0,(G21-'Irr Wheat'!$H$10)/$U21/('Irr Wheat'!$E$9))) -> 21.9024302 | Z21: =IF($U21=0, 0, (K21-'Irr Wheat'!$F$10)/$U21) -> 59.57486216 | AA21: =IF($U21=0, 0, IF('Irr Wheat'!$E$9=0,0,(L21-'Irr Wheat'!$G$10)/$U21/(1-'Irr Wheat'!$E$9))) -> 62.51651833 | AB21: =IF($U21=0, 0, IF('Irr Wheat'!$E$9=0,0,(M21-'Irr Wheat'!$H$10)/$U21/('Irr Wheat'!$E$9))) -> 53.60240871
A22: ='Irr Other Crop'!$A$3:$H$3 -> Irrigated Other Crop | B22: ='Irr Other Crop'!F$12 -> 0 | C22: ='Irr Other Crop'!G$12 -> 0 | D22: ='Irr Other Crop'!H$12 -> 0 | E22: ='Irr Other Crop'!F$48 -> 0 | F22: ='Irr Other Crop'!G$48 -> 0 | G22: ='Irr Other Crop'!H$48 -> 0 | H22: 0 | I22: 0 | J22: 0 | K22: ='Irr Other Crop'!F$62 -> 0 | L22: ='Irr Other Crop'!G$62 -> 0 | M22: ='Irr Other Crop'!H$62 -> 0 | N22: ='Irr Other Crop'!B37 -> 0 | O22: =IF($N22=0,"-",H22/$N22) -> - | P22: - | Q22: - | R22: 0 | S22: 0 | T22: 0 | U22: ='Irr Other Crop'!$D$9 -> 0 | V22: ='Irr Other Crop'!$C$9 -> unit | W22: =IF($U22=0, 0, (E22-'Irr Other Crop'!$F$10)/$U22) -> 0 | X22: =IF($U22=0, 0, IF('Irr Other Crop'!$E$9=0,0,(F22-'Irr Other Crop'!$G$10)/$U22/(1-'Irr Other Crop'!$E$9))) -> 0 | Y22: =IF($U22=0, 0, IF('Irr Other Crop'!$E$9=0,0,(G22-'Irr Other Crop'!$H$10)/$U22/('Irr Other Crop'!$E$9))) -> 0 | Z22: =IF($U22=0, 0, (K22-'Irr Other Crop'!$F$10)/$U22) -> 0 | AA22: =IF($U22=0, 0, IF('Irr Other Crop'!$E$9=0,0,(L22-'Irr Other Crop'!$G$10)/$U22/(1-'Irr Other Crop'!$E$9))) -> 0 | AB22: =IF($U22=0, 0, IF('Irr Other Crop'!$E$9=0,0,(M22-'Irr Other Crop'!$H$10)/$U22/('Irr Other Crop'!$E$9))) -> 0
A23: ='Dry Canola'!$A$3:$H$3 -> Dryland Canola | B23: ='Dry Canola'!F$12 -> 257.4 | C23: ='Dry Canola'!G$12 -> 172.458 | D23: ='Dry Canola'!H$12 -> 84.942 | E23: ='Dry Canola'!F$45 -> 232.1237504 | F23: ='Dry Canola'!G$45 -> 192.3971492 | G23: ='Dry Canola'!H$45 -> 39.7266012 | H23: 25.2762496 | I23: -19.9391492 | J23: 45.2153988 | K23: ='Dry Canola'!F$59 -> 283.2037504 | L23: ='Dry Canola'!G$59 -> 211.0271492 | M23: ='Dry Canola'!H$59 -> 72.1766012 | N23: ='Dry Canola'!#REF! ->  | R23: -25.8037504 | S23: -38.5691492 | T23: 12.7653988 | U23: ='Dry Canola'!$D$9 -> 23.4 | V23: ='Dry Canola'!$C$9 -> cwt | W23: =IF($U23=0, 0, E23/$U23) -> 9.919818393 | X23: =IF($U23=0, 0, IF('Dry Canola'!$E$9=0,0,F23/$U23/(1-'Dry Canola'!$E$9))) -> 12.27179163 | Y23: =IF($U23=0, 0, IF('Dry Canola'!$E$9=0,0,G23/$U23/('Dry Canola'!$E$9))) -> 5.1446 | Z23: 12.10272438 | AA23: =IF($U23=0, 0, IF('Dry Canola'!$E$9=0,0,L23/$U23/(1-'Dry Canola'!$E$9))) -> 13.46008095 | AB23: =IF($U23=0, 0, IF('Dry Canola'!$E$9=0,0,M23/$U23/('Dry Canola'!$E$9))) -> 9.346879202
A24: ='Dry Cotton'!$A$3:$H$3 -> Dryland Cotton | B24: ='Dry Cotton'!F$13 -> 410 | C24: ='Dry Cotton'!G$13 -> 274.7 | D24: ='Dry Cotton'!H$13 -> 135.3 | E24: ='Dry Cotton'!F$49 -> 474.1091451 | F24: ='Dry Cotton'!G$49 -> 369.9687448 | G24: ='Dry Cotton'!H$49 -> 104.1404003 | H24: -64.10914508 | I24: -95.26874475 | J24: 31.15959968 | K24: ='Dry Cotton'!F$63 -> 524.8891451 | L24: ='Dry Cotton'!G$63 -> 388.5587448 | M24: ='Dry Cotton'!H$63 -> 136.3304003 | N24: ='Dry Cotton'!#REF! ->  | R24: -114.8891451 | S24: -113.8587448 | T24: -1.030400323 | U24: ='Dry Cotton'!$D$9 -> 0.8 | V24: ='Dry Cotton'!$C$9 -> lb | W24: =IF($U24=0, 0, E24/($U24+Cottonseed_Price/2000*'Universal Input Prices'!$B$39/500)) -> 462.5455074 | X24: =IF($U24=0, 0, IF('Dry Cotton'!$E$9=0,0,F24/($U24+Cottonseed_Price/2000*'Universal Input Prices'!$B$39/500)/(1-'Dry Cotton'!$E$9))) -> 538.724055 | Y24: =IF($U24=0, 0, IF('Dry Cotton'!$E$9=0,0,G24/($U24+Cottonseed_Price/2000*'Universal Input Prices'!$B$39/500)/('Dry Cotton'!$E$9))) -> 307.8799714 | Z24: =IF($U24=0, 0, K24/($U24+Cottonseed_Price/2000*'Universal Input Prices'!$B$39/500)) -> 512.0869708 | AA24: =IF($U24=0, 0, IF('Dry Cotton'!$E$9=0,0,L24/($U24+Cottonseed_Price/2000*'Universal Input Prices'!$B$39/500)/(1-'Dry Cotton'!$E$9))) -> 565.7935854 | AB24: =IF($U24=0, 0, IF('Dry Cotton'!$E$9=0,0,M24/($U24+Cottonseed_Price/2000*'Universal Input Prices'!$B$39/500)/('Dry Cotton'!$E$9))) -> 403.0462685
A25: ='Dry Sorghum'!$A$3:$H$3 -> Dryland Sorghum | B25: ='Dry Sorghum'!F$12 -> 259.5 | C25: ='Dry Sorghum'!G$12 -> 173.865 | D25: ='Dry Sorghum'!H$12 -> 85.635 | E25: ='Dry Sorghum'!F$43 -> 279.2260406 | F25: ='Dry Sorghum'!G$43 -> 209.6871742 | G25: ='Dry Sorghum'!H$43 -> 69.53886633 | H25: -19.72604057 | I25: -35.82217424 | J25: 16.09613367 | K25: ='Dry Sorghum'!F$57 -> 326.0160406 | L25: ='Dry Sorghum'!G$57 -> 224.0271742 | M25: ='Dry Sorghum'!H$57 -> 101.9888663 | N25: ='Dry Sorghum'!#REF! ->  | R25: -66.51604057 | S25: -50.16217424 | T25: -16.35386633 | U25: ='Dry Sorghum'!$D$9 -> 10.38 | V25: ='Dry Sorghum'!$C$9 -> cwt | W25: =IF($U25=0, 0, (E25-'Dry Sorghum'!$F$10)/$U25) -> 26.90038926 | X25: =IF($U25=0, 0, IF('Dry Sorghum'!$E$9=0,0,(F25-'Dry Sorghum'!$F$10)/$U25/(1-'Dry Sorghum'!$E$9))) -> 30.15086047 | Y25: =IF($U25=0, 0, IF('Dry Sorghum'!$E$9=0,0,(G25-'Dry Sorghum'!$F$10)/$U25/('Dry Sorghum'!$E$9))) -> 20.30094772 | Z25: =IF($U25=0, 0, (K25-'Dry Sorghum'!$F$10)/$U25) -> 31.40809639 | AA25: =IF($U25=0, 0, IF('Dry Sorghum'!$E$9=0,0,(L25-'Dry Sorghum'!$F$10)/$U25/(1-'Dry Sorghum'!$E$9))) -> 32.21280508 | AB25: =IF($U25=0, 0, IF('Dry Sorghum'!$E$9=0,0,(M25-'Dry Sorghum'!$F$10)/$U25/('Dry Sorghum'!$E$9))) -> 29.7742939
A26: ='Dry Sorghum Sudangrass'!$A$3:$H$3 -> Dryland Sorghum Sudangrass | B26: ='Dry Sorghum Sudangrass'!F$12 -> 201.6 | C26: ='Dry Sorghum Sudangrass'!G$12 -> 135.072 | D26: ='Dry Sorghum Sudangrass'!H$12 -> 66.528 | E26: ='Dry Sorghum Sudangrass'!F$42 -> 149.8443975 | F26: ='Dry Sorghum Sudangrass'!G$42 -> 113.7929221 | G26: ='Dry Sorghum Sudangrass'!H$42 -> 36.05147539 | H26: 51.75560248 | I26: 21.27907787 | J26: 30.47652461 | K26: ='Dry Sorghum Sudangrass'!F$56 -> 196.0743975 | L26: ='Dry Sorghum Sudangrass'!G$56 -> 127.5729221 | M26: ='Dry Sorghum Sudangrass'!H$56 -> 68.50147539 | N26: ='Dry Sorghum Sudangrass'!#REF! ->  | R26: 5.525602478 | S26: 7.499077868 | T26: -1.97347539 | U26: ='Dry Sorghum Sudangrass'!$D$9 -> 0.6 | V26: ='Dry Sorghum Sudangrass'!$C$9 -> lb | W26: =IF($U26=0, 0, E26/$U26) -> 249.7406625 | X26: =IF($U26=0, 0, IF('Dry Sorghum Sudangrass'!$E$9=0,0,F26/$U26/(1-'Dry Sorghum Sudangrass'!$E$9))) -> 283.0669705 | Y26: =IF($U26=0, 0, IF('Dry Sorghum Sudangrass'!$E$9=0,0,G26/$U26/('Dry Sorghum Sudangrass'!$E$9))) -> 182.0781585 | Z26: 326.7906625 | AA26: =IF($U26=0, 0, IF('Dry Sorghum Sudangrass'!$E$9=0,0,L26/$U26/(1-'Dry Sorghum Sudangrass'!$E$9))) -> 317.3455774 | AB26: =IF($U26=0, 0, IF('Dry Sorghum Sudangrass'!$E$9=0,0,M26/$U26/('Dry Sorghum Sudangrass'!$E$9))) -> 345.9670474
A27: ='Dry Sunflowers-Oilseed'!$A$3:$H$3 -> Dryland Sunflowers-Oilseed | B27: ='Dry Sunflowers-Oilseed'!F$12 -> 267.5 | C27: ='Dry Sunflowers-Oilseed'!G$12 -> 179.225 | D27: ='Dry Sunflowers-Oilseed'!H$12 -> 88.275 | E27: ='Dry Sunflowers-Oilseed'!F$44 -> 370.7902289 | F27: ='Dry Sunflowers-Oilseed'!G$44 -> 282.0723747 | G27: ='Dry Sunflowers-Oilseed'!H$44 -> 88.71785422 | H27: -103.2902289 | I27: -102.8473747 | J27: -0.442854225 | K27: ='Dry Sunflowers-Oilseed'!F$58 -> 415.3102289 | L27: ='Dry Sunflowers-Oilseed'!G$58 -> 294.1423747 | M27: ='Dry Sunflowers-Oilseed'!H$58 -> 121.1678542 | N27: ='Dry Sunflowers-Oilseed'!#REF! ->  | R27: -147.8102289 | S27: -114.9173747 | T27: -32.89285422 | U27: ='Dry Sunflowers-Oilseed'!$D$9 -> 26.75 | V27: ='Dry Sunflowers-Oilseed'!$C$9 -> cwt | W27: 13.86131697 | X27: =IF($U27=0, 0, IF('Dry Sunflowers-Oilseed'!$E$9=0,0,F27/$U27/(1-'Dry Sunflowers-Oilseed'!$E$9))) -> 15.73845025 | Y27: =IF($U27=0, 0, IF('Dry Sunflowers-Oilseed'!$E$9=0,0,G27/$U27/('Dry Sunflowers-Oilseed'!$E$9))) -> 10.05016757 | Z27: 15.52561603 | AA27: =IF($U27=0, 0, IF('Dry Sunflowers-Oilseed'!$E$9=0,0,L27/$U27/(1-'Dry Sunflowers-Oilseed'!$E$9))) -> 16.41190541 | AB27: =IF($U27=0, 0, IF('Dry Sunflowers-Oilseed'!$E$9=0,0,M27/$U27/('Dry Sunflowers-Oilseed'!$E$9))) -> 13.72618003
A28: ='Dry Wheat'!$A$3:$H$3 -> Dryland Wheat | B28: ='Dry Wheat'!F$13 -> 213 | C28: ='Dry Wheat'!G$13 -> 142.71 | D28: ='Dry Wheat'!H$13 -> 70.29 | E28: ='Dry Wheat'!F$44 -> 157.1982731 | F28: ='Dry Wheat'!G$44 -> 132.9769142 | G28: ='Dry Wheat'!H$44 -> 24.22135883 | H28: 55.80172693 | I28: 9.733085761 | J28: 46.06864117 | K28: ='Dry Wheat'!F$58 -> 208.2782731 | L28: ='Dry Wheat'!G$58 -> 151.6069142 | M28: ='Dry Wheat'!H$58 -> 56.67135883 | N28: ='Dry Wheat'!#REF! ->  | R28: 4.721726927 | S28: -8.896914239 | T28: 13.61864117 | U28: ='Dry Wheat'!$D$9 -> 8.46 | V28: ='Dry Wheat'!$C$9 -> bu | W28: =IF($U28=0, 0, (E28-'Dry Wheat'!$F$10)/$U28) -> 13.40405119 | X28: =IF($U28=0, 0, IF('Dry Wheat'!$E$9=0,0,(F28-'Dry Wheat'!$G$10)/$U28/(1-'Dry Wheat'!$E$9))) -> 18.28286127 | Y28: =IF($U28=0, 0, IF('Dry Wheat'!$E$9=0,0,(G28-'Dry Wheat'!$H$10)/$U28/('Dry Wheat'!$E$9))) -> 3.498588307 | Z28: =IF($U28=0, 0, (K28-'Dry Wheat'!$F$10)/$U28) -> 19.44187625 | AA28: =IF($U28=0, 0, IF('Dry Wheat'!$E$9=0,0,(L28-'Dry Wheat'!$G$10)/$U28/(1-'Dry Wheat'!$E$9))) -> 21.56961897 | AB28: =IF($U28=0, 0, IF('Dry Wheat'!$E$9=0,0,(M28-'Dry Wheat'!$H$10)/$U28/('Dry Wheat'!$E$9))) -> 15.12191376
A29: ='Dry Other Crop'!$A$3:$H$3 -> Dryland Other Crop | B29: ='Dry Other Crop'!F$12 -> 0 | C29: ='Dry Other Crop'!G$12 -> 0 | D29: ='Dry Other Crop'!H$12 -> 0 | E29: ='Dry Other Crop'!F$44 -> 0 | F29: ='Dry Other Crop'!G$44 -> 0 | G29: ='Dry Other Crop'!H$44 -> 0 | H29: 0 | I29: 0 | J29: 0 | K29: ='Dry Other Crop'!F$58 -> 0 | L29: ='Dry Other Crop'!G$58 -> 0 | M29: ='Dry Other Crop'!H$58 -> 0 | N29: ='Dry Other Crop'!#REF! ->  | R29: 0 | S29: 0 | T29: 0 | U29: ='Dry Other Crop'!$D$9 -> 0 | V29: ='Dry Other Crop'!$C$9 -> unit | W29: =IF($U29=0, 0, (E29-'Dry Other Crop'!$F$10)/$U29) -> 0 | X29: =IF($U29=0, 0, IF('Dry Other Crop'!$E$9=0,0,(F29-'Dry Other Crop'!$G$10)/$U29/(1-'Dry Other Crop'!$E$9))) -> 0 | Y29: =IF($U29=0, 0, IF('Dry Other Crop'!$E$9=0,0,(G29-'Dry Other Crop'!$H$10)/$U29/('Dry Other Crop'!$E$9))) -> 0 | Z29: =IF($U29=0, 0, (K29-'Dry Other Crop'!$F$10)/$U29) -> 0 | AA29: =IF($U29=0, 0, IF('Dry Other Crop'!$E$9=0,0,(L29-'Dry Other Crop'!$G$10)/$U29/(1-'Dry Other Crop'!$E$9))) -> 0 | AB29: =IF($U29=0, 0, IF('Dry Other Crop'!$E$9=0,0,(M29-'Dry Other Crop'!$H$10)/$U29/('Dry Other Crop'!$E$9))) -> 0

Sheet Irrigation Analysis
A2: Irrigation Analysis
A3: Farm Name | B3: ABC Farm
A4: Total Well GPM to Pivot | B4: 500
A5: Acres Available for Irrigation | B5: 120
A6: Minimum Planting Circle Size | B6: None
A7: Allowed Inches per Gross Acre | B7: 15
A8: Gross Acres | B8: 160
Q9: Total ROVC at Various Irrigated and Dryland Combinations
A10: Commodity | B10: Crop GPM per acre | C10: Normal GPM/Acre by Crop | D10: Limited Max Irr Acreage | E10: Maximum Irr Acreage | F10: Remaining Acres | G10: ROVC/ Acre | H10: ROVC/ Ac-In | I10: ROVC (Irr. Land) | J10: =$A27 -> Dryland Canola | K10: =A28 -> Dryland Cotton | L10: =A29 -> Dryland Sorghum | M10: =A30 -> Dryland Sorghum Sudangrass | N10: =A31 -> Dryland Sunflowers-Oilseed | O10: =A32 -> Dryland Wheat | P10: =A33 -> Dryland Other Crop | Q10: With Dryland Canola | R10: With Dryland Cotton | S10: With Dryland Sorghum | T10: With Dryland Sorg. Sundangrass | U10: With Dryland Sunfl.-Oils. | V10: With Dryland Wheat | W10: With Dryland Other Crop
A11: ='Irr Alfalfa'!$A$3:$H$3 -> Irrigated Alfalfa | B11: =Alfalfa_GPM -> 8.000115963 | C11: 7 to 8 | D11: =IF(Alfalfa_Inches=0,0,MIN(IF(B11=0,0,MIN($B$5,$B$4/B11)),$B$7*$B$8/Alfalfa_Inches)) -> 62.49909406 | E11: =IF((D11)>$B$5,$B$5,IF($B$6="None",(D11),FLOOR((D11),($B$5*$B$6)))) -> 62.49909406 | F11: =$B$5-E11 -> 57.50090594 | G11: ='Comparative Returns'!H7 -> 1154.13016 | H11: ='Comparative Returns'!O7 -> 48.08875667 | I11: =IF(SUBTOTAL(102,$G11)=1,G11*E11,"-") -> - | J11: =F11*$G$27 -> 1453.407251 | K11: =F11*$G$28 -> -3686.333921 | L11: =F11*$G$29 -> -1134.265203 | M11: =F11*$G$30 -> 2975.99403 | N11: =F11*$G$31 -> -5939.281737 | O11: =F11*$G$32 -> 3208.649852 | P11: =F11*$G$33 -> 0 | Q11: =IF(SUBTOTAL(102,$G11,$G$27)=2,IF($I11=($I11+J11),"-",($I11+J11)),"-") -> - | R11: =IF(SUBTOTAL(102,$G11,$G$28)=2,IF($I11=($I11+K11),"-",($I11+K11)),"-") -> - | S11: =IF(SUBTOTAL(102,$G11,$G$29)=2,IF($I11=($I11+L11),"-",($I11+L11)),"-") -> - | T11: =IF(SUBTOTAL(102,$G11,$G$30)=2,IF($I11=($I11+M11),"-",($I11+M11)),"-") -> - | U11: =IF(SUBTOTAL(102,$G11,$G$31)=2,IF($I11=($I11+N11),"-",($I11+N11)),"-") -> - | V11: =IF(SUBTOTAL(102,$G11,$G$32)=2,IF($I11=($I11+O11),"-",($I11+O11)),"-") -> - | W11: =IF(SUBTOTAL(102,$G11,$G$33)=2,IF($I11=($I11+P11),"-",($I11+P11)),"-") -> -
A12: ='Irr Canola'!$A$3:$H$3 -> Irrigated Canola | B12: =Canola_GPM -> 2.000099703 | C12: 2 to 3.5 | D12: =IF(Canola_Inches=0,0,MIN(IF(B12=0,0,MIN($B$5,$B$4/B12)),$B$7*$B$8/Canola_Inches)) -> 120 | E12: =IF((D12)>$B$5,$B$5,IF($B$6="None",(D12),FLOOR((D12),($B$5*$B$6)))) -> 120 | F12: =$B$5-E12 -> 0 | G12: ='Comparative Returns'!H8 -> 11.40463567 | H12: ='Comparative Returns'!O8 -> 1.140463567 | I12: =IF(SUBTOTAL(102,$G12)=1,G12*E12,"-") -> - | J12: 0 | K12: 0 | L12: 0 | M12: 0 | N12: 0 | O12: 0 | P12: 0 | Q12: - | R12: - | S12: - | T12: - | U12: - | V12: - | W12: -
A13: ='Irr Corn'!$A$3:$H$3 -> Irrigated Corn | B13: =Corn_GPM -> 6.000183396 | C13: 4.5 to 7 | D13: =IF(Corn_Inches=0,0,MIN(IF(B13=0,0,MIN($B$5,$B$4/B13)),$B$7*$B$8/Corn_Inches)) -> 83.33078624 | E13: 83.33078624 | F13: 36.66921376 | G13: ='Comparative Returns'!H9 -> 201.1842532 | H13: ='Comparative Returns'!O9 -> 9.144738783 | I13: 16764.842 | J13: 926.8601995 | K13: -2350.831944 | L13: -723.3383981 | M13: 1897.83725 | N13: -3787.571482 | O13: 2046.205453 | P13: 0 | Q13: - | R13: 14414.01006 | S13: 16041.5036 | T13: - | U13: - | V13: - | W13: -
A14: ='Irr Corn Silage'!$A$3:$H$3 -> Irrigated Corn Silage | B14: =Corn_Silage_GPM -> 5.999662743 | C14: 4.5 to 7 | D14: =IF(Corn_Silage_Inches=0,0,MIN(IF(B14=0,0,MIN($B$5,$B$4/B14)),$B$7*$B$8/Corn_Silage_Inches)) -> 83.33801773 | E14: 83.33801773 | F14: 36.66198227 | G14: ='Comparative Returns'!H10 -> 316.6395473 | H14: ='Comparative Returns'!O10 -> 15.83197737 | I14: 26388.11221 | J14: 926.6774148 | K14: -2350.36834 | L14: -723.1957495 | M14: 1897.462981 | N14: -3786.824541 | O14: 2045.801923 | P14: 0 | Q14: - | R14: 24037.74387 | S14: 25664.91646 | T14: - | U14: - | V14: - | W14: -
A15: ='Irr Cotton'!$A$3:$H$3 -> Irrigated Cotton | B15: =Cotton_GPM -> 2.999910911 | C15: 2 to 3.5 | D15: =IF(Cotton_Inches=0,0,MIN(IF(B15=0,0,MIN($B$5,$B$4/B15)),$B$7*$B$8/Cotton_Inches)) -> 120 | E15: 120 | F15: 0 | G15: ='Comparative Returns'!H11 -> 290.9882728 | H15: ='Comparative Returns'!O11 -> 24.24902273 | I15: - | J15: 0 | K15: 0 | L15: 0 | M15: 0 | N15: 0 | O15: 0 | P15: 0 | Q15: - | R15: - | S15: - | T15: - | U15: - | V15: - | W15: -
A16: ='Irr Peanuts'!$A$3:$H$3 -> Irrigated Peanuts | B16: =Peanuts_GPM -> 4.999946212 | C16: 4.5 to 6 | D16: =IF(Peanuts_Inches=0,0,MIN(IF(B16=0,0,MIN($B$5,$B$4/B16)),$B$7*$B$8/Peanuts_Inches)) -> 100.0010758 | E16: 100.0010758 | F16: 19.99892423 | G16: ='Comparative Returns'!H12 -> 51.848388 | H16: ='Comparative Returns'!O12 -> 2.468970857 | I16: - | J16: 505.4978006 | K16: -1282.113935 | L16: -394.4995907 | M16: 1035.056372 | N16: -2065.693462 | O16: 1115.974509 | P16: 0 | Q16: - | R16: - | S16: - | T16: - | U16: - | V16: - | W16: -
A17: ='Irr Sorghum'!$A$3:$H$3 -> Irrigated Sorghum | B17: =Sorghum_GPM -> 2.499925759 | C17: 3.5 to 4.5 | D17: =IF(Sorghum_Inches=0,0,MIN(IF(B17=0,0,MIN($B$5,$B$4/B17)),$B$7*$B$8/Sorghum_Inches)) -> 120 | E17: 120 | F17: 0 | G17: ='Comparative Returns'!H13 -> -63.98738998 | H17: ='Comparative Returns'!O13 -> -6.398738998 | I17: -7678.486798 | J17: 0 | K17: 0 | L17: 0 | M17: 0 | N17: 0 | O17: 0 | P17: 0 | Q17: - | R17: - | S17: - | T17: - | U17: - | V17: - | W17: -
A18: ='Irr Sorghum Seed'!$A$3:$H$3 -> Irrigated Sorghum Seed | B18: =Sorghum_Seed_GPM -> 3.076800326 | C18: 3.5 to 4.5 | D18: =IF(Sorghum_Seed_Inches=0,0,MIN(IF(B18=0,0,MIN($B$5,$B$4/B18)),$B$7*$B$8/Sorghum_Seed_Inches)) -> 120 | E18: 120 | F18: 0 | G18: ='Comparative Returns'!H14 -> 657.9464293 | H18: ='Comparative Returns'!O14 -> 41.12165183 | I18: - | J18: 0 | K18: 0 | L18: 0 | M18: 0 | N18: 0 | O18: 0 | P18: 0 | Q18: - | R18: - | S18: - | T18: - | U18: - | V18: - | W18: -
A19: ='Irr Sorghum Silage'!$A$3:$H$3 -> Irrigated Sorghum Silage | B19: =Sorghum_Silage_GPM -> 3.769234152 | C19: 3.5 to 4.5 | D19: =IF(Sorghum_Silage_Inches=0,0,MIN(IF(B19=0,0,MIN($B$5,$B$4/B19)),$B$7*$B$8/Sorghum_Silage_Inches)) -> 120 | E19: 120 | F19: 0 | G19: ='Comparative Returns'!H15 -> 438.2510835 | H19: ='Comparative Returns'!O15 -> 31.30364882 | I19: - | J19: 0 | K19: 0 | L19: 0 | M19: 0 | N19: 0 | O19: 0 | P19: 0 | Q19: - | R19: - | S19: - | T19: - | U19: - | V19: - | W19: -
A20: ='Irr Sorghum Sudangrass'!$A$3:$H$3 -> Irrigated Sorghum Sudangrass | B20: =Sorghum_Sudan_GPM -> 3.499947618 | C20: 3.5 to 4.5 | D20: =IF(Sorghum_Sudan_Inches=0,0,MIN(IF(B20=0,0,MIN($B$5,$B$4/B20)),$B$7*$B$8/Sorghum_Sudan_Inches)) -> 120 | E20: 120 | F20: 0 | G20: ='Comparative Returns'!H16 -> 49.42776177 | H20: ='Comparative Returns'!O16 -> 5.49197353 | I20: - | J20: 0 | K20: 0 | L20: 0 | M20: 0 | N20: 0 | O20: 0 | P20: 0 | Q20: - | R20: - | S20: - | T20: - | U20: - | V20: - | W20: -
A21: ='Irr Soybeans'!$A$3:$H$3 -> Irrigated Soybeans | B21: =Soybeans_GPM -> 3.889174425 | C21: 4.5 to 6 | D21: =IF(Soybeans_Inches=0,0,MIN(IF(B21=0,0,MIN($B$5,$B$4/B21)),$B$7*$B$8/Soybeans_Inches)) -> 120 | E21: 120 | F21: 0 | G21: ='Comparative Returns'!H17 -> 325.4368456 | H21: ='Comparative Returns'!O17 -> 23.24548897 | I21: - | J21: 0 | K21: 0 | L21: 0 | M21: 0 | N21: 0 | O21: 0 | P21: 0 | Q21: - | R21: - | S21: - | T21: - | U21: - | V21: - | W21: -
A22: ='Irr Sunflowers-Confection'!$A$3:$H$3 -> Irrigated Sunflowers-Confectionary | B22: =Sunflowers_Conf_GPM -> 1.999978485 | C22: 2 to 3.5 | D22: =IF(Sunflowers_Conf_Inches=0,0,MIN(IF(B22=0,0,MIN($B$5,$B$4/B22)),$B$7*$B$8/Sunflowers_Conf_Inches)) -> 120 | E22: 120 | F22: 0 | G22: ='Comparative Returns'!H18 -> -49.3046265 | H22: ='Comparative Returns'!O18 -> -7.043518071 | I22: - | J22: 0 | K22: 0 | L22: 0 | M22: 0 | N22: 0 | O22: 0 | P22: 0 | Q22: - | R22: - | S22: - | T22: - | U22: - | V22: - | W22: -
A23: ='Irr Sunflowers-Oilseed'!$A$3:$H$3 -> Irrigated Sunflowers-Oilseed | B23: =Sunflowers_Oil_GPM -> 1.999978485 | C23: 2 to 3.5 | D23: =IF(Sunflowers_Oil_Inches=0,0,MIN(IF(B23=0,0,MIN($B$5,$B$4/B23)),$B$7*$B$8/Sunflowers_Oil_Inches)) -> 120 | E23: 120 | F23: 0 | G23: ='Comparative Returns'!H19 -> -95.2313625 | H23: ='Comparative Returns'!O19 -> -13.60448036 | I23: - | J23: 0 | K23: 0 | L23: 0 | M23: 0 | N23: 0 | O23: 0 | P23: 0 | Q23: - | R23: - | S23: - | T23: - | U23: - | V23: - | W23: -
A24: ='Irr Triticale Silage'!$A$3:$H$3 -> Irrigated Triticale Silage | B24: =Triticale_Silage_GPM -> 2.692310109 | C24: 3.5 to 4.5 | D24: =IF(Triticale_Silage_Inches=0,0,MIN(IF(B24=0,0,MIN($B$5,$B$4/B24)),$B$7*$B$8/Triticale_Silage_Inches)) -> 120 | E24: =IF((D24)>$B$5,$B$5,IF($B$6="None",(D24),FLOOR((D24),($B$5*$B$6)))) -> 120 | F24: =$B$5-E24 -> 0 | G24: ='Comparative Returns'!H20 -> 138.8245531 | H24: ='Comparative Returns'!O20 -> 2.86295222 | I24: =IF(SUBTOTAL(102,$G24)=1,G24*E24,"-") -> - | J24: =F24*$G$27 -> 0 | K24: =F24*$G$28 -> 0 | L24: =F24*$G$29 -> 0 | M24: =F24*$G$30 -> 0 | N24: =F24*$G$31 -> 0 | O24: =F24*$G$32 -> 0 | P24: =F24*$G$33 -> 0 | Q24: - | R24: - | S24: - | T24: - | U24: - | V24: - | W24: -
A25: ='Irr Wheat'!$A$3:$H$3 -> Irrigated Wheat | B25: =Wheat_GPM -> 2.666799604 | C25: 3.5 to 4.5 | D25: =IF(Wheat_Inches=0,0,MIN(IF(B25=0,0,MIN($B$5,$B$4/B25)),$B$7*$B$8/Wheat_Inches)) -> 120 | E25: 120 | F25: 0 | G25: ='Comparative Returns'!H21 -> 96.99666616 | H25: ='Comparative Returns'!O21 -> 9.699666616 | I25: - | J25: =F25*$G$27 -> 0 | K25: =F25*$G$28 -> 0 | L25: =F25*$G$29 -> 0 | M25: =F25*$G$30 -> 0 | N25: =F25*$G$31 -> 0 | O25: =F25*$G$32 -> 0 | P25: =F25*$G$33 -> 0 | Q25: - | R25: - | S25: - | T25: - | U25: - | V25: - | W25: -
A26: ='Irr Other Crop'!$A$3:$H$3 -> Irrigated Other Crop | B26: =Other_GPM -> 0 | C26: 2 to 8 | D26: =IF(Other_Inches=0,0,MIN(IF(B26=0,0,MIN($B$5,$B$4/B26)),$B$7*$B$8/Other_Inches)) -> 0 | E26: 0 | F26: 120 | G26: ='Comparative Returns'!H22 -> 0 | H26: ='Comparative Returns'!O22 -> - | I26: - | J26: =F26*$G$27 -> 3033.149952 | K26: =F26*$G$28 -> -7693.097409 | L26: =F26*$G$29 -> -2367.124868 | M26: =F26*$G$30 -> 6210.672297 | N26: =F26*$G$31 -> -12394.82747 | O26: =F26*$G$32 -> 6696.207231 | P26: =F26*$G$33 -> 0 | Q26: - | R26: - | S26: - | T26: - | U26: - | V26: - | W26: -
A27: ='Dry Canola'!$A$3:$H$3 -> Dryland Canola | B27: - | E27: - | F27: - | G27: ='Comparative Returns'!H23 -> 25.2762496 | H27: -
A28: ='Dry Cotton'!$A$3:$H$3 -> Dryland Cotton | B28: - | C28: Min Planting Circle Size | E28: - | F28: - | G28: ='Comparative Returns'!H24 -> -64.10914508 | H28: -
A29: ='Dry Sorghum'!$A$3:$H$3 -> Dryland Sorghum | B29: - | C29: None | E29: - | F29: - | G29: ='Comparative Returns'!H25 -> -19.72604057 | H29: -
A30: ='Dry Sorghum Sudangrass'!$A$3:$H$3 -> Dryland Sorghum Sudangrass | B30: - | C30: 0.25 | E30: - | F30: - | G30: ='Comparative Returns'!H26 -> 51.75560248 | H30: -
A31: ='Dry Sunflowers-Oilseed'!$A$3:$H$3 -> Dryland Sunflowers-Oilseed | B31: - | C31: =1/3 -> 0.3333333333 | E31: - | F31: - | G31: ='Comparative Returns'!H27 -> -103.2902289 | H31: -
A32: ='Dry Wheat'!$A$3:$H$3 -> Dryland Wheat | B32: - | C32: 0.5 | E32: - | F32: - | G32: ='Comparative Returns'!H28 -> 55.80172693 | H32: -
A33: ='Dry Other Crop'!$A$3:$H$3 -> Dryland Other Crop | B33: - | E33: - | F33: - | G33: ='Comparative Returns'!H29 -> 0 | H33: -

Sheet Graphs
A2: Irrigation Analysis Graphs
